Workbook

Sheet Start GRBCA

Sheet RBTL Report
A5: Georgia Risk-based Corrective Action: Applicable Cleanup Level Determination at Petroleum Sites
A8: Effective Date: May 11, 2018 Version 1.0 Rev W.051118-beta
A9: Area of Contamination (AOC) Risk-based Threshold Level (RBTL) Report
B11: 1. Date this Risk Anaysis Report Completed? (mm/dd/yyyy)
B13: 2. Date confirmed release reported to USTMP? (mm/dd/yyyy)
F14: Facility Name (LEMIR Location Name) | I14: Facility ID # (LEMIR Location Identifier) | K14: Facility County
B15: 3. Facility Information:
B17: 4. Is Groundwater (GW) Used for Drinking Water within Five Hundred (500) ft of Release Point?
B19: 5. Type of Petroleum Product(s) Released:
D20: Table 5: Type of Petroleum Product(s) Released
B24: 6. Applicable Exposure Pathway(s), Receptor(s) and Foundation Type(s):
D25: Select applicable pathways and receptors for the Area of Contamination (AOC) and Areas of Potential Contamination (AOPC):
D27: Table 6A. Exposure Pathway(s) | H27: Table 6B. Human Receptor(s)
D28: AOC (nres* or res**) | F28: AOPC (nres &/or res) | H28: *nres = nonresidence **res = residence | J28: AOC | L28: AOPC (nres) | M28: AOPC (res)
D29: Vapor Intrusion .(GW to Indoor Air) ..(default selection) | F29: Vapor Intrusion .(GW to Indoor Air) . | H29: nres (commercial worker) | M29: N/A
D31: Drinking Water . Well ... (GW Ingestion) | F31: Drinking Water . Well . (GW Ingestion) | H31: res | L31: N/A
D33: Table 6C. Surface Water (SW) Receptor(s) | H33: Table 6D. Structure Foundation Type
D34: SW can be located in AOC and/or AOPC | H34: Foundation Type (nres or res) | J34: AOC | L34: AOPC (nes) | M34: AOPC (res)
D35: Public Water Supply Withdrawal Point (wswp) | H35: Slab-on-grade includes (Evaluated Crawl Space)
D36: Perennial Water Body (pwb) (Lake, Pond, Stream, Estuary, Coast) | H36: Basement
B39: 7. Applicable Structure Vapor Intrusion Inclusion Screening Parameters:
D41: For Table 7A through 7D, enter the applicable distances from the AOC or AOPC structures to the stated measurement point. Enter the AOPC nearest residence and nearest nonresidence, located down or cross gradient from the release point.
D44: Table 7A. AOC Structure Distance to Nearest Soil Benzene Sample Result | H44: Distance (feet) | I44: MW ID # or Sample ID | J44: Data Source (distance to onsite structure)
J45: Date | K45: Report Name | M45: Fig. #
D46: Lateral distance from AOC structure to nearest vadose benzene soil sample ≥ 0.1 mg/kg
J48: Select checkbox to populate data source entries if references in Table 7B - 7D below, are the same:
D49: Table 7B. AOC Structure Distance to Nearest Free Product (FP) MW | H49: Distance (feet) | I49: MW-ID # | J49: Data Source (distance to onsite structure)
J50: Date | K50: Report Name | M50: Fig. #
D51: Lateral distance from AOC structure to nearest MW with FP or GW benz. ≥ 15,000 µg/L
D54: Table 7C. AOPC Residence Distance to Nearest MW with Detectable COCs | H54: Distance (feet) | I54: MW-ID # | J54: Data Source (distance to nearest AOPC residence)
J55: Date | K55: Report Name | M55: Fig. #
D56: Distance from closest AOPC & down gradient residence to nearest MW with detectable COCs
D59: Table 7C. AOPC Nonresidence Distance to Nearest MW with Detectable COCs | H59: Distance (feet) | I59: MW-ID # | J59: Data Source (distance to nearest AOPC nonresidence)
J60: Date | K60: Report Name | M60: Fig. #
D61: Distance from closest AOPC & down gradient nonresidence to nearest MW with detectable COCs
GA491: FALSE | GC491: 4
GS493: COC Raw Value from RBCL Table | GT493: Absolute Value of Water COC Conc. | GU493: > zero Value of Water COC Conc.
GA494: 1
GA495: 1
GA496: FALSE
GA498: FALSE | GV498: < Detection Limit Soil Samples | HB498: Max Soil | HC498: < Detection Limit Water Samples | HI498: Max Water
GA499: FALSE | GE499: COC | GF499: Soil_Max | GG499: Water | GH499: Soil_1 | GI499: Soil_2 | GJ499: Soil_3 | GK499: Soil_4 | GL499: Soil_5 | GM499: Soil_6
FZ500: dw type | GA500: 1 | GT500: =IF(MAX(GS500,HI500)>0,MAX(GS500,HI500),"0") -> 0 | GU500: =IF(MAX(GT500,HI500)>0,MAX(GT500,HI500),"") ->  | HB500: =IF(COUNTIF(GV500:HA500,">0"),MAX(GV500:HA500),"") ->  | HI500: =IF(COUNTIF(HC500:HH500,">0"),MAX(HC500:HH500),"") -> 
FY501: fuel type | FZ501: gasoline | GA501: FALSE | GB501: =IF(Gasoline=TRUE,1,0) -> 0 | GC501: =SUM(GB501:GB506) -> 0 | GT501: =IF(MAX(GS501,HI501)>0,MAX(GS501,HI501),"0") -> 0 | GU501: =IF(MAX(GT501,HI501)>0,MAX(GT501,HI501),"") -> 
FZ502: diesel | GA502: FALSE | GB502: =IF(Diesel=TRUE,2,0) -> 0 | GC502: =SUM(Oil_Count,Gasoline_Count) -> 0 | GT502: 0
FZ503: gas_diesel | GA503: FALSE | GB503: =IF(Gas_Diesel=TRUE,3,0) -> 0 | GC503: =Aviation_Count+Diesel_Count -> 0 | GT503: 0
FZ504: oil | GA504: FALSE | GB504: =IF(Oil=TRUE,4,0) -> 0 | GC504: =Gasoline_Count+Oil_Count+Aviation_Count -> 0 | GT504: 0
FZ505: aviation | GA505: FALSE | GB505: =IF(Aviation=TRUE,5,0) -> 0 | GC505: =SUM(Diesel_Count,Oil_Count,Aviation_Count) -> 0 | GT505: 0
FZ506: unknown | GA506: FALSE | GB506: =IF(Unknown=TRUE,6,0) -> 0 | GC506: =SUM(Gas_Diesel_Count,Aviation_Count) -> 0 | GT506: 0 | HB506: =IF(COUNTIF(GV506:HA506,">0"),MAX(GV506:HA506),"") -> 
FX507: offsite VI pathway | FZ507: VI | GA507: FALSE | GB507: =IF('RBTL Report'!$GC$491<30,COUNT($F$96:$K$96),COUNT($F$73:$K$73)) -> 0 | GT507: 0
FZ508: offsite dw | GA508: FALSE | GT508: 0
GA509: FALSE | GT509: 0
FX510: osite VI pathway | FZ510: VI | GA510: TRUE | GT510: 0
FZ511: onsite dw | GA511: FALSE | GT511: 0
FW512: SW pathway | FY512: Water Supply intake | GA512: FALSE | GB512: 0 | GT512: 0
FY513: Water & Organisms | GA513: FALSE | GB513: 0 | GT513: 0
GA514: FALSE | GT514: 0
FX515: onsite recep | FZ515: child | GA515: FALSE | GB515: =IF(GA515=TRUE,1,0) -> 0 | GC515: =SUM(GB515:GB517) -> 0 | GT515: 0
FZ516: adult | GA516: FALSE | GB516: =IF(GA516=TRUE,3,0) -> 0 | GT516: 0
FZ517: worker | GA517: FALSE | GB517: =IF(GA517=TRUE,5,"") ->  | GT517: 0
GA518: FALSE | GT518: 0
GA519: FALSE | GT519: 0
FX520: offsite recep | FZ520: child | GA520: FALSE | GB520: =IF(GA520,1,0) -> 0 | GC520: =SUM(GB520:GB522,GB512:GB513) -> 0 | GT520: 0
FZ521: adult | GA521: FALSE | GB521: =IF(GA521,3,0) -> 0 | GT521: 0
FZ522: worker | GA522: FALSE | GB522: =IF(GA522,5,0) -> 0 | GC522: FALSE | GD522: FALSE | GT522: 0
GA523: FALSE | GT523: 0
GA524: FALSE | GT524: 0
GA525: FALSE | GB525: 0 | GC525: 0 | GT525: 0
FX526: onsite foundation type | FZ526: slab | GA526: FALSE | GB526: 10 | GT526: 0
FZ527: basement | GA527: FALSE | GB527: 20 | GT527: 0
FW528: residence | FX528: offsite foundation type | FZ528: slab | GA528: FALSE | GT528: 0
FZ529: basement | GA529: FALSE | GT529: 0
GA530: FALSE | GT530: 0
FW531: nonres | FX531: offsite foundation type | FZ531: slab | GA531: FALSE
FZ532: basement | GA532: FALSE
GA535: 0
GA539: FALSE
GA540: FALSE | GB540: checkbox to populate RBTL Data Source reference
GA541: 0 | GB541: universal print
GB542: universal color
GA700: 0
GA800: 0
GA900: 0
GA905: 0
GA910: 0
GA950: 0
GA951: 0
GA952: 0
GA960: 0
GA961: 0
GA962: 0

Sheet AOC SSTL Report
A3: Area of Concern (AOC) Site-specific Threshold Level (SSTL) Report
B5: 1. AOC Soil Parameters:
D6: Determine the predominant vadose zone & capillary fringe zone soil class using the boring logs within and near the zone of soil and ground water contamination.
D9: Table 1: Predominant Soil Class Parameters | J9: Select checkbox to populate data source entries if references below, are the same in RBTL Report:
D10: AOC Soil Class(es) (select one or more) | F10: Vadose Zone (select predominant class) | H10: Capillary Fringe (select predominant class) | J10: Data Source For Soil Types
J11: Report Name
J13: Date | K13: Boring Log #
D16: *Bedrock
B17: 2. AOC GW and FP Parameters (if present):
D18: Table 2A: AOC GW, Free Product (FP) and/or FP Condition (FPc)* Depth Parameters | J18: MW ID # | K18: Recent | L18: Low | M18: High
D19: LGW | E19: Depth to GW | F19: Use MW ID # at right for most recent GW depth: See footnote "A" for site historic GW depth range. | J19: =IF(Reference!E158<>"", Reference!E158, "") -> 
D20: LFP | E20: Depth to FP or FPc* | F20: If FP or a FPc is not present or historically present, then all responses at right will be "N/A": | J20: =IF('RBTL Report'!I51<>"", 'RBTL Report'!I51, "") -> 
D21: *FPc = Free Product Condition where GW benzene ≥ 15,000 µg/L | J21: Date: | L21: A Evaluate all MW's for site historic GW, FP &/or FPc low/high range
D22: Enter the Data Source Information for each applicable parameter above:
D24: Symbol | J24: Table Name
D25: Lgw | J25: Groundwater Elevations
D26: Lfp
B28: =IF('AOC SSTL Report'!GB550=5,"","3. Comparison of Groundwater COCs to SSTLs:") -> 3. Comparison of Groundwater COCs to SSTLs:
GC503: 0 | GD503: coc_split | GF503: 0 | GG503: aoc no
GC504: 0 | GD504: true_no
GC505: 0 | GD505: na_count
GC506: 0 | GD506: water_na
GC507: 0
GC509: 0
GC510: 0 | GD510: soil_no | GS510: =MIN(GU520,HD520,HM520,HV520) -> 0
GC511: 0 | GD511: water_no
GC512: 0 | GD512: coc
GC513: 0
GC514: 0 | GD514: soil_na
GC515: 0 | GD515: water_yes
GC516: 0 | GD516: soil_yes
GC517: 0 | GD517: yes
GC518: 0 | GD518: no | GJ518: This red box relocates rs and ties it to soil type like qas(at left). RLC confirm links and if true/false values linked
FV520: Vadose: | FW520: clay | FX520: silt | FY520: sand | FZ520: bedrock → | GA520: FALSE | GB520: FALSE | GC520: FALSE | GD520: FALSE | GE520: =IF(GA520 =TRUE,1,0) -> 0 | GF520: =IF(GB520 =TRUE,2,0) -> 0 | GG520: =IF(GC520 =TRUE,3,0) -> 0 | GH520: =IF(GD520 =TRUE,4,0) -> 0 | GI520: FALSE | GJ520: FALSE | GK520: TRUE | GL520: FALSE | GM520: =IF(GI520 =TRUE,1,0) -> 0 | GN520: =IF(GJ520 =TRUE,2,0) -> 0 | GO520: =IF(GK520 =TRUE,3,0) -> 3 | GP520: =IF(GM520 =TRUE,4,0) -> 0
FZ521: qas (θas) hydrogeological property table values g | GA521: =Reference!CD14 -> 0.244 | GB521: =Reference!CE14 -> 0.264 | GC521: =Reference!CF14 -> 0.262 | GD521: =Reference!CG14 -> 0.2052631579 | GE521: =IF(GF521=1,GA521,IF(GF521=2,GB521,IF(GF521=3,GC521,IF(GF521=4,GD521,IF(GF521=0,""))))) ->  | GF521: =SUM(GE520:GH520) -> 0 | GI521: =Reference!CD21 -> 1.47 | GJ521: =Reference!CE21 -> 1.44 | GK521: =Reference!CF21 -> 1.63 | GL521: =Reference!CG21 -> 1.7 | GM521: =IF(GN521=1,GI521,IF(GN521=2,GJ521,IF(GN521=3,GK521,IF(GN521=4,GL521,IF(GN521=0,""))))) -> 1.63 | GN521: =SUM(GM520:GP520) -> 3
FV522: Cap Fringe: | FW522: clay | FX522: silt | FY522: sand | FZ522: bedrock → | GA522: FALSE | GB522: FALSE | GC522: FALSE | GD522: FALSE | GE522: =IF(GA520 =TRUE,1,0) -> 0 | GF522: =IF(GB520 =TRUE,2,0) -> 0 | GG522: =IF(GC520 =TRUE,3,0) -> 0 | GH522: =IF(GD520 =TRUE,4,0) -> 0
FZ523: qws(θws) hydrogeological parameter table values g | GA523: =Reference!CD18 -> 0.198 | GB523: =Reference!CE18 -> 0.187 | GC523: =Reference!CF18 -> 0.124 | GD523: =Reference!CG18 -> 0.09473684211 | GE523: =IF(GF523=1,GA523,IF(GF523=2,GB523,IF(GF523=3,GC523,IF(GF523=4,GD523,IF(GF523=0,""))))) ->  | GF523: =SUM(GE522:GH522) -> 0 | GM523: 0.01
FZ524: hcap hydrogeological parameter table values g | GA524: =Reference!CD9 -> 79.04 | GB524: =Reference!CE9 -> 107.94 | GC524: =Reference!CF9 -> 24.88 | GD524: =Reference!CG9 -> 5
GA525: FALSE | GB525: 0 | GC525: =GB525 -> 0 | GD525: =Lgw-hcap -> 0 | GE525: =qas ->  | GF525: =qws ->  | GG525: =SUM(qas,qws) -> 0 | GH525: =0.1*qt -> 0 | GI525: =0.9*qt -> 0
GA526: FALSE | GB526: =IF('RBTL Report'!GA515=TRUE, 200, IF('RBTL Report'!GA516=TRUE, 200, IF('RBTL Report'!GA517=TRUE, 300,300))) -> 300 | GC526: =IF('RBTL Report'!GA515=TRUE, 0.00014, IF('RBTL Report'!GA516=TRUE, 0.00014,0.00023)) -> 0.00023 | GD526: 15 | GE526: 0.01 | GG526: =IF('RBTL Report'!$GC$491<30, IF('RBTL Report'!F93="",100,'RBTL Report'!F93*30.48), IF('RBTL Report'!F69="",100,'RBTL Report'!F69*30.48)) -> 100 | GH526: =IF('RBTL Report'!$GC$491<30, IF('RBTL Report'!G93="",100,'RBTL Report'!G93*30.48), IF('RBTL Report'!G69="",100,'RBTL Report'!G69*30.48)) -> 100 | GI526: =IF('RBTL Report'!$GC$491<30, IF('RBTL Report'!H93="",100,'RBTL Report'!H93*30.48), IF('RBTL Report'!H69="",100,'RBTL Report'!H69*30.48)) -> 100 | GJ526: =IF('RBTL Report'!$GC$491<30, IF('RBTL Report'!I93="",100,'RBTL Report'!I93*30.48), IF('RBTL Report'!I69="",100,'RBTL Report'!I69*30.48)) -> 100 | GK526: =IF('RBTL Report'!$GC$491<30, IF('RBTL Report'!J93="",100,'RBTL Report'!J93*30.48), IF('RBTL Report'!J69="",100,'RBTL Report'!J69*30.48)) -> 100 | GL526: =IF('RBTL Report'!$GC$491<30, IF('RBTL Report'!K93="",100,'RBTL Report'!K93*30.48), IF('RBTL Report'!K69="",100,'RBTL Report'!K69*30.48)) -> 100
GA527: FALSE | GB527: =IF('RBTL Report'!GA515=TRUE,15,IF('RBTL Report'!GA516=TRUE,80,80)) -> 80 | GC527: 70 | GD527: =IF('RBTL Report'!GA515=TRUE,15,IF('RBTL Report'!GA516=TRUE,15,IF('RBTL Report'!GA517=TRUE,20,20))) -> 20 | GE527: =IF('RBTL Report'!GA515=TRUE,350,IF('RBTL Report'!GA516=TRUE,350,IF('RBTL Report'!GA517=TRUE,250,250))) -> 250 | GF527: =IF('RBTL Report'!GA515=TRUE,26,IF('RBTL Report'!GA516=TRUE,26,IF('RBTL Report'!GA517=TRUE,25,25))) -> 25 | GG527: =0.00001 -> 1e-05 | GH527: =1 -> 1
GA528: TRUE | GB528: =IF('RBTL Report'!GA515=TRUE, 24, IF('RBTL Report'!GA516=TRUE, 24, IF('RBTL Report'!GA517=TRUE, 12, 12))) -> 12 | GC528: =1/24 -> 0.04166666667 | GG528: 1e-05 | GH528: =K19*30.48 -> 0 | GI528: 448.056 | GJ528: 426.72
GH529: This yellow box relocates Lgw and groups newly named Lgwres and Lgwnres, which are currently linked to Lgw.
GE530: RLC: comment applies to cell GE522
GA531: TRUE | GB531: 29.10714286 | GC531: New designations in red to left of these cells indicates soil type differences, This resulted in STW reverting GE522-GD522 code to original TN RAR programming, pending review by RLC.
GA532: TRUE
GA533: TRUE | GK533: The red box below relocates rs and ties it to soil type like qas(at left). RLC confirm links and if true/false values linked
GA534: TRUE
FV535: Vadose: | FW535: clay | FX535: silt | FY535: sand | FZ535: bedrock → | GA535: This color key is for the table above. | GF535: These are also named variables located in the Formulas Tab - Name Manager
FZ536: qas (θas) hydrogeological property table values g | GA536: soil class selected = true | GE536: soil class vb code count | GI536: soil class selected = true | GM536: soil class vb code count
FV537: Cap Fringe: | FW537: clay | FX537: silt | FY537: sand | FZ537: bedrock → | GA537: qas selection values | GE537: qas = true | GF537: sum above | GI537: rs selection values | GM537: rs (ƿs) | GN537: sum above
FZ538: qws(θws) hydrogeological parameter table values g | GA538: soil class selected = true | GE538: soil class vb code count
FZ539: hcap hydrogeological parameter table values g | GA539: qws selection values | GE539: qws = true | GF539: sum above | GM539: foc
GA540: hcap selection values
GB541: hcap | GC541: hcap | GD541: hv | GE541: qacrack | GF541: qwcrack | GG541: qt | GH541: qacap | GI541: qwcap
GB542: LB | GC542: ER | GD542: Lcrack | GE542: η | GG542: Ls | GH542: Ls2 | GI542: Ls3 | GJ542: Ls4 | GK542: Ls5 | GL542: Ls6
GB543: BW | GC543: ATc | GD543: IRair | GE543: EF | GF543: ED | GG543: TR | GH543: THQ
GB544: ET | GC544: Etcf | GH544: Lgw | GI544: Lgwres | GJ544: Lgwnres
GA545: FALSE | GB545: checkbox to populate AOC SSTL Data Source reference | GH545: This yellow box relocates Lgw and groups newly named Lgwres and Lgwnres, which are currently linked to Lgw.
GA567: Site Specific SSTLs | GR567: Soil RBCL Failures | GU567: Conc. | GV567: Soil Depth | GW567: Water RBCL Failures | GZ567: Conc. | HA567: Used Conc.
GF568: Ls | GN568: Final SSCL gw | GO568: =IF('RBTL Report'!$GC$491<30,'RBTL Report'!F$93&" Feet Soil SSCL", 'RBTL Report'!F$69&" Feet Soil SSCL") -> Feet Soil SSCL | GP568: ="Minimum Soil SSCL" -> Minimum Soil SSCL
GA569: Dsoil | GB569: Dcrack | GC569: Dcap | GD569: Dwater | GE569: VFwesp | GF569: Vfsesp | GG569: RBCL_Car | GH569: RBCL_non | GI569: SSTLgwc | GJ569: SSTLgwn | GK569: SSTLsc | GL569: SSTLsn
FY570: Benzene | GA570: 0.004342680805 | GB570: 0.004342680805 | GC570: 2.605421956e-05 | GD570: 0.0002115408327 | GE570: 0.0009482337241 | GF570: 0.008885282684 | GG570: 0.0103988604 | GH570: 86.9047619 | GI570: 10.96655828 | GJ570: 91649.09421 | GK570: 1.170346602 | GL570: 9780.753747 | GN570: =MIN(GI570,GJ570,Reference!CL13/1000)*1000 -> 10966.55828 | GO570: =IF(lateral_benzene_soil<30,IF('RBTL Report'!$F$93<>"",MIN('AOC SSTL Report'!GK570,'AOC SSTL Report'!GL570,Reference!CR13),IF('RBTL Report'!$GA$511,MIN('AOC SSTL Report'!GK570,'AOC SSTL Report'!GL570,Reference!CR13), IF('RBTL Report'!$GA$512, MIN('AOC SSTL Report'!GK570,'AOC SSTL Report'!GL570,Reference!CR13)*10,(MIN('AOC SSTL Report'!GK570,'AOC SSTL Report'!GL570,Reference!CR13))))),IF('RBTL Report'!$F$73<>"", IF('RBTL Report'!$GA$510, MIN('AOC SSTL Report'!GK570,'AOC SSTL Report'!GL570,Reference!CR13), IF('RBTL Report'!$GA$511,MIN('AOC SSTL Report'!GK570,'AOC SSTL Report'!GL570,Reference!CR13), IF('RBTL Report'!$GA$512, MIN('AOC SSTL Report'!GK570,'AOC SSTL Report'!GL570,Reference!CR13)*10,(MIN('AOC SSTL Report'!GK570,'AOC SSTL Report'!GL570,Reference!CR13))))))) -> 1.170346602 | GP570: =MIN(GO570,GO595,GO620,GO645,GO670,GO695,Reference!CR13) -> 1.170346602 | HA570: =IF(GZ570<>"",IF(LEFT(GZ570, 1) = "<",VALUE(RIGHT(GZ570, (LEN(GZ570) - 1))),GZ570),"") -> 
FY571: Toluene | GA571: 0.003642107827 | GB571: 0.003642107827 | GC571: 2.041663006e-05 | GD571: 0.0001662367406 | GE571: 0.0008802001398 | GF571: 0.003503239629 | GG571: N/A | GH571: 14484.12698 | GI571: N/A | GJ571: 16455492.71 | GK571: N/A | GL571: 4134495.072 | GN571: =MIN(GI571,GJ571,Reference!CL14/1000)*1000 -> 530000 | GO571: =IF(lateral_benzene_soil<30,IF('RBTL Report'!$F$93<>"",MIN('AOC SSTL Report'!GK571,'AOC SSTL Report'!GL571,Reference!CR14),IF('RBTL Report'!$GA$511,MIN('AOC SSTL Report'!GK571,'AOC SSTL Report'!GL571,Reference!CR14), IF('RBTL Report'!$GA$512, MIN('AOC SSTL Report'!GK571,'AOC SSTL Report'!GL571,Reference!CR14)*10,(MIN('AOC SSTL Report'!GK571,'AOC SSTL Report'!GL571,Reference!CR14))))),IF('RBTL Report'!$F$73<>"", IF('RBTL Report'!$GA$510, MIN('AOC SSTL Report'!GK571,'AOC SSTL Report'!GL571,Reference!CR14), IF('RBTL Report'!$GA$511,MIN('AOC SSTL Report'!GK571,'AOC SSTL Report'!GL571,Reference!CR14), IF('RBTL Report'!$GA$512, MIN('AOC SSTL Report'!GK571,'AOC SSTL Report'!GL571,Reference!CR14)*10,(MIN('AOC SSTL Report'!GK571,'AOC SSTL Report'!GL571,Reference!CR14))))))) -> 793.66 | GP571: =MIN(GO571,GO596,GO621,GO646,GO671,GO696,Reference!CR14) -> 793.66 | HA571: =IF(GZ571<>"",IF(LEFT(GZ571, 1) = "<",VALUE(RIGHT(GZ571, (LEN(GZ571) - 1))),GZ571),"") -> 
FY572: Ethylbenzene | GA572: 0.003175097744 | GB572: 0.003175097744 | GC572: 1.70519806e-05 | GD572: 0.0001390759415 | GE572: 0.0008760293261 | GF572: 0.001908411497 | GG572: 0.03244444444 | GH572: 2896.825397 | GI572: 37.03579718 | GJ572: 3306767.605 | GK572: 17.00075927 | GL572: 1517924.935 | GN572: =MIN(GI572,GJ572,Reference!CL15/1000)*1000 -> 37035.79718 | GO572: =IF(lateral_benzene_soil<30,IF('RBTL Report'!$F$93<>"",MIN('AOC SSTL Report'!GK572,'AOC SSTL Report'!GL572,Reference!CR15),IF('RBTL Report'!$GA$511,MIN('AOC SSTL Report'!GK572,'AOC SSTL Report'!GL572,Reference!CR15), IF('RBTL Report'!$GA$512, MIN('AOC SSTL Report'!GK572,'AOC SSTL Report'!GL572,Reference!CR15)*10,(MIN('AOC SSTL Report'!GK572,'AOC SSTL Report'!GL572,Reference!CR15))))),IF('RBTL Report'!$F$73<>"", IF('RBTL Report'!$GA$510, MIN('AOC SSTL Report'!GK572,'AOC SSTL Report'!GL572,Reference!CR15), IF('RBTL Report'!$GA$511,MIN('AOC SSTL Report'!GK572,'AOC SSTL Report'!GL572,Reference!CR15), IF('RBTL Report'!$GA$512, MIN('AOC SSTL Report'!GK572,'AOC SSTL Report'!GL572,Reference!CR15)*10,(MIN('AOC SSTL Report'!GK572,'AOC SSTL Report'!GL572,Reference!CR15))))))) -> 17.00075927 | GP572: =MIN(GO572,GO597,GO622,GO647,GO672,GO697,Reference!CR15) -> 17.00075927
FY573: Xylenes (Total) | GA573: 0.003221895794 | GB573: 0.003221895794 | GC573: 1.837916013e-05 | GD573: 0.0001495411563 | GE573: 0.0007905624458 | GF573: 0.001925734178 | GG573: N/A | GH573: 289.6825397 | GI573: N/A | GJ573: 366425.8797 | GK573: N/A | GL573: 150427.0646 | GN573: =MIN(GI573,GJ573,Reference!CL16/1000)*1000 -> 110000 | GO573: =IF(lateral_benzene_soil<30,IF('RBTL Report'!$F$93<>"",MIN('AOC SSTL Report'!GK573,'AOC SSTL Report'!GL573,Reference!CR16),IF('RBTL Report'!$GA$511,MIN('AOC SSTL Report'!GK573,'AOC SSTL Report'!GL573,Reference!CR16), IF('RBTL Report'!$GA$512, MIN('AOC SSTL Report'!GK573,'AOC SSTL Report'!GL573,Reference!CR16)*10,(MIN('AOC SSTL Report'!GK573,'AOC SSTL Report'!GL573,Reference!CR16))))),IF('RBTL Report'!$F$73<>"", IF('RBTL Report'!$GA$510, MIN('AOC SSTL Report'!GK573,'AOC SSTL Report'!GL573,Reference!CR16), IF('RBTL Report'!$GA$511,MIN('AOC SSTL Report'!GK573,'AOC SSTL Report'!GL573,Reference!CR16), IF('RBTL Report'!$GA$512, MIN('AOC SSTL Report'!GK573,'AOC SSTL Report'!GL573,Reference!CR16)*10,(MIN('AOC SSTL Report'!GK573,'AOC SSTL Report'!GL573,Reference!CR16))))))) -> 502.73 | GP573: =MIN(GO573,GO598,GO623,GO648,GO673,GO698,Reference!CR16) -> 502.73
FY574: MTBE | GA574: 0.003509607201 | GB574: 0.003509607201 | GC574: 9.702109734e-05 | GD574: 0.0006820100972 | GE574: 0.0002465760452 | GF574: 0.003014468601 | GG574: 0.311965812 | GH574: 8690.47619 | GI574: 1265.191076 | GJ574: 35244608.55 | GK574: 103.4894879 | GL574: 2882921.45 | GN574: =MIN(GI574,GJ574,Reference!CL17/1000)*1000 -> 1265191.076 | GO574: =IF(lateral_benzene_soil<30,IF('RBTL Report'!$F$93<>"",MIN('AOC SSTL Report'!GK574,'AOC SSTL Report'!GL574,Reference!CR17),IF('RBTL Report'!$GA$511,MIN('AOC SSTL Report'!GK574,'AOC SSTL Report'!GL574,Reference!CR17), IF('RBTL Report'!$GA$512, MIN('AOC SSTL Report'!GK574,'AOC SSTL Report'!GL574,Reference!CR17)*10,(MIN('AOC SSTL Report'!GK574,'AOC SSTL Report'!GL574,Reference!CR17))))),IF('RBTL Report'!$F$73<>"", IF('RBTL Report'!$GA$510, MIN('AOC SSTL Report'!GK574,'AOC SSTL Report'!GL574,Reference!CR17), IF('RBTL Report'!$GA$511,MIN('AOC SSTL Report'!GK574,'AOC SSTL Report'!GL574,Reference!CR17), IF('RBTL Report'!$GA$512, MIN('AOC SSTL Report'!GK574,'AOC SSTL Report'!GL574,Reference!CR17)*10,(MIN('AOC SSTL Report'!GK574,'AOC SSTL Report'!GL574,Reference!CR17))))))) -> 103.4894879 | GP574: =MIN(GO574,GO599,GO624,GO649,GO674,GO699,Reference!CR17) -> 103.4894879
FY575: EDB | GA575: 0.002016144546 | GB575: 0.002016144546 | GC575: 9.615311947e-05 | GD575: 0.0006011759537 | GE575: 0.000207326316 | GF575: 0.0008951513072 | GG575: 0.0001351851852 | GH575: 26.07142857 | GI575: 0.6520406468 | GJ575: 125750.6962 | GK575: 0.1510193686 | GL575: 29125.16394 | GN575: =MIN(GI575,GJ575,Reference!CL18/1000)*1000 -> 652.0406468 | GO575: =IF(lateral_benzene_soil<30,IF('RBTL Report'!$F$93<>"",MIN('AOC SSTL Report'!GK575,'AOC SSTL Report'!GL575,Reference!CR18),IF('RBTL Report'!$GA$511,MIN('AOC SSTL Report'!GK575,'AOC SSTL Report'!GL575,Reference!CR18), IF('RBTL Report'!$GA$512, MIN('AOC SSTL Report'!GK575,'AOC SSTL Report'!GL575,Reference!CR18)*10,(MIN('AOC SSTL Report'!GK575,'AOC SSTL Report'!GL575,Reference!CR18))))),IF('RBTL Report'!$F$73<>"", IF('RBTL Report'!$GA$510, MIN('AOC SSTL Report'!GK575,'AOC SSTL Report'!GL575,Reference!CR18), IF('RBTL Report'!$GA$511,MIN('AOC SSTL Report'!GK575,'AOC SSTL Report'!GL575,Reference!CR18), IF('RBTL Report'!$GA$512, MIN('AOC SSTL Report'!GK575,'AOC SSTL Report'!GL575,Reference!CR18)*10,(MIN('AOC SSTL Report'!GK575,'AOC SSTL Report'!GL575,Reference!CR18))))))) -> 0.1510193686 | GP575: =MIN(GO575,GO600,GO625,GO650,GO675,GO700,Reference!CR18) -> 0.1510193686
FY576: EDC | GA576: 0.004015316192 | GB576: 0.004015316192 | GC576: 1.902773907e-05 | GD576: 0.0001558988167 | GE576: 0.0001488078416 | GF576: 0.003197472954 | GG576: 0.00311965812 | GH576: 20.27777778 | GI576: 20.96433955 | GJ576: 136268.2071 | GK576: 0.9756636459 | GL576: 6341.813698 | GN576: =MIN(GI576,GJ576,Reference!CL19/1000)*1000 -> 20964.33955 | GO576: =IF(lateral_benzene_soil<30,IF('RBTL Report'!$F$93<>"",MIN('AOC SSTL Report'!GK576,'AOC SSTL Report'!GL576,Reference!CR19),IF('RBTL Report'!$GA$511,MIN('AOC SSTL Report'!GK576,'AOC SSTL Report'!GL576,Reference!CR19), IF('RBTL Report'!$GA$512, MIN('AOC SSTL Report'!GK576,'AOC SSTL Report'!GL576,Reference!CR19)*10,(MIN('AOC SSTL Report'!GK576,'AOC SSTL Report'!GL576,Reference!CR19))))),IF('RBTL Report'!$F$73<>"", IF('RBTL Report'!$GA$510, MIN('AOC SSTL Report'!GK576,'AOC SSTL Report'!GL576,Reference!CR19), IF('RBTL Report'!$GA$511,MIN('AOC SSTL Report'!GK576,'AOC SSTL Report'!GL576,Reference!CR19), IF('RBTL Report'!$GA$512, MIN('AOC SSTL Report'!GK576,'AOC SSTL Report'!GL576,Reference!CR19)*10,(MIN('AOC SSTL Report'!GK576,'AOC SSTL Report'!GL576,Reference!CR19))))))) -> 0.9756636459 | GP576: =MIN(GO576,GO601,GO626,GO651,GO676,GO701,Reference!CR19) -> 0.9756636459
FY577: 1-Methylnaphthalene | GA577: 0.001993528819 | GB577: 0.001993528819 | GC577: 0.000294062359 | GD577: 0.001185768673 | GE577: 6.993703679e-05 | GF577: 2.26374743e-06 | GG577: N/A | GH577: N/A | GI577: N/A | GJ577: N/A | GK577: N/A | GL577: N/A | GN577: =MIN(GI577,GJ577,Reference!CL20/1000)*1000 -> 26000 | GO577: =IF(lateral_benzene_soil<30,IF('RBTL Report'!$F$93<>"",MIN('AOC SSTL Report'!GK577,'AOC SSTL Report'!GL577,Reference!CR20),IF('RBTL Report'!$GA$511,MIN('AOC SSTL Report'!GK577,'AOC SSTL Report'!GL577,Reference!CR20), IF('RBTL Report'!$GA$512, MIN('AOC SSTL Report'!GK577,'AOC SSTL Report'!GL577,Reference!CR20)*10,(MIN('AOC SSTL Report'!GK577,'AOC SSTL Report'!GL577,Reference!CR20))))),IF('RBTL Report'!$F$73<>"", IF('RBTL Report'!$GA$510, MIN('AOC SSTL Report'!GK577,'AOC SSTL Report'!GL577,Reference!CR20), IF('RBTL Report'!$GA$511,MIN('AOC SSTL Report'!GK577,'AOC SSTL Report'!GL577,Reference!CR20), IF('RBTL Report'!$GA$512, MIN('AOC SSTL Report'!GK577,'AOC SSTL Report'!GL577,Reference!CR20)*10,(MIN('AOC SSTL Report'!GK577,'AOC SSTL Report'!GL577,Reference!CR20))))))) -> 208.13 | GP577: =MIN(GO577,GO602,GO627,GO652,GO677,GO702,Reference!CR20) -> 208.13
FY578: 1,2,4-TMB | GA578: 0.001993528819 | GB578: 0.001993528819 | GC578: 0.000294062359 | GD578: 0.001185768673 | GE578: 6.993703679e-05 | GF578: 2.26374743e-06 | GG578: N/A | GH578: N/A | GI578: N/A | GJ578: N/A | GK578: N/A | GL578: N/A | GN578: =MIN(GI578,GJ578,Reference!CL21/1000)*1000 -> 25000 | GO578: =IF(lateral_benzene_soil<30,IF('RBTL Report'!$F$93<>"",MIN('AOC SSTL Report'!GK578,'AOC SSTL Report'!GL578,Reference!CR21),IF('RBTL Report'!$GA$511,MIN('AOC SSTL Report'!GK578,'AOC SSTL Report'!GL578,Reference!CR21), IF('RBTL Report'!$GA$512, MIN('AOC SSTL Report'!GK578,'AOC SSTL Report'!GL578,Reference!CR21)*10,(MIN('AOC SSTL Report'!GK578,'AOC SSTL Report'!GL578,Reference!CR21))))),IF('RBTL Report'!$F$73<>"", IF('RBTL Report'!$GA$510, MIN('AOC SSTL Report'!GK578,'AOC SSTL Report'!GL578,Reference!CR21), IF('RBTL Report'!$GA$511,MIN('AOC SSTL Report'!GK578,'AOC SSTL Report'!GL578,Reference!CR21), IF('RBTL Report'!$GA$512, MIN('AOC SSTL Report'!GK578,'AOC SSTL Report'!GL578,Reference!CR21)*10,(MIN('AOC SSTL Report'!GK578,'AOC SSTL Report'!GL578,Reference!CR21))))))) -> 208 | GP578: =MIN(GO578,GO603,GO628,GO653,GO678,GO703,Reference!CR21) -> 208
FY579: Benzo(a)pyrene TEQ | GA579: 0.009441807993 | GB579: 0.009441807993 | GC579: 0.07257061779 | GD579: 0.01052054148 | GE579: 1.236913383e-06 | GF579: 4.044318613e-10 | GG579: 0.0001351851852 | GH579: 0.005793650794 | GI579: 109.292362 | GJ579: 4683.958371 | GK579: 334259.4838 | GL579: 14325406.45 | GN579: =MIN(GI579,GJ579,Reference!CL22/1000)*1000 -> 1.6 | GO579: =IF(lateral_benzene_soil<30,IF('RBTL Report'!$F$93<>"",MIN('AOC SSTL Report'!GK579,'AOC SSTL Report'!GL579,Reference!CR22),IF('RBTL Report'!$GA$511,MIN('AOC SSTL Report'!GK579,'AOC SSTL Report'!GL579,Reference!CR22), IF('RBTL Report'!$GA$512, MIN('AOC SSTL Report'!GK579,'AOC SSTL Report'!GL579,Reference!CR22)*10,(MIN('AOC SSTL Report'!GK579,'AOC SSTL Report'!GL579,Reference!CR22))))),IF('RBTL Report'!$F$73<>"", IF('RBTL Report'!$GA$510, MIN('AOC SSTL Report'!GK579,'AOC SSTL Report'!GL579,Reference!CR22), IF('RBTL Report'!$GA$511,MIN('AOC SSTL Report'!GK579,'AOC SSTL Report'!GL579,Reference!CR22), IF('RBTL Report'!$GA$512, MIN('AOC SSTL Report'!GK579,'AOC SSTL Report'!GL579,Reference!CR22)*10,(MIN('AOC SSTL Report'!GK579,'AOC SSTL Report'!GL579,Reference!CR22))))))) -> 4.6681 | GP579: =MIN(GO579,GO604,GO629,GO654,GO679,GO704,Reference!CR22) -> 4.6681
FY580: Naphthalene | GA580: 0.002811876813 | GB580: 0.002811876813 | GC580: 0.0001204038624 | GD580: 0.0007735842654 | GE580: 0.0001862970521 | GF580: 3.408347414e-05 | GG580: N/A | GH580: 8.69047619 | GI580: N/A | GJ580: 46648.4901 | GK580: N/A | GL580: 254976.2432 | GN580: =MIN(GI580,GJ580,Reference!CL23/1000)*1000 -> 31000 | GO580: =IF(lateral_benzene_soil<30,IF('RBTL Report'!$F$93<>"",MIN('AOC SSTL Report'!GK580,'AOC SSTL Report'!GL580,Reference!CR23),IF('RBTL Report'!$GA$511,MIN('AOC SSTL Report'!GK580,'AOC SSTL Report'!GL580,Reference!CR23), IF('RBTL Report'!$GA$512, MIN('AOC SSTL Report'!GK580,'AOC SSTL Report'!GL580,Reference!CR23)*10,(MIN('AOC SSTL Report'!GK580,'AOC SSTL Report'!GL580,Reference!CR23))))),IF('RBTL Report'!$F$73<>"", IF('RBTL Report'!$GA$510, MIN('AOC SSTL Report'!GK580,'AOC SSTL Report'!GL580,Reference!CR23), IF('RBTL Report'!$GA$511,MIN('AOC SSTL Report'!GK580,'AOC SSTL Report'!GL580,Reference!CR23), IF('RBTL Report'!$GA$512, MIN('AOC SSTL Report'!GK580,'AOC SSTL Report'!GL580,Reference!CR23)*10,(MIN('AOC SSTL Report'!GK580,'AOC SSTL Report'!GL580,Reference!CR23))))))) -> 402.83 | GP580: =MIN(GO580,GO605,GO630,GO655,GO680,GO705,Reference!CR23) -> 402.83
GN593: Final SSCL gw | GO593: =IF('RBTL Report'!$GC$491<30,'RBTL Report'!G$93&" Feet Soil SSCL", 'RBTL Report'!G$69&" Feet Soil SSCL") -> Feet Soil SSCL
GF594: Ls2
FY595: Benzene | GA595: =GA570 -> 0.004342680805 | GB595: 0.004342680805 | GC595: 2.605421956e-05 | GD595: 0.0002115408327 | GE595: 0.0009482337241 | GF595: 0.008274764153 | GG595: =GG570 -> 0.0103988604 | GH595: 86.9047619 | GI595: 10.96655828 | GJ595: 91649.09421 | GK595: 1.256695684 | GL595: 10502.38536 | GN595: =MIN(GI595,GJ595,Reference!CL13/1000)*1000 -> 10966.55828 | GO595: =IF(lateral_benzene_soil<30,IF('RBTL Report'!$G$93<>"",MIN('AOC SSTL Report'!GK595,'AOC SSTL Report'!GL595,Reference!CR13),IF('RBTL Report'!$GA$511,MIN('AOC SSTL Report'!GK595,'AOC SSTL Report'!GL595,Reference!CR13), IF('RBTL Report'!$GA$512, MIN('AOC SSTL Report'!GK595,'AOC SSTL Report'!GL595,Reference!CR13)*10,(MIN('AOC SSTL Report'!GK595,'AOC SSTL Report'!GL595,Reference!CR13))))),IF('RBTL Report'!$F$73<>"", IF('RBTL Report'!$GA$510, MIN('AOC SSTL Report'!GK595,'AOC SSTL Report'!GL595,Reference!CR13), IF('RBTL Report'!$GA$511,MIN('AOC SSTL Report'!GK595,'AOC SSTL Report'!GL595,Reference!CR13), IF('RBTL Report'!$GA$512, MIN('AOC SSTL Report'!GK595,'AOC SSTL Report'!GL595,Reference!CR13)*10,(MIN('AOC SSTL Report'!GK595,'AOC SSTL Report'!GL595,Reference!CR13))))))) -> 1.256695684
FY596: Toluene | GA596: 0.003642107827 | GB596: 0.003642107827 | GC596: 2.041663006e-05 | GD596: 0.0001662367406 | GE596: 0.0008802001398 | GF596: 0.003262526415 | GG596: N/A | GH596: 14484.12698 | GI596: N/A | GJ596: 16455492.71 | GK596: N/A | GL596: 4439543.207 | GN596: =MIN(GI596,GJ596,Reference!CL14/1000)*1000 -> 530000 | GO596: =IF(lateral_benzene_soil<30,IF('RBTL Report'!$G$93<>"",MIN('AOC SSTL Report'!GK596,'AOC SSTL Report'!GL596,Reference!CR14),IF('RBTL Report'!$GA$511,MIN('AOC SSTL Report'!GK596,'AOC SSTL Report'!GL596,Reference!CR14), IF('RBTL Report'!$GA$512, MIN('AOC SSTL Report'!GK596,'AOC SSTL Report'!GL596,Reference!CR14)*10,(MIN('AOC SSTL Report'!GK596,'AOC SSTL Report'!GL596,Reference!CR14))))),IF('RBTL Report'!$F$73<>"", IF('RBTL Report'!$GA$510, MIN('AOC SSTL Report'!GK596,'AOC SSTL Report'!GL596,Reference!CR14), IF('RBTL Report'!$GA$511,MIN('AOC SSTL Report'!GK596,'AOC SSTL Report'!GL596,Reference!CR14), IF('RBTL Report'!$GA$512, MIN('AOC SSTL Report'!GK596,'AOC SSTL Report'!GL596,Reference!CR14)*10,(MIN('AOC SSTL Report'!GK596,'AOC SSTL Report'!GL596,Reference!CR14))))))) -> 793.66
FY597: Ethylbenzene | GA597: =GA572 -> 0.003175097744 | GB597: 0.003175097744 | GC597: 1.70519806e-05 | GD597: 0.0001390759415 | GE597: 0.0008760293261 | GF597: 0.001777280982 | GG597: =GG572 -> 0.03244444444 | GH597: 2896.825397 | GI597: 37.03579718 | GJ597: 3306767.605 | GK597: 18.25510135 | GL597: 1629919.763 | GN597: =MIN(GI597,GJ597,Reference!CL15/1000)*1000 -> 37035.79718 | GO597: =IF(lateral_benzene_soil<30,IF('RBTL Report'!$G$93<>"",MIN('AOC SSTL Report'!GK597,'AOC SSTL Report'!GL597,Reference!CR15),IF('RBTL Report'!$GA$511,MIN('AOC SSTL Report'!GK597,'AOC SSTL Report'!GL597,Reference!CR15), IF('RBTL Report'!$GA$512, MIN('AOC SSTL Report'!GK597,'AOC SSTL Report'!GL597,Reference!CR15)*10,(MIN('AOC SSTL Report'!GK597,'AOC SSTL Report'!GL597,Reference!CR15))))),IF('RBTL Report'!$F$73<>"", IF('RBTL Report'!$GA$510, MIN('AOC SSTL Report'!GK597,'AOC SSTL Report'!GL597,Reference!CR15), IF('RBTL Report'!$GA$511,MIN('AOC SSTL Report'!GK597,'AOC SSTL Report'!GL597,Reference!CR15), IF('RBTL Report'!$GA$512, MIN('AOC SSTL Report'!GK597,'AOC SSTL Report'!GL597,Reference!CR15)*10,(MIN('AOC SSTL Report'!GK597,'AOC SSTL Report'!GL597,Reference!CR15))))))) -> 18.25510135
FY598: Xylenes (Total) | GA598: 0.003221895794 | GB598: 0.003221895794 | GC598: 1.837916013e-05 | GD598: 0.0001495411563 | GE598: 0.0007905624458 | GF598: 0.00179341344 | GG598: N/A | GH598: 289.6825397 | GI598: N/A | GJ598: 366425.8797 | GK598: N/A | GL598: 161525.7995 | GN598: =MIN(GI598,GJ598,Reference!CL16/1000)*1000 -> 110000 | GO598: =IF(lateral_benzene_soil<30,IF('RBTL Report'!$G$93<>"",MIN('AOC SSTL Report'!GK598,'AOC SSTL Report'!GL598,Reference!CR16),IF('RBTL Report'!$GA$511,MIN('AOC SSTL Report'!GK598,'AOC SSTL Report'!GL598,Reference!CR16), IF('RBTL Report'!$GA$512, MIN('AOC SSTL Report'!GK598,'AOC SSTL Report'!GL598,Reference!CR16)*10,(MIN('AOC SSTL Report'!GK598,'AOC SSTL Report'!GL598,Reference!CR16))))),IF('RBTL Report'!$F$73<>"", IF('RBTL Report'!$GA$510, MIN('AOC SSTL Report'!GK598,'AOC SSTL Report'!GL598,Reference!CR16), IF('RBTL Report'!$GA$511,MIN('AOC SSTL Report'!GK598,'AOC SSTL Report'!GL598,Reference!CR16), IF('RBTL Report'!$GA$512, MIN('AOC SSTL Report'!GK598,'AOC SSTL Report'!GL598,Reference!CR16)*10,(MIN('AOC SSTL Report'!GK598,'AOC SSTL Report'!GL598,Reference!CR16))))))) -> 502.73
FY599: MTBE | GA599: 0.003509607201 | GB599: 0.003509607201 | GC599: 9.702109734e-05 | GD599: 0.0006820100972 | GE599: 0.0002465760452 | GF599: 0.002807339404 | GG599: 0.311965812 | GH599: 8690.47619 | GI599: 1265.191076 | GJ599: 35244608.55 | GK599: 111.1250786 | GL599: 3095627.19 | GN599: =MIN(GI599,GJ599,Reference!CL17/1000)*1000 -> 1265191.076 | GO599: =IF(lateral_benzene_soil<30,IF('RBTL Report'!$G$93<>"",MIN('AOC SSTL Report'!GK599,'AOC SSTL Report'!GL599,Reference!CR17),IF('RBTL Report'!$GA$511,MIN('AOC SSTL Report'!GK599,'AOC SSTL Report'!GL599,Reference!CR17), IF('RBTL Report'!$GA$512, MIN('AOC SSTL Report'!GK599,'AOC SSTL Report'!GL599,Reference!CR17)*10,(MIN('AOC SSTL Report'!GK599,'AOC SSTL Report'!GL599,Reference!CR17))))),IF('RBTL Report'!$F$73<>"", IF('RBTL Report'!$GA$510, MIN('AOC SSTL Report'!GK599,'AOC SSTL Report'!GL599,Reference!CR17), IF('RBTL Report'!$GA$511,MIN('AOC SSTL Report'!GK599,'AOC SSTL Report'!GL599,Reference!CR17), IF('RBTL Report'!$GA$512, MIN('AOC SSTL Report'!GK599,'AOC SSTL Report'!GL599,Reference!CR17)*10,(MIN('AOC SSTL Report'!GK599,'AOC SSTL Report'!GL599,Reference!CR17))))))) -> 111.1250786
FY600: EDB | GA600: 0.002016144546 | GB600: 0.002016144546 | GC600: 9.615311947e-05 | GD600: 0.0006011759537 | GE600: 0.000207326316 | GF600: 0.0008336432082 | GG600: 0.0001351851852 | GH600: 26.07142857 | GI600: 0.6520406468 | GJ600: 125750.6962 | GK600: 0.1621619223 | GL600: 31274.08502 | GN600: =MIN(GI600,GJ600,Reference!CL18/1000)*1000 -> 652.0406468 | GO600: =IF(lateral_benzene_soil<30,IF('RBTL Report'!$G$93<>"",MIN('AOC SSTL Report'!GK600,'AOC SSTL Report'!GL600,Reference!CR18),IF('RBTL Report'!$GA$511,MIN('AOC SSTL Report'!GK600,'AOC SSTL Report'!GL600,Reference!CR18), IF('RBTL Report'!$GA$512, MIN('AOC SSTL Report'!GK600,'AOC SSTL Report'!GL600,Reference!CR18)*10,(MIN('AOC SSTL Report'!GK600,'AOC SSTL Report'!GL600,Reference!CR18))))),IF('RBTL Report'!$F$73<>"", IF('RBTL Report'!$GA$510, MIN('AOC SSTL Report'!GK600,'AOC SSTL Report'!GL600,Reference!CR18), IF('RBTL Report'!$GA$511,MIN('AOC SSTL Report'!GK600,'AOC SSTL Report'!GL600,Reference!CR18), IF('RBTL Report'!$GA$512, MIN('AOC SSTL Report'!GK600,'AOC SSTL Report'!GL600,Reference!CR18)*10,(MIN('AOC SSTL Report'!GK600,'AOC SSTL Report'!GL600,Reference!CR18))))))) -> 0.1621619223
FY601: EDC | GA601: 0.004015316192 | GB601: 0.004015316192 | GC601: 1.902773907e-05 | GD601: 0.0001558988167 | GE601: 0.0001488078416 | GF601: 0.002977770128 | GG601: 0.00311965812 | GH601: 20.27777778 | GI601: 20.96433955 | GJ601: 136268.2071 | GK601: 1.047649075 | GL601: 6809.718986 | GN601: =MIN(GI601,GJ601,Reference!CL19/1000)*1000 -> 20964.33955 | GO601: =IF(lateral_benzene_soil<30,IF('RBTL Report'!$G$93<>"",MIN('AOC SSTL Report'!GK601,'AOC SSTL Report'!GL601,Reference!CR19),IF('RBTL Report'!$GA$511,MIN('AOC SSTL Report'!GK601,'AOC SSTL Report'!GL601,Reference!CR19), IF('RBTL Report'!$GA$512, MIN('AOC SSTL Report'!GK601,'AOC SSTL Report'!GL601,Reference!CR19)*10,(MIN('AOC SSTL Report'!GK601,'AOC SSTL Report'!GL601,Reference!CR19))))),IF('RBTL Report'!$F$73<>"", IF('RBTL Report'!$GA$510, MIN('AOC SSTL Report'!GK601,'AOC SSTL Report'!GL601,Reference!CR19), IF('RBTL Report'!$GA$511,MIN('AOC SSTL Report'!GK601,'AOC SSTL Report'!GL601,Reference!CR19), IF('RBTL Report'!$GA$512, MIN('AOC SSTL Report'!GK601,'AOC SSTL Report'!GL601,Reference!CR19)*10,(MIN('AOC SSTL Report'!GK601,'AOC SSTL Report'!GL601,Reference!CR19))))))) -> 1.047649075
FY602: 1- Methylnaphthalene | GA602: 0.001993528819 | GB602: 0.001993528819 | GC602: 0.000294062359 | GD602: 0.001185768673 | GE602: 6.993703679e-05 | GF602: 2.108199619e-06 | GG602: N/A | GH602: N/A | GI602: N/A | GJ602: N/A | GK602: N/A | GL602: N/A | GN602: =MIN(GI602,GJ602,Reference!CL20/1000)*1000 -> 26000 | GO602: =IF(lateral_benzene_soil<30,IF('RBTL Report'!$G$93<>"",MIN('AOC SSTL Report'!GK602,'AOC SSTL Report'!GL602,Reference!CR20),IF('RBTL Report'!$GA$511,MIN('AOC SSTL Report'!GK602,'AOC SSTL Report'!GL602,Reference!CR20), IF('RBTL Report'!$GA$512, MIN('AOC SSTL Report'!GK602,'AOC SSTL Report'!GL602,Reference!CR20)*10,(MIN('AOC SSTL Report'!GK602,'AOC SSTL Report'!GL602,Reference!CR20))))),IF('RBTL Report'!$F$73<>"", IF('RBTL Report'!$GA$510, MIN('AOC SSTL Report'!GK602,'AOC SSTL Report'!GL602,Reference!CR20), IF('RBTL Report'!$GA$511,MIN('AOC SSTL Report'!GK602,'AOC SSTL Report'!GL602,Reference!CR20), IF('RBTL Report'!$GA$512, MIN('AOC SSTL Report'!GK602,'AOC SSTL Report'!GL602,Reference!CR20)*10,(MIN('AOC SSTL Report'!GK602,'AOC SSTL Report'!GL602,Reference!CR20))))))) -> 208.13
FY603: 1,2,4-TMB | GA603: 0.001993528819 | GB603: 0.001993528819 | GC603: 0.000294062359 | GD603: 0.001185768673 | GE603: 6.993703679e-05 | GF603: 2.108199619e-06 | GG603: N/A | GH603: N/A | GI603: N/A | GJ603: N/A | GK603: N/A | GL603: N/A | GN603: =MIN(GI603,GJ603,Reference!CL21/1000)*1000 -> 25000 | GO603: =IF(lateral_benzene_soil<30,IF('RBTL Report'!$G$93<>"",MIN('AOC SSTL Report'!GK603,'AOC SSTL Report'!GL603,Reference!CR21),IF('RBTL Report'!$GA$511,MIN('AOC SSTL Report'!GK603,'AOC SSTL Report'!GL603,Reference!CR21), IF('RBTL Report'!$GA$512, MIN('AOC SSTL Report'!GK603,'AOC SSTL Report'!GL603,Reference!CR21)*10,(MIN('AOC SSTL Report'!GK603,'AOC SSTL Report'!GL603,Reference!CR21))))),IF('RBTL Report'!$F$73<>"", IF('RBTL Report'!$GA$510, MIN('AOC SSTL Report'!GK603,'AOC SSTL Report'!GL603,Reference!CR21), IF('RBTL Report'!$GA$511,MIN('AOC SSTL Report'!GK603,'AOC SSTL Report'!GL603,Reference!CR21), IF('RBTL Report'!$GA$512, MIN('AOC SSTL Report'!GK603,'AOC SSTL Report'!GL603,Reference!CR21)*10,(MIN('AOC SSTL Report'!GK603,'AOC SSTL Report'!GL603,Reference!CR21))))))) -> 208
FY604: Benzo(a)pyrene TEQ | GA604: 0.009441807993 | GB604: 0.009441807993 | GC604: 0.07257061779 | GD604: 0.01052054148 | GE604: 1.236913383e-06 | GF604: 3.766440158e-10 | GG604: 0.0001351851852 | GH604: 0.005793650794 | GI604: 109.292362 | GJ604: 4683.958371 | GK604: 358920.3054 | GL604: 15382298.8 | GN604: =MIN(GI604,GJ604,Reference!CL22/1000)*1000 -> 1.6 | GO604: =IF(lateral_benzene_soil<30,IF('RBTL Report'!$G$93<>"",MIN('AOC SSTL Report'!GK604,'AOC SSTL Report'!GL604,Reference!CR22),IF('RBTL Report'!$GA$511,MIN('AOC SSTL Report'!GK604,'AOC SSTL Report'!GL604,Reference!CR22), IF('RBTL Report'!$GA$512, MIN('AOC SSTL Report'!GK604,'AOC SSTL Report'!GL604,Reference!CR22)*10,(MIN('AOC SSTL Report'!GK604,'AOC SSTL Report'!GL604,Reference!CR22))))),IF('RBTL Report'!$F$73<>"", IF('RBTL Report'!$GA$510, MIN('AOC SSTL Report'!GK604,'AOC SSTL Report'!GL604,Reference!CR22), IF('RBTL Report'!$GA$511,MIN('AOC SSTL Report'!GK604,'AOC SSTL Report'!GL604,Reference!CR22), IF('RBTL Report'!$GA$512, MIN('AOC SSTL Report'!GK604,'AOC SSTL Report'!GL604,Reference!CR22)*10,(MIN('AOC SSTL Report'!GK604,'AOC SSTL Report'!GL604,Reference!CR22))))))) -> 4.6681
FY605: Naphthalene | GA605: 0.002811876813 | GB605: 0.002811876813 | GC605: 0.0001204038624 | GD605: 0.0007735842654 | GE605: 0.0001862970521 | GF605: 3.174152808e-05 | GG605: N/A | GH605: 8.69047619 | GI605: N/A | GJ605: 46648.4901 | GK605: N/A | GL605: 273788.8412 | GN605: =MIN(GI605,GJ605,Reference!CL23/1000)*1000 -> 31000 | GO605: =IF(lateral_benzene_soil<30,IF('RBTL Report'!$G$93<>"",MIN('AOC SSTL Report'!GK605,'AOC SSTL Report'!GL605,Reference!CR23),IF('RBTL Report'!$GA$511,MIN('AOC SSTL Report'!GK605,'AOC SSTL Report'!GL605,Reference!CR23), IF('RBTL Report'!$GA$512, MIN('AOC SSTL Report'!GK605,'AOC SSTL Report'!GL605,Reference!CR23)*10,(MIN('AOC SSTL Report'!GK605,'AOC SSTL Report'!GL605,Reference!CR23))))),IF('RBTL Report'!$F$73<>"", IF('RBTL Report'!$GA$510, MIN('AOC SSTL Report'!GK605,'AOC SSTL Report'!GL605,Reference!CR23), IF('RBTL Report'!$GA$511,MIN('AOC SSTL Report'!GK605,'AOC SSTL Report'!GL605,Reference!CR23), IF('RBTL Report'!$GA$512, MIN('AOC SSTL Report'!GK605,'AOC SSTL Report'!GL605,Reference!CR23)*10,(MIN('AOC SSTL Report'!GK605,'AOC SSTL Report'!GL605,Reference!CR23))))))) -> 402.83
GN618: Final SSCL gw | GO618: =IF('RBTL Report'!$GC$491<30,'RBTL Report'!H$93&" Feet Soil SSCL", 'RBTL Report'!H$69&" Feet Soil SSCL") -> Feet Soil SSCL
GF619: Ls3
FY620: Benzene | GA620: =GA595 -> 0.004342680805 | GB620: =GB595 -> 0.004342680805 | GC620: =GC595 -> 2.605421956e-05 | GD620: =GD595 -> 0.0002115408327 | GE620: =GE595 -> 0.0009482337241 | GF620: 0.008274764153 | GG620: =GG595 -> 0.0103988604 | GH620: =GH595 -> 86.9047619 | GI620: =GI595 -> 10.96655828 | GJ620: =GJ595 -> 91649.09421 | GK620: 1.256695684 | GL620: 10502.38536 | GN620: =MIN(GI620,GJ620,Reference!CL13/1000)*1000 -> 10966.55828 | GO620: =IF(lateral_benzene_soil<30,IF('RBTL Report'!$H$93<>"",MIN('AOC SSTL Report'!GK620,'AOC SSTL Report'!GL620,Reference!CR13),IF('RBTL Report'!$GA$511,MIN('AOC SSTL Report'!GK620,'AOC SSTL Report'!GL620,Reference!CR13), IF('RBTL Report'!$GA$512, MIN('AOC SSTL Report'!GK620,'AOC SSTL Report'!GL620,Reference!CR13)*10,(MIN('AOC SSTL Report'!GK620,'AOC SSTL Report'!GL620,Reference!CR13))))),IF('RBTL Report'!$F$73<>"", IF('RBTL Report'!$GA$510, MIN('AOC SSTL Report'!GK620,'AOC SSTL Report'!GL620,Reference!CR13), IF('RBTL Report'!$GA$511,MIN('AOC SSTL Report'!GK620,'AOC SSTL Report'!GL620,Reference!CR13), IF('RBTL Report'!$GA$512, MIN('AOC SSTL Report'!GK620,'AOC SSTL Report'!GL620,Reference!CR13)*10,(MIN('AOC SSTL Report'!GK620,'AOC SSTL Report'!GL620,Reference!CR13))))))) -> 1.256695684
FY621: Toluene | GA621: =GA596 -> 0.003642107827 | GB621: 0.003642107827 | GC621: 2.041663006e-05 | GD621: 0.0001662367406 | GE621: 0.0008802001398 | GF621: 0.003262526415 | GG621: =GG596 -> N/A | GH621: 14484.12698 | GI621: N/A | GJ621: 16455492.71 | GK621: N/A | GL621: 4439543.207 | GN621: =MIN(GI621,GJ621,Reference!CL14/1000)*1000 -> 530000 | GO621: =IF(lateral_benzene_soil<30,IF('RBTL Report'!$H$93<>"",MIN('AOC SSTL Report'!GK621,'AOC SSTL Report'!GL621,Reference!CR14),IF('RBTL Report'!$GA$511,MIN('AOC SSTL Report'!GK621,'AOC SSTL Report'!GL621,Reference!CR14), IF('RBTL Report'!$GA$512, MIN('AOC SSTL Report'!GK621,'AOC SSTL Report'!GL621,Reference!CR14)*10,(MIN('AOC SSTL Report'!GK621,'AOC SSTL Report'!GL621,Reference!CR14))))),IF('RBTL Report'!$F$73<>"", IF('RBTL Report'!$GA$510, MIN('AOC SSTL Report'!GK621,'AOC SSTL Report'!GL621,Reference!CR14), IF('RBTL Report'!$GA$511,MIN('AOC SSTL Report'!GK621,'AOC SSTL Report'!GL621,Reference!CR14), IF('RBTL Report'!$GA$512, MIN('AOC SSTL Report'!GK621,'AOC SSTL Report'!GL621,Reference!CR14)*10,(MIN('AOC SSTL Report'!GK621,'AOC SSTL Report'!GL621,Reference!CR14))))))) -> 793.66
FY622: Ethylbenzene | GA622: 0.003175097744 | GB622: 0.003175097744 | GC622: 1.70519806e-05 | GD622: 0.0001390759415 | GE622: 0.0008760293261 | GF622: 0.001777280982 | GG622: 0.03244444444 | GH622: 2896.825397 | GI622: 37.03579718 | GJ622: 3306767.605 | GK622: 18.25510135 | GL622: 1629919.763 | GN622: =MIN(GI622,GJ622,Reference!CL15/1000)*1000 -> 37035.79718 | GO622: =IF(lateral_benzene_soil<30,IF('RBTL Report'!$H$93<>"",MIN('AOC SSTL Report'!GK622,'AOC SSTL Report'!GL622,Reference!CR15),IF('RBTL Report'!$GA$511,MIN('AOC SSTL Report'!GK622,'AOC SSTL Report'!GL622,Reference!CR15), IF('RBTL Report'!$GA$512, MIN('AOC SSTL Report'!GK622,'AOC SSTL Report'!GL622,Reference!CR15)*10,(MIN('AOC SSTL Report'!GK622,'AOC SSTL Report'!GL622,Reference!CR15))))),IF('RBTL Report'!$F$73<>"", IF('RBTL Report'!$GA$510, MIN('AOC SSTL Report'!GK622,'AOC SSTL Report'!GL622,Reference!CR15), IF('RBTL Report'!$GA$511,MIN('AOC SSTL Report'!GK622,'AOC SSTL Report'!GL622,Reference!CR15), IF('RBTL Report'!$GA$512, MIN('AOC SSTL Report'!GK622,'AOC SSTL Report'!GL622,Reference!CR15)*10,(MIN('AOC SSTL Report'!GK622,'AOC SSTL Report'!GL622,Reference!CR15))))))) -> 18.25510135
FY623: Xylenes (Total) | GA623: 0.003221895794 | GB623: 0.003221895794 | GC623: 1.837916013e-05 | GD623: 0.0001495411563 | GE623: 0.0007905624458 | GF623: 0.00179341344 | GG623: N/A | GH623: 289.6825397 | GI623: N/A | GJ623: 366425.8797 | GK623: N/A | GL623: 161525.7995 | GN623: =MIN(GI623,GJ623,Reference!CL16/1000)*1000 -> 110000 | GO623: =IF(lateral_benzene_soil<30,IF('RBTL Report'!$H$93<>"",MIN('AOC SSTL Report'!GK623,'AOC SSTL Report'!GL623,Reference!CR16),IF('RBTL Report'!$GA$511,MIN('AOC SSTL Report'!GK623,'AOC SSTL Report'!GL623,Reference!CR16), IF('RBTL Report'!$GA$512, MIN('AOC SSTL Report'!GK623,'AOC SSTL Report'!GL623,Reference!CR16)*10,(MIN('AOC SSTL Report'!GK623,'AOC SSTL Report'!GL623,Reference!CR16))))),IF('RBTL Report'!$F$73<>"", IF('RBTL Report'!$GA$510, MIN('AOC SSTL Report'!GK623,'AOC SSTL Report'!GL623,Reference!CR16), IF('RBTL Report'!$GA$511,MIN('AOC SSTL Report'!GK623,'AOC SSTL Report'!GL623,Reference!CR16), IF('RBTL Report'!$GA$512, MIN('AOC SSTL Report'!GK623,'AOC SSTL Report'!GL623,Reference!CR16)*10,(MIN('AOC SSTL Report'!GK623,'AOC SSTL Report'!GL623,Reference!CR16))))))) -> 502.73
FY624: MTBE | GA624: 0.003509607201 | GB624: 0.003509607201 | GC624: 9.702109734e-05 | GD624: 0.0006820100972 | GE624: 0.0002465760452 | GF624: 0.002807339404 | GG624: 0.311965812 | GH624: 8690.47619 | GI624: 1265.191076 | GJ624: 35244608.55 | GK624: 111.1250786 | GL624: 3095627.19 | GN624: =MIN(GI624,GJ624,Reference!CL17/1000)*1000 -> 1265191.076 | GO624: =IF(lateral_benzene_soil<30,IF('RBTL Report'!$H$93<>"",MIN('AOC SSTL Report'!GK624,'AOC SSTL Report'!GL624,Reference!CR17),IF('RBTL Report'!$GA$511,MIN('AOC SSTL Report'!GK624,'AOC SSTL Report'!GL624,Reference!CR17), IF('RBTL Report'!$GA$512, MIN('AOC SSTL Report'!GK624,'AOC SSTL Report'!GL624,Reference!CR17)*10,(MIN('AOC SSTL Report'!GK624,'AOC SSTL Report'!GL624,Reference!CR17))))),IF('RBTL Report'!$F$73<>"", IF('RBTL Report'!$GA$510, MIN('AOC SSTL Report'!GK624,'AOC SSTL Report'!GL624,Reference!CR17), IF('RBTL Report'!$GA$511,MIN('AOC SSTL Report'!GK624,'AOC SSTL Report'!GL624,Reference!CR17), IF('RBTL Report'!$GA$512, MIN('AOC SSTL Report'!GK624,'AOC SSTL Report'!GL624,Reference!CR17)*10,(MIN('AOC SSTL Report'!GK624,'AOC SSTL Report'!GL624,Reference!CR17))))))) -> 111.1250786
FY625: EDB | GA625: 0.002016144546 | GB625: 0.002016144546 | GC625: 9.615311947e-05 | GD625: 0.0006011759537 | GE625: 0.000207326316 | GF625: 0.0008336432082 | GG625: 0.0001351851852 | GH625: 26.07142857 | GI625: 0.6520406468 | GJ625: 125750.6962 | GK625: 0.1621619223 | GL625: 31274.08502 | GN625: =MIN(GI625,GJ625,Reference!CL18/1000)*1000 -> 652.0406468 | GO625: =IF(lateral_benzene_soil<30,IF('RBTL Report'!$H$93<>"",MIN('AOC SSTL Report'!GK625,'AOC SSTL Report'!GL625,Reference!CR18),IF('RBTL Report'!$GA$511,MIN('AOC SSTL Report'!GK625,'AOC SSTL Report'!GL625,Reference!CR18), IF('RBTL Report'!$GA$512, MIN('AOC SSTL Report'!GK625,'AOC SSTL Report'!GL625,Reference!CR18)*10,(MIN('AOC SSTL Report'!GK625,'AOC SSTL Report'!GL625,Reference!CR18))))),IF('RBTL Report'!$F$73<>"", IF('RBTL Report'!$GA$510, MIN('AOC SSTL Report'!GK625,'AOC SSTL Report'!GL625,Reference!CR18), IF('RBTL Report'!$GA$511,MIN('AOC SSTL Report'!GK625,'AOC SSTL Report'!GL625,Reference!CR18), IF('RBTL Report'!$GA$512, MIN('AOC SSTL Report'!GK625,'AOC SSTL Report'!GL625,Reference!CR18)*10,(MIN('AOC SSTL Report'!GK625,'AOC SSTL Report'!GL625,Reference!CR18))))))) -> 0.1621619223
FY626: EDC | GA626: 0.004015316192 | GB626: 0.004015316192 | GC626: 1.902773907e-05 | GD626: 0.0001558988167 | GE626: 0.0001488078416 | GF626: 0.002977770128 | GG626: 0.00311965812 | GH626: 20.27777778 | GI626: 20.96433955 | GJ626: 136268.2071 | GK626: 1.047649075 | GL626: 6809.718986 | GN626: =MIN(GI626,GJ626,Reference!CL19/1000)*1000 -> 20964.33955 | GO626: =IF(lateral_benzene_soil<30,IF('RBTL Report'!$H$93<>"",MIN('AOC SSTL Report'!GK626,'AOC SSTL Report'!GL626,Reference!CR19),IF('RBTL Report'!$GA$511,MIN('AOC SSTL Report'!GK626,'AOC SSTL Report'!GL626,Reference!CR19), IF('RBTL Report'!$GA$512, MIN('AOC SSTL Report'!GK626,'AOC SSTL Report'!GL626,Reference!CR19)*10,(MIN('AOC SSTL Report'!GK626,'AOC SSTL Report'!GL626,Reference!CR19))))),IF('RBTL Report'!$F$73<>"", IF('RBTL Report'!$GA$510, MIN('AOC SSTL Report'!GK626,'AOC SSTL Report'!GL626,Reference!CR19), IF('RBTL Report'!$GA$511,MIN('AOC SSTL Report'!GK626,'AOC SSTL Report'!GL626,Reference!CR19), IF('RBTL Report'!$GA$512, MIN('AOC SSTL Report'!GK626,'AOC SSTL Report'!GL626,Reference!CR19)*10,(MIN('AOC SSTL Report'!GK626,'AOC SSTL Report'!GL626,Reference!CR19))))))) -> 1.047649075
FY627: 1- Methylnaphthalene | GA627: 0.001993528819 | GB627: 0.001993528819 | GC627: 0.000294062359 | GD627: 0.001185768673 | GE627: 6.993703679e-05 | GF627: 2.108199619e-06 | GG627: N/A | GH627: N/A | GI627: N/A | GJ627: N/A | GK627: N/A | GL627: N/A | GN627: =MIN(GI627,GJ627,Reference!CL20/1000)*1000 -> 26000 | GO627: =IF(lateral_benzene_soil<30,IF('RBTL Report'!$H$93<>"",MIN('AOC SSTL Report'!GK627,'AOC SSTL Report'!GL627,Reference!CR20),IF('RBTL Report'!$GA$511,MIN('AOC SSTL Report'!GK627,'AOC SSTL Report'!GL627,Reference!CR20), IF('RBTL Report'!$GA$512, MIN('AOC SSTL Report'!GK627,'AOC SSTL Report'!GL627,Reference!CR20)*10,(MIN('AOC SSTL Report'!GK627,'AOC SSTL Report'!GL627,Reference!CR20))))),IF('RBTL Report'!$F$73<>"", IF('RBTL Report'!$GA$510, MIN('AOC SSTL Report'!GK627,'AOC SSTL Report'!GL627,Reference!CR20), IF('RBTL Report'!$GA$511,MIN('AOC SSTL Report'!GK627,'AOC SSTL Report'!GL627,Reference!CR20), IF('RBTL Report'!$GA$512, MIN('AOC SSTL Report'!GK627,'AOC SSTL Report'!GL627,Reference!CR20)*10,(MIN('AOC SSTL Report'!GK627,'AOC SSTL Report'!GL627,Reference!CR20))))))) -> 208.13
FY628: 1,2,4-TMB | GA628: 0.001993528819 | GB628: 0.001993528819 | GC628: 0.000294062359 | GD628: 0.001185768673 | GE628: 6.993703679e-05 | GF628: 2.108199619e-06 | GG628: N/A | GH628: N/A | GI628: N/A | GJ628: N/A | GK628: N/A | GL628: N/A | GN628: =MIN(GI628,GJ628,Reference!CL21/1000)*1000 -> 25000 | GO628: =IF(lateral_benzene_soil<30,IF('RBTL Report'!$H$93<>"",MIN('AOC SSTL Report'!GK628,'AOC SSTL Report'!GL628,Reference!CR21),IF('RBTL Report'!$GA$511,MIN('AOC SSTL Report'!GK628,'AOC SSTL Report'!GL628,Reference!CR21), IF('RBTL Report'!$GA$512, MIN('AOC SSTL Report'!GK628,'AOC SSTL Report'!GL628,Reference!CR21)*10,(MIN('AOC SSTL Report'!GK628,'AOC SSTL Report'!GL628,Reference!CR21))))),IF('RBTL Report'!$F$73<>"", IF('RBTL Report'!$GA$510, MIN('AOC SSTL Report'!GK628,'AOC SSTL Report'!GL628,Reference!CR21), IF('RBTL Report'!$GA$511,MIN('AOC SSTL Report'!GK628,'AOC SSTL Report'!GL628,Reference!CR21), IF('RBTL Report'!$GA$512, MIN('AOC SSTL Report'!GK628,'AOC SSTL Report'!GL628,Reference!CR21)*10,(MIN('AOC SSTL Report'!GK628,'AOC SSTL Report'!GL628,Reference!CR21))))))) -> 208
FY629: Benzo(a)pyrene TEQ | GA629: 0.009441807993 | GB629: 0.009441807993 | GC629: 0.07257061779 | GD629: 0.01052054148 | GE629: 1.236913383e-06 | GF629: 3.766440158e-10 | GG629: 0.0001351851852 | GH629: 0.005793650794 | GI629: 109.292362 | GJ629: 4683.958371 | GK629: 358920.3054 | GL629: 15382298.8 | GN629: =MIN(GI629,GJ629,Reference!CL22/1000)*1000 -> 1.6 | GO629: =IF(lateral_benzene_soil<30,IF('RBTL Report'!$H$93<>"",MIN('AOC SSTL Report'!GK629,'AOC SSTL Report'!GL629,Reference!CR22),IF('RBTL Report'!$GA$511,MIN('AOC SSTL Report'!GK629,'AOC SSTL Report'!GL629,Reference!CR22), IF('RBTL Report'!$GA$512, MIN('AOC SSTL Report'!GK629,'AOC SSTL Report'!GL629,Reference!CR22)*10,(MIN('AOC SSTL Report'!GK629,'AOC SSTL Report'!GL629,Reference!CR22))))),IF('RBTL Report'!$F$73<>"", IF('RBTL Report'!$GA$510, MIN('AOC SSTL Report'!GK629,'AOC SSTL Report'!GL629,Reference!CR22), IF('RBTL Report'!$GA$511,MIN('AOC SSTL Report'!GK629,'AOC SSTL Report'!GL629,Reference!CR22), IF('RBTL Report'!$GA$512, MIN('AOC SSTL Report'!GK629,'AOC SSTL Report'!GL629,Reference!CR22)*10,(MIN('AOC SSTL Report'!GK629,'AOC SSTL Report'!GL629,Reference!CR22))))))) -> 4.6681
FY630: Naphthalene | GA630: 0.002811876813 | GB630: 0.002811876813 | GC630: 0.0001204038624 | GD630: 0.0007735842654 | GE630: 0.0001862970521 | GF630: 3.174152808e-05 | GG630: N/A | GH630: 8.69047619 | GI630: N/A | GJ630: 46648.4901 | GK630: N/A | GL630: 273788.8412 | GN630: =MIN(GI630,GJ630,Reference!CL23/1000)*1000 -> 31000 | GO630: =IF(lateral_benzene_soil<30,IF('RBTL Report'!$H$93<>"",MIN('AOC SSTL Report'!GK630,'AOC SSTL Report'!GL630,Reference!CR23),IF('RBTL Report'!$GA$511,MIN('AOC SSTL Report'!GK630,'AOC SSTL Report'!GL630,Reference!CR23), IF('RBTL Report'!$GA$512, MIN('AOC SSTL Report'!GK630,'AOC SSTL Report'!GL630,Reference!CR23)*10,(MIN('AOC SSTL Report'!GK630,'AOC SSTL Report'!GL630,Reference!CR23))))),IF('RBTL Report'!$F$73<>"", IF('RBTL Report'!$GA$510, MIN('AOC SSTL Report'!GK630,'AOC SSTL Report'!GL630,Reference!CR23), IF('RBTL Report'!$GA$511,MIN('AOC SSTL Report'!GK630,'AOC SSTL Report'!GL630,Reference!CR23), IF('RBTL Report'!$GA$512, MIN('AOC SSTL Report'!GK630,'AOC SSTL Report'!GL630,Reference!CR23)*10,(MIN('AOC SSTL Report'!GK630,'AOC SSTL Report'!GL630,Reference!CR23))))))) -> 402.83
GN643: Final SSCL gw | GO643: =IF('RBTL Report'!$GC$491<30,'RBTL Report'!I$93&" Feet Soil SSCL", 'RBTL Report'!I$69&" Feet Soil SSCL") -> Feet Soil SSCL
GF644: Ls4
FY645: Benzene | GA645: =GA620 -> 0.004342680805 | GB645: =GB620 -> 0.004342680805 | GC645: =GC620 -> 2.605421956e-05 | GD645: =GD620 -> 0.0002115408327 | GE645: =GE620 -> 0.0009482337241 | GF645: 0.008419390787 | GG645: =GG620 -> 0.0103988604 | GH645: =GH620 -> 86.9047619 | GI645: =GI620 -> 10.96655828 | GJ645: =GJ620 -> 91649.09421 | GK645: 1.235108414 | GL645: 10321.97746 | GN645: =MIN(GI645,GJ645,Reference!CL13/1000)*1000 -> 10966.55828 | GO645: =IF(lateral_benzene_soil<30,IF('RBTL Report'!$I$93<>"",MIN('AOC SSTL Report'!GK645,'AOC SSTL Report'!GL645,Reference!CR13),IF('RBTL Report'!$GA$511,MIN('AOC SSTL Report'!GK645,'AOC SSTL Report'!GL645,Reference!CR13), IF('RBTL Report'!$GA$512, MIN('AOC SSTL Report'!GK645,'AOC SSTL Report'!GL645,Reference!CR13)*10,(MIN('AOC SSTL Report'!GK645,'AOC SSTL Report'!GL645,Reference!CR13))))),IF('RBTL Report'!$F$73<>"", IF('RBTL Report'!$GA$510, MIN('AOC SSTL Report'!GK645,'AOC SSTL Report'!GL645,Reference!CR13), IF('RBTL Report'!$GA$511,MIN('AOC SSTL Report'!GK645,'AOC SSTL Report'!GL645,Reference!CR13), IF('RBTL Report'!$GA$512, MIN('AOC SSTL Report'!GK645,'AOC SSTL Report'!GL645,Reference!CR13)*10,(MIN('AOC SSTL Report'!GK645,'AOC SSTL Report'!GL645,Reference!CR13))))))) -> 1.235108414
FY646: Toluene | GA646: =GA621 -> 0.003642107827 | GB646: 0.003642107827 | GC646: 2.041663006e-05 | GD646: 0.0001662367406 | GE646: 0.0008802001398 | GF646: 0.003319549305 | GG646: =GG621 -> N/A | GH646: 14484.12698 | GI646: N/A | GJ646: 16455492.71 | GK646: N/A | GL646: 4363281.173 | GN646: =MIN(GI646,GJ646,Reference!CL14/1000)*1000 -> 530000 | GO646: =IF(lateral_benzene_soil<30,IF('RBTL Report'!$I$93<>"",MIN('AOC SSTL Report'!GK646,'AOC SSTL Report'!GL646,Reference!CR14),IF('RBTL Report'!$GA$511,MIN('AOC SSTL Report'!GK646,'AOC SSTL Report'!GL646,Reference!CR14), IF('RBTL Report'!$GA$512, MIN('AOC SSTL Report'!GK646,'AOC SSTL Report'!GL646,Reference!CR14)*10,(MIN('AOC SSTL Report'!GK646,'AOC SSTL Report'!GL646,Reference!CR14))))),IF('RBTL Report'!$F$73<>"", IF('RBTL Report'!$GA$510, MIN('AOC SSTL Report'!GK646,'AOC SSTL Report'!GL646,Reference!CR14), IF('RBTL Report'!$GA$511,MIN('AOC SSTL Report'!GK646,'AOC SSTL Report'!GL646,Reference!CR14), IF('RBTL Report'!$GA$512, MIN('AOC SSTL Report'!GK646,'AOC SSTL Report'!GL646,Reference!CR14)*10,(MIN('AOC SSTL Report'!GK646,'AOC SSTL Report'!GL646,Reference!CR14))))))) -> 793.66
FY647: Ethylbenzene | GA647: 0.003175097744 | GB647: 0.003175097744 | GC647: 1.70519806e-05 | GD647: 0.0001390759415 | GE647: 0.0008760293261 | GF647: 0.001808344666 | GG647: 0.03244444444 | GH647: 2896.825397 | GI647: 37.03579718 | GJ647: 3306767.605 | GK647: 17.94151583 | GL647: 1601921.056 | GN647: =MIN(GI647,GJ647,Reference!CL15/1000)*1000 -> 37035.79718 | GO647: =IF(lateral_benzene_soil<30,IF('RBTL Report'!$I$93<>"",MIN('AOC SSTL Report'!GK647,'AOC SSTL Report'!GL647,Reference!CR15),IF('RBTL Report'!$GA$511,MIN('AOC SSTL Report'!GK647,'AOC SSTL Report'!GL647,Reference!CR15), IF('RBTL Report'!$GA$512, MIN('AOC SSTL Report'!GK647,'AOC SSTL Report'!GL647,Reference!CR15)*10,(MIN('AOC SSTL Report'!GK647,'AOC SSTL Report'!GL647,Reference!CR15))))),IF('RBTL Report'!$F$73<>"", IF('RBTL Report'!$GA$510, MIN('AOC SSTL Report'!GK647,'AOC SSTL Report'!GL647,Reference!CR15), IF('RBTL Report'!$GA$511,MIN('AOC SSTL Report'!GK647,'AOC SSTL Report'!GL647,Reference!CR15), IF('RBTL Report'!$GA$512, MIN('AOC SSTL Report'!GK647,'AOC SSTL Report'!GL647,Reference!CR15)*10,(MIN('AOC SSTL Report'!GK647,'AOC SSTL Report'!GL647,Reference!CR15))))))) -> 17.94151583
FY648: Xylenes (Total) | GA648: 0.003221895794 | GB648: 0.003221895794 | GC648: 1.837916013e-05 | GD648: 0.0001495411563 | GE648: 0.0007905624458 | GF648: 0.001824759078 | GG648: N/A | GH648: 289.6825397 | GI648: N/A | GJ648: 366425.8797 | GK648: N/A | GL648: 158751.1158 | GN648: =MIN(GI648,GJ648,Reference!CL16/1000)*1000 -> 110000 | GO648: =IF(lateral_benzene_soil<30,IF('RBTL Report'!$I$93<>"",MIN('AOC SSTL Report'!GK648,'AOC SSTL Report'!GL648,Reference!CR16),IF('RBTL Report'!$GA$511,MIN('AOC SSTL Report'!GK648,'AOC SSTL Report'!GL648,Reference!CR16), IF('RBTL Report'!$GA$512, MIN('AOC SSTL Report'!GK648,'AOC SSTL Report'!GL648,Reference!CR16)*10,(MIN('AOC SSTL Report'!GK648,'AOC SSTL Report'!GL648,Reference!CR16))))),IF('RBTL Report'!$F$73<>"", IF('RBTL Report'!$GA$510, MIN('AOC SSTL Report'!GK648,'AOC SSTL Report'!GL648,Reference!CR16), IF('RBTL Report'!$GA$511,MIN('AOC SSTL Report'!GK648,'AOC SSTL Report'!GL648,Reference!CR16), IF('RBTL Report'!$GA$512, MIN('AOC SSTL Report'!GK648,'AOC SSTL Report'!GL648,Reference!CR16)*10,(MIN('AOC SSTL Report'!GK648,'AOC SSTL Report'!GL648,Reference!CR16))))))) -> 502.73
FY649: MTBE | GA649: 0.003509607201 | GB649: 0.003509607201 | GC649: 9.702109734e-05 | GD649: 0.0006820100972 | GE649: 0.0002465760452 | GF649: 0.002856406526 | GG649: 0.311965812 | GH649: 8690.47619 | GI649: 1265.191076 | GJ649: 35244608.55 | GK649: 109.2161809 | GL649: 3042450.755 | GN649: =MIN(GI649,GJ649,Reference!CL17/1000)*1000 -> 1265191.076 | GO649: =IF(lateral_benzene_soil<30,IF('RBTL Report'!$I$93<>"",MIN('AOC SSTL Report'!GK649,'AOC SSTL Report'!GL649,Reference!CR17),IF('RBTL Report'!$GA$511,MIN('AOC SSTL Report'!GK649,'AOC SSTL Report'!GL649,Reference!CR17), IF('RBTL Report'!$GA$512, MIN('AOC SSTL Report'!GK649,'AOC SSTL Report'!GL649,Reference!CR17)*10,(MIN('AOC SSTL Report'!GK649,'AOC SSTL Report'!GL649,Reference!CR17))))),IF('RBTL Report'!$F$73<>"", IF('RBTL Report'!$GA$510, MIN('AOC SSTL Report'!GK649,'AOC SSTL Report'!GL649,Reference!CR17), IF('RBTL Report'!$GA$511,MIN('AOC SSTL Report'!GK649,'AOC SSTL Report'!GL649,Reference!CR17), IF('RBTL Report'!$GA$512, MIN('AOC SSTL Report'!GK649,'AOC SSTL Report'!GL649,Reference!CR17)*10,(MIN('AOC SSTL Report'!GK649,'AOC SSTL Report'!GL649,Reference!CR17))))))) -> 109.2161809
FY650: EDB | GA650: 0.002016144546 | GB650: 0.002016144546 | GC650: 9.615311947e-05 | GD650: 0.0006011759537 | GE650: 0.000207326316 | GF650: 0.0008482139368 | GG650: 0.0001351851852 | GH650: 26.07142857 | GI650: 0.6520406468 | GJ650: 125750.6962 | GK650: 0.1593762839 | GL650: 30736.85475 | GN650: =MIN(GI650,GJ650,Reference!CL18/1000)*1000 -> 652.0406468 | GO650: =IF(lateral_benzene_soil<30,IF('RBTL Report'!$I$93<>"",MIN('AOC SSTL Report'!GK650,'AOC SSTL Report'!GL650,Reference!CR18),IF('RBTL Report'!$GA$511,MIN('AOC SSTL Report'!GK650,'AOC SSTL Report'!GL650,Reference!CR18), IF('RBTL Report'!$GA$512, MIN('AOC SSTL Report'!GK650,'AOC SSTL Report'!GL650,Reference!CR18)*10,(MIN('AOC SSTL Report'!GK650,'AOC SSTL Report'!GL650,Reference!CR18))))),IF('RBTL Report'!$F$73<>"", IF('RBTL Report'!$GA$510, MIN('AOC SSTL Report'!GK650,'AOC SSTL Report'!GL650,Reference!CR18), IF('RBTL Report'!$GA$511,MIN('AOC SSTL Report'!GK650,'AOC SSTL Report'!GL650,Reference!CR18), IF('RBTL Report'!$GA$512, MIN('AOC SSTL Report'!GK650,'AOC SSTL Report'!GL650,Reference!CR18)*10,(MIN('AOC SSTL Report'!GK650,'AOC SSTL Report'!GL650,Reference!CR18))))))) -> 0.1593762839
FY651: EDC | GA651: 0.004015316192 | GB651: 0.004015316192 | GC651: 1.902773907e-05 | GD651: 0.0001558988167 | GE651: 0.0001488078416 | GF651: 0.003029815846 | GG651: 0.00311965812 | GH651: 20.27777778 | GI651: 20.96433955 | GJ651: 136268.2071 | GK651: 1.029652718 | GL651: 6692.742664 | GN651: =MIN(GI651,GJ651,Reference!CL19/1000)*1000 -> 20964.33955 | GO651: =IF(lateral_benzene_soil<30,IF('RBTL Report'!$I$93<>"",MIN('AOC SSTL Report'!GK651,'AOC SSTL Report'!GL651,Reference!CR19),IF('RBTL Report'!$GA$511,MIN('AOC SSTL Report'!GK651,'AOC SSTL Report'!GL651,Reference!CR19), IF('RBTL Report'!$GA$512, MIN('AOC SSTL Report'!GK651,'AOC SSTL Report'!GL651,Reference!CR19)*10,(MIN('AOC SSTL Report'!GK651,'AOC SSTL Report'!GL651,Reference!CR19))))),IF('RBTL Report'!$F$73<>"", IF('RBTL Report'!$GA$510, MIN('AOC SSTL Report'!GK651,'AOC SSTL Report'!GL651,Reference!CR19), IF('RBTL Report'!$GA$511,MIN('AOC SSTL Report'!GK651,'AOC SSTL Report'!GL651,Reference!CR19), IF('RBTL Report'!$GA$512, MIN('AOC SSTL Report'!GK651,'AOC SSTL Report'!GL651,Reference!CR19)*10,(MIN('AOC SSTL Report'!GK651,'AOC SSTL Report'!GL651,Reference!CR19))))))) -> 1.029652718
FY652: 1- Methylnaphthalene | GA652: 0.001993528819 | GB652: 0.001993528819 | GC652: 0.000294062359 | GD652: 0.001185768673 | GE652: 6.993703679e-05 | GF652: 2.145047529e-06 | GG652: N/A | GH652: N/A | GI652: N/A | GJ652: N/A | GK652: N/A | GL652: N/A | GN652: =MIN(GI652,GJ652,Reference!CL20/1000)*1000 -> 26000 | GO652: =IF(lateral_benzene_soil<30,IF('RBTL Report'!$I$93<>"",MIN('AOC SSTL Report'!GK652,'AOC SSTL Report'!GL652,Reference!CR20),IF('RBTL Report'!$GA$511,MIN('AOC SSTL Report'!GK652,'AOC SSTL Report'!GL652,Reference!CR20), IF('RBTL Report'!$GA$512, MIN('AOC SSTL Report'!GK652,'AOC SSTL Report'!GL652,Reference!CR20)*10,(MIN('AOC SSTL Report'!GK652,'AOC SSTL Report'!GL652,Reference!CR20))))),IF('RBTL Report'!$F$73<>"", IF('RBTL Report'!$GA$510, MIN('AOC SSTL Report'!GK652,'AOC SSTL Report'!GL652,Reference!CR20), IF('RBTL Report'!$GA$511,MIN('AOC SSTL Report'!GK652,'AOC SSTL Report'!GL652,Reference!CR20), IF('RBTL Report'!$GA$512, MIN('AOC SSTL Report'!GK652,'AOC SSTL Report'!GL652,Reference!CR20)*10,(MIN('AOC SSTL Report'!GK652,'AOC SSTL Report'!GL652,Reference!CR20))))))) -> 208.13
FY653: 1,2,4-TMB | GA653: 0.001993528819 | GB653: 0.001993528819 | GC653: 0.000294062359 | GD653: 0.001185768673 | GE653: 6.993703679e-05 | GF653: 2.145047529e-06 | GG653: N/A | GH653: N/A | GI653: N/A | GJ653: N/A | GK653: N/A | GL653: N/A | GN653: =MIN(GI653,GJ653,Reference!CL21/1000)*1000 -> 25000 | GO653: =IF(lateral_benzene_soil<30,IF('RBTL Report'!$I$93<>"",MIN('AOC SSTL Report'!GK653,'AOC SSTL Report'!GL653,Reference!CR21),IF('RBTL Report'!$GA$511,MIN('AOC SSTL Report'!GK653,'AOC SSTL Report'!GL653,Reference!CR21), IF('RBTL Report'!$GA$512, MIN('AOC SSTL Report'!GK653,'AOC SSTL Report'!GL653,Reference!CR21)*10,(MIN('AOC SSTL Report'!GK653,'AOC SSTL Report'!GL653,Reference!CR21))))),IF('RBTL Report'!$F$73<>"", IF('RBTL Report'!$GA$510, MIN('AOC SSTL Report'!GK653,'AOC SSTL Report'!GL653,Reference!CR21), IF('RBTL Report'!$GA$511,MIN('AOC SSTL Report'!GK653,'AOC SSTL Report'!GL653,Reference!CR21), IF('RBTL Report'!$GA$512, MIN('AOC SSTL Report'!GK653,'AOC SSTL Report'!GL653,Reference!CR21)*10,(MIN('AOC SSTL Report'!GK653,'AOC SSTL Report'!GL653,Reference!CR21))))))) -> 208
FY654: Benzo(a)pyrene TEQ | GA654: 0.009441807993 | GB654: 0.009441807993 | GC654: 0.07257061779 | GD654: 0.01052054148 | GE654: 1.236913383e-06 | GF654: 3.832267349e-10 | GG654: 0.0001351851852 | GH654: 0.005793650794 | GI654: 109.292362 | GJ654: 4683.958371 | GK654: 352755.1 | GL654: 15118075.72 | GN654: =MIN(GI654,GJ654,Reference!CL22/1000)*1000 -> 1.6 | GO654: =IF(lateral_benzene_soil<30,IF('RBTL Report'!$I$93<>"",MIN('AOC SSTL Report'!GK654,'AOC SSTL Report'!GL654,Reference!CR22),IF('RBTL Report'!$GA$511,MIN('AOC SSTL Report'!GK654,'AOC SSTL Report'!GL654,Reference!CR22), IF('RBTL Report'!$GA$512, MIN('AOC SSTL Report'!GK654,'AOC SSTL Report'!GL654,Reference!CR22)*10,(MIN('AOC SSTL Report'!GK654,'AOC SSTL Report'!GL654,Reference!CR22))))),IF('RBTL Report'!$F$73<>"", IF('RBTL Report'!$GA$510, MIN('AOC SSTL Report'!GK654,'AOC SSTL Report'!GL654,Reference!CR22), IF('RBTL Report'!$GA$511,MIN('AOC SSTL Report'!GK654,'AOC SSTL Report'!GL654,Reference!CR22), IF('RBTL Report'!$GA$512, MIN('AOC SSTL Report'!GK654,'AOC SSTL Report'!GL654,Reference!CR22)*10,(MIN('AOC SSTL Report'!GK654,'AOC SSTL Report'!GL654,Reference!CR22))))))) -> 4.6681
FY655: Naphthalene | GA655: 0.002811876813 | GB655: 0.002811876813 | GC655: 0.0001204038624 | GD655: 0.0007735842654 | GE655: 0.0001862970521 | GF655: 3.229631474e-05 | GG655: N/A | GH655: 8.69047619 | GI655: N/A | GJ655: 46648.4901 | GK655: N/A | GL655: 269085.6917 | GN655: =MIN(GI655,GJ655,Reference!CL23/1000)*1000 -> 31000 | GO655: =IF(lateral_benzene_soil<30,IF('RBTL Report'!$I$93<>"",MIN('AOC SSTL Report'!GK655,'AOC SSTL Report'!GL655,Reference!CR23),IF('RBTL Report'!$GA$511,MIN('AOC SSTL Report'!GK655,'AOC SSTL Report'!GL655,Reference!CR23), IF('RBTL Report'!$GA$512, MIN('AOC SSTL Report'!GK655,'AOC SSTL Report'!GL655,Reference!CR23)*10,(MIN('AOC SSTL Report'!GK655,'AOC SSTL Report'!GL655,Reference!CR23))))),IF('RBTL Report'!$F$73<>"", IF('RBTL Report'!$GA$510, MIN('AOC SSTL Report'!GK655,'AOC SSTL Report'!GL655,Reference!CR23), IF('RBTL Report'!$GA$511,MIN('AOC SSTL Report'!GK655,'AOC SSTL Report'!GL655,Reference!CR23), IF('RBTL Report'!$GA$512, MIN('AOC SSTL Report'!GK655,'AOC SSTL Report'!GL655,Reference!CR23)*10,(MIN('AOC SSTL Report'!GK655,'AOC SSTL Report'!GL655,Reference!CR23))))))) -> 402.83
GN668: Final SSCL gw | GO668: =IF('RBTL Report'!$GC$491<30,'RBTL Report'!J$93&" Feet Soil SSCL", 'RBTL Report'!J$69&" Feet Soil SSCL") -> Feet Soil SSCL
GF669: Ls5
FY670: Benzene | GA670: =GA645 -> 0.004342680805 | GB670: =GB645 -> 0.004342680805 | GC670: =GC645 -> 2.605421956e-05 | GD670: =GD645 -> 0.0002115408327 | GE670: =GE645 -> 0.0009482337241 | GF670: 0.0075015983 | GG670: =GG645 -> 0.0103988604 | GH670: =GH645 -> 86.9047619 | GI670: =GI645 -> 10.96655828 | GJ670: =GJ645 -> 91649.09421 | GK670: 1.386219307 | GL670: 11584.83278 | GN670: =MIN(GI670,GJ670,Reference!CL13/1000)*1000 -> 10966.55828 | GO670: =IF(lateral_benzene_soil<30,IF('RBTL Report'!$J$93<>"",MIN('AOC SSTL Report'!GK670,'AOC SSTL Report'!GL670,Reference!CR13),IF('RBTL Report'!$GA$511,MIN('AOC SSTL Report'!GK670,'AOC SSTL Report'!GL670,Reference!CR13), IF('RBTL Report'!$GA$512, MIN('AOC SSTL Report'!GK670,'AOC SSTL Report'!GL670,Reference!CR13)*10,(MIN('AOC SSTL Report'!GK670,'AOC SSTL Report'!GL670,Reference!CR13))))),IF('RBTL Report'!$F$73<>"", IF('RBTL Report'!$GA$510, MIN('AOC SSTL Report'!GK670,'AOC SSTL Report'!GL670,Reference!CR13), IF('RBTL Report'!$GA$511,MIN('AOC SSTL Report'!GK670,'AOC SSTL Report'!GL670,Reference!CR13), IF('RBTL Report'!$GA$512, MIN('AOC SSTL Report'!GK670,'AOC SSTL Report'!GL670,Reference!CR13)*10,(MIN('AOC SSTL Report'!GK670,'AOC SSTL Report'!GL670,Reference!CR13))))))) -> 1.386219307
FY671: Toluene | GA671: =GA646 -> 0.003642107827 | GB671: 0.003642107827 | GC671: 2.041663006e-05 | GD671: 0.0001662367406 | GE671: 0.0008802001398 | GF671: 0.002957685449 | GG671: =GG646 -> N/A | GH671: 14484.12698 | GI671: N/A | GJ671: 16455492.71 | GK671: N/A | GL671: 4897115.409 | GN671: =MIN(GI671,GJ671,Reference!CL14/1000)*1000 -> 530000 | GO671: =IF(lateral_benzene_soil<30,IF('RBTL Report'!$J$93<>"",MIN('AOC SSTL Report'!GK671,'AOC SSTL Report'!GL671,Reference!CR14),IF('RBTL Report'!$GA$511,MIN('AOC SSTL Report'!GK671,'AOC SSTL Report'!GL671,Reference!CR14), IF('RBTL Report'!$GA$512, MIN('AOC SSTL Report'!GK671,'AOC SSTL Report'!GL671,Reference!CR14)*10,(MIN('AOC SSTL Report'!GK671,'AOC SSTL Report'!GL671,Reference!CR14))))),IF('RBTL Report'!$F$73<>"", IF('RBTL Report'!$GA$510, MIN('AOC SSTL Report'!GK671,'AOC SSTL Report'!GL671,Reference!CR14), IF('RBTL Report'!$GA$511,MIN('AOC SSTL Report'!GK671,'AOC SSTL Report'!GL671,Reference!CR14), IF('RBTL Report'!$GA$512, MIN('AOC SSTL Report'!GK671,'AOC SSTL Report'!GL671,Reference!CR14)*10,(MIN('AOC SSTL Report'!GK671,'AOC SSTL Report'!GL671,Reference!CR14))))))) -> 793.66
FY672: Ethylbenzene | GA672: 0.003175097744 | GB672: 0.003175097744 | GC672: 1.70519806e-05 | GD672: 0.0001390759415 | GE672: 0.0008760293261 | GF672: 0.001611216448 | GG672: 0.03244444444 | GH672: 2896.825397 | GI672: 37.03579718 | GJ672: 3306767.605 | GK672: 20.13661447 | GL672: 1797912.006 | GN672: =MIN(GI672,GJ672,Reference!CL15/1000)*1000 -> 37035.79718 | GO672: =IF(lateral_benzene_soil<30,IF('RBTL Report'!$J$93<>"",MIN('AOC SSTL Report'!GK672,'AOC SSTL Report'!GL672,Reference!CR15),IF('RBTL Report'!$GA$511,MIN('AOC SSTL Report'!GK672,'AOC SSTL Report'!GL672,Reference!CR15), IF('RBTL Report'!$GA$512, MIN('AOC SSTL Report'!GK672,'AOC SSTL Report'!GL672,Reference!CR15)*10,(MIN('AOC SSTL Report'!GK672,'AOC SSTL Report'!GL672,Reference!CR15))))),IF('RBTL Report'!$F$73<>"", IF('RBTL Report'!$GA$510, MIN('AOC SSTL Report'!GK672,'AOC SSTL Report'!GL672,Reference!CR15), IF('RBTL Report'!$GA$511,MIN('AOC SSTL Report'!GK672,'AOC SSTL Report'!GL672,Reference!CR15), IF('RBTL Report'!$GA$512, MIN('AOC SSTL Report'!GK672,'AOC SSTL Report'!GL672,Reference!CR15)*10,(MIN('AOC SSTL Report'!GK672,'AOC SSTL Report'!GL672,Reference!CR15))))))) -> 20.13661447
FY673: Xylenes (Total) | GA673: 0.003221895794 | GB673: 0.003221895794 | GC673: 1.837916013e-05 | GD673: 0.0001495411563 | GE673: 0.0007905624458 | GF673: 0.00162584159 | GG673: N/A | GH673: 289.6825397 | GI673: N/A | GJ673: 366425.8797 | GK673: N/A | GL673: 178173.9018 | GN673: =MIN(GI673,GJ673,Reference!CL16/1000)*1000 -> 110000 | GO673: =IF(lateral_benzene_soil<30,IF('RBTL Report'!$J$93<>"",MIN('AOC SSTL Report'!GK673,'AOC SSTL Report'!GL673,Reference!CR16),IF('RBTL Report'!$GA$511,MIN('AOC SSTL Report'!GK673,'AOC SSTL Report'!GL673,Reference!CR16), IF('RBTL Report'!$GA$512, MIN('AOC SSTL Report'!GK673,'AOC SSTL Report'!GL673,Reference!CR16)*10,(MIN('AOC SSTL Report'!GK673,'AOC SSTL Report'!GL673,Reference!CR16))))),IF('RBTL Report'!$F$73<>"", IF('RBTL Report'!$GA$510, MIN('AOC SSTL Report'!GK673,'AOC SSTL Report'!GL673,Reference!CR16), IF('RBTL Report'!$GA$511,MIN('AOC SSTL Report'!GK673,'AOC SSTL Report'!GL673,Reference!CR16), IF('RBTL Report'!$GA$512, MIN('AOC SSTL Report'!GK673,'AOC SSTL Report'!GL673,Reference!CR16)*10,(MIN('AOC SSTL Report'!GK673,'AOC SSTL Report'!GL673,Reference!CR16))))))) -> 502.73
FY674: MTBE | GA674: 0.003509607201 | GB674: 0.003509607201 | GC674: 9.702109734e-05 | GD674: 0.0006820100972 | GE674: 0.0002465760452 | GF674: 0.002545029529 | GG674: 0.311965812 | GH674: 8690.47619 | GI674: 1265.191076 | GJ674: 35244608.55 | GK674: 122.5784646 | GL674: 3414685.799 | GN674: =MIN(GI674,GJ674,Reference!CL17/1000)*1000 -> 1265191.076 | GO674: =IF(lateral_benzene_soil<30,IF('RBTL Report'!$J$93<>"",MIN('AOC SSTL Report'!GK674,'AOC SSTL Report'!GL674,Reference!CR17),IF('RBTL Report'!$GA$511,MIN('AOC SSTL Report'!GK674,'AOC SSTL Report'!GL674,Reference!CR17), IF('RBTL Report'!$GA$512, MIN('AOC SSTL Report'!GK674,'AOC SSTL Report'!GL674,Reference!CR17)*10,(MIN('AOC SSTL Report'!GK674,'AOC SSTL Report'!GL674,Reference!CR17))))),IF('RBTL Report'!$F$73<>"", IF('RBTL Report'!$GA$510, MIN('AOC SSTL Report'!GK674,'AOC SSTL Report'!GL674,Reference!CR17), IF('RBTL Report'!$GA$511,MIN('AOC SSTL Report'!GK674,'AOC SSTL Report'!GL674,Reference!CR17), IF('RBTL Report'!$GA$512, MIN('AOC SSTL Report'!GK674,'AOC SSTL Report'!GL674,Reference!CR17)*10,(MIN('AOC SSTL Report'!GK674,'AOC SSTL Report'!GL674,Reference!CR17))))))) -> 122.5784646
FY675: EDB | GA675: 0.002016144546 | GB675: 0.002016144546 | GC675: 9.615311947e-05 | GD675: 0.0006011759537 | GE675: 0.000207326316 | GF675: 0.0007557490769 | GG675: 0.0001351851852 | GH675: 26.07142857 | GI675: 0.6520406468 | GJ675: 125750.6962 | GK675: 0.178875753 | GL675: 34497.46664 | GN675: =MIN(GI675,GJ675,Reference!CL18/1000)*1000 -> 652.0406468 | GO675: =IF(lateral_benzene_soil<30,IF('RBTL Report'!$J$93<>"",MIN('AOC SSTL Report'!GK675,'AOC SSTL Report'!GL675,Reference!CR18),IF('RBTL Report'!$GA$511,MIN('AOC SSTL Report'!GK675,'AOC SSTL Report'!GL675,Reference!CR18), IF('RBTL Report'!$GA$512, MIN('AOC SSTL Report'!GK675,'AOC SSTL Report'!GL675,Reference!CR18)*10,(MIN('AOC SSTL Report'!GK675,'AOC SSTL Report'!GL675,Reference!CR18))))),IF('RBTL Report'!$F$73<>"", IF('RBTL Report'!$GA$510, MIN('AOC SSTL Report'!GK675,'AOC SSTL Report'!GL675,Reference!CR18), IF('RBTL Report'!$GA$511,MIN('AOC SSTL Report'!GK675,'AOC SSTL Report'!GL675,Reference!CR18), IF('RBTL Report'!$GA$512, MIN('AOC SSTL Report'!GK675,'AOC SSTL Report'!GL675,Reference!CR18)*10,(MIN('AOC SSTL Report'!GK675,'AOC SSTL Report'!GL675,Reference!CR18))))))) -> 0.178875753
FY676: EDC | GA676: 0.004015316192 | GB676: 0.004015316192 | GC676: 1.902773907e-05 | GD676: 0.0001558988167 | GE676: 0.0001488078416 | GF676: 0.002699536729 | GG676: 0.00311965812 | GH676: 20.27777778 | GI676: 20.96433955 | GJ676: 136268.2071 | GK676: 1.155627218 | GL676: 7511.576917 | GN676: =MIN(GI676,GJ676,Reference!CL19/1000)*1000 -> 20964.33955 | GO676: =IF(lateral_benzene_soil<30,IF('RBTL Report'!$J$93<>"",MIN('AOC SSTL Report'!GK676,'AOC SSTL Report'!GL676,Reference!CR19),IF('RBTL Report'!$GA$511,MIN('AOC SSTL Report'!GK676,'AOC SSTL Report'!GL676,Reference!CR19), IF('RBTL Report'!$GA$512, MIN('AOC SSTL Report'!GK676,'AOC SSTL Report'!GL676,Reference!CR19)*10,(MIN('AOC SSTL Report'!GK676,'AOC SSTL Report'!GL676,Reference!CR19))))),IF('RBTL Report'!$F$73<>"", IF('RBTL Report'!$GA$510, MIN('AOC SSTL Report'!GK676,'AOC SSTL Report'!GL676,Reference!CR19), IF('RBTL Report'!$GA$511,MIN('AOC SSTL Report'!GK676,'AOC SSTL Report'!GL676,Reference!CR19), IF('RBTL Report'!$GA$512, MIN('AOC SSTL Report'!GK676,'AOC SSTL Report'!GL676,Reference!CR19)*10,(MIN('AOC SSTL Report'!GK676,'AOC SSTL Report'!GL676,Reference!CR19))))))) -> 1.155627218
FY677: 1- Methylnaphthalene | GA677: 0.001993528819 | GB677: 0.001993528819 | GC677: 0.000294062359 | GD677: 0.001185768673 | GE677: 6.993703679e-05 | GF677: 1.911213181e-06 | GG677: N/A | GH677: N/A | GI677: N/A | GJ677: N/A | GK677: N/A | GL677: N/A | GN677: =MIN(GI677,GJ677,Reference!CL20/1000)*1000 -> 26000 | GO677: =IF(lateral_benzene_soil<30,IF('RBTL Report'!$J$93<>"",MIN('AOC SSTL Report'!GK677,'AOC SSTL Report'!GL677,Reference!CR20),IF('RBTL Report'!$GA$511,MIN('AOC SSTL Report'!GK677,'AOC SSTL Report'!GL677,Reference!CR20), IF('RBTL Report'!$GA$512, MIN('AOC SSTL Report'!GK677,'AOC SSTL Report'!GL677,Reference!CR20)*10,(MIN('AOC SSTL Report'!GK677,'AOC SSTL Report'!GL677,Reference!CR20))))),IF('RBTL Report'!$F$73<>"", IF('RBTL Report'!$GA$510, MIN('AOC SSTL Report'!GK677,'AOC SSTL Report'!GL677,Reference!CR20), IF('RBTL Report'!$GA$511,MIN('AOC SSTL Report'!GK677,'AOC SSTL Report'!GL677,Reference!CR20), IF('RBTL Report'!$GA$512, MIN('AOC SSTL Report'!GK677,'AOC SSTL Report'!GL677,Reference!CR20)*10,(MIN('AOC SSTL Report'!GK677,'AOC SSTL Report'!GL677,Reference!CR20))))))) -> 208.13
FY678: 1,2,4-TMB | GA678: 0.001993528819 | GB678: 0.001993528819 | GC678: 0.000294062359 | GD678: 0.001185768673 | GE678: 6.993703679e-05 | GF678: 1.911213181e-06 | GG678: N/A | GH678: N/A | GI678: N/A | GJ678: N/A | GK678: N/A | GL678: N/A | GN678: =MIN(GI678,GJ678,Reference!CL21/1000)*1000 -> 25000 | GO678: =IF(lateral_benzene_soil<30,IF('RBTL Report'!$J$93<>"",MIN('AOC SSTL Report'!GK678,'AOC SSTL Report'!GL678,Reference!CR21),IF('RBTL Report'!$GA$511,MIN('AOC SSTL Report'!GK678,'AOC SSTL Report'!GL678,Reference!CR21), IF('RBTL Report'!$GA$512, MIN('AOC SSTL Report'!GK678,'AOC SSTL Report'!GL678,Reference!CR21)*10,(MIN('AOC SSTL Report'!GK678,'AOC SSTL Report'!GL678,Reference!CR21))))),IF('RBTL Report'!$F$73<>"", IF('RBTL Report'!$GA$510, MIN('AOC SSTL Report'!GK678,'AOC SSTL Report'!GL678,Reference!CR21), IF('RBTL Report'!$GA$511,MIN('AOC SSTL Report'!GK678,'AOC SSTL Report'!GL678,Reference!CR21), IF('RBTL Report'!$GA$512, MIN('AOC SSTL Report'!GK678,'AOC SSTL Report'!GL678,Reference!CR21)*10,(MIN('AOC SSTL Report'!GK678,'AOC SSTL Report'!GL678,Reference!CR21))))))) -> 208
FY679: Benzo(a)pyrene TEQ | GA679: 0.009441807993 | GB679: 0.009441807993 | GC679: 0.07257061779 | GD679: 0.01052054148 | GE679: 1.236913383e-06 | GF679: 3.414530071e-10 | GG679: 0.0001351851852 | GH679: 0.005793650794 | GI679: 109.292362 | GJ679: 4683.958371 | GK679: 395911.5379 | GL679: 16967637.34 | GN679: =MIN(GI679,GJ679,Reference!CL22/1000)*1000 -> 1.6 | GO679: =IF(lateral_benzene_soil<30,IF('RBTL Report'!$J$93<>"",MIN('AOC SSTL Report'!GK679,'AOC SSTL Report'!GL679,Reference!CR22),IF('RBTL Report'!$GA$511,MIN('AOC SSTL Report'!GK679,'AOC SSTL Report'!GL679,Reference!CR22), IF('RBTL Report'!$GA$512, MIN('AOC SSTL Report'!GK679,'AOC SSTL Report'!GL679,Reference!CR22)*10,(MIN('AOC SSTL Report'!GK679,'AOC SSTL Report'!GL679,Reference!CR22))))),IF('RBTL Report'!$F$73<>"", IF('RBTL Report'!$GA$510, MIN('AOC SSTL Report'!GK679,'AOC SSTL Report'!GL679,Reference!CR22), IF('RBTL Report'!$GA$511,MIN('AOC SSTL Report'!GK679,'AOC SSTL Report'!GL679,Reference!CR22), IF('RBTL Report'!$GA$512, MIN('AOC SSTL Report'!GK679,'AOC SSTL Report'!GL679,Reference!CR22)*10,(MIN('AOC SSTL Report'!GK679,'AOC SSTL Report'!GL679,Reference!CR22))))))) -> 4.6681
FY680: Naphthalene | GA680: 0.002811876813 | GB680: 0.002811876813 | GC680: 0.0001204038624 | GD680: 0.0007735842654 | GE680: 0.0001862970521 | GF680: 2.877567391e-05 | GG680: N/A | GH680: 8.69047619 | GI680: N/A | GJ680: 46648.4901 | GK680: N/A | GL680: 302007.7382 | GN680: =MIN(GI680,GJ680,Reference!CL23/1000)*1000 -> 31000 | GO680: =IF(lateral_benzene_soil<30,IF('RBTL Report'!$J$93<>"",MIN('AOC SSTL Report'!GK680,'AOC SSTL Report'!GL680,Reference!CR23),IF('RBTL Report'!$GA$511,MIN('AOC SSTL Report'!GK680,'AOC SSTL Report'!GL680,Reference!CR23), IF('RBTL Report'!$GA$512, MIN('AOC SSTL Report'!GK680,'AOC SSTL Report'!GL680,Reference!CR23)*10,(MIN('AOC SSTL Report'!GK680,'AOC SSTL Report'!GL680,Reference!CR23))))),IF('RBTL Report'!$F$73<>"", IF('RBTL Report'!$GA$510, MIN('AOC SSTL Report'!GK680,'AOC SSTL Report'!GL680,Reference!CR23), IF('RBTL Report'!$GA$511,MIN('AOC SSTL Report'!GK680,'AOC SSTL Report'!GL680,Reference!CR23), IF('RBTL Report'!$GA$512, MIN('AOC SSTL Report'!GK680,'AOC SSTL Report'!GL680,Reference!CR23)*10,(MIN('AOC SSTL Report'!GK680,'AOC SSTL Report'!GL680,Reference!CR23))))))) -> 402.83
GN693: Final SSCL gw | GO693: =IF('RBTL Report'!$GC$491<30,'RBTL Report'!K$93&" Feet Soil SSCL", 'RBTL Report'!K$69&" Feet Soil SSCL") -> Feet Soil SSCL
GF694: Ls6
FY695: Benzene | GA695: =GA670 -> 0.004342680805 | GB695: =GB670 -> 0.004342680805 | GC695: =GC670 -> 2.605421956e-05 | GD695: =GD670 -> 0.0002115408327 | GE695: =GE670 -> 0.0009482337241 | GF695: 0.008135022344 | GG695: =GG670 -> 0.0103988604 | GH695: =GH670 -> 86.9047619 | GI695: =GI670 -> 10.96655828 | GJ695: =GJ670 -> 91649.09421 | GK695: 1.278282955 | GL695: 10682.79326 | GN695: =MIN(GI695,GJ695,Reference!CL13/1000)*1000 -> 10966.55828 | GO695: =IF(lateral_benzene_soil<30,IF('RBTL Report'!$K$93<>"",MIN('AOC SSTL Report'!GK695,'AOC SSTL Report'!GL695,Reference!CR13),IF('RBTL Report'!$GA$511,MIN('AOC SSTL Report'!GK695,'AOC SSTL Report'!GL695,Reference!CR13), IF('RBTL Report'!$GA$512, MIN('AOC SSTL Report'!GK695,'AOC SSTL Report'!GL695,Reference!CR13)*10,(MIN('AOC SSTL Report'!GK695,'AOC SSTL Report'!GL695,Reference!CR13))))),IF('RBTL Report'!$F$73<>"", IF('RBTL Report'!$GA$510, MIN('AOC SSTL Report'!GK695,'AOC SSTL Report'!GL695,Reference!CR13), IF('RBTL Report'!$GA$511,MIN('AOC SSTL Report'!GK695,'AOC SSTL Report'!GL695,Reference!CR13), IF('RBTL Report'!$GA$512, MIN('AOC SSTL Report'!GK695,'AOC SSTL Report'!GL695,Reference!CR13)*10,(MIN('AOC SSTL Report'!GK695,'AOC SSTL Report'!GL695,Reference!CR13))))))) -> 1.278282955
FY696: Toluene | GA696: =GA671 -> 0.003642107827 | GB696: 0.003642107827 | GC696: 2.041663006e-05 | GD696: 0.0001662367406 | GE696: 0.0008802001398 | GF696: 0.003207429509 | GG696: =GG671 -> N/A | GH696: 14484.12698 | GI696: N/A | GJ696: 16455492.71 | GK696: N/A | GL696: 4515805.24 | GN696: =MIN(GI696,GJ696,Reference!CL14/1000)*1000 -> 530000 | GO696: =IF(lateral_benzene_soil<30,IF('RBTL Report'!$K$93<>"",MIN('AOC SSTL Report'!GK696,'AOC SSTL Report'!GL696,Reference!CR14),IF('RBTL Report'!$GA$511,MIN('AOC SSTL Report'!GK696,'AOC SSTL Report'!GL696,Reference!CR14), IF('RBTL Report'!$GA$512, MIN('AOC SSTL Report'!GK696,'AOC SSTL Report'!GL696,Reference!CR14)*10,(MIN('AOC SSTL Report'!GK696,'AOC SSTL Report'!GL696,Reference!CR14))))),IF('RBTL Report'!$F$73<>"", IF('RBTL Report'!$GA$510, MIN('AOC SSTL Report'!GK696,'AOC SSTL Report'!GL696,Reference!CR14), IF('RBTL Report'!$GA$511,MIN('AOC SSTL Report'!GK696,'AOC SSTL Report'!GL696,Reference!CR14), IF('RBTL Report'!$GA$512, MIN('AOC SSTL Report'!GK696,'AOC SSTL Report'!GL696,Reference!CR14)*10,(MIN('AOC SSTL Report'!GK696,'AOC SSTL Report'!GL696,Reference!CR14))))))) -> 793.66
FY697: Ethylbenzene | GA697: 0.003175097744 | GB697: 0.003175097744 | GC697: 1.70519806e-05 | GD697: 0.0001390759415 | GE697: 0.0008760293261 | GF697: 0.001747266496 | GG697: 0.03244444444 | GH697: 2896.825397 | GI697: 37.03579718 | GJ697: 3306767.605 | GK697: 18.56868687 | GL697: 1657918.47 | GN697: =MIN(GI697,GJ697,Reference!CL15/1000)*1000 -> 37035.79718 | GO697: =IF(lateral_benzene_soil<30,IF('RBTL Report'!$K$93<>"",MIN('AOC SSTL Report'!GK697,'AOC SSTL Report'!GL697,Reference!CR15),IF('RBTL Report'!$GA$511,MIN('AOC SSTL Report'!GK697,'AOC SSTL Report'!GL697,Reference!CR15), IF('RBTL Report'!$GA$512, MIN('AOC SSTL Report'!GK697,'AOC SSTL Report'!GL697,Reference!CR15)*10,(MIN('AOC SSTL Report'!GK697,'AOC SSTL Report'!GL697,Reference!CR15))))),IF('RBTL Report'!$F$73<>"", IF('RBTL Report'!$GA$510, MIN('AOC SSTL Report'!GK697,'AOC SSTL Report'!GL697,Reference!CR15), IF('RBTL Report'!$GA$511,MIN('AOC SSTL Report'!GK697,'AOC SSTL Report'!GL697,Reference!CR15), IF('RBTL Report'!$GA$512, MIN('AOC SSTL Report'!GK697,'AOC SSTL Report'!GL697,Reference!CR15)*10,(MIN('AOC SSTL Report'!GK697,'AOC SSTL Report'!GL697,Reference!CR15))))))) -> 18.56868687
FY698: Xylenes (Total) | GA698: 0.003221895794 | GB698: 0.003221895794 | GC698: 1.837916013e-05 | GD698: 0.0001495411563 | GE698: 0.0007905624458 | GF698: 0.001763126523 | GG698: N/A | GH698: 289.6825397 | GI698: N/A | GJ698: 366425.8797 | GK698: N/A | GL698: 164300.4832 | GN698: =MIN(GI698,GJ698,Reference!CL16/1000)*1000 -> 110000 | GO698: =IF(lateral_benzene_soil<30,IF('RBTL Report'!$K$93<>"",MIN('AOC SSTL Report'!GK698,'AOC SSTL Report'!GL698,Reference!CR16),IF('RBTL Report'!$GA$511,MIN('AOC SSTL Report'!GK698,'AOC SSTL Report'!GL698,Reference!CR16), IF('RBTL Report'!$GA$512, MIN('AOC SSTL Report'!GK698,'AOC SSTL Report'!GL698,Reference!CR16)*10,(MIN('AOC SSTL Report'!GK698,'AOC SSTL Report'!GL698,Reference!CR16))))),IF('RBTL Report'!$F$73<>"", IF('RBTL Report'!$GA$510, MIN('AOC SSTL Report'!GK698,'AOC SSTL Report'!GL698,Reference!CR16), IF('RBTL Report'!$GA$511,MIN('AOC SSTL Report'!GK698,'AOC SSTL Report'!GL698,Reference!CR16), IF('RBTL Report'!$GA$512, MIN('AOC SSTL Report'!GK698,'AOC SSTL Report'!GL698,Reference!CR16)*10,(MIN('AOC SSTL Report'!GK698,'AOC SSTL Report'!GL698,Reference!CR16))))))) -> 502.73
FY699: MTBE | GA699: 0.003509607201 | GB699: 0.003509607201 | GC699: 9.702109734e-05 | GD699: 0.0006820100972 | GE699: 0.0002465760452 | GF699: 0.002759929556 | GG699: 0.311965812 | GH699: 8690.47619 | GI699: 1265.191076 | GJ699: 35244608.55 | GK699: 113.0339763 | GL699: 3148803.624 | GN699: =MIN(GI699,GJ699,Reference!CL17/1000)*1000 -> 1265191.076 | GO699: =IF(lateral_benzene_soil<30,IF('RBTL Report'!$K$93<>"",MIN('AOC SSTL Report'!GK699,'AOC SSTL Report'!GL699,Reference!CR17),IF('RBTL Report'!$GA$511,MIN('AOC SSTL Report'!GK699,'AOC SSTL Report'!GL699,Reference!CR17), IF('RBTL Report'!$GA$512, MIN('AOC SSTL Report'!GK699,'AOC SSTL Report'!GL699,Reference!CR17)*10,(MIN('AOC SSTL Report'!GK699,'AOC SSTL Report'!GL699,Reference!CR17))))),IF('RBTL Report'!$F$73<>"", IF('RBTL Report'!$GA$510, MIN('AOC SSTL Report'!GK699,'AOC SSTL Report'!GL699,Reference!CR17), IF('RBTL Report'!$GA$511,MIN('AOC SSTL Report'!GK699,'AOC SSTL Report'!GL699,Reference!CR17), IF('RBTL Report'!$GA$512, MIN('AOC SSTL Report'!GK699,'AOC SSTL Report'!GL699,Reference!CR17)*10,(MIN('AOC SSTL Report'!GK699,'AOC SSTL Report'!GL699,Reference!CR17))))))) -> 113.0339763
FY700: EDB | GA700: 0.002016144546 | GB700: 0.002016144546 | GC700: 9.615311947e-05 | GD700: 0.0006011759537 | GE700: 0.000207326316 | GF700: 0.0008195646214 | GG700: 0.0001351851852 | GH700: 26.07142857 | GI700: 0.6520406468 | GJ700: 125750.6962 | GK700: 0.1649475608 | GL700: 31811.31529 | GN700: =MIN(GI700,GJ700,Reference!CL18/1000)*1000 -> 652.0406468 | GO700: =IF(lateral_benzene_soil<30,IF('RBTL Report'!$K$93<>"",MIN('AOC SSTL Report'!GK700,'AOC SSTL Report'!GL700,Reference!CR18),IF('RBTL Report'!$GA$511,MIN('AOC SSTL Report'!GK700,'AOC SSTL Report'!GL700,Reference!CR18), IF('RBTL Report'!$GA$512, MIN('AOC SSTL Report'!GK700,'AOC SSTL Report'!GL700,Reference!CR18)*10,(MIN('AOC SSTL Report'!GK700,'AOC SSTL Report'!GL700,Reference!CR18))))),IF('RBTL Report'!$F$73<>"", IF('RBTL Report'!$GA$510, MIN('AOC SSTL Report'!GK700,'AOC SSTL Report'!GL700,Reference!CR18), IF('RBTL Report'!$GA$511,MIN('AOC SSTL Report'!GK700,'AOC SSTL Report'!GL700,Reference!CR18), IF('RBTL Report'!$GA$512, MIN('AOC SSTL Report'!GK700,'AOC SSTL Report'!GL700,Reference!CR18)*10,(MIN('AOC SSTL Report'!GK700,'AOC SSTL Report'!GL700,Reference!CR18))))))) -> 0.1649475608
FY701: EDC | GA701: 0.004015316192 | GB701: 0.004015316192 | GC701: 1.902773907e-05 | GD701: 0.0001558988167 | GE701: 0.0001488078416 | GF701: 0.002927482281 | GG701: 0.00311965812 | GH701: 20.27777778 | GI701: 20.96433955 | GJ701: 136268.2071 | GK701: 1.065645432 | GL701: 6926.695308 | GN701: =MIN(GI701,GJ701,Reference!CL19/1000)*1000 -> 20964.33955 | GO701: =IF(lateral_benzene_soil<30,IF('RBTL Report'!$K$93<>"",MIN('AOC SSTL Report'!GK701,'AOC SSTL Report'!GL701,Reference!CR19),IF('RBTL Report'!$GA$511,MIN('AOC SSTL Report'!GK701,'AOC SSTL Report'!GL701,Reference!CR19), IF('RBTL Report'!$GA$512, MIN('AOC SSTL Report'!GK701,'AOC SSTL Report'!GL701,Reference!CR19)*10,(MIN('AOC SSTL Report'!GK701,'AOC SSTL Report'!GL701,Reference!CR19))))),IF('RBTL Report'!$F$73<>"", IF('RBTL Report'!$GA$510, MIN('AOC SSTL Report'!GK701,'AOC SSTL Report'!GL701,Reference!CR19), IF('RBTL Report'!$GA$511,MIN('AOC SSTL Report'!GK701,'AOC SSTL Report'!GL701,Reference!CR19), IF('RBTL Report'!$GA$512, MIN('AOC SSTL Report'!GK701,'AOC SSTL Report'!GL701,Reference!CR19)*10,(MIN('AOC SSTL Report'!GK701,'AOC SSTL Report'!GL701,Reference!CR19))))))) -> 1.065645432
FY702: 1- Methylnaphthalene | GA702: 0.001993528819 | GB702: 0.001993528819 | GC702: 0.000294062359 | GD702: 0.001185768673 | GE702: 6.993703679e-05 | GF702: 2.072596285e-06 | GG702: N/A | GH702: N/A | GI702: N/A | GJ702: N/A | GK702: N/A | GL702: N/A | GN702: =MIN(GI702,GJ702,Reference!CL20/1000)*1000 -> 26000 | GO702: =IF(lateral_benzene_soil<30,IF('RBTL Report'!$K$93<>"",MIN('AOC SSTL Report'!GK702,'AOC SSTL Report'!GL702,Reference!CR20),IF('RBTL Report'!$GA$511,MIN('AOC SSTL Report'!GK702,'AOC SSTL Report'!GL702,Reference!CR20), IF('RBTL Report'!$GA$512, MIN('AOC SSTL Report'!GK702,'AOC SSTL Report'!GL702,Reference!CR20)*10,(MIN('AOC SSTL Report'!GK702,'AOC SSTL Report'!GL702,Reference!CR20))))),IF('RBTL Report'!$F$73<>"", IF('RBTL Report'!$GA$510, MIN('AOC SSTL Report'!GK702,'AOC SSTL Report'!GL702,Reference!CR20), IF('RBTL Report'!$GA$511,MIN('AOC SSTL Report'!GK702,'AOC SSTL Report'!GL702,Reference!CR20), IF('RBTL Report'!$GA$512, MIN('AOC SSTL Report'!GK702,'AOC SSTL Report'!GL702,Reference!CR20)*10,(MIN('AOC SSTL Report'!GK702,'AOC SSTL Report'!GL702,Reference!CR20))))))) -> 208.13
FY703: 1,2,4-TMB | GA703: 0.001993528819 | GB703: 0.001993528819 | GC703: 0.000294062359 | GD703: 0.001185768673 | GE703: 6.993703679e-05 | GF703: 2.072596285e-06 | GG703: N/A | GH703: N/A | GI703: N/A | GJ703: N/A | GK703: N/A | GL703: N/A | GN703: =MIN(GI703,GJ703,Reference!CL21/1000)*1000 -> 25000 | GO703: =IF(lateral_benzene_soil<30,IF('RBTL Report'!$K$93<>"",MIN('AOC SSTL Report'!GK703,'AOC SSTL Report'!GL703,Reference!CR21),IF('RBTL Report'!$GA$511,MIN('AOC SSTL Report'!GK703,'AOC SSTL Report'!GL703,Reference!CR21), IF('RBTL Report'!$GA$512, MIN('AOC SSTL Report'!GK703,'AOC SSTL Report'!GL703,Reference!CR21)*10,(MIN('AOC SSTL Report'!GK703,'AOC SSTL Report'!GL703,Reference!CR21))))),IF('RBTL Report'!$F$73<>"", IF('RBTL Report'!$GA$510, MIN('AOC SSTL Report'!GK703,'AOC SSTL Report'!GL703,Reference!CR21), IF('RBTL Report'!$GA$511,MIN('AOC SSTL Report'!GK703,'AOC SSTL Report'!GL703,Reference!CR21), IF('RBTL Report'!$GA$512, MIN('AOC SSTL Report'!GK703,'AOC SSTL Report'!GL703,Reference!CR21)*10,(MIN('AOC SSTL Report'!GK703,'AOC SSTL Report'!GL703,Reference!CR21))))))) -> 208
FY704: Benzo(a)pyrene TEQ | GA704: 0.009441807993 | GB704: 0.009441807993 | GC704: 0.07257061779 | GD704: 0.01052054148 | GE704: 1.236913383e-06 | GF704: 3.702836217e-10 | GG704: 0.0001351851852 | GH704: 0.005793650794 | GI704: 109.292362 | GJ704: 4683.958371 | GK704: 365085.5109 | GL704: 15646521.89 | GN704: =MIN(GI704,GJ704,Reference!CL22/1000)*1000 -> 1.6 | GO704: =IF(lateral_benzene_soil<30,IF('RBTL Report'!$K$93<>"",MIN('AOC SSTL Report'!GK704,'AOC SSTL Report'!GL704,Reference!CR22),IF('RBTL Report'!$GA$511,MIN('AOC SSTL Report'!GK704,'AOC SSTL Report'!GL704,Reference!CR22), IF('RBTL Report'!$GA$512, MIN('AOC SSTL Report'!GK704,'AOC SSTL Report'!GL704,Reference!CR22)*10,(MIN('AOC SSTL Report'!GK704,'AOC SSTL Report'!GL704,Reference!CR22))))),IF('RBTL Report'!$F$73<>"", IF('RBTL Report'!$GA$510, MIN('AOC SSTL Report'!GK704,'AOC SSTL Report'!GL704,Reference!CR22), IF('RBTL Report'!$GA$511,MIN('AOC SSTL Report'!GK704,'AOC SSTL Report'!GL704,Reference!CR22), IF('RBTL Report'!$GA$512, MIN('AOC SSTL Report'!GK704,'AOC SSTL Report'!GL704,Reference!CR22)*10,(MIN('AOC SSTL Report'!GK704,'AOC SSTL Report'!GL704,Reference!CR22))))))) -> 4.6681
FY705: Naphthalene | GA705: 0.002811876813 | GB705: 0.002811876813 | GC705: 0.0001204038624 | GD705: 0.0007735842654 | GE705: 0.0001862970521 | GF705: 3.12054798e-05 | GG705: N/A | GH705: 8.69047619 | GI705: N/A | GJ705: 46648.4901 | GK705: N/A | GL705: 278491.9907 | GN705: =MIN(GI705,GJ705,Reference!CL23/1000)*1000 -> 31000 | GO705: =IF(lateral_benzene_soil<30,IF('RBTL Report'!$K$93<>"",MIN('AOC SSTL Report'!GK705,'AOC SSTL Report'!GL705,Reference!CR23),IF('RBTL Report'!$GA$511,MIN('AOC SSTL Report'!GK705,'AOC SSTL Report'!GL705,Reference!CR23), IF('RBTL Report'!$GA$512, MIN('AOC SSTL Report'!GK705,'AOC SSTL Report'!GL705,Reference!CR23)*10,(MIN('AOC SSTL Report'!GK705,'AOC SSTL Report'!GL705,Reference!CR23))))),IF('RBTL Report'!$F$73<>"", IF('RBTL Report'!$GA$510, MIN('AOC SSTL Report'!GK705,'AOC SSTL Report'!GL705,Reference!CR23), IF('RBTL Report'!$GA$511,MIN('AOC SSTL Report'!GK705,'AOC SSTL Report'!GL705,Reference!CR23), IF('RBTL Report'!$GA$512, MIN('AOC SSTL Report'!GK705,'AOC SSTL Report'!GL705,Reference!CR23)*10,(MIN('AOC SSTL Report'!GK705,'AOC SSTL Report'!GL705,Reference!CR23))))))) -> 402.83
FZ716: This evaluation | GA716: Dsoil | GB716: Dcrack | GC716: Dcap | GD716: Dwater | GE716: VFwesp | GF716: Vfsesp | GG716: RBCL_Car | GH716: RBCL_non | GI716: SSTLgwc | GJ716: SSTLgwn | GK716: SSTLsc | GL716: SSTLsn
FZ717: Ls Values at GA570 | GA717: 0.007527541206 | GB717: 0.007527541206 | GC717: 2.205882513e-05 | GD717: 0.0001032843795 | GE717: 0.006123802237 | GG717: 0.003571037225 | GH717: 31.03741497 | GI717: 0.5831405206 | GJ717: 5068.324182
GN718: Final AOPC Res SSCLgw
GD719: Off-site Residence SSCLs | GM719: ~correct res value
FY720: Benzene | GA720: =GA570 -> 0.004342680805 | GB720: 0.004342680805 | GC720: 2.605421956e-05 | GD720: 0.0002115408327 | GE720: 0.002336704714 | GG720: 0.003571037225 | GH720: 31.03741497 | GI720: 1.528236411 | GJ720: 13282.55761 | GM720: 5.83+02 | GN720: =MIN(GI720,GJ720,Reference!CL13/1000)*1000 -> 1528.236411
FY721: Toluene | GA721: 0.003642107827 | GB721: 0.003642107827 | GC721: 2.041663006e-05 | GD721: 0.0001662367406 | GE721: 0.002169054276 | GG721: N/A | GH721: 5172.902494 | GI721: N/A | GJ721: 2384865.4 | GN721: =MIN(GI721,GJ721,Reference!CL14/1000)*1000 -> 530000
FY722: Ethylbenzene | GA722: 0.003175097744 | GB722: 0.003175097744 | GC722: 1.70519806e-05 | GD722: 0.0001390759415 | GE722: 0.0021587779 | GG722: 0.01114163614 | GH722: 1034.580499 | GI722: 5.161084956 | GJ722: 479243.603 | GN722: =MIN(GI722,GJ722,Reference!CL15/1000)*1000 -> 5161.084956
FY723: Xylenes (Total) | GA723: 0.003221895794 | GB723: 0.003221895794 | GC723: 1.837916013e-05 | GD723: 0.0001495411563 | GE723: 0.001948163389 | GG723: N/A | GH723: 103.4580499 | GI723: N/A | GJ723: 53105.42764 | GN723: =MIN(GI723,GJ723,Reference!CL16/1000)*1000 -> 110000
FY724: MTBE | GA724: 0.003509607201 | GB724: 0.003509607201 | GC724: 9.702109734e-05 | GD724: 0.0006820100972 | GE724: 0.0006076246844 | GG724: 0.1071311167 | GH724: 3103.741497 | GI724: 176.3113308 | GJ724: 5107991.127 | GN724: =MIN(GI724,GJ724,Reference!CL17/1000)*1000 -> 176311.3308
FY725: EDB | GA725: 0.002016144546 | GB725: 0.002016144546 | GC725: 9.615311947e-05 | GD725: 0.0006011759537 | GE725: 0.0005109054477 | GG725: 4.642348392e-05 | GH725: 9.31122449 | GI725: 0.09086511825 | GJ725: 18224.94657 | GN725: =MIN(GI725,GJ725,Reference!CL18/1000)*1000 -> 90.86511825
FY726: EDC | GA726: 0.004015316192 | GB726: 0.004015316192 | GC726: 1.902773907e-05 | GD726: 0.0001558988167 | GE726: 0.0003667033736 | GG726: 0.001071311167 | GH726: 7.242063492 | GI726: 2.921465262 | GJ726: 19749.10517 | GN726: =MIN(GI726,GJ726,Reference!CL19/1000)*1000 -> 2921.465262
FY727: 1- Methylnaphthalene | GA727: 0.001993528819 | GB727: 0.001993528819 | GC727: 0.000294062359 | GD727: 0.001185768673 | GE727: 0.0001723420656 | GG727: N/A | GH727: N/A | GI727: N/A | GJ727: N/A | GN727: =MIN(GI727,GJ727,Reference!CL20/1000)*1000 -> 26000
FY728: 1,2,4-TMB | GA728: 0.001993528819 | GB728: 0.001993528819 | GC728: 0.000294062359 | GD728: 0.001185768673 | GE728: 0.0001723420656 | GG728: N/A | GH728: N/A | GI728: N/A | GJ728: N/A | GN728: =MIN(GI728,GJ728,Reference!CL21/1000)*1000 -> 25000
FY729: Benzo(a)pyrene TEQ | GA729: 0.009441807993 | GB729: 0.009441807993 | GC729: 0.07257061779 | GD729: 0.01052054148 | GE729: 3.047817443e-06 | GG729: 4.642348392e-05 | GH729: 0.002069160998 | GI729: 15.2317141 | GJ729: 678.8992572 | GN729: =MIN(GI729,GJ729,Reference!CL22/1000)*1000 -> 1.6
FY730: Naphthalene | GA730: 0.002811876813 | GB730: 0.002811876813 | GC730: 0.0001204038624 | GD730: 0.0007735842654 | GE730: 0.0004590822067 | GG730: N/A | GH730: 3.103741497 | GI730: N/A | GJ730: 6760.753197 | GN730: =MIN(GI730,GJ730,Reference!CL23/1000)*1000 -> 31000
GA732: Dsoil | GB732: Dcrack | GC732: Dcap | GD732: Dwater | GE732: VFwesp | GG732: RBCL_Car | GH732: RBCL_non | GI732: SSTLgwc | GJ732: SSTLgwn
GA733: 0.007512729645 | GB733: 0.007512729645 | GC733: 2.205882513e-05 | GD733: 0.0001032821758 | GE733: 0.002484287769 | GG733: 0.0103988604 | GH733: 86.9047619 | GI733: 4.185851788 | GJ733: 34981.76137
GG734: should be the same values | GN734: Final AOPC Nonres SSCLgw
GD735: Off-site Nonresidence SSCLs | GM735: ~ correct nonres value
FY736: Benzene | GA736: =GA570 -> 0.004342680805 | GB736: =GB570 -> 0.004342680805 | GC736: =GC570 -> 2.605421956e-05 | GD736: =GD570 -> 0.0002115408327 | GE736: 0.0009482337241 | GG736: 0.0103988604 | GH736: 86.9047619 | GI736: 10.96655828 | GJ736: 91649.09421 | GM736: 4.19+03 | GN736: =MIN(GI736,GJ736,Reference!CL13/1000)*1000 -> 10966.55828
FY737: Toluene | GA737: =GA571 -> 0.003642107827 | GB737: 0.003642107827 | GC737: 2.041663006e-05 | GD737: 0.0001662367406 | GE737: 0.0008802001398 | GG737: N/A | GH737: 14484.12698 | GI737: N/A | GJ737: 16455492.71 | GN737: =MIN(GI737,GJ737,Reference!CL14/1000)*1000 -> 530000
FY738: Ethylbenzene | GA738: 0.003175097744 | GB738: 0.003175097744 | GC738: 1.70519806e-05 | GD738: 0.0001390759415 | GE738: 0.0008760293261 | GG738: 0.03244444444 | GH738: 2896.825397 | GI738: 37.03579718 | GJ738: 3306767.605 | GN738: =MIN(GI738,GJ738,Reference!CL15/1000)*1000 -> 37035.79718
FY739: Xylenes (Total) | GA739: 0.003221895794 | GB739: 0.003221895794 | GC739: 1.837916013e-05 | GD739: 0.0001495411563 | GE739: 0.0007905624458 | GG739: N/A | GH739: 289.6825397 | GI739: N/A | GJ739: 366425.8797 | GN739: =MIN(GI739,GJ739,Reference!CL16/1000)*1000 -> 110000
FY740: MTBE | GA740: 0.003509607201 | GB740: 0.003509607201 | GC740: 9.702109734e-05 | GD740: 0.0006820100972 | GE740: 0.0002465760452 | GG740: 0.311965812 | GH740: 8690.47619 | GI740: 1265.191076 | GJ740: 35244608.55 | GN740: =MIN(GI740,GJ740,Reference!CL17/1000)*1000 -> 1265191.076
FY741: EDB | GA741: 0.002016144546 | GB741: 0.002016144546 | GC741: 9.615311947e-05 | GD741: 0.0006011759537 | GE741: 0.000207326316 | GG741: 0.0001351851852 | GH741: 26.07142857 | GI741: 0.6520406468 | GJ741: 125750.6962 | GN741: =MIN(GI741,GJ741,Reference!CL18/1000)*1000 -> 652.0406468
FY742: EDC | GA742: 0.004015316192 | GB742: 0.004015316192 | GC742: 1.902773907e-05 | GD742: 0.0001558988167 | GE742: 0.0001488078416 | GG742: 0.00311965812 | GH742: 20.27777778 | GI742: 20.96433955 | GJ742: 136268.2071 | GN742: =MIN(GI742,GJ742,Reference!CL19/1000)*1000 -> 20964.33955
FY743: 1- Methylnaphthalene | GA743: 0.001993528819 | GB743: 0.001993528819 | GC743: 0.000294062359 | GD743: 0.001185768673 | GE743: 6.993703679e-05 | GG743: N/A | GH743: N/A | GI743: N/A | GJ743: N/A | GN743: =MIN(GI743,GJ743,Reference!CL20/1000)*1000 -> 26000
FY744: 1,2,4-TMB | GA744: 0.001993528819 | GB744: 0.001993528819 | GC744: 0.000294062359 | GD744: 0.001185768673 | GE744: 6.993703679e-05 | GG744: N/A | GH744: N/A | GI744: N/A | GJ744: N/A | GN744: =MIN(GI744,GJ744,Reference!CL21/1000)*1000 -> 25000
FY745: Benzo(a)pyrene TEQ | GA745: 0.009441807993 | GB745: 0.009441807993 | GC745: 0.07257061779 | GD745: 0.01052054148 | GE745: 1.236913383e-06 | GG745: 0.0001351851852 | GH745: 0.005793650794 | GI745: 109.292362 | GJ745: 4683.958371 | GN745: =MIN(GI745,GJ745,Reference!CL22/1000)*1000 -> 1.6
FY746: Naphthalene | GA746: 0.002811876813 | GB746: 0.002811876813 | GC746: 0.0001204038624 | GD746: 0.0007735842654 | GE746: 0.0001862970521 | GG746: N/A | GH746: 8.69047619 | GI746: N/A | GJ746: 46648.4901 | GN746: =MIN(GI746,GJ746,Reference!CL23/1000)*1000 -> 31000
GE750: Vfwesp | GG750: RBTLc | GH750: RBTLnon
FX751: Ls Values used from GA570 | GA751: 0.007527541206 | GB751: 0.007527541206 | GC751: 2.205882513e-05 | GD751: 0.0001032843795 | GE751: 0.006123802237 | GG751: 0.003571037225 | GH751: 31.03741497 | GI751: 0.5831405206 | GJ751: 5068.324182
GN752: Final Off-site SSCL gw
GD753: Off-site Residence SSCLs - STW | GH753: This table is correct for res values | GM753: ~ correct res value
FY754: Benzene | GA754: =GA570 -> 0.004342680805 | GB754: 0.004342680805 | GC754: 2.605421956e-05 | GD754: 0.0002115408327 | GE754: 0.006123802237 | GG754: 0.003571037225 | GH754: 31.03741497 | GI754: 0.5831405206 | GJ754: 5068.324182 | GM754: 5.83+02 | GN754: =MIN(GI754,GJ754,Reference!CL13)*1000 -> 583.1405206
FY755: Toluene | GA755: 0.003642107827 | GB755: 0.003642107827 | GC755: 2.041663006e-05 | GD755: 0.0001662367406 | GE755: 0.005692318628 | GG755: N/A | GH755: 5172.902494 | GI755: N/A | GJ755: 908751.395 | GN755: =MIN(GI755,GJ755,Reference!CL14)*1000 -> 530000000
FY756: Ethylbenzene | GA756: 0.003175097744 | GB756: 0.003175097744 | GC756: 1.70519806e-05 | GD756: 0.0001390759415 | GE756: 0.00567010881 | GG756: 0.01114163614 | GH756: 1034.580499 | GI756: 1.964977484 | GJ756: 182462.1949 | GN756: =MIN(GI756,GJ756,Reference!CL15)*1000 -> 1964.977484
FY757: Xylenes (Total) | GA757: 0.003221895794 | GB757: 0.003221895794 | GC757: 1.837916013e-05 | GD757: 0.0001495411563 | GE757: 0.005110851446 | GG757: N/A | GH757: 103.4580499 | GI757: N/A | GJ757: 20242.82079 | GN757: =MIN(GI757,GJ757,Reference!CL16)*1000 -> 20242820.79
FY758: MTBE | GA758: 0.003509607201 | GB758: 0.003509607201 | GC758: 9.702109734e-05 | GD758: 0.0006820100972 | GE758: 0.001515074466 | GG758: 0.1071311167 | GH758: 3103.741497 | GI758: 70.71013285 | GJ758: 2048573.563 | GN758: =MIN(GI758,GJ758,Reference!CL17)*1000 -> 70710.13285
FY759: EDB | GA759: 0.002016144546 | GB759: 0.002016144546 | GC759: 9.615311947e-05 | GD759: 0.0006011759537 | GE759: 0.001244156386 | GG759: 4.642348392e-05 | GH759: 9.31122449 | GI759: 0.03731322238 | GJ759: 7483.966317 | GN759: =MIN(GI759,GJ759,Reference!CL18)*1000 -> 37.31322238
FY760: EDC | GA760: 0.004015316192 | GB760: 0.004015316192 | GC760: 1.902773907e-05 | GD760: 0.0001558988167 | GE760: 0.0009653742901 | GG760: 0.001071311167 | GH760: 7.242063492 | GI760: 1.109736585 | GJ760: 7501.819311 | GN760: =MIN(GI760,GJ760,Reference!CL19)*1000 -> 1109.736585
FY761: 1- Methylnaphthalene | GA761: 0.001993528819 | GB761: 0.001993528819 | GC761: 0.000294062359 | GD761: 0.001185768673 | GE761: 0.000400870279 | GG761: N/A | GH761: N/A | GI761: N/A | GJ761: N/A | GN761: =MIN(GI761,GJ761,Reference!CL20)*1000 -> 26000000
FY762: 1,2,4-Trimethylbenzene | GA762: 0.001993528819 | GB762: 0.001993528819 | GC762: 0.000294062359 | GD762: 0.001185768673 | GE762: 0.000400870279 | GG762: N/A | GH762: N/A | GI762: N/A | GJ762: N/A | GN762: =MIN(GI762,GJ762,Reference!CL21)*1000 -> 25000000
FY763: Benzo(a)pyrene TEQ | GA763: 0.009441807993 | GB763: 0.009441807993 | GC763: 0.07257061779 | GD763: 0.01052054148 | GE763: 2.516405968e-06 | GG763: 4.642348392e-05 | GH763: 0.002069160998 | GI763: 18.4483285 | GJ763: 822.2683558 | GN763: =MIN(GI763,GJ763,Reference!CL22)*1000 -> 1600
FY764: Naphthalene | GA764: 0.002811876813 | GB764: 0.002811876813 | GC764: 0.0001204038624 | GD764: 0.0007735842654 | GE764: 0.001123216057 | GG764: N/A | GH764: 3.103741497 | GI764: N/A | GJ764: 2763.263111 | GN764: =MIN(GI764,GJ764,Reference!CL23)*1000 -> 2763263.111
FZ765: slight Deff value differences likley caused by bulk density update
FZ769: From RLC's | GA769: Dsoil | GB769: Dcrack | GC769: Dcap | GD769: Dwater | GE769: VFwesp | GG769: RBCL_Car | GH769: RBCL_non | GI769: SSTLgwc | GJ769: SSTLgwn
FZ770: last evaluations | GA770: 0.007512729645 | GB770: 0.007512729645 | GC770: 2.205882513e-05 | GD770: 0.0001032821758 | GE770: 0.002484287769 | GG770: 0.0103988604 | GH770: 86.9047619 | GI770: 4.185851788 | GJ770: 34981.76137
GN771: Final Off-site res SSCL gw
GD772: Off-site Residence SSCLs - RLC | GG772: ??? | GH772: ??? | GI772: ??? | GM772: ~ res value should be
FY773: Benzene | GA773: 0.007512729645 | GB773: 0.007512729645 | GC773: 2.205882513e-05 | GD773: 0.0001032821758 | GE773: 0.006121898034 | GG773: 0.001326385255 | GH773: 31.03741497 | GI773: 0.216662422 | GJ773: 5069.900674 | GM773: 5.83+02 | GN773: 216.662422
FY774: Toluene | GA774: 0.006300961902 | GB774: 0.006300961902 | GC774: 1.728575562e-05 | GD774: 8.099174674e-05 | GE774: 0.00569064746 | GG774: N/A | GH774: 5172.902494 | GI774: N/A | GJ774: 909018.2673 | GN774: 530000
FY775: Ethylbenzene | GA775: 0.005493126933 | GB775: 0.005493126933 | GC775: 1.443707256e-05 | GD775: 6.767314822e-05 | GE775: 0.005668503958 | GG775: 0.004138321995 | GH775: 1034.580499 | GI775: 0.7300554125 | GJ775: 182513.8531 | GN775: 730.0554125
FY776: Xylenes (Total) | GA776: 0.005573936076 | GB776: 0.005573936076 | GC776: 1.556073012e-05 | GD776: 7.289618234e-05 | GE776: 0.005109328554 | GG776: N/A | GH776: 103.4580499 | GI776: N/A | GJ776: 20248.85439 | GN776: 110000
FY777: MTBE | GA777: 0.006060620552 | GB777: 0.006060620552 | GC777: 8.214298704e-05 | GD777: 0.0003700925494 | GE777: 0.001513692078 | GG777: 0.03979155765 | GH777: 3103.741497 | GI777: 26.28774915 | GJ777: 2050444.434 | GN777: 26287.74915
FY778: EDB | GA778: 0.003475804897 | GB778: 0.003475804897 | GC778: 8.14081129e-05 | GD778: 0.0003543555666 | GE778: 0.001242691602 | GG778: 1.724300831e-05 | GH778: 9.31122449 | GI778: 0.01387553298 | GJ778: 7492.787811 | GN778: 13.87553298
FY779: EDC | GA779: 0.006947124246 | GB779: 0.006947124246 | GC779: 1.610984999e-05 | GD779: 7.560066684e-05 | GE779: 0.0009651290494 | GG779: 0.0003979155765 | GH779: 7.242063492 | GI779: 0.4122926118 | GJ779: 7503.725534 | GN779: 412.2926118
FY780: 1- Methylnaphthalene | GA780: 0.003408230738 | GB780: 0.003408230738 | GC780: 0.0002489681235 | GD780: 0.0009259488643 | GE780: 0.0004002250628 | GG780: N/A | GH780: N/A | GI780: N/A | GJ780: N/A | GN780: 26000
FY781: 1,2,4-Trimethylbenzene | GA781: 0.003408230738 | GB781: 0.003408230738 | GC781: 0.0002489681235 | GD781: 0.0009259488643 | GE781: 0.0004002250628 | GG781: N/A | GH781: N/A | GI781: N/A | GJ781: N/A | GN781: 25000
FY782: Benzo(a)pyrene TEQ | GA782: 0.005917328225 | GB782: 0.005917328225 | GC782: 0.06144196963 | GD782: 0.007313615848 | GE782: 2.516424397e-06 | GG782: 1.724300831e-05 | GH782: 0.002069160998 | GI782: 6.852186116 | GJ782: 822.2623339 | GN782: 1.6
FY783: Naphthalene | GA783: 0.004849604041 | GB783: 0.004849604041 | GC783: 0.0001019400231 | GD783: 0.0004474157373 | GE783: 0.001121951229 | GG783: N/A | GH783: 3.103741497 | GI783: N/A | GJ783: 2766.378268 | GN783: 31000
GA785: Dsoil | GB785: Dcrack | GC785: Dcap | GD785: Dwater | GE785: VFwesp | GG785: RBCL_Car | GH785: RBCL_non | GI785: SSTLgwc | GJ785: SSTLgwn
... 14 more rows

Sheet AOPC SSTL Report
A4: Area of Potential Concern (AOPC) Site-specific Threshold Level (SSTL) Report
B6: 1. Domenico Equation Parameters:
C8: A. Enter the soil and GW parameter values and Data Source reference information.
D9: Table 1A: Domenico Source Area Soil and GW Parameters | J9: Select checkbox to populate data source entries if references below, are the same in the RTL Report:
D10: Symbol | E10: Definition | H10: Units | I10: Value | J10: Data Source | M10: Page # or Fig. #†
J11: Date | K11: Report Name
D12: i | E12: Hydraulic Gradient | H12: Unitless
D13: Icover | E13: Percent (≤ 95) of Soil COC Plume Covered by Impermeable Barrier | H13: Percent
D14: Sw | E14: GW Source Width Perpendicular to GW Flow Direction | H14: Feet
D15: W | E15: Soil Source Width Parallel to GW Flow Direction | H15: Feet
C16: B. | D16: Domenico Distance Parameter - AOC GW Source Area MW Distance to AOPC Receptor:
D17: Table 1B: Domenico AOC GW Source – Maximum Concentration MW (MWCmax) ID #: | I17: =IF(Reference!E158<>"", Reference!E158, "") -> 
C18: C. Domenico Distance Parameter values from the following: . AOC, GW Petroleum Source (MWCmax = MW nearest petroleum release representing max COC concentrations); and, . AOPC GW Secondary Petroleum Source (MWNR = MW nearest receptor with detectable COCs). . NOTE: please read "Help 1B & 1C" above regarding white, data entry cells and gray, nondata entry cells located in Tables 1C, 1D and 2, below.
D20: Table 1C: Domenico Distances from GW Source Areas to Receptors | G20: AOC GW Petrol. Srce: Max. Conc. MW (MWCmax) | I20: AOPC GW Secondary Source: MW Nearest Receptor w/ COCs (MWNR) | L20: AOPC GW SW at applicable MWNR
D21: 1. Applicable Receptors | G21: 2. Distance to Receptor | I21: 3a. Distance to Receptor | K21: 3b. ID # | L21: 4. (SW) at (MWNR)
D22: Drinking Water Well (dww) | L22: =IF('AOPC SSTL Report'!FW539<>"", 'AOPC SSTL Report'!FW539, "") ->  | M22: Sw (dww)
D23: Public Water Supply Withdrawal Point (wswp) | L23: =IF('AOPC SSTL Report'!FX539<>"", 'AOPC SSTL Report'!FX539, "") ->  | M23: Sw (wswp)
D24: Perennial Water Body (pwb) (perennial stream, lake, etc.) | L24: =IF('AOPC SSTL Report'!FY539<>"", 'AOPC SSTL Report'!FY539, "") ->  | M24: Sw (pwb)
D25: AOPC Residence (res) | I25: =IF(AND('RBTL Report'!H56<>"",'RBTL Report'!H56<>"NA",'RBTL Report'!H56<>"N/A",'RBTL Report'!H56<>"na",'RBTL Report'!H56<>"n/a"), 'RBTL Report'!H56, "") ->  | K25: =IF(AND('RBTL Report'!I56<>"",'RBTL Report'!I56<>"NA",'RBTL Report'!I56<>"N/A",'RBTL Report'!I56<>"na",'RBTL Report'!I56<>"n/a"), 'RBTL Report'!I56, "") ->  | L25: =IF('AOPC SSTL Report'!FZ539<>"", 'AOPC SSTL Report'!FZ539, "") ->  | M25: Sw (res)
D26: AOPC Nonresidence (nres) | I26: =IF(AND('RBTL Report'!H61<>"",'RBTL Report'!H61<>"NA",'RBTL Report'!H61<>"N/A",'RBTL Report'!H61<>"na",'RBTL Report'!H61<>"n/a"), 'RBTL Report'!H61, "") ->  | K26: =IF(AND('RBTL Report'!I61<>"",'RBTL Report'!I61<>"NA",'RBTL Report'!I61<>"N/A",'RBTL Report'!I61<>"na",'RBTL Report'!I61<>"n/a"), 'RBTL Report'!I61, "") ->  | L26: =IF('AOPC SSTL Report'!GA539<>"", 'AOPC SSTL Report'!GA539, "") ->  | M26: Sw (nres)
C31: D. In Table 1D. below, if a MW ID # is listed for the Residence (res) &/or Nonresidence (nres), then list the depth to
D32: GW or each listed MW and whether each MW has free product (FP) and/or a FP condition (FPc):
D34: Table 1D: Domenico Depth to GW, FP and/or FPc Parameter | J34: Depth to GW (feet) | K34: MW ID # | L34: Is FP present? (Y/N/NA) | M34: Is FPc present? (Y/N/NA)
D35: Lgwres | E35: Depth to GW, FP &/or FPc at MW nearest AOPC residence: | K35: =IF(K25<>"", K25, "") -> 
D36: Lgwnres | E36: Depth to GW, FP& /or FPc at MW nearest AOPC nonresidence: | K36: =IF(K26<>"", K26, "") -> 
D37: *FPc = Free Product Condition where GW benzene ≥ 15,000 µg/L
C38: E. Enter the Data Source Information for the parameter(s) in 1B through 1D, above:
D40: Table 1E: Data Source for Distance from MWCmax & MWNR to AOPC Receptors | I40: Table 1F: Data Source for Distance at Sw for Each Applicable MWNR
D41: Report Name | H41: Date | I41: Report Name | M41: Date
D43: Symbol | F43: Figure Name | I43: Symbol | K43: Figure Name
K44: Groundwater Quality
D45: MWCmax | I45: Applicable SW at MWNR
D46: Symbol | F46: Figure Name | I46: Symbol | K46: Table Name
D47: If applicable, MWNR | I47: Lgwres &/or Lgwnres | K47: Groundwater Elevations
B50: 2. Groundwater Analytical Results Table:
D52: Enter the sample date and analytical data for any MW ID # listed below that does not contain this data.
D53: (Note: Receptor columns with blank MW ID # cells are not applicable to the evaluation and will remain empty.)
D55: Table 2: Groundwater Analytical Results from Nearest Receptor MW
D56: Applicable Receptors | F56: dww | G56: wswp | H56: pwb | I56: res | J56: nres
D57: MW ID # | F57: =IF(K22<>"", K22, "") ->  | G57: =IF(K23<>"", K23, "") ->  | H57: =IF(K24<>"", K24, "") ->  | I57: =IF(K25<>"", K25, "") ->  | J57: =IF(K26<>"", K26, "") -> 
D58: Sample Date
D59: COCs | F59: µg/L | G59: µg/L | H59: µg/L | I59: µg/L | J59: µg/L
GV486: Ricky, the first row of tables below are now formatted like other tables in the workbook. I am shooting for wider tables, but if we have to scale back we can. There are now 3 sets of tables and Non-res has been added to all three for VI. First Set: AOPC receptors using AOC Max Concentration MW using Domenico as originally programmed; Second set: AOPC receptors using nearest MW with concentrations usin Domenico; Third set, AOPC resident and non-resident <30 feet from nearest MW using VI equation instead of Domenico. I figure the VI result can still be plugged into the table as designed and the comparison completed. Let me know what your think
GB491: =IF('AOPC SSTL Report'!I12<>"",IF(K<>"",(K*'AOPC SSTL Report'!I12)/neff,IF('AOPC SSTL Report'!GK503<>"", (K*'AOPC SSTL Report'!I12)/neff,IF(GK504<>"",(K*'AOPC SSTL Report'!I12)/neff,"")))) -> FALSE | GC491: Backup u formula in GB505
GB492: =IF(I12<>"",IF(K<>"",(K*I12),"")) -> FALSE | GC492: Backup Ugw formula in GB500
GA497: cell reference same as 3-27-2017 Ricky reset version | GF497: ↓↓alphaxnres | GI497: Formulas in GB501:GF501 and GB534:GF534 were updated to include 30.48 to convert feet to cm
GA498: ↓↓↓↓↓↓↓ | GB498: dw i | GC498: swswi i | GD498: swo i | GE498: res i | GF498: nres i
GA499: ↓↓↓↓↓↓↓ | GB499: Ugw i | GC499: Dgw i | GD499: In i | GE499: W i | GF499: ↓↓↓↓Ricky, will need to add alpha values for Xnres
FR500: 10-22-2017: Ricky, the GA500:GA504 references at purple far right column point to the RBTL Report receptors I listed in column FV. Where is Xnres? If Xrc and Xnres share cells, will msgbox in Sheet 3 vb line 103 distinguish? | FX500: max concentration well | FY500: RBTL offsite VI | GA500: 1 | GB500: =IF(I12<>"",IF(K<>"",(K*I12),"")) -> FALSE | GC500: =200 -> 200 | GD500: =IF(I13>0,30*(1-(I13/100)),30) -> 30 | GE500: =IF(I15="",1500,I15*30.48) -> 1500 | GF500: iiiiiii
FY501: RBTL offsite dw | FZ501: alpha x g | GA501: =IF('RBTL Report'!GA508,TRUE) -> FALSE | GB501: =IF(G22>0,0.1*30.48*G22,"") ->  | GC501: =IF(G23>0,0.1*30.48*G23,"") ->  | GD501: =IF(G24>0,0.1*30.48*G24,"") ->  | GE501: =IF(G25>0,0.1*30.48*G25,"") ->  | GF501: =IF(G26>0,0.1*30.48*G26,"") ->  | GK501: K??? | HE501: 4-4-17: Ricky, these peach colored cells for these columns in this table were originally one wide column. I made paired them to be consistent withy our column widths. Hope this is not an issue. | HN501: 4-4-17: Ricky, these peach colored cells for these columns in this table were originally one wide column. I made paired them to be consistent withy our column widths. Hope this is not an issue. | HW501: 4-4-17: Ricky, these peach colored cells for these columns in this table were originally one wide column. I made paired them to be consistent withy our column widths. Hope this is not an issue. | IF501: 4-4-17: Ricky, these peach colored cells for these columns in this table were originally one wide column. I made paired them to be consistent withy our column widths. Hope this is not an issue.
FZ502: alpha y g | GA502: cell empty | GB502: =IF(G22>0,alphaxdw/3,"") ->  | GC502: =IF(G23>0,alphaxswow/3,"") ->  | GD502: =IF(G24>0,alphaxswo/3,"") ->  | GE502: =IF(G25>0,alphaxrc/3,"") ->  | GF502: =IF(G26>0,alphaxnonres/3,"") ->  | GJ502: K??? | GK502: (original cell reference GK503) | GU502: AOPC SSTL | GV502: AOC GW at MWCmax SSTL | GX502: ACL (Approval Required)
FY503: RBTL offsite wswp | FZ503: alpha z g | GA503: =IF('RBTL Report'!GA512,TRUE) -> FALSE | GB503: =IF(G22>0,alphaxdw/20,"") ->  | GC503: =IF(G23>0,alphaxswow/20,"") ->  | GD503: =IF(G24>0,alphaxswo/20,"") ->  | GE503: =IF(G25>0,alphaxrc/20,"") ->  | GF503: =IF(G26>0,alphaxnonres/20,"") ->  | GG503: 12.8 | GH503: 18.82 | GI503: 58.39 | GJ503: 86.4 | GK503: =IF('AOC SSTL Report'!$GA$522,GG503,IF('AOC SSTL Report'!$GB$522,GH503,IF('AOC SSTL Report'!$GC$522,GI503,IF('AOC SSTL Report'!$GD$522,GJ503,IF('AOC SSTL Report'!$GD$522,"",""))))) ->  | GL503: ← K (cm/day)
FY504: RBTL offiste pwb | FZ504: u g | GA504: =IF('RBTL Report'!GA513,TRUE) -> FALSE | GB504: =IF('AOPC SSTL Report'!I12<>"",IF(K<>"",(K*'AOPC SSTL Report'!I12)/neff,IF('AOPC SSTL Report'!GK503<>"", (K*'AOPC SSTL Report'!I12)/neff,IF(GK504<>"",(K*'AOPC SSTL Report'!I12)/neff,"")))) -> FALSE | GC504: where u = K*i/θs(ASTM)(θs=1) DO NOT Use for erf | GG504: 0.06 | GH504: 0.2 | GI504: 0.31 | GJ504: 0.175 | GK504: =IF('AOC SSTL Report'!$GA$522,GG504,IF('AOC SSTL Report'!$GB$522,GH504,IF('AOC SSTL Report'!$GC$522,GI504,IF('AOC SSTL Report'!$GD$522,GJ504,IF('AOC SSTL Report'!$GD$522,"",""))))) ->  | GL504: ← neff
FZ505: Ugw | GB505: =IF(I12<>"",IF(K<>"",(K*I12),"")) -> FALSE | GC505: where u (Ugw) = Vx=K*i/ηe(Fetter Contam Hydrogeo 1993, pg 47) | GH505: nearest | GI505: well | GJ505: nw used
FV506: "u" = specific discharge, is used by domenico AOPC Sheet VB Line , and is listed in GB504, above. This formula is updated from ASTM's current formula, which is u = Ksi/θs, (where Ks is sat. hyd. conduct., i is hyd grad., and θs is sat porosity = 1). The programmed formula is for average linear velocity (Vx). Vx = (K/ηe)(dh/dl) (where ηe is effective porosity and dh/dl is hyd. grad.). Ugw is listed in GB500 and is the Darcy Velocity.The equation at this location is ASTM equation for "u". Domenico will be tested using both equations. 3-14-18 update: The Vx = (K/ηe)(dh/dl) equation will be used and is most representative. | GC506: Vx = Av linear velocity | GF506: 0 | GG506: aopc no | GH506: 0 | GI506: dw no count | GJ506: =COUNTIF(GO544:GR554,">0") -> 0 | GU506: (µg/L) | GV506: (µg/L) | GX506: (µg/L)
GF507: 0 | GG507: aopc res no | GH507: 0 | GI507: res no count | GJ507: =COUNTIF(GZ544:HA554, ">=0") -> 0
GC508: Sd i | GD508: Sw i | GF508: 0 | GG508: aopc nres no | GH508: 0 | GI508: nres no count | GJ508: =COUNTIF(HI544:HJ554, ">=0") -> 0 | GO508: AOPC SSTL Import Tables to Display AOPC SSTL Results | GX508: AOPC SSTL Import Tables to Display AOPC SSTL Results | HG508: AOPC SSTL Import Tables to Display AOPC SSTL Results | HP508: AOPC SSTL Import Tables to Display AOPC SSTL Results | HY508: AOPC SSTL Import Tables to Display AOPC SSTL Results
GA509: G22 g | GB509: =IF(G22<>"", G22*30.48,0) -> 0 | GC509: 200 | GD509: =IF(I14="",1500,I14*30.48) -> 1500 | GH509: 0 | GI509: swow no cnt | GJ509: =COUNTIF(HR544:HS554, ">=0") -> 0 | GV509: ↓ updated | GW509: (original cell reference GU510) changed rlc
GA510: G23 g | GB510: =IF(G23<>"", G23*30.48, 0) -> 0 | GQ510: Evaluation using Maximum Concentration AOC Well: | GV510: =MIN(GV531,HE531,HN531,HW531,IF531,GV555,HE555,HN555,HW555,IF555) -> 0 | GZ510: Evaluation using Maximum Concentration AOC Well: | HI510: Evaluation using Maximum Concentration AOC Well: | HR510: Evaluation using Maximum Concentration AOC Well: | IA510: Evaluation using Maximum Concentration AOC Well:
GA511: G24 g | GB511: =IF(G24<>"", G24*30.48, 0) -> 0 | GQ511: Groundwater Drinking Water Well | GZ511: Vapor Intrusion - AOPC Residence | HI511: Vapor Intrusion - AOPC Non-residence | HR511: Surface Water - Public Water Supply Withdrawal Point | IA511: Surface Water - Perennial Water Body
GA512: G25 g | GB512: =IF(G25<>"", G25*30.48, 0) -> 0 | GD512: ??? RLC to figure out if needed. STW could find no cell reference in code.
GA513: G26 g | GB513: =IF(G26<>"", G26*30.48, 0) -> 0 | GE513: =(0.736*0.001)+(0.001*4.13E-306) -> 0.000736 | GG513: RBTL and Vfwesp and SSTL calculation begin at VB code line 423 AOPC sheet | GS513: Table 3: Drinking Water Well Evaluated Receptor | HB513: Table 3: Residence Evaluated Receptor | HK513: Table 3: Nonresidence Evaluated Receptor | HT513: Table 3: Public Water Supply Withdrawal Point Evaluated Receptor | IC513: Table 3: Perennial Water Body Evaluated Receptor
GG514: First part of Domenico eq. is in AOPC Sheet VB code line 555 ending with named cells for erf (below) | GS514: Ingestion Pathway Modeled from AOC GW at MWCmax Source | HB514: VI Pathway Modeled from AOC GW at MWCmax Source | HK514: VI Pathway Modeled from AOC GW at MWCmax Source | HT514: Ingestion Pathway Modeled from AOC GW at MWCmax Source | IC514: Direct Exposure (Dir. Exp.) Pathway Modeled from AOC GW at MWCmax Source
GB515: =IF(G22<>"",(ERF(Sw/(4*((alphaydw*Xdw)^0.5))))*(ERF(Sd/(4*((alphazdw*Xdw)^0.5)))),"") ->  | GC515: =IF(G23<>"",ERF((Sw)/(4*(alphayswow*Xswow)^0.5))*ERF((Sd)/(4*(alphazswow*Xswow)^0.5)),"") ->  | GD515: =IF(G24<>"",ERF((Sw)/(4*(alphayswo*Xswo)^0.5))*ERF((Sd)/(4*(alphazswo*Xswo)^0.5)),"") ->  | GE515: =IF(G25<>"",ERF((Sw)/(4*(alphayrc*Xrc)^0.5))*ERF((Sd)/(4*(alphazrc*Xrc)^0.5)),"") ->  | GF515: =IF(G26<>"",ERF((Sw)/(4*(alphaynonres*xnres)^0.5))*ERF((Sd)/(4*(alphaznonres*xnres)^0.5)),"") ->  | GG515: ←erf (Sw & Sd) Domenico Calculation (AOC Max COC MW) | GO515: Chemical of Concern | GQ515: Calculated GW Concentration at Receptor | GS515: GW Ingestion RBTL at Receptor | GU515: Below RBTL? | GV515: MWCmax SSTL Protective of Receptor | GX515: Chemical of Concern | GZ515: Calculated GW Concentration at Receptor | HB515: GW VI SSTL at Receptor | HD515: Below SSTL? | HE515: MWCmax SSTL Protective of Receptor | HG515: Chemical of Concern | HI515: Calculated GW Concentration at Receptor | HK515: GW VI SSTL at Receptor | HM515: Below SSTL? | HN515: MWCmax SSTL Protective of Receptor | HP515: Chemical of Concern | HR515: Calculated GW Concentration at Receptor | HT515: GW Ingestion RBTL at Receptor | HV515: Below RBTL? | HW515: MWCmax SSTL Protective of Receptor | HY515: Chemical of Concern | IA515: Calculated GW Concentration at Receptor | IC515: GW Dir. Exp. RBTL at Receptor | IE515: Below RBTL? | IF515: MWCmax SSTL Protective of Receptor
FQ516: Ricky, are these coc lists necessary? | GC516: (Cswi) | GE516: (Crc) | GH516: (Cswi) | GJ516: (Crc)
FQ517: Delete if not needed | GB517: Cdw | GC517: Cswow | GD517: Cswo | GE517: Cres | GF517: Cnres | GG517: Cxdw | GH517: Cxswow | GI517: Cxswo | GJ517: Cxres | GK517: Cxnres
GB518: Cx/Csource | GG518: Cx | GL518: Max Cx | GM518: Min Receptor
FX519: COC | GA519: LFsw | GB519: Cdw | GC519: Cswow | GD519: Cswo | GE519: Crc | GF519: Cnres | GG519: Cxdw | GH519: Cxswow | GI519: Cxswo | GJ519: Cxrc | GK519: Cxnres | GO519: (COC) | GQ519: (µg/L) | GS519: (µg/L) | GU519: (Y/N) | GV519: (µg/L) | GX519: (COC) | GZ519: (µg/L) | HB519: (µg/L) | HD519: (Y/N) | HE519: (µg/L) | HG519: (COC) | HI519: (µg/L) | HK519: (µg/L) | HM519: (Y/N) | HN519: (µg/L) | HP519: (COC) | HR519: (µg/L) | HT519: (µg/L) | HV519: (Y/N) | HW519: (µg/L) | HY519: (COC) | IA519: (µg/L) | IC519: (µg/L) | IE519: (Y/N) | IF519: (µg/L)
FQ520: Benzene | FT520: Benzene | FX520: Benzene | GU520: =IF(GQ520="","",IF(GQ520=0,"Yes",IF(GV520="N/A","N/A",IF(GQ520>GS520,"NO","Yes")))) ->  | HD520: =IF(GZ520="","",IF(GZ520=0,"Yes",IF(HE520="N/A","N/A",IF(GZ520>HB520,"NO","Yes")))) ->  | HM520: =IF(HI520="","",IF(HI520=0,"Yes",IF(HN520="N/A","N/A",IF(HI520>HK520,"NO","Yes")))) ->  | HV520: =IF(HR520="","",IF(HR520=0,"Yes",IF(HW520="N/A","N/A",IF(HR520>HT520,"NO","Yes")))) ->  | IE520: =IF(IA520="","",IF(IA520=0,"Yes",IF(IF520="N/A","N/A",IF(IA520>IC520,"NO","Yes")))) -> 
FQ521: Toluene | FT521: Toluene | FX521: Toluene
FQ522: Ethylbenzene | FT522: Ethylbenzene | FX522: Ethylbenzene
FQ523: Xylenes (Total) | FT523: Xylenes (Total) | FX523: Xylenes (Total)
FQ524: MTBE | FT524: MTBE | FX524: MTBE
FQ525: EDB | FT525: EDB | FX525: EDB
FQ526: EDC | FT526: EDC | FX526: EDC
FQ527: 1-Methylnaphthalene | FT527: 1-Methylnaphthalene | FX527: 1-Methylnaphthalene
FQ528: Trimethylbenzene Ttl | FT528: 2-Mehtylnaphthalene | FX528: 1,2,4-TMB
FQ529: Benzo(a)pyrene TEQ | FT529: Benzo(a)pyrene TEQ | FX529: Benzo(a)pyrene TEQ
FQ530: Naphthalene | FT530: Naphthalene | FX530: Naphthalene
FX531: Lead
FY532: Sd i | FZ532: Sw_nw (Plw) i | GB532: Ugw i | GC532: Dgw i | GD532: In i | GE532: W i
FU533: nearest well (nw) to receptor w/ benzene > 5 ppb | FV533: Xdw | FW533: I22 g | FX533: =IF(I22<>"", I22*30.48,0) -> 0 | FY533: =GC509 -> 200 | FZ533: =GD509 -> 1500 | GA533: =GA500 -> 1 | GB533: =GB500 -> FALSE | GC533: =GC500 -> 200 | GD533: =GD500 -> 30 | GE533: =GE500 -> 1500
FV534: (Xswi) Xswow | FW534: I23 g | FX534: =IF(I23<>"", I23*30.48, 0) -> 0 | FZ534: alpha xnw g | GA534: =GA501 -> FALSE | GB534: =IF(I22>0,0.1*30.48*I22,"") ->  | GC534: =IF(I23>0,0.1*30.48*I23,"") ->  | GD534: =IF(I24>0,0.1*30.48*I24,"") ->  | GE534: =IF(AND(I25>0, ISNUMBER(I25) = TRUE),0.1*30.48*I25,"") ->  | GF534: =IF(AND(I26>0, ISNUMBER(I26) = TRUE),0.1*30.48*I26,"") ->  | GK534: (original cell reference GK503) | GQ534: Evaluation using Nearest Concen. Well to Receptor: | GZ534: Evaluation using Nearest Concen. Well to Receptor: | HI534: Evaluation using Nearest Concen. Well to Receptor: | HR534: Evaluation using Nearest Concen. Well to Receptor: | IA534: Evaluation using Nearest Concen. Well to Receptor:
FV535: Xswo | FW535: I24 g | FX535: =IF(I24<>"", I24*30.48, 0) -> 0 | FZ535: alpha ynw g | GB535: =IF(I22>0,alphaxdwnw/3,"") ->  | GC535: =IF(I23>0,alphaxswownw/3,"") ->  | GD535: =IF(I24>0,alphaxswonw/3,"") ->  | GE535: =IF(AND(I25>0, ISNUMBER(I25) = TRUE),alphaxrcnw/3,"") ->  | GF535: =IF(AND(I26>0, ISNUMBER(I26) = TRUE),alphaxnonresnw/3,"") ->  | GK535: ↓↓↓↓↓↓↓ | GQ535: Groundwater Drinking Water Well | GZ535: Vapor Intrusion - AOPC Residence | HI535: Vapor Intrusion - AOPC Non-residence | HR535: Surface Water - Public Water Supply Withdrawal Point | IA535: Surface Water - Perennial Water Body
FV536: (Xres) Xrc | FW536: I25 g | FX536: =IF(I25<>"", I25*30.48, 0) -> 0 | FZ536: alpha znw g | GA536: =GA503 -> FALSE | GB536: =IF(I22>0,alphaxdwnw/20,"") ->  | GC536: =IF(I23>0,alphaxswownw/20,"") ->  | GD536: =IF(I24>0,alphaxswonw/20,"") ->  | GE536: =IF(AND(I25>0, ISNUMBER(I25) = TRUE),alphaxrcnw/20,"") ->  | GF536: =IF(AND(I26>0, ISNUMBER(I26) = TRUE),alphaxnonresnw/20,"") ->  | GG536: =GG503 -> 12.8 | GH536: 18.82 | GI536: 58.39 | GJ536: 86.4 | GL536: ← K (cm/day)
FV537: Xnres | FW537: I26 g | FX537: =IF(I26<>"", I26*30.48, 0) -> 0 | FZ537: u g | GA537: =GA504 -> FALSE | GB537: =GB504 -> FALSE | GG537: 0.06 | GH537: 0.2 | GI537: 0.31 | GJ537: 0.175 | GL537: ← neff | GS537: Table 3: Drinking Water Well Evaluated Receptor | HB537: Table 3: Residence Evaluated Receptor | HK537: Table 3: Nonresidence Evaluated Receptor | HT537: Table 3: Public Water Supply Withdrawal Point Evaluated Receptor | IC537: Table 3: Perennial Water Body Evaluated Receptor
FQ538: obsolete | FW538: Wpldww↓ | FX538: Wplwswp↓ | FY538: Wplpwb↓ | FZ538: Wplres↓ | GA538: Wplnres↓ | GG538: First part of Domenico eq. is in AOPC Sheet VB code line 423 ending with named cells for erf (below) | GS538: Ingestion Pathway Modeled from GW at MWNR Secondary Source | HB538: VI Pathway Modeled from GW at MWNR Secondary Source | HK538: VI Pathway Modeled from GW at MWNR Secondary Source | HT538: Ingestion Pathway Modeled from GW at MWNR Secondary Source | IC538: Direct Exposure (Dir. Exp.) Pathway Modeled from GW at MWNR Secondary Source
FQ539: =IF($L$22<>"",$L$22*30.48,IF($I$14<>"", $I$14*30.48,1500)) -> 1500 | FR539: =IF($L$23<>"",$L$23*30.48,IF($I$14<>"", $I$14*30.48,1500)) -> 1500 | FS539: =IF($L$24<>"",$L$24*30.48,IF($I$14<>"", $I$14*30.48,1500)) -> 1500 | FT539: =IF($L$25<>"",$L$25*30.48,IF($I$14<>"", $I$14*30.48,1500)) -> 1500 | FU539: =IF($L$26<>"",$L$26*30.48,IF($I$14<>"", $I$14*30.48,1500)) -> 1500 | FW539: =IF(AND('AOPC SSTL Report'!$F$60<>"",Reference!$I$158<>""),('AOPC SSTL Report'!$F$60/(Reference!$I$158)*('AOPC SSTL Report'!$I$14)),"") ->  | FX539: =IF(AND('AOPC SSTL Report'!$G$60<>"",Reference!$I$158<>""),('AOPC SSTL Report'!$G$60/(Reference!$I$158)*('AOPC SSTL Report'!$I$14)),"") ->  | FY539: =IF(AND('AOPC SSTL Report'!$H$60<>"",Reference!$I$158<>""),('AOPC SSTL Report'!$H$60/(Reference!$I$158)*('AOPC SSTL Report'!$I$14)),"") ->  | FZ539: =IF(AND('AOPC SSTL Report'!$I$60<>"",Reference!$I$158<>""),('AOPC SSTL Report'!$I$60/(Reference!$I$158)*('AOPC SSTL Report'!$I$14)),"") ->  | GA539: =IF(AND('AOPC SSTL Report'!$J$60<>"",Reference!$I$158<>""),('AOPC SSTL Report'!$J$60/(Reference!$I$158)*('AOPC SSTL Report'!$I$14)),"") ->  | GB539: =IF(I22<>"",(ERF(Plwdw/(4*((alphaydwnw*Xdwnw)^0.5))))*(ERF(Sd/(4*((alphazdwnw*Xdwnw)^0.5)))),"") ->  | GC539: =IF(I23<>"",ERF((Plwswow)/(4*(alphayswownw*Xswownw)^0.5))*ERF((Sd)/(4*(alphazswownw*Xswownw)^0.5)),"") ->  | GD539: =IF(I24<>"",ERF((Plwswo)/(4*(alphayswonw*Xswonw)^0.5))*ERF((Sd)/(4*(alphazswonw*Xswonw)^0.5)),"") ->  | GE539: =IF(I25<>"",ERF((Plwrc)/(4*(alphayrcnw*Xrcnw)^0.5))*ERF((Sd)/(4*(alphazrcnw*Xrcnw)^0.5)),"") ->  | GF539: =IF(I26<>"",ERF((Plwnres)/(4*(alphaynonresnw*Xnresnw)^0.5))*ERF((Sd)/(4*(alphaznonresnw*Xnresnw)^0.5)),"") ->  | GG539: ←erf (Wpl & Sd) Domenico Calculation (Nearest Receptor MW) | GO539: Chemical of Concern | GQ539: Calculated GW Concentration at Receptor | GS539: GW Ingestion RBTL at Receptor | GU539: Below RBTL? | GV539: MWNR SSTL Protective of Receptor | GX539: Chemical of Concern | GZ539: Calculated GW Concentration at Receptor | HB539: GW VI SSTL at Receptor | HD539: Below SSTL? | HE539: MWNR SSTL Protective of Receptor | HG539: Chemical of Concern | HI539: Calculated GW Concentration at Receptor | HK539: GW VI SSTL at Receptor | HM539: Below SSTL? | HN539: MWNR SSTL Protective of Receptor | HP539: Chemical of Concern | HR539: Calculated GW Concentration at Receptor | HT539: GW Ingestion RBTL at Receptor | HV539: Below RBTL? | HW539: MWNR SSTL Protective of Receptor | HY539: Chemical of Concern | IA539: Calculated GW Concentration at Receptor | IC539: GW Dir. Exp. RBTL at Receptor | IE539: Below RBTL? | IF539: MWNR SSTL Protective of Receptor
FW540: dw↑ | FX540: Plwswi↑ | FY540: swo↑ | FZ540: Plwres↑ | GA540: nres↑ | GC540: (Cswi_nw) | GE540: (Cres_nw) | GH540: (Cxswi_nw) | GJ540: (Cxres_nw)
GB541: Cdw_nw | GC541: Cswow_nw | GD541: Cswo_nw | GE541: Crc_nw | GF541: Cnres_nw | GG541: Cxdw_nw | GH541: Cxswow_nw | GI541: Cxswo_nw | GJ541: Cxrc_nw | GK541: Cxnres_nw
GB542: Cx/Csource nw | GG542: Cx nw | GL542: Max Cx nw | GM542: Min Receptor nw
FX543: COC | GA543: LFswnw | GB543: Cdw_nw | GC543: Cswow_nw | GD543: Cswo_nw | GE543: Crc_nw | GF543: Cnres_nw | GG543: Cxdw_nw | GH543: Cxswow_nw | GI543: Cxswo_nw | GJ543: Cxrc_nw | GK543: Cxnres_nw | GO543: (COC) | GQ543: (µg/L) | GS543: (µg/L) | GU543: (Y/N) | GV543: (µg/L) | GX543: (COC) | GZ543: (µg/L) | HB543: (µg/L) | HD543: (Y/N) | HE543: (µg/L) | HG543: (COC) | HI543: (µg/L) | HK543: (µg/L) | HM543: (Y/N) | HN543: (µg/L) | HP543: (COC) | HR543: (µg/L) | HT543: (µg/L) | HV543: (Y/N) | HW543: (µg/L) | HY543: (COC) | IA543: (µg/L) | IC543: (µg/L) | IE543: (Y/N) | IF543: (µg/L)
FX544: Benzene | GU544: =IF(GQ544="","",IF(GQ544=0,"Yes",IF(GV544="N/A","N/A",IF(GQ544>GS544,"NO","Yes")))) ->  | HD544: =IF(GZ544="","",IF(GZ544=0,"Yes",IF(HE544="N/A","N/A",IF(GZ544>HB544,"NO","Yes")))) ->  | HM544: =IF(HI544="","",IF(HI544=0,"Yes",IF(HN544="N/A","N/A",IF(HI544>HK544,"NO","Yes")))) ->  | HV544: =IF(HR544="","",IF(HR544=0,"Yes",IF(HW544="N/A","N/A",IF(HR544>HT544,"NO","Yes")))) ->  | IE544: =IF(IA544="","",IF(IA544=0,"Yes",IF(IF544="N/A","N/A",IF(IA544>IC544,"NO","Yes")))) -> 
FX545: Toluene
FX546: Ethylbenzene
FX547: Xylenes (Total)
FX548: MTBE
FX549: EDB
FX550: EDC
FX551: 1-Methylnaphthalene
FX552: 1,2,4-TMB
FX553: Benzo(a)pyrene TEQ
FX554: Naphthalene
FX555: Lead
GZ558: Evaluation using Nearest Concen. Well to Receptor: | HI558: Evaluation using Nearest Concen. Well to Receptor:
GZ559: MW is < 30 ft away so VI Equation Used (no Domenico) | HI559: MW is < 30 ft away so VI Equation Used (no Domenico)
GQ560: Proposed Replcement for GU500 | GZ560: Vapor Instrusion - AOPC Residence | HI560: Vapor Instrusion - AOPC Non-residence
HB562: Table 3: Residence Evaluated Receptor | HK562: Table 3: Nonresidence Evaluated Receptor
HB563: VI Pathway Modeled from GW at MWNR Secondary Source < 30 ft from AOPC Receptor | HK563: VI Pathway Modeled from GW at MWNR Secondary Source < 30 ft from AOPC Receptor
GQ564: AOPC SSTL | GR564: Applicable MWAOC SSTL | GT564: ACL (Approval Required) | GX564: Chemical of Concern | GZ564: Calculated GW Concentration at Receptor | HB564: GW VI SSTL at Receptor | HD564: Below SSTL? | HE564: MWNR SSTL Protective of Receptor | HG564: Chemical of Concern | HI564: Calculated GW Concentration at Receptor | HK564: GW VI SSTL at Receptor | HM564: Below SSTL? | HN564: MWNR SSTL Protective of Receptor
GQ568: (µg/L) | GR568: (µg/L) | GT568: (µg/L) | GX568: (COC) | GZ568: (µg/L) | HB568: (µg/L) | HD568: (Y/N) | HE568: (µg/L) | HG568: (COC) | HI568: (µg/L) | HK568: (µg/L) | HM568: (Y/N) | HN568: (µg/L)
GA580: FALSE | GB580: checkbox to populate AOPC SSTL Data Source reference
HB582: 1-10-2018: RLC: Do you remember if we programmed the last AOPC results table for res and nonres vi when nearest mw was <30 away?
GO587: AOPC PROPOSED TABLE HEADER REDESIGN | GX587: AOPC PROPOSED TABLE HEADER REDESIGN | HG587: AOPC PROPOSED TABLE HEADER REDESIGN | HP587: AOPC PROPOSED TABLE HEADER REDESIGN | HY587: AOPC PROPOSED TABLE HEADER REDESIGN
GQ590: Evaluation using Maximum Concentration AOC Well: | GZ590: Evaluation using Maximum Concentration AOC Well: | HI590: Evaluation using Maximum Concentration AOC Well: | HR590: Evaluation using Maximum Concentration AOC Well: | IA590: Evaluation using Maximum Concentration AOC Well:
GQ591: Groundwater Drinking Water Well | GZ591: Vapor Intrusion - AOPC Residence | HI591: Vapor Intrusion - AOPC Non-residence | HR591: Surface Water - Public Water Supply Withdrawal Point | IA591: Surface Water - Perennial Water Body
GO593: RESULTS FOR: | GQ593: Drinking Water Well Receptor from MWAOC | GX593: RESULTS FOR: | GZ593: AOPC RESIDENCE from MWAOC | HG593: RESULTS FOR: | HI593: AOPC NONRESIDENCE from MWAOC | HP593: RESULTS FOR: | HR593: PUBLIC WATER SUPPLY WITHDRAWAL POINT from MWAOC | HY593: RESULTS FOR: | IA593: PERENNIAL WATER BODY from MWAOC
GO595: Chemicals of Concern | GQ595: Concentration at Receptor | GS595: RBTL at Receptor | GU595: Below RBTLs? | GV595: MWCmax SSTL Protective of Receptor | GX595: Chemicals of Concern | GZ595: Concentration at Receptor | HB595: SSTL at Receptor | HD595: Below SSTLs? | HE595: MWNR SSTL Protective of Receptor | HG595: Chemicals of Concern | HI595: Concentration at Receptor | HK595: SSTL at Receptor | HM595: Below SSTLs? | HN595: Applicable MWAOC SSTL | HP595: Chemicals of Concern | HR595: Concentration at Receptor | HT595: RBTL at Receptor | HV595: Below RBTLs? | HW595: Applicable MWAOC SSTL | HY595: Chemicals of Concern | IA595: Concentration at Receptor | IC595: RBTL at Receptor | IE595: Below RBTLs? | IF595: Applicable MWAOC SSTL
GQ599: (µg/L) | GS599: (µg/L) | GU599: (Y/N) | GV599: (µg/L) | GZ599: (µg/L) | HB599: (µg/L) | HD599: (Y/N) | HE599: (µg/L) | HI599: (µg/L) | HK599: (µg/L) | HM599: (Y/N) | HN599: (µg/L) | HR599: (µg/L) | HT599: (µg/L) | HV599: (Y/N) | HW599: (µg/L) | IA599: (µg/L) | IC599: (µg/L) | IE599: (Y/N) | IF599: (µg/L)
GU600: =IF(GQ600="","",IF(GQ600=0,"Yes",IF(GV600="N/A","N/A",IF(GQ600>GS600,"No","Yes")))) ->  | HD600: =IF(GZ600="","",IF(GZ600=0,"Yes",IF(HE600="N/A","N/A",IF(GZ600>HB600,"No","Yes")))) ->  | HM600: =IF(HI600="","",IF(HI600=0,"Yes",IF(HN600="N/A","N/A",IF(HI600>HK600,"No","Yes")))) ->  | HV600: =IF(HR600="","",IF(HR600=0,"Yes",IF(HW600="N/A","N/A",IF(HR600>HT600,"No","Yes")))) ->  | IE600: =IF(IA600="","",IF(IA600=0,"Yes",IF(IF600="N/A","N/A",IF(IA600>IC600,"No","Yes")))) -> 
GQ614: Evaluation using Nearest Concen. Well to Receptor: | GZ614: Evaluation using Nearest Concen. Well to Receptor: | HI614: Evaluation using Nearest Concen. Well to Receptor: | HR614: Evaluation using Nearest Concen. Well to Receptor: | IA614: Evaluation using Nearest Concen. Well to Receptor:
GQ615: Groundwater Drinking Water Well | GZ615: Vapor Intrusion - AOPC Residence | HI615: Vapor Intrusion - AOPC Non-residence | HR615: Surface Water - Public Water Supply Withdrawal Point | IA615: Surface Water - Perennial Water Body
GO617: RESULTS FOR: | GQ617: Drinking Water Well Receptor from MWNR | GX617: RESULTS FOR: | GZ617: AOPC RESIDENCE from MWNR | HG617: RESULTS FOR: | HI617: AOPC NONRESIDENCE from MWNR | HP617: RESULTS FOR: | HR617: PUBLIC WATER SUPPLY WITHDRAWAL POINT from MWNR | HY617: RESULTS FOR: | IA617: PERENNIAL WATER BODY from MWNR
GO619: Chemicals of Concern | GQ619: Concentration at Receptor | GS619: RBTL at Receptor | GU619: Below RBTLs? | GV619: Applicable MWNR SSTL | GX619: Chemicals of Concern | GZ619: Concentration at Receptor | HB619: SSTL at Receptor | HD619: Below SSTLs? | HE619: Applicable MWNR SSTL | HG619: Chemicals of Concern | HI619: Concentration at Receptor | HK619: SSTL at Receptor | HM619: Below SSTLs? | HN619: Applicable MWNR SSTL | HP619: Chemicals of Concern | HR619: Concentration at Receptor | HT619: RBTL at Receptor | HV619: Below RBTLs? | HW619: Applicable MWNR SSTL | HY619: Chemicals of Concern | IA619: Concentration at Receptor | IC619: RBTL at Receptor | IE619: Below RBTLs? | IF619: Applicable MWNR SSTL
GQ623: (µg/L) | GS623: (µg/L) | GU623: (Y/N) | GV623: (µg/L) | GZ623: (µg/L) | HB623: (µg/L) | HD623: (Y/N) | HE623: (µg/L) | HI623: (µg/L) | HK623: (µg/L) | HM623: (Y/N) | HN623: (µg/L) | HR623: (µg/L) | HT623: (µg/L) | HV623: (Y/N) | HW623: (µg/L) | IA623: (µg/L) | IC623: (µg/L) | IE623: (Y/N) | IF623: (µg/L)
GU624: =IF(GQ624="","",IF(GQ624=0,"Yes",IF(GV624="N/A","N/A",IF(GQ624>GS624,"No","Yes")))) ->  | HD624: =IF(GZ624="","",IF(GZ624=0,"Yes",IF(HE624="N/A","N/A",IF(GZ624>HB624,"No","Yes")))) ->  | HM624: =IF(HI624="","",IF(HI624=0,"Yes",IF(HN624="N/A","N/A",IF(HI624>HK624,"No","Yes")))) ->  | HV624: =IF(HR624="","",IF(HR624=0,"Yes",IF(HW624="N/A","N/A",IF(HR624>HT624,"No","Yes")))) ->  | IE624: =IF(IA624="","",IF(IA624=0,"Yes",IF(IF624="N/A","N/A",IF(IA624>IC624,"No","Yes")))) -> 
GZ638: Evaluation using Nearest Concen. Well to Receptor: | HI638: Evaluation using Nearest Concen. Well to Receptor:
GZ639: MW is < 30 ft away so VI Equation Used (no Domenico) | HI639: MW is < 30 ft away so VI Equation Used (no Domenico)
GZ640: Vapor Instrusion - AOPC Residence | HI640: Vapor Instrusion - AOPC Non-residence
GX642: RESULTS FOR: | GZ642: AOPC RESIDENCE from MWNR (< 30 feet from residence) | HG642: RESULTS FOR: | HI642: AOPC NONRESIDENCE from MWNR (< 30 feet from nonresidence)
GX644: Chemicals of Concern | GZ644: Concentration at Receptor | HB644: SSTL at Receptor | HD644: Below SSTLs? | HE644: Applicable SSTL | HG644: Chemicals of Concern | HI644: Concentration at Receptor | HK644: SSTL at Receptor | HM644: Below SSTLs? | HN644: Applicable SSTL
GZ648: (µg/L) | HB648: (µg/L) | HD648: (Y/N) | HE648: (µg/L) | HI648: (µg/L) | HK648: (µg/L) | HM648: (Y/N) | HN648: (µg/L)
HE662: If MWNR is les than 30feet from AOPC , then thi columnn not needed and table will look like the AOC Table, which it is for this pathway and distance | HN662: If MWNR is les than 30feet from AOPC , then thi columnn not needed and table will look like the AOC Table, which it is for this pathway and distance

Sheet VI Summary Report
A4: Vapor Intrusion (VI) Screening Evaluation Summary Report
B6: This report is completed by the RAR workbook and no data entry is required.
B8: I. RAR criteria necessary to complete the vapor intrusion screening evaluation:
C10: 1. AOC Vapor Intrusion (VI) Screening Evaluation Report Summary:
D12: Table 1A: AOC Structure Foundation Type | K12: Applicable ("X")
D13: No onsite structure is present*: | K13: =IF(ISNUMBER('RBTL Report'!I46:I47), "X","") -> 
D14: Onsite structure foundation is slab-on-grade: | K14: =IF('RBTL Report'!$GA$526, "X","") -> 
D15: Onsite structure foundation is basement: | K15: =IF('RBTL Report'!$GA$527, "X","") -> 
D16: *Within the RAR workbook, AOC groundwater (GW) VI evaluation is always completed regardless if a structure is present.
D17: If a structure is not present, then benzene in soil cannot be evaluated because no distance to strucutre can be determined.
D19: Table 1B: AOC Structure Minimum VI Screening Depth (from ground surface) | K19: Screening Depth (feet)
D20: Depth to Groundwater: | K20: =IF('AOC SSTL Report'!K19:L19<>"", 'AOC SSTL Report'!K19:L19,"") -> 
D21: Depth to Free Product (FP) and/or FP Condition (FPc) (GW benzene ≥ 15,000 µg/L): | K21: =IF(OR(OR(ISNUMBER('AOC SSTL Report'!K20)),AND(ISNUMBER(Reference!$I$158),Reference!$I$158>=15000)),'AOC SSTL Report'!K20,"") -> 
D23: =IF(Reference!$G$158<>"N/A",IF('RBTL Report'!$GA$526=TRUE,Reference!BN3,IF('RBTL Report'!$GA$527=TRUE,Reference!BN11,"Table 1C: AOC Structure Soil Benzene Analysis was Not Entered in RBTL Report")),"Table 1C: AOC Structure Soil Benzene Analysis was Not Entered in RBTL Report") -> Table 1C: AOC Structure Soil Benzene Analysis was Not Entered in RBTL Report
D24: Chemical of Concern | E24: Vertical Distance from Ground Surface (feet) | G24: Below Applicable Concentration? (Yes/No)
G25: Lateral Distance From Foundation (feet)
G26: mg/kg | H26: <5 | I26: mg/kg | J26: ≥5 to <15 | K26: mg/kg | L26: ≥15 to <30
D27: =IF(Reference!$G$158<>"N/A",INDIRECT("'RBTL Report'!$D$"&Reference!$G$158-1),"N/A") -> N/A | E27: =IF(Reference!$G$158<>"N/A",INDIRECT("'RBTL Report'!$E$"&Reference!$G$158-1),"N/A") -> N/A | G27: =IF(Reference!$G$158<>"N/A",INDIRECT("'RBTL Report'!$G$"&Reference!$G$158-1),"N/A") -> N/A | H27: =IF(Reference!$G$158<>"N/A",INDIRECT("'RBTL Report'!$H$"&Reference!$G$158-1),"N/A") -> N/A | I27: =IF(Reference!$G$158<>"N/A",INDIRECT("'RBTL Report'!$I$"&Reference!$G$158-1),"N/A") -> N/A | J27: =IF(Reference!$G$158<>"N/A",INDIRECT("'RBTL Report'!$J$"&Reference!$G$158-1),"N/A") -> N/A | K27: =IF(Reference!$G$158<>"N/A",INDIRECT("'RBTL Report'!$K$"&Reference!$G$158-1),"N/A") -> N/A | L27: =IF(Reference!$G$158<>"N/A",INDIRECT("'RBTL Report'!$L$"&Reference!$G$158-1),"N/A") -> N/A
E28: =IF(Reference!$G$158<>"N/A",INDIRECT("'RBTL Report'!$E$"&Reference!$G$158),"N/A") -> N/A | G28: =IF(Reference!$G$158<>"N/A",INDIRECT("'RBTL Report'!$G$"&Reference!$G$158),"N/A") -> N/A | H28: =IF(Reference!$G$158<>"N/A",INDIRECT("'RBTL Report'!$H$"&Reference!$G$158),"N/A") -> N/A | I28: =IF(Reference!$G$158<>"N/A",INDIRECT("'RBTL Report'!$I$"&Reference!$G$158),"N/A") -> N/A | J28: =IF(Reference!$G$158<>"N/A",INDIRECT("'RBTL Report'!$J$"&Reference!$G$158),"N/A") -> N/A | K28: =IF(Reference!$G$158<>"N/A",INDIRECT("'RBTL Report'!$K$"&Reference!$G$158),"N/A") -> N/A | L28: =IF(Reference!$G$158<>"N/A",INDIRECT("'RBTL Report'!$L$"&Reference!$G$158),"N/A") -> N/A
E29: =IF(Reference!$G$158<>"N/A",INDIRECT("'RBTL Report'!$E$"&Reference!$G$158+1),"N/A") -> N/A | G29: =IF(Reference!$G$158<>"N/A",INDIRECT("'RBTL Report'!$G$"&Reference!$G$158+1),"N/A") -> N/A | H29: =IF(Reference!$G$158<>"N/A",INDIRECT("'RBTL Report'!$H$"&Reference!$G$158+1),"N/A") -> N/A | I29: =IF(Reference!$G$158<>"N/A",INDIRECT("'RBTL Report'!$I$"&Reference!$G$158+1),"N/A") -> N/A | J29: =IF(Reference!$G$158<>"N/A",INDIRECT("'RBTL Report'!$J$"&Reference!$G$158+1),"N/A") -> N/A | K29: =IF(Reference!$G$158<>"N/A",INDIRECT("'RBTL Report'!$K$"&Reference!$G$158+1),"N/A") -> N/A | L29: =IF(Reference!$G$158<>"N/A",INDIRECT("'RBTL Report'!$L$"&Reference!$G$158+1),"N/A") -> N/A
D31: Table 1D: AOC Structure Groundwater (GW) VI Evaluation Results | K31: Applicable ("X")
D32: GW COC concentrations are below calculated SSTLs: | K32: =IF('VI Summary Report'!$D$27="","",(IF('AOC SSTL Report'!GF503=0, "X",""))) -> X
D33: GW COC concentrations are above calculated SSTLs: | K33: =IF('AOC SSTL Report'!GF503>0, "X","") -> 
D35: Table 1E: AOC Structure Depth to FP and/or FPc VI Evaluation Results | K35: Applicable ("X")
D36: FPc exists: | K36: =IF(AND(ISNUMBER(Reference!$I$158),Reference!$I$158>=15000),"X","") -> 
D37: FP is present: | K37: =IF(AND('AOC SSTL Report'!J20<>"",'AOC SSTL Report'!K20<>"",ISNUMBER('AOC SSTL Report'!K20)),IF('AOC SSTL Report'!K20>0,"X","X"),"") -> 
D39: Table 1F: AOC Structure Distance to FP or FPc | K39: Distance (feet)
D40: Distance from onsite structure to nearest MW with FP or GW benz. ≥ 15,000 µg/L: | K40: =IF(ISNUMBER('RBTL Report'!$H$51),'RBTL Report'!$H$51,"") -> 
C42: 2. AOPC Vapor Intrusion (VI) Screening Evaluation Report Summary:
D43: A. Nearest Off-site Residence:
D45: Tabel 2A-2: Nearest AOPC Residence Foundation Type | K45: Applicable ("X")
D46: An AOPC residence was not selected for this RAR evaluation: | K46: =IF('VI Summary Report'!$D$27="N/A","",(IF(OR('RBTL Report'!$GA$520,'RBTL Report'!$GA$521),"","X"))) -> 
D47: AOPC residence foundation is slab-on-grade: | K47: =IF('RBTL Report'!$GA$528, "X","") -> 
D48: AOPC residence foundation is basement: | K48: =IF('RBTL Report'!$GA$529, "X","") -> 
D49: AOPC residence exceeds the VI lateral inclusion screening distance: | K49: =IF(OR('RBTL Report'!$GA$520,'RBTL Report'!$GA$521),IF(ISNUMBER('RBTL Report'!$H$56)=TRUE,IF('RBTL Report'!$H$56>=30,"X",""),""),"") -> 
D51: Table 2A-3: Nearest AOPC Res VI Screening Depth (from ground surface) | K51: Screening Depth (feet)
D52: Depth to GW (at nearest MW with detectable GW COCs located nearest the AOPC residence): | K52: =IF(OR('RBTL Report'!$GA$520,'RBTL Report'!$GA$521),IF('AOPC SSTL Report'!$J$35>0,'AOPC SSTL Report'!$J$35,IF('AOC SSTL Report'!$K$19>0,'AOC SSTL Report'!$K$19,"")),"") -> 
D53: Depth to FP and/or FPc (at nearest MW with detectable GW COCs): | K53: =IF(AND(OR('RBTL Report'!$GA$520,'RBTL Report'!$GA$521),OR('AOPC SSTL Report'!$L$35="Yes",'AOPC SSTL Report'!$M$35="Yes"),ISNUMBER('AOC SSTL Report'!$K$20)=TRUE),'AOC SSTL Report'!$K$20,"") -> 
D55: Table 2A-4: Nearest AOPC Res Lateral Screening Dist. to Applicable GW MWs | K55: Distance (feet)
D56: Distance from AOPC Residence to maximum COC concentration MW: | K56: =IF(OR('RBTL Report'!$GA$520,'RBTL Report'!$GA$521),IF('AOPC SSTL Report'!$G$25>0,'AOPC SSTL Report'!$G$25,""),"") -> 
D57: Distance from AOPC Residence to nearest MW with detectable COCs: | K57: =IF(OR('RBTL Report'!$GA$520,'RBTL Report'!$GA$521),IF('RBTL Report'!$H$56>0,'RBTL Report'!$H$56,""),"") -> 
D59: Table 2A-5: Nearest AOPC Residence GW VI Evaluation Results | K59: Applicable ("X")
D60: AOC GW SSTLs are protective of the AOPC residence: | K60: =IF(OR('RBTL Report'!$GA$520, 'RBTL Report'!$GA$521),IF('AOPC SSTL Report'!GF507=0,"X",""),"") -> 
D61: AOC GW SSTLs are not protective of the AOPC residence: | K61: =IF(OR('RBTL Report'!$GA$520, 'RBTL Report'!$GA$521),IF('AOPC SSTL Report'!GF507>0,"X",""),"") -> 
D63: Table 2A-6: Nearest AOPC Residence FP VI Evaluation Results | K63: Applicable ("X")
D64: A FPc exists in nearest MW to AOPC residence: | K64: =IF('AOPC SSTL Report'!$M$20="Yes","X","") -> 
D65: FP is present in nearest MW to AOPC residence: | K65: =IF('AOPC SSTL Report'!$L$20="Yes","X","") -> 
D67: B. Nearest AOPC Nonresidence (Commercial Building):
D69: Table 2B-1: Nearest AOPC Nonresidence Foundation Type | K69: Applicable ("X")
D70: An offsite nonresidence was not selected for this RAR evaluation: | K70: =IF('VI Summary Report'!$D$27="N/A","",(IF('RBTL Report'!$GA$522, "","X"))) -> 
D71: AOPC nonresidence foundation is slab-on-grade: | K71: =IF('RBTL Report'!$GA$531, "X","") -> 
D72: AOPC nonresidence foundation is basement: | K72: =IF('RBTL Report'!$GA$532, "X","") -> 
D73: AOPC nonresidence exceeds the VI lateral inclusion screening distance: | K73: =IF('RBTL Report'!$GA$522,IF(ISNUMBER('RBTL Report'!$H$61),IF('RBTL Report'!$H$61>=30,"X",""),""),"") -> 
D75: Table 2B-2: Nearest AOPC Nonres Minimum VI Screening Depth (from ground surface) | K75: Screening Depth (feet)
D76: Depth to GW (at nearest MW with detectable GW COCs located nearest the nonresidence): | K76: =IF('RBTL Report'!$GA$522,IF('AOPC SSTL Report'!J36>0,'AOPC SSTL Report'!J36,'AOC SSTL Report'!$J$19),"") -> 
D77: Depth to FP and/or FPc (at nearest MW with detectable GW COCs): | K77: =IF(AND('RBTL Report'!$GA$522,OR('AOPC SSTL Report'!$L$36="Yes",'AOPC SSTL Report'!$M$36="Yes"),ISNUMBER('AOC SSTL Report'!$K$20)=TRUE),'AOC SSTL Report'!$K$20,"") -> 
D79: Table 2B-3: Nearest AOPC Nonres Lateral Screening Dist. to Applicable GW MWs | K79: Distance (feet)
D80: Distance from AOPC nonresidence to maximum COC concentration MW: | K80: =IF(AND('RBTL Report'!$GA$522,ISNUMBER('AOPC SSTL Report'!$G$26)=TRUE),IF('AOPC SSTL Report'!$G$26>0,'AOPC SSTL Report'!$G$26,""),"") -> 
D81: Distance from AOPC nonresidence to nearest MW with detectable COCs: | K81: =IF('RBTL Report'!$GA$522,IF('RBTL Report'!$H$61>0,'RBTL Report'!$H$61,""),"") -> 
D83: Table 2B-4: Nearest AOPC Nonresidence GW VI Evaluation Results | K83: Applicable ("X")
D84: AOC maximum GW COC concetrations are protective of AOPC nonresidence: | K84: =IF('RBTL Report'!$GA$522,IF('AOPC SSTL Report'!GF508=0,"X",""),"") -> 
D85: AOC maximum GW COC concentrations are not protective of AOPC nonresidence: | K85: =IF('RBTL Report'!$GA$522,IF('AOPC SSTL Report'!GF508>0,"X",""),"") -> 
D87: Table 2B-5: Nearest AOPC Nonresidence FP VI Evaluation Results | K87: Applicable ("X")
D88: A FPc exists in nearest MW to AOPC nonresidence: | K88: =IF('AOPC SSTL Report'!$M$21="Yes","X","") -> 
D89: FP is present in nearest MW to AOPC nonresidence: | K89: =IF('AOPC SSTL Report'!$L$21="Yes","X","") -> 
B91: II. Vapor Intrusion Screening Results and Recommendations:
K92: =IF('RBTL Report'!$H$51<>"",IF(AND(AND('RBTL Report'!$GA$527=FALSE,'RBTL Report'!$GA$529=FALSE,'RBTL Report'!$GA$532=FALSE), OR(ISNUMBER('RBTL Report'!$H$51) = FALSE,'RBTL Report'!$H$51<=0), OR(ISNUMBER('AOC SSTL Report'!$K$20)= FALSE,'AOC SSTL Report'!$K$20<=0)),5,IF(AND(AND('RBTL Report'!$GA$527=FALSE,'RBTL Report'!$GA$529=FALSE,'RBTL Report'!$GA$532=FALSE), 'RBTL Report'!$H$51>0, 'AOC SSTL Report'!$K$20>0),15,IF(AND(OR('RBTL Report'!$GA$527=TRUE,'RBTL Report'!$GA$529=TRUE,'RBTL Report'!$GA$532=TRUE), Reference!$AY$562="N/A", Reference!$BA$562="N/A"),15,IF(OR(OR('RBTL Report'!$GA$527=TRUE,'RBTL Report'!$GA$529=TRUE,'RBTL Report'!$GA$532=TRUE), 'RBTL Report'!$H$51>0, 'AOC SSTL Report'!$K$20>0),25,"")))),"") -> 
C93: 1. Applicable Groundwater VI Screening Depth (feet) for this petroleum release:
C95: 2. AOC Structure Vapor Intrusion (VI) Screening Recommendations:
D96: A. AOC Structure - Benzene in Sub-surface Soil Recommendtion:
D98: Lateral and Vertical Distance to Structure (ft) | F98: AOC Structure: Benzene in Sub-surface Soil VI Evaluation Recommended Action
D101: =IF('VI Summary Report'!$D$27="","",(IF(Reference!BV23="2.a.a",Reference!BN27,IF(Reference!BV23="2.a.b",Reference!BN31,IF(Reference!BV23="2.a.c",Reference!BN35,IF(Reference!BV23="2.a.d",Reference!BN39,IF(Reference!BV23="2.a.e",Reference!BN43,IF(Reference!BV23="2.a.f",Reference!BN47,IF(Reference!BV23="2.a.g",Reference!BN51,IF(Reference!BV23="2.a.h",Reference!BN55,IF(Reference!BV23="2.a.i",Reference!BN59,""))))))))))) ->  | F101: =IF('VI Summary Report'!$D$27="","N/A",(IF(Reference!BV23="2.a.a",Reference!BP27,IF(Reference!BV23="2.a.b",Reference!BP31,IF(Reference!BV23="2.a.c",Reference!BP35,IF(Reference!BV23="2.a.d",Reference!BP39,IF(Reference!BV23="2.a.e",Reference!BP43,IF(Reference!BV23="2.a.f",Reference!BP47,IF(Reference!BV23="2.a.g",Reference!BP51,IF(Reference!BV23="2.a.h",Reference!BP55,IF(Reference!BV23="2.a.i",Reference!BP59,""))))))))))) -> 
F103: =IF('VI Summary Report'!$D$27="","N/A",(IF(Reference!BV23="2.a.a", Reference!BP29,IF(Reference!BV23="2.a.b",Reference!BP33,IF(Reference!BV23="2.a.c",Reference!BP37,IF(Reference!BV23="2.a.d",Reference!BP41,IF(Reference!BV23="2.a.e",Reference!BP45,IF(Reference!BV23="2.a.f",Reference!BP49,IF(Reference!BV23="2.a.g",Reference!BP53,IF(Reference!BV23="2.a.h",Reference!BP57,IF(Reference!BV23="2.a.i",Reference!BP61,""))))))))))) -> 
D106: B. AOC Structure - Groundwater Recommendation:
D108: Depth to GW (feet) | F108: AOC Structure: GW VI Evaluation Recommended Action
D109: =IF('VI Summary Report'!$D$27="","",(IF(Reference!BV65="2.b.a", Reference!BN67,IF(Reference!BV65="2.b.b",Reference!BN71,IF(Reference!BV65="2.b.c",Reference!BN75,IF(Reference!BV65="2.b.d",Reference!BN79,IF(Reference!BV65="2.b.e",Reference!BN83,IF(Reference!BV65="2.b.f",Reference!BN87,"")))))))) ->  | F109: =IF('VI Summary Report'!$D$27="","",(IF(Reference!BV65="2.b.a", Reference!BP67,IF(Reference!BV65="2.b.b",Reference!BP71,IF(Reference!BV65="2.b.c",Reference!BP75,IF(Reference!BV65="2.b.d",Reference!BP79,IF(Reference!BV65="2.b.e",Reference!BP83,IF(Reference!BV65="2.b.f",Reference!BP87,"")))))))) -> 
F111: =IF('VI Summary Report'!$D$27="","",(IF(Reference!BV65="2.b.a", Reference!BP69,IF(Reference!BV65="2.b.b",Reference!BP73,IF(Reference!BV65="2.b.c",Reference!BP77,IF(Reference!BV65="2.b.d",Reference!BP81,IF(Reference!BV65="2.b.e",Reference!BP85,IF(Reference!BV65="2.b.f",Reference!BP89,"")))))))) -> 
D114: C. AOC Structure - Free Product (FP) and/or FP Condition (FPc) in MW Recommendation:
D116: Dist. to Structure (feet) | F116: AOC Structure: FP and/or FPc VI Evaluation Recommended Action
D117: =IF('VI Summary Report'!$D$27="","",(IF(Reference!BV93="2.c.a",Reference!BN95,IF(Reference!BV93="2.c.b",Reference!BN99,IF(Reference!BV93="2.c.c",Reference!BN103,IF(Reference!BV93="2.c.d",Reference!BN107,"")))))) ->  | F117: =IF('VI Summary Report'!$D$27="","",(IF(Reference!BV93="2.c.a", Reference!BP95,IF(Reference!BV93="2.c.b",Reference!BP99,IF(Reference!BV93="2.c.c",Reference!BP103,IF(Reference!BV93="2.c.d",Reference!BP107,"")))))) -> 
F119: =IF('VI Summary Report'!$D$27="","",(IF(Reference!BV93="2.c.a", Reference!BP97,IF(Reference!BV93="2.c.b",Reference!BP101,IF(Reference!BV93="2.c.c",Reference!BP105,IF(Reference!BV93="2.c.d",Reference!BP109,"")))))) -> 
D122: D. AOC Structure - FP and/or FPc in MW Recommendation:
D124: Depth to FP (feet) | F124: AOC Structure: FP and/or FPc VI Evaluation Recommended Action
D125: =IF('VI Summary Report'!$D$27="","",(IF(Reference!BV111="2.d.a",Reference!BN113,IF(Reference!BV111="2.d.b",Reference!BN117,IF(Reference!BV111="2.d.c",Reference!BN121,IF(Reference!BV111="2.d.d",Reference!BN125,IF(Reference!BV111="2.d.e",Reference!BN129,""))))))) ->  | F125: =IF('VI Summary Report'!$D$27="","",(IF(Reference!BV111="2.d.a", Reference!BP113,IF(Reference!BV111="2.d.b",Reference!BP117,IF(Reference!BV111="2.d.c",Reference!BP121,IF(Reference!BV111="2.d.d",Reference!BP125,IF(Reference!BV111="2.d.e",Reference!BP129,""))))))) -> 
F127: =IF('VI Summary Report'!$D$27="","",(IF(Reference!BV111="2.d.a", Reference!BP115,IF(Reference!BV111="2.d.b",Reference!BP119,IF(Reference!BV111="2.d.c",Reference!BP123,IF(Reference!BV111="2.d.d",Reference!BP127,IF(Reference!BV111="2.d.e",Reference!BP131,""))))))) -> 
C130: 3. AOPC Residence Vapor Intrusion (VI) Screening Recommendations:
D131: A. AOPC Residence - AOC Maximum GW Concentration MW (at UST release point) Recommendation:
D133: Depth to GW (feet) | F133: AOPC Res: AOC Max. GW Conc. MW VI Evaluation Recommended Action
D134: =IF('VI Summary Report'!$D$27="","",(IF(Reference!BV136="3.a.a",Reference!BN138,IF(Reference!BV136="3.a.b",Reference!BN142,IF(Reference!BV136="3.a.c",Reference!BN146,IF(Reference!BV136="3.a.d",Reference!BN150,IF(Reference!BV136="3.a.e",Reference!BN154,IF(Reference!BV136="3.a.f",Reference!BN158,"")))))))) ->  | F134: =IF('VI Summary Report'!$D$27="","",(IF(Reference!BV136="3.a.a",Reference!BP138,IF(Reference!BV136="3.a.b",Reference!BP142,IF(Reference!BV136="3.a.c",Reference!BP146,IF(Reference!BV136="3.a.d",Reference!BP150,IF(Reference!BV136="3.a.e",Reference!BP154,IF(Reference!BV136="3.a.f",Reference!BP158,"")))))))) -> 
F136: =IF('VI Summary Report'!$D$27="","",(IF(Reference!BV136="3.a.a",Reference!BP140,IF(Reference!BV136="3.a.b",Reference!BP144,IF(Reference!BV136="3.a.c",Reference!BP148,IF(Reference!BV136="3.a.d",Reference!BP152,IF(Reference!BV136="3.a.e",Reference!BP156,IF(Reference!BV136="3.a.f",Reference!BP160,"")))))))) -> 
D139: B. AOPC Residence - Nearest MW Recommendation:
D141: Depth to GW (feet) | F141: AOPC Residence: Nearest MW VI Evaluation Recommended Action
D142: =IF('VI Summary Report'!$D$27="","",(IF(Reference!BV164="3.b.a",Reference!BN166,IF(Reference!BV164="3.b.b",Reference!BN170,IF(Reference!BV164="3.b.c",Reference!BN174,IF(Reference!BV164="3.b.d",Reference!BN178,IF(Reference!BV164="3.b.e",Reference!BN182,IF(Reference!BV164="3.b.f",Reference!BN186,"")))))))) ->  | F142: =IF('VI Summary Report'!$D$27="","",(IF(Reference!BV164="3.b.a",Reference!BP166,IF(Reference!BV164="3.b.b",Reference!BP170,IF(Reference!BV164="3.b.c",Reference!BP174,IF(Reference!BV164="3.b.d",Reference!BP178,IF(Reference!BV164="3.b.e",Reference!BP182,IF(Reference!BV164="3.b.f",Reference!BP186,"")))))))) -> 
F144: =IF('VI Summary Report'!$D$27="","",(IF(Reference!BV164="3.b.a",Reference!BP168,IF(Reference!BV164="3.b.b",Reference!BP172,IF(Reference!BV164="3.b.c",Reference!BP176,IF(Reference!BV164="3.b.d",Reference!BP180,IF(Reference!BV164="3.b.e",Reference!BP184,IF(Reference!BV164="3.b.f",Reference!BP188,"")))))))) -> 
D147: C. AOPC Structure - MW with FP and/or FPc Recommendation:
D149: Dist. to Structure (feet) | F149: AOPC Structure: FP and/or FPc VI Evaluation Recommended Action
D150: =IF('VI Summary Report'!$D$27="","",(IF(Reference!BV192="3.c.a",Reference!BN194,IF(Reference!BV192="3.c.b",Reference!BN198,IF(Reference!BV192="3.c.c",Reference!BN202,IF(Reference!BV192="3.c.d",Reference!BN206,"")))))) ->  | F150: =IF('VI Summary Report'!$D$27="","",(IF(Reference!BV192="3.c.a", Reference!BP194,IF(Reference!BV192="3.c.b",Reference!BP198,IF(Reference!BV192="3.c.c",Reference!BP202,IF(Reference!BV192="3.c.d",Reference!BP206,"")))))) -> 
F152: =IF('VI Summary Report'!$D$27="","",(IF(Reference!BV192="3.c.a", Reference!BP196,IF(Reference!BV192="3.c.b",Reference!BP200,IF(Reference!BV192="3.c.c",Reference!BP204,IF(Reference!BV192="3.c.d",Reference!BP208,"")))))) -> 
D155: D. AOPC Residence - Nearest MW with FP and/or FPc Recommendation:
D157: Depth to FP (feet) | F157: AOPC Res: FP and/or FPc VI Evaluation Recommended Action
D158: =IF('VI Summary Report'!$D$27="","",(IF(Reference!BV212="3.d.a",Reference!BN214,IF(Reference!BV212="3.d.c",Reference!BN222,IF(Reference!BV212="3.d.d",Reference!BN226,IF(Reference!BV212="3.d.e",Reference!BN230,IF(Reference!BV212="3.d.f",Reference!BN234,IF(Reference!BV212="3.d.g",Reference!BN238,"")))))))) ->  | F158: =IF('VI Summary Report'!$D$27="","",(IF(Reference!BV212="3.d.a",Reference!BP214,IF(Reference!BV212="3.d.c",Reference!BP222,IF(Reference!BV212="3.d.d",Reference!BP226,IF(Reference!BV212="3.d.e",Reference!BP230,IF(Reference!BV212="3.d.f",Reference!BP234,IF(Reference!BV212="3.d.f",Reference!BP238,"")))))))) -> 
F160: =IF('VI Summary Report'!$D$27="","",(IF(Reference!BV212="3.d.a",Reference!BP216,IF(Reference!BV212="3.d.c",Reference!BP224,IF(Reference!BV212="3.d.d",Reference!BP228,IF(Reference!BV212="3.d.e",Reference!BP232,IF(Reference!BV212="3.d.f",Reference!BP236,IF(Reference!BV212="3.d.f",Reference!BP240,"")))))))) -> 
C163: 4. AOPC Nonresidence - Vapor Intrusion (VI) Screening Recommendations:
D164: A. AOPC Nonresidence - AOC Maximum GW Concentration MW (at UST release point) Recommendation:
D166: Depth to GW (feet) | F166: AOPC Nonres: Max. GW Conc. MW VI Evaluation Recommended Action
D167: =IF('VI Summary Report'!$D$27="","",(IF(Reference!BV245="4.a.a",Reference!BN247,IF(Reference!BV245="4.a.b",Reference!BN251,IF(Reference!BV245="4.a.c",Reference!BN255,IF(Reference!BV245="4.a.d",Reference!BN259,IF(Reference!BV245="4.a.e",Reference!BN263,IF(Reference!BV245="4.a.f","")))))))) -> FALSE | F167: =IF('VI Summary Report'!$D$27="","",(IF(Reference!BV245="4.a.a",Reference!BP247,IF(Reference!BV245="4.a.b",Reference!BP251,IF(Reference!BV245="4.a.c",Reference!BP255,IF(Reference!BV245="4.a.d",Reference!BP259,IF(Reference!BV245="4.a.e",Reference!BP263,""))))))) -> 
F169: =IF('VI Summary Report'!$D$27="","",(IF(Reference!BV245="4.a.a",Reference!BP249,IF(Reference!BV245="4.a.b",Reference!BP253,IF(Reference!BV245="4.a.c",Reference!BP257,IF(Reference!BV245="4.a.d",Reference!BP261,IF(Reference!BV245="4.a.e",Reference!BP265,""))))))) -> 
D172: B. AOPC Nonresidence - Nearest MW Recommendation:
D174: Depth to GW (feet) | F174: AOPC Nonresidence: Nearest MW VI Evaluation Recommended Action
D175: =IF('VI Summary Report'!$D$27="","",(IF(Reference!BV273="4.b.a",Reference!BN275,IF(Reference!BV273="4.b.b",Reference!BN279,IF(Reference!BV273="4.b.c",Reference!BN283,IF(Reference!BV273="4.b.d",Reference!BN287,IF(Reference!BV273="4.b.e",Reference!BN291,IF(Reference!BV273="4.b.f",Reference!BN295,"")))))))) ->  | F175: =IF('VI Summary Report'!$D$27="","",(IF(Reference!BV273="4.b.a",Reference!BP275,IF(Reference!BV273="4.b.b",Reference!BP279,IF(Reference!BV273="4.b.c",Reference!BP283,IF(Reference!BV273="4.b.d",Reference!BP287,IF(Reference!BV273="4.b.e",Reference!BP291,IF(Reference!BV273="4.b.f",Reference!BP295,"")))))))) -> 
F177: =IF('VI Summary Report'!$D$27="","",(IF(Reference!BV273="4.b.a",Reference!BP277,IF(Reference!BV273="4.b.b",Reference!BP281,IF(Reference!BV273="4.b.c",Reference!BP285,IF(Reference!BV273="4.b.d",Reference!BP289,IF(Reference!BV273="4.b.e",Reference!BP293,IF(Reference!BV273="4.b.f",Reference!BP2820,"")))))))) -> 
D180: C. AOPC Structure - MW with FP and/or FPc Recommendation:
D182: Dist. to Structure (feet) | F182: AOPC Nonres. Structure: FP and/or FPc VI Eval. Recommended Action
D183: =IF('VI Summary Report'!$D$27="","",(IF(Reference!BV301="4.c.a",Reference!BN303,IF(Reference!BV301="4.c.b",Reference!BN307,IF(Reference!BV301="4.c.c",Reference!BN311,IF(Reference!BV301="4.c.d",Reference!BN315,"")))))) ->  | F183: =IF('VI Summary Report'!$D$27="","",(IF(Reference!BV301="4.c.a", Reference!BP303,IF(Reference!BV301="4.c.b",Reference!BP307,IF(Reference!BV301="4.c.c",Reference!BP311,IF(Reference!BV301="4.c.d",Reference!BP315,"")))))) -> 
F185: =IF('VI Summary Report'!$D$27="","",(IF(Reference!BV301="4.c.a", Reference!BP305,IF(Reference!BV301="4.c.b",Reference!BP309,IF(Reference!BV301="4.c.c",Reference!BP313,IF(Reference!BV301="4.c.d",Reference!BP317,"")))))) -> 
D188: D. AOPC Nonresidence - Nearest MW with FP and/or FPc Recommendation:
D190: Depth to FP (feet) | F190: AOPC Nonres: FP and/or FPc VI Evaluation Recommended Action
D191: =IF('VI Summary Report'!$D$27="","",(IF(Reference!BV321="4.d.a",Reference!BN323,IF(Reference!BV321="4.d.c",Reference!BN331,IF(Reference!BV321="4.d.d",Reference!BN335,IF(Reference!BV321="4.d.e",Reference!BN339,IF(Reference!BV321="4.d.f",Reference!BN343,IF(Reference!BV321="4.d.g",Reference!BN347,"")))))))) ->  | F191: =IF('VI Summary Report'!$D$27="","",(IF(Reference!BV321="4.d.a",Reference!BP323,IF(Reference!BV321="4.d.c",Reference!BP331,IF(Reference!BV321="4.d.d",Reference!BP335,IF(Reference!BV321="4.d.e",Reference!BP339,IF(Reference!BV321="4.d.f",Reference!BP343,IF(Reference!BV321="4.d.g",Reference!BP347,"")))))))) -> 
F193: =IF('VI Summary Report'!$D$27="","",(IF(Reference!BV321="4.d.a",Reference!BP325,IF(Reference!BV321="4.d.c",Reference!BP333,IF(Reference!BV321="4.d.d",Reference!BP337,IF(Reference!BV321="4.d.e",Reference!BP341,IF(Reference!BV321="4.d.f",Reference!BP345,IF(Reference!BV321="4.d.g",Reference!BP349,"")))))))) -> 
GA511: 3 structures to complete VI evaluation:
GB512: Onsite
GB513: Offsite Residence
GB514: Offsite Nonresidence
GA516: GW to Indoor Air Structure and Foundation Risk Evaluation Matrix (heirarchy of structure evaluation exclusion)
GB517: Rule: The highest risk structure is a resident/basement. The lowest risk structure is a non-resident/slab
GB518: Rule: Whatever structure and foundation is on-site excludes a off-site structure of equal or lesser risk
GA519: If the on-site structure is: | GD519: Then:
GA520: Resident/Nonresident | GC520: Foundation
GA521: Resident | GC521: Basement | GD521: No other off-site GW to indoor air calculations need to be completed
GA522: Resident | GC522: Slab | GD522: Evaluate off-site resident /basement only
GA523: Non-resident | GC523: Basement | GD523: Evaluate off-site resident/basement and resident/slab only
GA524: Non-resident | GC524: Slab | GD524: Evaluate off-site res/basement and res/slab & non-res.basement only
FZ525: Two table formats listing all combinations of occupants, foundation types and screening prioroty are provided below for Ricky to decide ease of use. Secondary factors are age of release: This is Table 1 option:
GA526: location | GB526: structure | GE526: foundation | GG526: screening | GH526: Driving | GI526: applicable
GA527: AOC/AOPC | GB527: N/A | GC527: resident | GD527: nonresident | GE527: slab/crawl | GF527: basement | GG527: priority | GH527: struct./fndtn | GI527: algorythm
GA528: AOC | GC528: x | GF528: x | GG528: 1 | GI528: VI
GA529: AOPC | GC529: x | GF529: x | GG529: 2 | GI529: Domen./VI
GA530: AOC | GD530: x | GF530: x | GG530: 3 | GI530: VI
GA531: AOPC | GD531: x | GF531: x | GG531: 4 | GI531: Domen./VI
GA532: AOC | GC532: x | GE532: x | GG532: 5 | GI532: VI
GA533: AOC | GD533: x | GE533: x | GG533: 6 | GI533: VI
GA534: AOPC | GC534: x | GE534: x | GG534: 7 | GI534: Domen./VI
GA535: AOPC | GD535: x | GE535: x | GG535: 8 | GI535: Domen./VI
FZ536: Table 2 option. Ricky to pick or develop another matrix. STW worked with this option, bc it seemed to flow better.
FZ537: AOC Structure: Evaluation Matrix | GA537: location | GB537: structure | GE537: foundation | GG537: screening | GH537: Driving | GI537: applicable | GJ537: no structure | GK537: no soil benz. | GL537: soil benzene* | GM537: soil* | GN537: soil* | GO537: AOC Soil VI | GP537: gw | GQ537: gw | GR537: AOC GW VI | GS537: no fp | GT537: fp | GU537: AOC FP VI
GA538: AOC/AOPC | GB538: N/A | GC538: resident | GD538: nonresident | GE538: slab/crawl | GF538: basement | GG538: priority | GH538: struct./fndtn | GI538: algorithm | GJ538: no soil eval. | GK538: data entered | GL538: < RBTL | GM538: lat. dist. | GN538: depth | GO538: Recom. | GP538: < SSTLs | GQ538: depth | GR538: Recom. | GS538: present | GT538: depth | GU538: Recom.
GA539: AOC | GC539: x | GF539: x | GG539: 1 | GI539: VI | GO539: select | GR539: select | GU539: select
GA540: AOC | GD540: x | GF540: x | GG540: 3 | GI540: VI | GO540: appl response | GR540: appl response | GU540: appl response
GA541: AOC | GC541: x | GE541: x | GG541: 5 | GI541: VI | GO541: refworksheet | GR541: refworksheet | GU541: refworksheet
GA542: AOC | GD542: x | GE542: x | GG542: 6 | GI542: VI | GO542: 2Aa to 2Ai | GR542: 2Ba to 2Bf | GU542: 2Ca to 2Cf
FZ543: AOPC Resident Structure: Evaluation Matrix | GA543: location | GB543: structure | GE543: foundation | GG543: screening | GH543: Driving | GI543: applicable | GJ543: no resident | GK543: res receptor | GL543: max gw | GM543: max gw | GN543: max gw | GO543: AOPC Res. | GP543: no resident | GQ543: nearest mw | GR543: nearest mw | GS543: AOPC Res. | GT543: no fp | GU543: fp | GV543: AOPC Res.
GA544: AOC/AOPC | GB544: N/A | GC544: resident | GD544: nonresident | GE544: slab/crawl | GF544: basement | GG544: priority | GH544: struct./fndtn | GI544: algorithm | GJ544: receptor | GK544: too far away | GL544: < SSTLs | GM544: lat. dist. | GN544: depth | GO544: GW VI Recom. | GP544: receptor | GQ544: < SSTLs | GR544: depth | GS544: GW VI Recom. | GT544: present | GU544: depth | GV544: FP VI Recom.
GA545: AOPC | GC545: x | GF545: x | GG545: 2 | GI545: Domen./VI | GO545: refworksheet | GS545: refworksheet | GV545: refworksheet
GA546: AOPC | GC546: x | GE546: x | GG546: 7 | GI546: Domen./VI | GO546: 3Aa to 3Ag | GS546: 3Ba to 3Bg | GV546: 3Ca to 3Ch
FZ547: AOPC Nonresident Structure: Evaluation Matrix | GA547: location | GB547: structure | GE547: foundation | GG547: screening | GH547: Driving | GI547: applicable | GJ547: no nonres | GK547: nonres recept. | GL547: max gw | GM547: max gw | GN547: max gw | GO547: AOPC Res. | GP547: no nonres | GQ547: nearest mw | GR547: nearest mw | GS547: AOPC Res. | GT547: no fp | GU547: fp | GV547: AOPC Nonres.
GA548: AOC/AOPC | GB548: N/A | GC548: resident | GD548: nonresident | GE548: slab/crawl | GF548: basement | GG548: priority | GH548: struct./fndtn | GI548: algorithm | GJ548: receptor | GK548: too far away | GL548: < SSTLs | GM548: lat. dist. | GN548: depth | GO548: GW VI Recom. | GP548: receptor | GQ548: < SSTLs | GR548: depth | GS548: GW VI Recom. | GT548: present | GU548: depth | GV548: FP VI Recom.
GA549: AOPC | GD549: x | GF549: x | GG549: 4 | GI549: Domen./VI | GO549: refworksheet | GS549: refworksheet | GV549: refworksheet
GA550: AOPC | GD550: x | GE550: x | GG550: 8 | GI550: Domen./VI | GO550: 4Aa to 4Ag | GS550: 4Bato 4Bg | GV550: 4Ca to 4Ch
GH551: determines 5 or 15 vert screening distance ↑
FZ552: Lgw
FZ553: Lfp | GM553: 8-9-17: Ricky, you can either program from the AOC soil list above or use this preexisitng table to program the answer. Another option is to use both. The blue columns above provide good info not in the table to the right, but the table to the right will arledy be completed from RBTL Report and the driving answer can be imported back to table above | GP553: Sub-surface Soil Final AOC RBTL VI Screening Results: Slab-on-grade or Crawl Structure
GP554: Chemical of Concern | GQ554: Vertical Distance from Ground Surface (feet) | GS554: Below Applicable Concentration? (Yes/No)
FZ555: Applicable VI screening depth | GD555: ← answer will 5, 15, or 25 feet | GS555: Lateral Distance From Foundation (feet) (Concentration is mg/kg)
GS556: mg/kg | GT556: <5 | GU556: mg/kg | GV556: ≥5 to <15 | GW556: mg/kg | GX556: ≥15 to <30
FX557: 10-20-2017 Ricky, I cut and pasted the AOPC Res amnd Nores workbook outcomes to help better define what needs to happen with the offsite decision matrix | GP557: Benzene | GQ557: <5 | GS557: ≥0.1 | GU557: ≥0.5 | GW557: ≥10
GQ558: ≥5 to <15 | GS558: ≥0.5 | GU558: ≥0.5 | GW558: ≥10
FX559: I. RAR criteria necessary to complete the vapor intrusion screening evaluation: | GQ559: ≥15 to <30 | GS559: ≥10 | GU559: ≥10 | GW559: ≥10
FY561: 1. AOC Vapor Intrusion (VI) Screening Evaluation Report Summary: | GP561: Final AOC Sub-surface Soil RBTL VI Screening Results: Basement Structure
GP562: Chemical of Concern | GQ562: Vertical Distance from Ground Surface (feet) | GS562: Below Applicable Concentration? (Yes/No)
FZ563: Table 1A: AOC Structure: Foundation Type | GG563: Applicable ("X") | GS563: Lateral Distance From Foundation (feet) (Concentration is mg/kg)
FZ564: No onsite structure is present*: | GG564: =IF(ISNUMBER('RBTL Report'!GD598:GD599), "X","") ->  | GS564: mg/kg | GT564: <5 | GU564: mg/kg | GV564: ≥5 to <15 | GW564: mg/kg | GX564: ≥15 to <30
FZ565: Onsite structure foundation is slab-on-grade: | GG565: =IF('RBTL Report'!$GA$526, "X","") ->  | GP565: Benzene | GQ565: <5 | GS565: ≥0.1 | GU565: ≥0.5 | GW565: ≥10
FZ566: Onsite structure foundation is basement: | GG566: =IF('RBTL Report'!$GA$527, "X","") ->  | GQ566: ≥5 to <15 | GS566: ≥0.1 | GU566: ≥0.5 | GW566: ≥10
FZ567: *Within the RAR workbook, AOC groundwater (GW) VI evaluation is always completed regardless if a structure is present. If a structure is | GQ567: ≥15 to <30 | GS567: ≥0.5 | GU567: ≥0.5 | GW567: ≥10
FZ568: not present, then benzene in soil cannot be evaluated because no distance to strucutre can be determined.
FZ570: Table 1B: AOC Structure: Minimum VI Screening Depth (from ground surface) | GG570: Screening Depth (feet)
FZ571: Depth to Groundwater: | GG571: =IF('AOC SSTL Report'!GG571:GH571<>"", 'AOC SSTL Report'!GG571:GH571,"") -> N/A
FZ572: Depth to Free product and/or FP conditions (GW benzene ≥ 15,000 µg/L): | GG572: =IF('VI Summary Report'!$D$27="N/A","",(IF(OR(ISNUMBER('AOC SSTL Report'!GG572:GH572),Reference!$I$158>=12000), 'AOC SSTL Report'!GG572:GH572,""))) -> 
FZ574: =IF(Reference!$G$158<>"N/A",IF('RBTL Report'!$GA$526=TRUE,Reference!IJ555,IF('RBTL Report'!$GA$527=TRUE,Reference!IJ563,"Table 1C: AOC Structure: No Benzene in Sub-surface Soil Analysis was Entered in RBTL Report")),"Table 1C: GL601OC Structure: No Benzene in Sub-surface Soil Analysis was Entered in RBTL Report") -> Table 1C: GL601OC Structure: No Benzene in Sub-surface Soil Analysis was Entered in RBTL Report
FZ575: Chemical of Concern | GA575: Vertical Distance from Ground Surface (feet) | GC575: Below Applicable Concentration? (Yes/No)
GC576: Lateral Distance From Foundation (feet)
GC577: mg/kg | GD577: <5 | GE577: mg/kg | GF577: ≥5 to <15 | GG577: mg/kg | GH577: ≥15 to <30
FZ578: =IF(Reference!$G$158<>"N/A",INDIRECT("'RBTL Report'!$D$"&Reference!$G$158-1),"N/A") -> N/A | GA578: =IF(Reference!$G$158<>"N/A",INDIRECT("'RBTL Report'!$E$"&Reference!$G$158-1),"N/A") -> N/A | GC578: =IF(Reference!$G$158<>"N/A",INDIRECT("'RBTL Report'!$G$"&Reference!$G$158-1),"N/A") -> N/A | GD578: =IF(Reference!$G$158<>"N/A",INDIRECT("'RBTL Report'!$H$"&Reference!$G$158-1),"N/A") -> N/A | GE578: =IF(Reference!$G$158<>"N/A",INDIRECT("'RBTL Report'!$I$"&Reference!$G$158-1),"N/A") -> N/A | GF578: =IF(Reference!$G$158<>"N/A",INDIRECT("'RBTL Report'!$J$"&Reference!$G$158-1),"N/A") -> N/A | GG578: =IF(Reference!$G$158<>"N/A",INDIRECT("'RBTL Report'!$K$"&Reference!$G$158-1),"N/A") -> N/A | GH578: =IF(Reference!$G$158<>"N/A",INDIRECT("'RBTL Report'!$L$"&Reference!$G$158-1),"N/A") -> N/A
GA579: =IF(Reference!$G$158<>"N/A",INDIRECT("'RBTL Report'!$E$"&Reference!$G$158),"N/A") -> N/A | GC579: =IF(Reference!$G$158<>"N/A",INDIRECT("'RBTL Report'!$G$"&Reference!$G$158),"N/A") -> N/A | GD579: =IF(Reference!$G$158<>"N/A",INDIRECT("'RBTL Report'!$H$"&Reference!$G$158),"N/A") -> N/A | GE579: =IF(Reference!$G$158<>"N/A",INDIRECT("'RBTL Report'!$I$"&Reference!$G$158),"N/A") -> N/A | GF579: =IF(Reference!$G$158<>"N/A",INDIRECT("'RBTL Report'!$J$"&Reference!$G$158),"N/A") -> N/A | GG579: =IF(Reference!$G$158<>"N/A",INDIRECT("'RBTL Report'!$K$"&Reference!$G$158),"N/A") -> N/A | GH579: =IF(Reference!$G$158<>"N/A",INDIRECT("'RBTL Report'!$L$"&Reference!$G$158),"N/A") -> N/A
GA580: =IF(Reference!$G$158<>"N/A",INDIRECT("'RBTL Report'!$E$"&Reference!$G$158+1),"N/A") -> N/A | GC580: =IF(Reference!$G$158<>"N/A",INDIRECT("'RBTL Report'!$G$"&Reference!$G$158+1),"N/A") -> N/A | GD580: =IF(Reference!$G$158<>"N/A",INDIRECT("'RBTL Report'!$H$"&Reference!$G$158+1),"N/A") -> N/A | GE580: =IF(Reference!$G$158<>"N/A",INDIRECT("'RBTL Report'!$I$"&Reference!$G$158+1),"N/A") -> N/A | GF580: =IF(Reference!$G$158<>"N/A",INDIRECT("'RBTL Report'!$J$"&Reference!$G$158+1),"N/A") -> N/A | GG580: =IF(Reference!$G$158<>"N/A",INDIRECT("'RBTL Report'!$K$"&Reference!$G$158+1),"N/A") -> N/A | GH580: =IF(Reference!$G$158<>"N/A",INDIRECT("'RBTL Report'!$L$"&Reference!$G$158+1),"N/A") -> N/A
FZ582: AOC Structure: Groundwater (GW) VI Evaluation Results | GG582: Applicable ("X")
FZ583: GW COC concentrations are below calculated SSTLs: | GG583: =IF('VI Summary Report'!$D$27="N/A","",(IF('AOC SSTL Report'!NB1055=0, "X",""))) -> 
FZ584: GW COC concentrations are above calculated SSTLs: | GG584: =IF('AOC SSTL Report'!NB1055>0, "X","") -> 
FZ586: AOC Structure: Free Product and/or FP Condition VI Evaluation Results | GG586: Applicable ("X")
FZ587: Free product conditions exist (GW benzene ≥ 15,000 µg/L): | GG587: =IF(AND(ISNUMBER(Reference!$I$158),Reference!$I$158>=12000),"X","") -> 
FZ588: Free product is present: | GG588: =IF(AND('AOC SSTL Report'!GF572<>"",'AOC SSTL Report'!GG572<>"",ISNUMBER('AOC SSTL Report'!GG572)),IF('AOC SSTL Report'!GG572>0,'AOC SSTL Report'!GG572,"X"),"") -> 0.03244444444
FZ590: AOC Structure: Distance to FP or FP Condition | GG590: Distance (feet)
FZ591: Distance from onsite structure to nearest MW with FP or GW benz. ≥ 15,000 µg/L: | GG591: =IF(ISNUMBER('RBTL Report'!$I$51),'RBTL Report'!$I$51,"") -> 
FY593: 2. AOPC Vapor Intrusion (VI) Screening Evaluation Report Summary:
FZ594: A. Nearest Off-site Residence:
FZ596: Tabel 2A-2: Nearest AOPC Residence Foundation Type | GG596: Applicable ("X") | GI596: FP decision matrix
FZ597: An offsite residence was not selected for this RAR evaluation: | GG597: =IF('VI Summary Report'!$D$27="N/A","",(IF(OR('RBTL Report'!$GA$520,'RBTL Report'!$GA$521),"","X"))) ->  | GI597: 1 | GJ597: = TRUE then import Table 4Ba Reference AOPC Res FP evaluation complete
FZ598: Offsite residence foundation is slab-on-grade: | GG598: =IF('RBTL Report'!$GA$528, "X","") ->  | GJ598: = FALSE then
FZ599: Offsite residence foundation is basement: | GG599: =IF('RBTL Report'!$GA$529, "X","") -> 
FZ600: Offsite residence exceeds the VI lateral inclusion screening distance: | GG600: =IF(OR('RBTL Report'!$GA$520,'RBTL Report'!$GA$521),IF(ISNUMBER('RBTL Report'!$I$56),IF('RBTL Report'!$I$56>=30,"X",""),""),"") -> 
... 30 more rows

Sheet Site Summary Report
A2: Site Summary Report
GF506: 4
GF507: 19 | GH507: 0
GF508: 0 | GH508: 0
GF509: 0 | GH509: 0
GH510: 0
GH511: 0
GH512: 0

Sheet Data Storage
B1: RBTL DATA STORAGE AREA | AA1: AOC SSTL DATA STORAGE AREA | BB1: AOPC SSTL DATA STORAGE AREA
BV2: Instructions to Export These Analytical Table Templates to other Consultant Workbooks:
CA3: USTMP GRBCA RBTL REPORT ANALYTICAL DATA TABLE TEMPLATE:
CB4: Soil Vapor Intrusion & GW Analytical Data Table Set
C5: ≥15 to <30 | BV5: To export the data table templates at right to other MS Excel© reports using USTMP Analytical Results tables, first, establish a new worksheet within the destination workbook. This will give the user the advantage of populating analytical data from their report template to fit the GRBCA, RBTL Report, analytical data tabletemplate prior to completing the risk evaluation: 1. Within the newly created worksheet, adjust column widths for Cloumn A through Column N using the column widths at right (Columns CA through CN); 2. From this location, copy table set selection from cell range CA2 through CN113. Next, place the cursor in cell A1of the destination worksheet, paste the selection; 3. Determine if you will need the soil vapor intrusion table set or the direct exposure soil table set. Delete the table set you do not need; 4. For the Table(s) that list COCs, adjust the COCs for this specific risk evaluation by completing the following: Start a GRBCA workbook risk evaluation and complete the RBTL Report, Items # 1through 7 and then create the data tables. Copy the COCs listed in Table 9 and paste in the COC column of both Table 8B and 9 (Soil VI Table Set) or Table 8 and 9 (Direct Exposure Table Set). Delete all remaining rows in each table. The tables are now ready for use.
C6: Sample ID # | D6: Sample Date | E6: Benzene Conc.* (mg/kg) | CB6: 8. Sub-surface Soil Analytical Results Table:
CC8: wall | CD8: Table 8A: Sub-surface Soil Benzene Inclusion Screening: VI Exposure Pathway
C9: b-2-5 | D9: 2017-03-27 | E9: 4.5 | CB9: On-site Structure | CD9: Lateral Distance from AOC Structure Foundation (feet)
C10: b-2-9 | D10: 2017-03-27 | E10: 3.2 | CD10: <5 | CG10: ≥5 to <15 | CJ10: ≥15 to <30
CD11: Sample ID # | CE11: Sample Date | CF11: Benzene Conc.* (mg/kg) | CG11: Sample ID # | CH11: Sample Date | CI11: Benzene Conc.* (mg/kg) | CJ11: Sample ID # | CK11: Sample Date | CL11: Benzene Conc.* (mg/kg)
CB13: fndtion
C14: b-2-11 | D14: 3/27/2017 | E14: 1.5 | CB14: Vertical Distance From Surface (feet) | CC14: <5
C15: b-2-14 | D15: 3/27/2017 | E15: 0.076
C19: Table 8B: Direct Exposure Pathways: Max Concentration Vadose Soil Analytical Results | CC19: ≥5 to <15
E20: < 30 feet from AOC structure* | H20: ≥ 30 feet from AOC structure
C21: Sample ID # | E21: b-2-5 | F21: b-2-9 | G21: b-2-11 | H21: b-3-8 | I21: b-3-15 | J21: b-4-10
C22: Sample Date | E22: 3/27/2017 | F22: 3/27/2017 | G22: 3/27/2017 | H22: 3/27/2017 | I22: 3/27/2017 | J22: 3/27/2017
C23: Depth (feet) | E23: 5 | F23: 9 | G23: 9 | H23: 8 | I23: 15 | J23: 10
C24: COCs | E24: mg/kg | F24: mg/kg | G24: mg/kg | H24: mg/kg | I24: mg/kg | J24: mg/kg | CC24: ≥15 to <30
C25: Benzene | E25: 4.5 | F25: 3.2 | G25: 1.5 | H25: 13.2 | I25: 1.6 | J25: <0.0005 | BV25: Instructions to Import The Completed Analytical Table Set to the RBTl Report Tables in a Current Risk Evaluation:
C26: Toluene | E26: 1100 | F26: 345 | G26: 96 | H26: 1400 | I26: 54 | J26: 156
C27: Ethylbenzene | E27: 25 | F27: 125 | G27: 32 | H27: 345 | I27: 67 | J27: 23
C28: Xylenes (Total) | E28: 95 | F28: 456 | G28: 88 | H28: 1300 | I28: 34 | J28: 56 | BV28: To export completed data tables to your current RBTL Report workbook: 1. From the updated analysitical results table set, copy the same red oultined cell ranges as depicted in the example table set (begining in row 119, below). 2. Within the current RBTL Report worksheet, Items # 8 and 9, paste the exact cell range copied; 3. Repeat for all other applicable cell ranges. 4. Alternatively, the entire table set may be copied and pasted in a single action to the RBTL Data Storage Worksheet. This data storage location is most easily accessed through the Dashboard, Tab # 3. Save/Restore Data. From this location, follow steps 1 through 3 above to copy and paste the applicable active cell ranges into the RBTL Report Tables.
C29: MTBE | E29: 57 | F29: 120 | G29: 23 | H29: 320 | I29: 4 | J29: 4 | CB29: * Use soil analytical data from the investigation and if applicable, UST system closure. This table does not use soil gas analytical data.
C30: EDB | E30: 5 | F30: 8 | G30: 2 | H30: 4 | I30: 1 | J30: 0.02
C31: EDC | E31: 12 | F31: 45 | G31: 25 | H31: 9 | I31: 9 | J31: 2 | CD31: Table 8B: Direct Exposure Pathways: Max Concentration Vadose Soil Analytical Results
C32: Benzo(a)pyrene TEQ | E32: 6 | F32: 34 | G32: 19 | H32: 4 | I32: 3 | J32: 0.01 | CD32: Sample Distance | CF32: < 30 feet from AOC structure* | CI32: ≥ 30 feet from AOC structure
C33: Naphthalene | E33: 5 | F33: 10 | G33: 9 | H33: 8 | I33: 7 | J33: 0.6 | CD33: Sample ID #
C34: 1-Methylnaphthalene | E34: 12 | F34: 45 | G34: 25 | H34: 9 | I34: 9 | J34: 2 | CD34: Sample Date
C35: 1,2,4-TMB | E35: 6 | F35: 34 | G35: 19 | H35: 4 | I35: 3 | J35: 0.01 | CD35: Depth (feet)
C36: Lead, Total | E36: 5 | F36: 10 | G36: 9 | H36: 8 | I36: 7 | J36: 0.6 | CD36: COCs | CF36: mg/kg | CG36: mg/kg | CH36: mg/kg | CI36: mg/kg | CJ36: mg/kg | CK36: mg/kg
C37: Table 9: Maximum Concentration Monitoring Well Analytical Results | CD37: Benzene
C38: Well ID # | E38: 1 | F38: 2 | G38: 3 | H38: 4 | I38: 5 | J38: 6 | CD38: Toluene
C39: Sample Date | E39: 3/27/2017 | F39: 3/27/2017 | G39: 3/27/2017 | H39: 3/27/2017 | I39: 3/27/2017 | J39: 3/27/2017 | CD39: Ethylbenzene
C40: COCs | E40: µg/L | F40: µg/L | G40: µg/L | H40: µg/L | I40: µg/L | J40: µg/L | CD40: Xylenes (Total)
C41: Benzene | E41: 689 | F41: 16105 | G41: 19443 | H41: 345 | I41: 32 | J41: 12566 | CD41: MTBE
C42: Toluene | E42: 1298 | F42: 65755 | G42: 77321 | H42: 532 | I42: 23 | J42: 88654 | CD42: EDB
C43: Ethylbenzene | E43: 345 | F43: 984 | G43: 1342 | H43: 435 | I43: 44 | J43: 3452 | CD43: EDC
C44: Xylenes (Total) | E44: 1200 | F44: 800 | G44: 432 | H44: 432 | I44: 77 | J44: 432 | CD44: Benzo(a)pyrene TEQ
C45: MTBE | E45: 234 | F45: 344 | G45: 334 | H45: 2 | I45: 12 | J45: 120 | CD45: Naphthalene
C46: EDB | E46: 35 | F46: 67 | G46: 43 | H46: 1 | I46: 2 | J46: 44 | CD46: 1-Methylnaphthalene
C47: EDC | E47: 678 | F47: 766 | G47: 245 | H47: 7 | I47: 5 | J47: 644 | CD47: 1,2,4-TMB
C48: Benzo(a)pyrene TEQ | E48: 35 | F48: 67 | G48: 43 | H48: 1 | I48: 2 | J48: 44 | CD48: Lead, Total
C49: Naphthalene | E49: 678 | F49: 766 | G49: 245 | H49: 7 | I49: 5 | J49: 644 | CD49: * From table 8A above, enter the three (3) highest benzene and related COC concentration analytical results
C50: 1-Methylnaphthalene | E50: 65 | F50: 54 | G50: 87 | H50: 4 | I50: 2 | J50: 30
C51: 1,2,4-TMB | E51: 345 | F51: 44 | G51: 32 | H51: 2 | I51: 1 | J51: 22 | CB51: 9. Groundwater Analytical Results Table:
C52: Lead, Total | E52: 4 | F52: 7 | G52: 23 | H52: 1 | I52: 0.002 | J52: 9
CD53: Table 9: Maximum Concentration Monitoring Well Analytical Results
CD54: Well ID #
CD55: Sample Date
CD56: COCs | CF56: µg/L | CG56: µg/L | CH56: µg/L | CI56: µg/L | CJ56: µg/L | CK56: µg/L
CD57: Benzene
CD58: Toluene
CD59: Ethylbenzene
CD60: Xylenes (Total)
CD61: MTBE
CD62: EDB
CD63: EDC
CD64: Benzo(a)pyrene TEQ
CD65: Naphthalene
CD66: 1-Methylnaphthalene
CD67: 1,2,4-TMB
CD68: Lead, Total
CA72: USTMP GRBCA RBTL REPORT ANALYTICAL DATA TABLE TEMPLATE:
CB73: Soil Direct Exposure & GW Analytical Data Table Set
CB75: 8. Sub-surface Soil Analytical Results Table:
CD77: Table 8: Maximum Concentration Vadose Soil Analytical Results
CD78: Sample ID #
CD79: Sample Date
CD80: Depth (feet)
CD81: COCs | CF81: mg/kg | CG81: mg/kg | CH81: mg/kg | CI81: mg/kg | CJ81: mg/kg | CK81: mg/kg
CD82: Benzene
CD83: Toluene
CD84: Ethylbenzene
CD85: Xylenes (Total)
CD86: MTBE
CD87: EDB
CD88: EDC
CD89: Benzo(a)pyrene TEQ
CD90: Naphthalene
CD91: 1-Methylnaphthalene
CD92: 1,2,4-TMB
CD93: Lead, Total
CB95: 9. Groundwater Analytical Results Table:
CD97: Table 9: Maximum Concentration Monitoring Well Analytical Results
CD98: Well ID #
CD99: Sample Date
CD100: COCs | CF100: µg/L | CG100: µg/L | CH100: µg/L | CI100: µg/L | CJ100: µg/L | CK100: µg/L
CD101: Benzene
CD102: Toluene
CD103: Ethylbenzene
CD104: Xylenes (Total)
CD105: MTBE
CD106: EDB
CD107: EDC
CD108: Benzo(a)pyrene TEQ
CD109: Naphthalene
CD110: 1-Methylnaphthalene
CD111: 1,2,4-TMB
CD112: Lead, Total
CA115: Only the active cells for each table may be cut and pasted directly into the RBTL Report worksheet tables (after table templates are created).
CA116: The Table set below has been modified to outline in red color the active cell ranges that can be cut and pasted directly into the RBTL Report.
CA117: NOTE: If cutting and pasting to Data Storage Worksheet only, then the entire table may be selected, copied and pasted.
CA119: EXAMPLE TABLE SET DEPICTING CELL RANGES TO COPY & PASTE INTO RBTL REPORT TABLES
CA120: USTMP GRBCA RBTL REPORT ANALYTICAL DATA TABLE TEMPLATE:
CB121: Soil Vapor Intrusion & GW Analytical Data Table Set
CB123: 8. Sub-surface Soil Analytical Results Table:
CC125: wall | CD125: Table 8A: Sub-surface Soil Benzene Inclusion Screening: VI Exposure Pathway
CB126: On-site Structure | CD126: Lateral Distance from AOC Structure Foundation (feet)
CD127: <5 | CG127: ≥5 to <15 | CJ127: ≥15 to <30
CD128: Sample ID # | CE128: Sample Date | CF128: Benzene Conc.* (mg/kg) | CG128: Sample ID # | CH128: Sample Date | CI128: Benzene Conc.* (mg/kg) | CJ128: Sample ID # | CK128: Sample Date | CL128: Benzene Conc.* (mg/kg)
CB130: fndtion
CB131: Vertical Distance From Surface (feet) | CC131: <5
CC136: ≥5 to <15
CC141: ≥15 to <30
CB146: * Use soil analytical data from the investigation and if applicable, UST system closure. This table does not use soil gas analytical data.
CD148: Table 8B: Direct Exposure Pathways: Max Concentration Vadose Soil Analytical Results
CD149: Sample Distance | CF149: < 30 feet from AOC structure* | CI149: ≥ 30 feet from AOC structure
CD150: Sample ID #
CD151: Sample Date
CD152: Depth (feet)
CD153: COCs | CF153: mg/kg | CG153: mg/kg | CH153: mg/kg | CI153: mg/kg | CJ153: mg/kg | CK153: mg/kg
CD154: Benzene
CD155: Toluene
CD156: Ethylbenzene
CD157: Xylenes (Total)
CD158: MTBE
CD159: EDB
CD160: EDC
CD161: Benzo(a)pyrene TEQ
CD162: Naphthalene
CD163: 1-Methylnaphthalene
CD164: 1,2,4-TMB
CD165: Lead, Total
CD166: * From table 8A above, enter the three (3) highest benzene and related COC concentration analytical results
CB168: 9. Groundwater Analytical Results Table:
CD170: Table 9: Maximum Concentration Monitoring Well Analytical Results
CD171: Well ID #
CD172: Sample Date
CD173: COCs | CF173: µg/L | CG173: µg/L | CH173: µg/L | CI173: µg/L | CJ173: µg/L | CK173: µg/L
CD174: Benzene
CD175: Toluene
CD176: Ethylbenzene
CD177: Xylenes (Total)
CD178: MTBE
CD179: EDB
CD180: EDC
CD181: Benzo(a)pyrene TEQ
CD182: Naphthalene
CD183: 1-Methylnaphthalene
CD184: 1,2,4-TMB
CD185: Lead, Total
GA499: Email linkt to USTMP:
GA500: Email Link to GA USTMP Staff

Sheet Reference (hidden)
L1: Refer to Appendix G of TGD-02 for the Key to the RBTL Report VI Import Table Matrix Below | Y1: Refer to Appendix G of TGD-02 for the Key to the RBTL Report Direct Exposure Import Table Matrix Below | AL1: Refer to Appendix G of TGD-02 for the Key to the COC RBTL Report Comparison Import Table Matrix Below | BO1: Vapor Intrusion Report Screening Recommendations | BZ1: qas | CA1: vol. air content (vadose zone soil) | CB1: =(θt)*(0.26/0.38) | CC1: cm3air/cm3soil | CD1: 0.301 | CE1: 0.308 | CF1: 0.267 | CN1: 4-8-2017: Ricky, something was moved on this table in the last reset version you sent me. Column CR had cells from the phys chem prop table created bc somehow COCs in CJ were shifter right into CK. When I pasted correct table, KOC names in formulas in colmn CN asked to be named, which I said yes to, but at end of KOC naming, a cirular reference message appered pointing to no cells. THE CIRCULAR MESSAGE PPEARS AT OPENING | DN1: Site Summary Report, Source of Table or Table Header Imports: For Item 1., ground water max ACL determination, tables and/or headers are pulled from the AOPC SSTL sheet GA500+ area. For Item 2., Soil benzne VI screening exceedences are pulled from teh VI Sumary Report or the "not applicable" answer is inserted from this location. For Item 3. below, the table or "not applicable" answer are inserted from this location. For Item 4., the applicable VI recommendations are inserted fromt the VI Summary Report. | DW1: AOC SSTL Report, Source of Table or Table Header Imports: The groundwater tables below are imported to the AOC SSTL Report when the "caclulate AOC SSTLs" blue button is selected. | GH1: Print Version
E2: Resident RBTLS | BN2: same table as Reference O614 | BZ2: qws | CA2: vol. h2o content (vadose zone soil) | CB2: =(θt)*(0.12/0.38) | CC2: cm3h2o/cm3soil | CD2: 0.139 | CE2: 0.142 | CF2: 0.123 | GI2: Definition | GK2: How Value Determined? | GM2: Predominant Soil Type (or Class??) | GR2: Hydrogeological Parameters and Soil Dependent Properties Table | HD2: UNUSED AREA
O3: Fuel, Water Usage, COC & Receptor Header Descriptions | U3: Acronym | AB3: Fuel, Water Usage, COC & Receptor Header Descriptions | AH3: Acronym | BB3: Fuel, Water Usage, COC & Receptor Header Descriptions | BH3: Acronym | BN3: Soil AOC RBTL VI Screening Results: Slab-on-grade Structure | BW3: =IF('RBTL Report'!$I$46<30, IF('AOC SSTL Report'!$GC$512=6,154,IF('AOC SSTL Report'!$GC$512=7,156,IF('AOC SSTL Report'!$GC$512=8,158,IF('AOC SSTL Report'!$GC$512=9,160,IF('AOC SSTL Report'!$GC$512=10,162,IF('AOC SSTL Report'!$GC$512=12,166,"")))))),"") ->  | BY3: start row | BZ3: qas | CA3: vol. air content (vadose zone soil) | CB3: θas = θt - θws | CC3: cm3air/cm3soil | CD3: 0.244 | CE3: 0.264 | CF3: 0.262 | GH3: Symbol‡ | GL3: Units | GM3: Tn - Clay | GN3: GA - CLAY* | GO3: GA - CLAY**
C4: Chemical of Concern | E4: Groundwater | G4: Groundwater | O4: Gasoline | U4: G | AB4: Gasoline | AH4: G | BB4: Gasoline | BH4: G | BN4: Chemical of Concern | BO4: Vertical Distance from Ground Surface (feet) | BQ4: Below RBTL? (Yes/NO) | BZ4: qws | CA4: vol. h2o content (vadose zone soil) | CB4: literature value | CC4: cm3h2o/cm3soil | CD4: 0.198 | CE4: 0.187 | CF4: 0.124 | GH4: hcap | GI4: thickness of capillary fringe | GK4: literature value | GL4: cm | GM4: 81.5 | GN4: 79.03898343 | GO4: 79.03898343 | GT4: How Value Determined? | GV4: Predominant Soil Class
E5: Indoor Inhalation of Vapor Emissions Resident (µg/L) | G5: Ingestion of Water Resident (µg/L) | O5: Diesel/Kerosene/Jet Fuel | U5: D/K/JF | AB5: Diesel/Kerosene/Jet Fuel | AH5: D/K/JF | BB5: Diesel/Kerosene/Jet Fuel | BH5: D/K/JF | BQ5: Lateral Distance From Foundation (feet) (Concentration is mg/kg) | BZ5: Hydrogeological Parameters and Soil Dependent Properties Table | GH5: hv | GI5: thickness of vadose zone | GK5: = Lgw - hcap | GL5: cm | GM5: site specifc | GN5: site specifc | GO5: site specifc | GR5: Symbol | GS5: Definition | GU5: Units | GV5: CLAY | GW5: SILT | GX5: SAND | GY5: BEDROCK | GZ5: DEFAULT
O6: Used Oil | U6: UO | AB6: Used Oil | AH6: UO | BB6: Used Oil | BH6: UO | BQ6: mg/kg | BR6: <5 | BS6: mg/kg | BT6: ≥5 to <15 | BU6: mg/kg | BV6: ≥15 to <30 | GH6: Ugw | GI6: GW Darcy velocity (ASTM) | GK6: = (K x i) | GL6: cm/day | GM6: site specifc | GN6: site specifc | GO6: site specifc | GR6: hcap | GS6: thickness of capillary fringe | GT6: literature value | GU6: cm | GV6: 79.04 | GW6: 107.94 | GX6: 24.88 | GY6: 5 | GZ6: 5
O7: Aviation Fuel/Leaded Gasoline/Unknown | U7: AF/LG/U | AB7: Aviation Fuel/Leaded Gasoline/Unknown | AH7: AF/LG/U | AS7: 1-22-2018 STW: RLC, The RBTL headers at left I wouldlike to modify | BB7: Aviation Fuel/Leaded Gasoline/Unknown | BH7: AF/LG/U | BN7: Benzene | BO7: <5 | BQ7: 0.1 | BR7: =IF(AND($BW$3<>"",'RBTL Report'!$GA$526),INDIRECT("'RBTL Report'!$H$"&$BW$3),"") ->  | BS7: 0.5 | BT7: =IF(AND($BW$3<>"",'RBTL Report'!$GA$526),INDIRECT("'RBTL Report'!$J$"&$BW$3),"") ->  | BU7: 10 | BV7: =IF(AND($BW$3<>"",'RBTL Report'!$GA$526),INDIRECT("'RBTL Report'!$L$"&$BW$3),"") ->  | BW7: =IF('RBTL Report'!$GA$526,COUNTIF(BR7:BV7,"No"),0) -> 0 | BY7: <5 vert total | CB7: How Value Determined? | CD7: Predominant Soil Class | CK7: Physical and Chemical Properties of Chemicals of Concern | CS7: Toxicological Properties of Chemicals of Concern | DN7: Site Summary Report: 3. Sub-surface Soil Direct Exposure Results exceeding RBTLs: | DW7: AOC SSTL Report: Resident Groundwater SSTLs | EF7: AOC SSTL Report: Non-resident Groundwater SSTLs | ER7: GA USTMP Soil Classes Defined for CLAY, SILT and SAND; Soil Dependent Propertiy Values Updated and Weight % Value Applied per Soil Texture to Soil Properties within each Soil Class. | GH7: u | GI7: GW seepage velocity (Domenico) | GK7: = (K x i) /ηeff | GL7: cm/day | GM7: site specifc | GN7: site specifc | GO7: site specifc | GR7: hv | GS7: thickness of vadose zone | GT7: = Lgw - hcap | GU7: cm | GV7: Site Specific | GW7: Site Specific | GX7: Site Specific | GY7: Site Specific | GZ7: Site Specific
O8: Drinking Water | U8: DW | AB8: Drinking Water | AH8: DW | AL8: Maximum Soil COC Sample Result | AM8: Below RBTLs | AQ8: Maximum GW COC Sample Result | AR8: Below RBTLs | BB8: Drinking Water | BH8: DW | BO8: ≥5 to <15 | BQ8: 0.5 | BR8: =IF(AND($BW$3<>"",'RBTL Report'!$GA$526),INDIRECT("'RBTL Report'!$H$"&$BW$3+1),"") ->  | BS8: 0.5 | BT8: =IF(AND($BW$3<>"",'RBTL Report'!$GA$526),INDIRECT("'RBTL Report'!$J$"&$BW$3+1),"") ->  | BU8: 10 | BV8: =IF(AND($BW$3<>"",'RBTL Report'!$GA$526),INDIRECT("'RBTL Report'!$L$"&$BW$3+1),"") ->  | BW8: =IF('RBTL Report'!$GA$526,COUNTIF(BR8:BV8,"No"),0) -> 0 | BY8: 5_15 vert ttl | BZ8: Symbol | CA8: Definition | CC8: Units | CD8: CLAY | CE8: SILT | CF8: SAND | CG8: BEDROCK | CH8: DEFAULT | CJ8: Reference Sht: | CK8: CK | CL8: CL | CM8: CM | CN8: CN | CO8: CO | CP8: CP | CQ8: CQ | CR8: CR | CS8: Reference Sheet: | CU8: CU | CV8: CV | CW8: CW | CX8: CX | CY8: CY | CZ8: CZ | DB8: Exposure Factors | DP8: Site Summary Table 4 Soil Direct Exposure | GH8: qacap | GI8: vol. air content (capillary fringe soil) | GK8: θacap = θt(0.1) | GL8: cm3air/cm3soil | GM8: =GM10*0.1 -> 0.046 | GN8: 0.04415845304 | GO8: 0.04415845304 | GR8: Ugw | GS8: GW Darcy velocity (ASTM) | GT8: = (K x i) | GU8: cm/day | GV8: Site Specific | GW8: Site Specific | GX8: Site Specific | GY8: Site Specific | GZ8: Site Specific
C9: Benzene | E9: ='AOC SSTL Report'!GN720 -> 1528.236411 | F9: ='AOC SSTL Report'!GJ754 -> 5068.324182 | G9: 5 | J9: ='AOC SSTL Report'!GN720 -> 1528.236411 | O9: Groundwater | U9: GW | AB9: Groundwater | AH9: GW | BB9: Groundwater | BH9: GW | BO9: ≥15 to <30 | BQ9: 10 | BR9: =IF(AND($BW$3<>"",'RBTL Report'!$GA$526),INDIRECT("'RBTL Report'!$H$"&$BW$3+2),"") ->  | BS9: 10 | BT9: =IF(AND($BW$3<>"",'RBTL Report'!$GA$526),INDIRECT("'RBTL Report'!$J$"&$BW$3+2),"") ->  | BU9: 10 | BV9: =IF(AND($BW$3<>"",'RBTL Report'!$GA$526),INDIRECT("'RBTL Report'!$L$"&$BW$3+2),"") ->  | BW9: =IF('RBTL Report'!$GA$526,COUNTIF(BR9:BV9,"No"),0) -> 0 | BY9: 15_30 vert ttl | BZ9: hcap* | CA9: thickness of capillary fringe | CB9: literature value | CC9: cm | CD9: 79.04 | CE9: 107.94 | CF9: 24.88 | CG9: 5 | CH9: 5 | CJ9: CHEMICALS OF CONCERN | CL9: Water | CM9: Henry's Law | CN9: Org. Carbon | CO9: Soil-Water | CP9: Diffusion Coefficient | CR9: Csatsoil | CS9: CHEMICALS OF CONCERN | CU9: Slope Factor | CW9: Reference Dose | CY9: Oral RA | CZ9: Dermal RA | DJ9: Referencce Sht: | DK9: DK | DL9: DL | DR9: Direct Exposure to Soil | DW9: Table 3: Residence Evaluated Receptor | EF9: Table 3: Nonresidence Evaluated Receptor | ER9: Table 1A: USTMP GRBCA Soil Classes: | ES9: Determination of the weight percent of the Soil Textures within each Soil Class & Determination of the total area of each Soil Class | EZ9: Definition | FB9: How Value Determined? | FD9: Predominant Soil Type | GH9: qas | GI9: vol. air content (vadose zone soil) | GK9: =(θt)*(0.26/0.38) | GL9: cm3air/cm3soil | GM9: =GM10 *(0.26/0.38) -> 0.3147368421 | GN9: 0.3021367839 | GO9: 0.2437325967 | GP9: θas = θt(0.1) | GR9: u | GS9: GW seepage velocity (Domenico) | GT9: = (K x i) /ηeff | GU9: cm/day | GV9: Site Specific | GW9: Site Specific | GX9: Site Specific | GY9: Site Specific | GZ9: Site Specific
C10: Toluene | E10: ='AOC SSTL Report'!GN721 -> 530000 | F10: ='AOC SSTL Report'!GJ755 -> 908751.395 | G10: 1000 | J10: ='AOC SSTL Report'!GN721 -> 530000 | O10: Nondrinking Water | U10: NDW | AB10: Nondrinking Water | AH10: NDW | BB10: Nondrinking Water | BH10: NDW | BN10: same table as Reference O651 | BQ10: Lat 5 total | BR10: =IF('RBTL Report'!$GA$526,COUNTIF(BR7:BR9,"No"),0) -> 0 | BS10: lat 5_15 total | BT10: =IF('RBTL Report'!$GA$526,COUNTIF(BT7:BT9,"No"),0) -> 0 | BU10: lat 15_30 total | BV10: =IF('RBTL Report'!$GA$526,COUNTIF(BV7:BV9,"No"),0) -> 0 | BW10: =SUM(BR10,BT10,BV10,0) -> 0 | BY10: lat total | BZ10: hv | CA10: thickness of vadose zone | CB10: = (Lgw - hcap)** | CC10: cm | CD10: Site Specific | CE10: Site Specific | CF10: Site Specific | CG10: Site Specific | CH10: Site Specific | CL10: Solubility | CM10: Constant | CN10: Ads. Coef. | CO10: Dist. Coeff. | CP10: in air | CQ10: in water | CU10: Oral (SFo) | CV10: Inh. (IUR) | CW10: Oral (RfDo) | CX10: Inh. (RfC) | CY10: Factor | CZ10: Factor | DF10: RBTL | DG10: SSTL | DJ10: Biodegradation (λ ) | DN10: Chemical of Concern | DP10: AOC Soil RBTL (Direct Exposure) | DR10: Maximum COC Soil Sample Result | DT10: Below RBTL? | DU10: Sample Depth | DW10: VI Pathway Modeled from AOC GWCmax Source | EF10: VI Pathway Modeled from AOC GWCmax Source | EY10: Symbol‡ | FC10: Units | FD10: Tn - Clay | FE10: GA - CLAY* | FF10: GA - CLAY** | FG10: TN - Silt | FH10: GA - SILT* | FI10: GA - SILT** | FJ10: TN - Sand | FK10: GA - SAND* | FL10: GA - SAND** | FM10: BEDROCK | FN10: DEFAULT | GH10: qt | GI10: total soil porosity | GK10: literature value | GL10: cm3/cm3soil | GM10: 0.46 | GN10: 0.4415845304 | GO10: 0.4415845304 | GP10: θas = θt - θws | GR10: qacap | GS10: vol. air content (capillary fringe soil) | GT10: θacap = θt(0.1) | GU10: cm3air/cm3soil | GV10: =GV12*0.1 -> 0.044 | GW10: =GW12*0.1 -> 0.045 | GX10: =GX12*0.1 -> 0.039 | GY10: =GY12*0.1 -> 0.03 | GZ10: =GZ12*0.1 -> 0.03
C11: Ethylbenzene | E11: ='AOC SSTL Report'!GN722 -> 5161.084956 | F11: ='AOC SSTL Report'!GJ756 -> 182462.1949 | G11: 70 | J11: ='AOC SSTL Report'!GN722 -> 5161.084956 | O11: Surface Water | U11: SW | AB11: Surface Water | AH11: SW | BB11: Surface Water | BH11: SW | BN11: Sub-surface Soil Final AOC RBTL VI Screening Results: Basement Structure | BW11: =SUM(BW7:BW9) -> 0 | BY11: vert total | BZ11: Ugw | CA11: GW Darcy velocity (ASTM) | CB11: = (K x i)** | CC11: cm/day | CD11: Site Specific | CE11: Site Specific | CF11: Site Specific | CG11: Site Specific | CH11: Site Specific | CL11: S (ug/L) | CM11: H (L-h2o/L-air) | CN11: koc (mL/g) | CO11: ks (mL/g) | CP11: Dair (cm2/s) | CQ11: Dwat (cm2/s) | CU11: (kg-day/mg) | CV11: (ug/m3)-1 | CW11: (mg/kg-day) | CX11: (mg/m3) | CY11: (RAFo) | CZ11: (RAFd) | DB11: Exposure Parameter | DD11: Symbol | DE11: Unit | DF11: Value | DG11: Value | DH11: Source | DL11: 365 | DW11: Chemical of Concern | DY11: AOC GW SSTL (VI) | EA11: Maximum COC GW Sample Result | EC11: Below SSTL? | EF11: Chemical of Concern | EH11: AOC GW SSTL (VI) | EJ11: Maximum COC GW Sample Result | EL11: Below SSTL? | EY11: hcap | EZ11: thickness of capillary fringe | FB11: literature value | FC11: cm | FD11: 81.5 | FE11: =EW64 -> 79.03898343 | FF11: =EW96 -> 79.03898343 | FG11: 163 | FH11: =EW69 -> 107.942635 | FI11: =EW112 -> 107.942635 | FJ11: 17 | FK11: =EW75 -> 24.8784186 | FL11: =EW129 -> 24.8784186 | FM11: 5 | FN11: 5 | GH11: ηeff | GI11: effective porosity | GK11: literature value | GL11: cm3/cm3soil | GM11: 0.06 | GN11: 0.06 | GO11: 0.06 | GR11: qas | GS11: vol. air content (vadose zone soil) | GT11: =(θt)*(0.26/0.38) | GU11: cm3air/cm3soil | GV11: =GV12 *(0.26/0.38) -> 0.3010526316 | GW11: =GW12 *(0.26/0.38) -> 0.3078947368 | GX11: =GX12 *(0.26/0.38) -> 0.2668421053 | GY11: =GY12 *(0.26/0.38) -> 0.2052631579 | GZ11: =GZ12 *(0.26/0.38) -> 0.2052631579
C12: Xylenes (Total) | E12: ='AOC SSTL Report'!GN723 -> 110000 | F12: ='AOC SSTL Report'!GJ757 -> 20242.82079 | G12: 10000 | J12: ='AOC SSTL Report'!GN723 -> 110000 | O12: Water Supply Intake | U12: WSI | AB12: Water Supply Intake | AH12: WSI | BB12: Water Supply Intake | BH12: WSI | BN12: Chemical of Concern | BO12: Vertical Distance from Ground Surface (feet) | BQ12: Below RBTL? (Yes/NO) | BZ12: u | CA12: GW seepage velocity (Domenico) | CB12: = (K x i) /ηeff | CC12: cm/day | CD12: Site Specific | CE12: Site Specific | CF12: Site Specific | CG12: Site Specific | CH12: Site Specific | CJ12: ORGANICS | CS12: ORGANICS | DB12: Averaging Time for Carcinogen | DD12: ATc | DE12: year | DF12: 70 | DG12: 70 | DH12: ASTM (2015) | DJ12: COC | DK12: per year | DL12: per day | ER12: CLAY | ET12: SILT | EV12: SAND | EY12: hv | EZ12: thickness of vadose zone | FB12: = Lgw - hcap | FC12: cm | FD12: Site Specific | FE12: Site Specific | FF12: Site Specific | FG12: Site Specific | FH12: Site Specific | FI12: Site Specific | FJ12: Site Specific | FK12: Site Specific | FL12: Site Specific | FM12: Site Specific | FN12: Site Specific | GH12: qwcap | GI12: vol. h2o content (capillary fringe soil) | GK12: θwcap = θt(0.9) | GL12: cm3h2o/cm3soil | GM12: =GM10*0.9 -> 0.414 | GN12: 0.3974260773 | GO12: 0.3974260773 | GR12: qt | GS12: total soil porosity | GT12: literature value | GU12: cm3/cm3soil | GV12: 0.44 | GW12: 0.45 | GX12: 0.39 | GY12: 0.3 | GZ12: 0.3
C13: MTBE | E13: ='AOC SSTL Report'!GN724 -> 176311.3308 | F13: ='AOC SSTL Report'!GJ758 -> 2048573.563 | G13: 140 | J13: ='AOC SSTL Report'!GN724 -> 176311.3308 | O13: Water & Organisms | U13: W&O | AB13: Water & Organisms | AH13: W&O | AL13: (mg/kg) | AM13: (Yes/No) | AQ13: (mg/kg) | AR13: (Yes/No) | BB13: Water & Organisms | BH13: W&O | BQ13: Lateral Distance From Foundation (feet) (Concentration is mg/kg) | BZ13: qacap* | CA13: vol. air content (capillary fringe soil) | CB13: (θacap = θt(0.1))** | CC13: cm3air/cm3soil | CD13: =CD15*0.1 -> 0.044 | CE13: =CE15*0.1 -> 0.045 | CF13: =CF15*0.1 -> 0.039 | CG13: =CG15*0.1 -> 0.03 | CH13: =CH15*0.1 -> 0.03 | CK13: Benzene | CL13: 1750000 | CM13: 0.23 | CN13: 83 | CO13: 0.83 | CP13: 0.093 | CQ13: 1.1e-05 | CR13: 1673.1 | CS13: Benzene | CU13: 0.055 | CV13: 7.8e-06 | CW13: 0.004 | CX13: 0.03 | CY13: 1 | CZ13: 0.5 | DB13: Averaging Time for Non-Carcinogen | DD13: ATn | DE13: year | DF13: =ED | DG13: =ED | DH13: ASTM (2015) | DJ13: Benzene | DK13: =DL13*$DL$11 -> 12.775 | DL13: 0.035 | EY13: Ugw | EZ13: GW Darcy velocity (ASTM) | FB13: = (K x i) | FC13: cm/day | FD13: Site Specific | FE13: Site Specific | FF13: Site Specific | FG13: Site Specific | FH13: Site Specific | FI13: Site Specific | FJ13: Site Specific | FK13: Site Specific | FL13: Site Specific | FM13: Site Specific | FN13: Site Specific | GH13: qws | GI13: vol. h2o content (vadose zone soil) | GK13: =(θt)*(0.12/0.38) | GL13: cm3h2o/cm3soil | GM13: =GM10*(0.12/0.38) -> 0.1452631579 | GN13: 0.1394477464 | GO13: 0.1978519337 | GP13: θws = θt(0.9) | GR13: ηs | GS13: effective porosity | GT13: literature value | GU13: cm3/cm3soil | GV13: 0.06 | GW13: 0.2 | GX13: 0.31 | GY13: 0.17 | GZ13: 0.17
C14: EDB | E14: ='AOC SSTL Report'!GN725 -> 90.86511825 | F14: ='AOC SSTL Report'!GJ759 -> 7483.966317 | G14: 0.05 | J14: ='AOC SSTL Report'!GN725 -> 90.86511825 | BQ14: mg/kg | BR14: <5 | BS14: mg/kg | BT14: ≥5 to <15 | BU14: mg/kg | BV14: ≥15 to <30 | BZ14: qas* | CA14: vol. air content (vadose zone soil) | CB14: (θas = θt - θws)** | CC14: cm3air/cm3soil | CD14: 0.244 | CE14: 0.264 | CF14: 0.262 | CG14: =CG15 *(0.26/0.38) -> 0.2052631579 | CH14: =CH15 *(0.26/0.38) -> 0.2052631579 | CK14: Toluene | CL14: 530000 | CM14: 0.27 | CN14: 230 | CO14: 2.3 | CP14: 0.078 | CQ14: 9.2e-06 | CR14: 793.66 | CS14: Toluene | CU14: N/A | CV14: N/A | CW14: 0.08 | CX14: 5 | CY14: 1 | CZ14: 0.5 | DB14: Body Weight: | DJ14: Toluene | DK14: =DL14*$DL$11 -> 22.63 | DL14: 0.062 | ER14: Soil Texture | ES14: (# of ▲'s / Soil Texture Class)* | ET14: Soil Texture | EU14: (# of ▲'s / Soil Texture Class)* | EV14: Soil Texture | EW14: (# of ▲'s / Soil Texture Class)* | EY14: u | EZ14: GW seepage velocity (Domenico) | FB14: = (K x i) /ηeff | FC14: cm/day | FD14: Site Specific | FE14: Site Specific | FF14: Site Specific | FG14: Site Specific | FH14: Site Specific | FI14: Site Specific | FJ14: Site Specific | FK14: Site Specific | FL14: Site Specific | FM14: Site Specific | FN14: Site Specific | FP14: Hydraulic Conductivity (K) Comparin g TN & GA Values | GH14: K | GI14: hydraulic conductivity | GK14: literature value | GL14: cm/day | GM14: 0.0864 | GN14: 12.80371271 | GO14: 12.80371271 | GP14: EPA J&E (09-2017) | GR14: qwcap | GS14: vol. h2o content (capillary fringe soil) | GT14: θwcap = θt(0.9) | GU14: cm3h2o/cm3soil | GV14: 0.397 | GW14: 0.406 | GX14: 0.347 | GY14: =GY12*0.9 -> 0.27 | GZ14: =GZ12*0.9 -> 0.27
C15: EDC | E15: ='AOC SSTL Report'!GN726 -> 2921.465262 | F15: ='AOC SSTL Report'!GJ760 -> 7501.819311 | G15: 5 | J15: ='AOC SSTL Report'!GN726 -> 2921.465262 | L15: Reference 1, Cell 1, G - GW DW & no SW receptor or any SW receptor combination OR | Y15: Reference 1, Cell 1, G - GW DW & no SW receptor or any SW receptor combination OR | AL15: Reference 1, Cell 1, G - GW DW & no SW receptor or any SW receptor combination OR | BN15: Benzene | BO15: <5 | BQ15: 0.1 | BR15: =IF(AND($BW$3<>"",'RBTL Report'!$GA$527),INDIRECT("'RBTL Report'!$H$"&$BW$3),"") ->  | BS15: 0.5 | BT15: =IF(AND($BW$3<>"",'RBTL Report'!$GA$527),INDIRECT("'RBTL Report'!$J$"&$BW$3),"") ->  | BU15: 10 | BV15: =IF(AND($BW$3<>"",'RBTL Report'!$GA$527),INDIRECT("'RBTL Report'!$L$"&$BW$3),"") ->  | BW15: =IF('RBTL Report'!$GA$527,COUNTIF(BR15:BV15,"No"),0) -> 0 | BY15: <5 vert total | BZ15: qt* | CA15: total soil porosity | CB15: literature value | CC15: cm3/cm3soil | CD15: 0.44 | CE15: 0.45 | CF15: 0.39 | CG15: 0.3 | CH15: 0.3 | CK15: Ethylbenzene | CL15: 170000 | CM15: 0.32 | CN15: 450 | CO15: 4.5 | CP15: 0.068 | CQ15: 8.5e-06 | CR15: 1982.8 | CS15: Ethylbenzene | CU15: 0.011 | CV15: 2.5e-06 | CW15: 0.1 | CX15: 1 | CY15: 1 | CZ15: 0.5 | DB15: Resident Child | DD15: BW | DE15: kg | DF15: 15 | DG15: 15 | DH15: EPA (2015) | DJ15: Ethylbenzene | DK15: 21.7175 | DL15: 0.0595 | DN15: (COC) | DP15: (mg/kg) | DR15: (mg/kg) | DT15: (Yes/No) | DU15: (feet) | DW15: (COC) | DY15: (µg/L) | EA15: (µg/L) | EC15: (Yes/No) | EF15: (COC) | EH15: (µg/L) | EJ15: (µg/L) | EL15: (Yes/No) | EY15: qacap | EZ15: vol. air content (capillary fringe soil) | FB15: θacap = θt(0.1) | FC15: cm3air/cm3soil | FD15: =FD17*0.1 -> 0.046 | FE15: =FC64 -> 0.04415845304 | FF15: =FC64 -> 0.04415845304 | FG15: =FG17*0.1 -> 0.042 | FH15: =FC69 -> 0.04507451404 | FI15: =FC69 -> 0.04507451404 | FJ15: =FJ17*0.1 -> 0.038 | FK15: =FC75 -> 0.03857953488 | FL15: =FC75 -> 0.03857953488 | FM15: =FM17*0.1 -> 0.03 | FN15: =FN17*0.1 -> 0.03 | FP15: TN Values | FQ15: CLAY | FR15: SILT | FS15: SAND | FT15: BEDROCK | FU15: DEFAULT | FV15: Reference | GH15: foc | GI15: fraction of organic carbon | GK15: literature value | GL15: g-C/g-soil | GM15: 0.01 | GN15: 0.01 | GO15: 0.01 | GR15: qws | GS15: vol. h2o content (vadose zone soil) | GT15: =(θt)*(0.12/0.38) | GU15: cm3h2o/cm3soil | GV15: =GV12*(0.12/0.38) -> 0.1389473684 | GW15: =GW12*(0.12/0.38) -> 0.1421052632 | GX15: =GX12*(0.12/0.38) -> 0.1231578947 | GY15: =GY12*(0.12/0.38) -> 0.09473684211 | GZ15: =GZ12*(0.12/0.38) -> 0.09473684211
C16: 1-Methylnaphthalene | E16: N/A | F16: ='AOC SSTL Report'!GJ761 -> N/A | G16: 11 | J16: ='AOC SSTL Report'!GN727 -> 26000 | L16: Reference 1, Cell 1, G/D/K/JF/UO - GW NDW & no SW receptor or any SW receptor | Y16: Reference 1, Cell 1, G/D/K/JF/UO - GW NDW & no SW receptor or any SW receptor | AL16: Reference 1, Cell 1, G/D/K/JF/UO - GW NDW & no SW receptor or any SW receptor | BO16: ≥5 to <15 | BQ16: 0.1 | BR16: =IF(AND($BW$3<>"",'RBTL Report'!$GA$527),INDIRECT("'RBTL Report'!$H$"&$BW$3+1),"") ->  | BS16: 0.5 | BT16: =IF(AND($BW$3<>"",'RBTL Report'!$GA$527),INDIRECT("'RBTL Report'!$J$"&$BW$3+1),"") ->  | BU16: 10 | BV16: =IF(AND($BW$3<>"",'RBTL Report'!$GA$527),INDIRECT("'RBTL Report'!$L$"&$BW$3+1),"") ->  | BW16: =IF('RBTL Report'!$GA$527,COUNTIF(BR16:BV16,"No"),0) -> 0 | BY16: 5_15 vert ttl | BZ16: ηeff+ | CA16: effective porosity | CB16: literature value | CC16: cm3/cm3soil | CD16: 0.06 | CE16: 0.2 | CF16: 0.31 | CG16: 0.17 | CH16: 0.17 | CK16: Xylenes (Total) | CL16: 110000 | CM16: 0.27 | CN16: 380 | CO16: 3.8 | CP16: 0.069 | CQ16: 8.5e-06 | CR16: 502.73 | CS16: Xylenes (Total) | CU16: N/A | CV16: N/A | CW16: 0.2 | CX16: 0.1 | CY16: 1 | CZ16: 0.5 | DB16: Resident Adult | DD16: BW | DE16: kg | DF16: 80 | DG16: 80 | DH16: EPA (2015) | DJ16: Xylenes (Total) | DK16: 9.3805 | DL16: 0.0257 | ER16: Clay | ES16: 29.75 | ET16: Silt | EU16: 3.4375 | EV16: Sand | EW16: 1 | EY16: qas | EZ16: vol. air content (vadose zone soil) | FB16: =(θt)*(0.26/0.38) | FC16: cm3air/cm3soil | FD16: =FD17 *(0.26/0.38) -> 0.3147368421 | FE16: =FG64 -> 0.3021367839 | FF16: =FS64 -> 0.2437325967 | FG16: =FG17 *(0.26/0.38) -> 0.2873684211 | FH16: =FG69 -> 0.3084045697 | FI16: =FS69 -> 0.2642030238 | FJ16: =FJ17 *(0.26/0.38) -> 0.26 | FK16: =FG75 -> 0.2639652387 | FL16: =FS75 -> 0.261944186 | FM16: =FM17 *(0.26/0.38) -> 0.2052631579 | FN16: =FN17 *(0.26/0.38) -> 0.2052631579 | FP16: cm/sec | FQ16: 1e-06 | FR16: 0.0001 | FS16: 0.01 | FT16: 1 | FU16: 1 | FV16: Fetter '94 | GH16: rs | GI16: soil dry bulk density | GK16: literature value | GL16: gsoil/cm3soil | GM16: 1.7 | GN16: 1.467734807 | GO16: 1.467734807 | GR16: K | GS16: hydraulic conductivity | GT16: literature value | GU16: cm/day | GV16: 0.0864 | GW16: 8.64 | GX16: 864 | GY16: 86400 | GZ16: 86400
C17: 1,2,4-TMB | E17: N/A | F17: ='AOC SSTL Report'!GJ762 -> N/A | G17: 56 | J17: ='AOC SSTL Report'!GN728 -> 25000 | BO17: ≥15 to <30 | BQ17: 0.5 | BR17: =IF(AND($BW$3<>"",'RBTL Report'!$GA$527),INDIRECT("'RBTL Report'!$H$"&$BW$3+2),"") ->  | BS17: 0.5 | BT17: =IF(AND($BW$3<>"",'RBTL Report'!$GA$527),INDIRECT("'RBTL Report'!$J$"&$BW$3+2),"") ->  | BU17: 10 | BV17: =IF(AND($BW$3<>"",'RBTL Report'!$GA$527),INDIRECT("'RBTL Report'!$L$"&$BW$3+2),"") ->  | BW17: =IF('RBTL Report'!$GA$527,COUNTIF(BR17:BV17,"No"),0) -> 0 | BY17: 15_30 vert ttl | BZ17: qwcap* | CA17: vol. h2o content (capillary fringe soil) | CB17: (θwcap = θt(0.9))** | CC17: cm3h2o/cm3soil | CD17: 0.397 | CE17: 0.406 | CF17: 0.347 | CG17: =CG15*0.9 -> 0.27 | CH17: =CH15*0.9 -> 0.27 | CK17: MTBE | CL17: 51000000 | CM17: 0.024 | CN17: 12 | CO17: 0.12 | CP17: 0.075 | CQ17: 8.6e-06 | CR17: 10224 | CS17: MTBE | CU17: 0.0018 | CV17: 2.6e-07 | CW17: N/A | CX17: 3 | CY17: 1 | CZ17: 0.5 | DB17: Non-residential (Commercial) Worker | DD17: BW | DE17: kg | DF17: 80 | DG17: 80 | DH17: EPA (2015) | DJ17: MTBE | DK17: 22.63 | DL17: 0.062 | ER17: Clay Loam | ES17: 6.1875 | ET17: Silt Loam | EU17: 16.5 | EV17: Loamy Sand | EW17: 3.5 | EY17: qt | EZ17: total soil porosity | FB17: literature value | FC17: cm3/cm3soil | FD17: 0.46 | FE17: =EY64 -> 0.4415845304 | FF17: =EY64 -> 0.4415845304 | FG17: 0.42 | FH17: =EY69 -> 0.4507451404 | FI17: =EY69 -> 0.4507451404 | FJ17: 0.38 | FK17: =EY75 -> 0.3857953488 | FL17: =EY75 -> 0.3857953488 | FM17: 0.3 | FN17: 0.3 | FP17: cm/day | FQ17: 0.0864 | FR17: 8.64 | FS17: 864 | FT17: 86400 | FU17: 86400 | FV17: conv. to cm/day | GH17: ‡Note: q = θ = porosity | GN17: *ASTM ('15): | GO17: **EPA J&E ('17): | GR17: foc | GS17: fraction of organic carbon | GT17: literature value | GU17: g-C/g-soil | GV17: 0.01 | GW17: 0.01 | GX17: 0.01 | GY17: 0.01 | GZ17: 0.01
C18: Benzo(a)pyrene TEQ | E18: N/A | F18: ='AOC SSTL Report'!GJ763 -> 822.2683558 | G18: 0.2 | J18: ='AOC SSTL Report'!GN729 -> 1.6 | BQ18: Lat 5 total | BR18: =IF('RBTL Report'!$GA$527,COUNTIF(BR15:BR17,"No"),0) -> 0 | BS18: lat 5_15 total | BT18: =IF('RBTL Report'!$GA$527,COUNTIF(BT15:BT17,"No"),0) -> 0 | BU18: lat 15_30 total | BV18: =IF('RBTL Report'!$GA$527,COUNTIF(BV15:BV17,"No"),0) -> 0 | BW18: =SUM(BR18,BT18,BV18,0) -> 0 | BY18: lat total | BZ18: qws* | CA18: vol. h2o content (vadose zone soil) | CB18: literature value | CC18: cm3h2o/cm3soil | CD18: 0.198 | CE18: 0.187 | CF18: 0.124 | CG18: =CG15*(0.12/0.38) -> 0.09473684211 | CH18: =CH15*(0.12/0.38) -> 0.09473684211 | CK18: EDB | CL18: 3900000 | CM18: 0.0266 | CN18: 40 | CO18: 0.4 | CP18: 0.043 | CQ18: 1e-05 | CR18: 8319.1 | CS18: EDB | CU18: 2 | CV18: 0.0006 | CW18: 0.009 | CX18: 0.009 | CY18: 1 | CZ18: 0.5 | DB18: Exposure Duration: | DJ18: EDB | DK18: 7.665 | DL18: 0.021 | ER18: Silty Clay Loam | ES18: 5 | ET18: Silty Clay Loam | EU18: 5 | EV18: Sandy Loam | EW18: 10.75 | EY18: ηeff | EZ18: effective porosity | FB18: literature value | FC18: cm3/cm3soil | FD18: 0.06 | FE18: =GE64 -> 0.06 | FF18: =GE64 -> 0.06 | FG18: 0.2 | FH18: =GE69 -> 0.2 | FI18: =GE69 -> 0.2 | FJ18: 0.31 | FK18: =GE75 -> 0.31 | FL18: =GE75 -> 0.31 | FM18: 0.175 | FN18: 0.175 | FP18: GA Values | FQ18: CLAY | FR18: SILT | FS18: SAND | FT18: BEDROCK | FU18: DEFAULT | FV18: Reference | GN18: θws, θas, θt, | GO18: θws, θas, θt, | GR18: rs | GS18: soil dry bulk density | GT18: literature value | GU18: gsoil/cm3soil | GV18: 1.47 | GW18: 1.44 | GX18: 1.63 | GY18: 1.7 | GZ18: 1.7
C19: Naphthalene | E19: ='AOC SSTL Report'!GN730 -> 31000 | F19: ='AOC SSTL Report'!GJ764 -> 2763.263111 | G19: 6 | J19: ='AOC SSTL Report'!GN730 -> 31000 | BL19: II. Vapor Intrusion Screening Results and Recommendations: | BW19: =SUM(BW15:BW17) -> 0 | BY19: vert total | BZ19: K* | CA19: hydraulic conductivity | CB19: literature value | CC19: cm/day | CD19: 12.8 | CE19: 18.82 | CF19: 58.39 | CG19: 86.4++ | CH19: 86.4++ | CK19: EDC | CL19: 8600000 | CM19: 0.048 | CN19: 40 | CO19: 0.4 | CP19: 0.086 | CQ19: 1.1e-06 | CR19: 2272.3 | CS19: EDC | CU19: 0.091 | CV19: 2.6e-05 | CW19: 0.006 | CX19: 0.007 | CY19: 1 | CZ19: 0.5 | DB19: Resident Child | DD19: ED | DE19: year | DF19: 6 | DG19: 6 | DH19: ASTM (2015) | DJ19: EDC | DK19: 1.46 | DL19: 0.004 | ER19: Silty Clay | ES19: 4 | ET19: Silty Clay | EU19: 4 | EV19: Sandy Clay Loam | EW19: 7.625 | EY19: qwcap | EZ19: vol. h2o content (capillary fringe soil) | FB19: θwcap = θt(0.9) | FC19: cm3h2o/cm3soil | FD19: =FD17*0.9 -> 0.414 | FE19: =FA64 -> 0.3974260773 | FF19: =FA64 -> 0.3974260773 | FG19: =FG17*0.9 -> 0.378 | FH19: =FA69 -> 0.4056706263 | FI19: =FA69 -> 0.4056706263 | FJ19: =FJ17*0.9 -> 0.342 | FK19: =FA75 -> 0.347215814 | FL19: =FA75 -> 0.347215814 | FM19: =FM17*0.9 -> 0.27 | FN19: =FN17*0.9 -> 0.27 | FP19: cm/hr | FQ19: =GA64 -> 0.5343646409 | FR19: =GA69 -> 0.7843196544 | FS19: =GA75 -> 2.432883721 | FV19: EPA J&E (09-2017) | GR19: RULE: hcap < Lgw
C20: Lead | E20: N/A | G20: 15 | M20: 8. Sub-surface Soil Analytical Results Table: | Z20: 8. Sub-surface Soil Analytical Results Table: | BW20: =SUM(BW10,BW18,BW11,BW19) -> 0 | BY20: all total | BZ20: foc** | CA20: fraction of organic carbon | CB20: literature value | CC20: g-C/g-soil | CD20: 0.01 | CE20: 0.01 | CF20: 0.01 | CG20: 0.01 | CH20: 0.01 | CK20: 1-Methylnaphthalene | CL20: 26000 | CM20: 0.00636 | CN20: 4900 | CO20: 49 | CP20: 0.0421 | CQ20: 7.69e-06 | CR20: 208.13 | CS20: 1-Methylnaphthalene | CU20: 0.029 | CV20: N/A | CW20: 0.07 | CX20: N/A | CY20: 1 | CZ20: 0.05 | DB20: Resident Adult | DD20: ED | DE20: year | DF20: 26 | DG20: 26 | DH20: EPA (2015) | DJ20: 1-Methylnaphthalene | DK20: 14.235 | DL20: 0.039 | ER20: Sandy Clay Loam | ES20: 7.625 | EV20: Sandy Clay | EW20: 4 | EY20: qws | EZ20: vol. h2o content (vadose zone soil) | FB20: =(θt)*(0.12/0.38) | FC20: cm3h2o/cm3soil | FD20: =FD17*(0.12/0.38) -> 0.1452631579 | FE20: =FE64 -> 0.1394477464 | FF20: =FQ64 -> 0.1978519337 | FG20: =FG17*(0.12/0.38) -> 0.1326315789 | FH20: =FE69 -> 0.1423405706 | FI20: =FQ69 -> 0.1865421166 | FJ20: =FJ17*(0.12/0.38) -> 0.12 | FK20: =FE75 -> 0.1218301102 | FL20: =FQ75 -> 0.1238511628 | FM20: =FM17*(0.12/0.38) -> 0.09473684211 | FN20: =FN17*(0.12/0.38) -> 0.09473684211 | FP20: cm/day | FQ20: =GC64 -> 12.80371271 | FR20: =GC69 -> 18.82367171 | FS20: =GC75 -> 58.3892093 | FT20: 86.4 | FU20: 86.4 | FV20: conv. to cm/day | GI20: Definition | GK20: How Value Determined? | GS20: (GA qas option) | GT20: θas = θt - θws | GU20: cm3air/cm3soil | GV20: 0.244 | GW20: 0.264 | GX20: 0.262 | GY20: 0.205 | GZ20: 0.205
BM21: 2. AOC Structure Vapor Intrusion (VI) Screening Recommendations: | BV21: =('AOC SSTL Report'!$GC$512) -> 0 | BW21: coc's | BZ21: rs* | CA21: soil dry bulk density | CB21: literature value | CC21: gsoil/cm3soil | CD21: 1.47 | CE21: 1.44 | CF21: 1.63 | CG21: 1.7 | CH21: 1.7 | CK21: 1,2,4-TMB | CL21: 25000 | CM21: 0.00636 | CN21: 4900 | CO21: 49 | CP21: 0.0421 | CQ21: 7.69e-06 | CR21: 208 | CS21: 1,2,4-TMB | CU21: N/A | CV21: N/A | CW21: 0.004 | CX21: N/A | CY21: 1 | CZ21: 0.05 | DB21: Non-residential (Commercial) Worker | DD21: ED | DE21: year | DF21: 25 | DG21: 25 | DH21: ASTM (2015) | DJ21: 1,2,4-TMB | DK21: 1.241 | DL21: 0.003 | ER21: Sandy Clay | ES21: 4 | EY21: K | EZ21: hydraulic conductivity | FB21: literature value | FC21: cm/day | FD21: 0.0864 | FE21: =GC64 -> 12.80371271 | FF21: =GC64 -> 12.80371271 | FG21: 8.64 | FH21: =GC69 -> 18.82367171 | FI21: =GC69 -> 18.82367171 | FJ21: 864 | FK21: =GC75 -> 58.3892093 | FL21: =GC75 -> 58.3892093 | FM21: 86400 | FN21: 86400 | GH21: Symbol‡ | GL21: Units | GM21: TN - Silt | GN21: GA - SILT* | GO21: GA - SILT** | GS21: (GA qws option) | GT21: EPA J&E (09-2017) | GU21: cm3air/cm3soil | GV21: 0.198 | GW21: 0.187 | GX21: 0.124 | GY21: 0.095 | GZ21: 0.095
N22: wall | O22: Table 8A: Sub-surface Soil Benzene Inclusion Screening: VI Exposure Pathway | AB22: Table 8: Maximum Concentration Vadose Soil Analytical Results | AN22: AOC Soil RBTL (Direct Exposure) (≥ 30 ft from structure) | BA22: AOC GW RBTL (Res VI) | BC22: AOC GW RBTL (Ingestion) | BF22: AOC GW RBTL (Nres VI) | BH22: AOC GW RBTL (Ingestion) | BN22: A. AOC Structure: Sub-surface Soil Recommendation: | BT22: 11-18-17, RLC: Change 12,000 to 15,000↓↓↓↓ | BZ22: RULE: hcap < Lgw | CK22: Benzo(a)pyrene TEQ | CL22: 1.6 | CM22: 1.9e-05 | CN22: 389000 | CO22: 3890 | CP22: 0.05 | CQ22: 5.8e-06 | CR22: 4.6681 | CS22: Benzo(a)pyrene TEQ | CU22: 1 | CV22: 0.0006 | CW22: 0.0003 | CX22: 2e-06 | CY22: 1 | CZ22: 0.05 | DB22: Excavation Worker - Soil | DD22: ED | DE22: year | DF22: 1 | DG22: NA | DH22: BPJ* | DJ22: Benzo(a)pyrene | DK22: 1.241 | DL22: 0.0034 | ER22: Total ▲'s in CLAY Class | ES22: =SUM(ES16:ES21) -> 56.5625 | ET22: Total ▲'s in SILT Class | EU22: =SUM(EU16:EU21) -> 28.9375 | EV22: Total ▲'s in SAND Class | EW22: =SUM(EW16:EW21) -> 26.875 | EY22: foc | EZ22: fraction of organic carbon | FB22: literature value | FC22: g-C/g-soil | FD22: 0.01 | FE22: 0.01 | FF22: 0.01 | FG22: 0.01 | FH22: 0.01 | FI22: 0.01 | FJ22: 0.01 | FK22: 0.01 | FL22: 0.01 | FM22: 0.01 | FN22: 0.01 | GH22: hcap | GI22: thickness of capillary fringe | GK22: literature value | GL22: cm | GM22: 163 | GN22: 107.942635 | GO22: 107.942635
D23: Non-resident (Commercial Worker) RBTLs | M23: On-site Structure | O23: Lateral Distance from AOC Structure Foundation (feet) | AB23: Sample ID # | AL23: Chemical of Concern | BV23: =IF('RBTL Report'!$H$46<>"",IF(OR('RBTL Report'!H46="N/A",'RBTL Report'!H46="n/a",'RBTL Report'!H46="na",'RBTL Report'!H46="NA",'RBTL Report'!H46=""),"2.a.a",IF(OR(AND(Reference!$BW$7=0,Reference!$BW$15=0 ),'RBTL Report'!$H$46>=30),"2.a.b",IF(AND('RBTL Report'!$H$46<30,BW20=0),"2.a.c",IF(AND('RBTL Report'!$H$46<30,'RBTL Report'!$GA$526,AND(BW7>0,BR10>0)),"2.a.d",IF(AND('RBTL Report'!$H$46<30,'RBTL Report'!$GA$526,OR(BW8>0,BT10>0)),"2.a.e",IF(AND('RBTL Report'!$H$46<30,'RBTL Report'!$GA$526,OR(BW9>0,BV10>0)),"2.a.f",IF(AND('RBTL Report'!$H$46<30,'RBTL Report'!$GA$527,BR18>0,BW15>0),"2.a.g",IF(AND('RBTL Report'!$H$46<30,'RBTL Report'!$GA$527,OR(BT18>0,BW17>0)),"2.a.h",IF('RBTL Report'!$H$46>=30,"2.a.i",""))))))))),"") ->  | BW23: selection | BZ23: *EPA - Documentation for EPA's Implementation of the J & E Model to Evaluate Site Specific Vapor Intrusion into Buildings, Version 6.0 (September 2017) | CK23: Naphthalene | CL23: 31000 | CM23: 0.018 | CN23: 1290 | CO23: 12.9 | CP23: 0.06 | CQ23: 8.4e-06 | CR23: 402.83 | CS23: Naphthalene | CU23: N/A | CV23: N/A | CW23: 0.02 | CX23: 0.003 | CY23: 1 | CZ23: 0.05 | DB23: Excavation Worker - Ground Water - Trench | DD23: ED | DE23: year | DF23: 1 | DG23: NA | DH23: VDEQ (2016) | DJ23: Naphthalene | DK23: 14.235 | DL23: 0.039 | EY23: rs | EZ23: soil dry bulk density | FB23: literature value | FC23: gsoil/cm3soil | FD23: 1.7 | FE23: =FY64 -> 1.467734807 | FF23: =FY64 -> 1.467734807 | FG23: 1.7 | FH23: =FY69 -> 1.437429806 | FI23: =FY69 -> 1.437429806 | FJ23: 1.7 | FK23: =FY75 -> 1.625813953 | FL23: =FY75 -> 1.625813953 | FM23: 1.7 | FN23: 1.7 | GH23: hv | GI23: thickness of vadose zone | GK23: = Lgw - hcap | GL23: cm | GM23: site specifc | GN23: site specifc | GO23: site specifc | GT23: (GA proposed) | GU23: K (cm/day) | GV23: 12.8 | GW23: 18.82 | GX23: 58.39 | GY23: ? | GZ23: ?
O24: <5 | R24: ≥5 to <15 | U24: ≥15 to <30 | AB24: Sample Date | BN24: Lateral and Vertical Distance to Structure (feet) | BP24: AOC Structure: Benzene in Sub-surface Soil VI Evaluation Recommended Action | BZ24: (The EPA soil property values have been weight % averaged for the soil textures included in each soil class. See TGD-02, Appendix F) | CJ24: METALS | CS24: DRO (TPH aliph. medium) | CU24: N/A | CV24: N/A | CW24: N/A | CX24: 0.01 | DB24: Mutagenic Exposure Duration: | ER24: *Refer to Soil Texture Triangle. The triangle contains 100 sub-triangles (▲). The area of each soil texture zone is represented by the total number of sub-▲'s contained within each defined soil Class. Loam is excluded from all three soil classes. The area of Loam is 8.25 ▲'s. | EY24: ‡Note: q = θ | FE24: *ASTM ('15): | FF24: **EPA J&E ('17): | FH24: *ASTM ('15): | FI24: **EPA J&E ('17): | FK24: *ASTM ('15): | FL24: **EPA J&E ('17): | GH24: Ugw | GI24: GW Darcy velocity (ASTM) | GK24: = (K x i) | GL24: cm/day | GM24: site specifc | GN24: site specifc | GO24: site specifc | GT24: (TN used in RAR) | GU24: K (cm/day) | GV24: 0.0864 | GW24: 8.64 | GX24: 864 | GY24: 86400 | GZ24: 86400
C25: Chemical of Concern | E25: Groundwater | G25: Groundwater | O25: Sample ID # | P25: Sample Date | Q25: Benzene Conc.* (mg/kg) | R25: Sample ID # | S25: Sample Date | T25: Benzene Conc.* (mg/kg) | U25: Sample ID # | V25: Sample Date | W25: Benzene Conc.* (mg/kg) | AB25: Depth (feet) | BZ25: **ASTM E1739-95 (Reapproved 2015) | CK25: Lead | CL25: N/A | CM25: N/A | CN25: 122 | CO25: 930 | CP25: 930 | CQ25: N/A | CR25: N/A | CS25: RRO/ORO (TPH - aliph. high) | CU25: N/A | CV25: N/A | CW25: N/A | CX25: 3 | DB25: Resident (0-2 years) | DD25: ED | DE25: year | DF25: 2 | DG25: 2 | DH25: ASTM (2015) | FE25: θws, θas, θt, | FF25: θws, θas, θt, | FH25: θws, θas, θt, | FI25: θws, θas, θt, | FK25: θws, θas, θt, | FL25: θws, θas, θt, | GH25: u | GI25: GW seepage velocity (Domenico) | GK25: = (K x i) /ηeff | GL25: cm/day | GM25: site specifc | GN25: site specifc | GO25: site specifc | GT25: (TN Ref. - Fetter '94) | GU25: K (cm/sec) | GV25: 1e-06 | GW25: 0.0001 | GX25: 0.01 | GY25: 1 | GZ25: 1
E26: Vapor Intrusion from GW Nonresident | G26: Ingestion of Water Non-resident | AB26: COCs | AD26: mg/kg | AE26: mg/kg | AF26: mg/kg | AG26: mg/kg | AH26: mg/kg | AI26: mg/kg | AL26: (COC) | AN26: (mg/kg) | BZ26: +Data Collection Handbook to Support Modeling Impacts of Radioactive Material in Soil and Building Structures, September 2015 | CS26: METALS | DB26: Resident (2-6 years) | DD26: ED | DE26: year | DF26: 4 | DG26: 4 | DH26: ASTM (2015) | GH26: qacap | GI26: vol. air content (capillary fringe soil) | GK26: θacap = θt(0.1) | GL26: cm3air/cm3soil | GM26: 0.042 | GN26: 0.04507451404 | GO26: 0.04507451404
M27: fndtion | AB27: Benzene | AL27: Benzene | AN27: 12 | BL27: 2Aa | BN27: N/A | BP27: No AOC structure is present (vacant lot). | BZ27: http://web.ead.anl.gov/resrad/datacoll/porosity.html (Arithmetic Mean) (Argonne National Lab). | CS27: Lead | CU27: N/A | CV27: N/A | CW27: N/A | CX27: N/A | CY27: 1 | CZ27: 0.001 | DB27: Resident (6-16 years) | DD27: ED | DE27: year | DF27: 10 | DG27: 10 | DH27: ASTM (2015) | EU27: Table organized by soil type in accordance with the following publication: Documentation for EPA’s Implementation of the Johnso & Ettinger Model to Evaluate Site Specific Vapor Intrusion into Buildings, Version 6.0, September 2017, Table 13, Page 70 | GH27: qas | GI27: vol. air content (vadose zone soil) | GK27: =(θt)*(0.26/0.38) | GL27: cm3air/cm3soil | GM27: 0.2873684211 | GN27: 0.3084045697 | GO27: 0.2642030238
M28: Vertical Distance From Surface (feet) | N28: <5 | AB28: Toluene | AL28: Toluene | AN28: 4900 | BZ28: ++ADEM - Alabama Risk-based Corrective Action Guidance Manual (April 2008, Revision 2) | CN28: Ricky, what is the value of the chem and tox tables below ? Should we just have the one chem and tox table (above)? | DB28: Resident (16-26 years) | DD28: ED | DE28: year | DF28: 10 | DG28: 10 | DH28: ASTM (2015) | ER28: Table 1B: Soil Texture QA/QC compared to total area of the Soil Texture Triangle | EU28: Soil Texture m m m m | EV28: Capillary Fringe Thickness* (Fetter '94) r hcap (cm) | EW28: Total Porosity* m m θt (cm3/cm3) | EX28: Volumetric Water Content Caplillary Fringe Soils θwcap (cm3/cm3) | EY28: Volumetric Air Content Capillary Fringe Soils θacap (cm3/cm3) | EZ28: Volumetric Water Content Vadose Zone Soils θws (cm3/cm3) | FA28: Volumetric Air Content Vadose Zone Soils θas (cm3/cm3) | FB28: Volumetric Water Content Foundation/wall Cracks θwcrack (cm3/cm3) | FC28: Volumetric Air Content Foundation/wall Cracks θacrack (cm3/cm3) | FD28: Volumetric Water Content Caplillary Fringe Soils θwcap (cm3/cm3) | FE28: Volumetric Air Content Capillary Fringe Soils θacap (cm3/cm3) | FF28: Volumetric Water Content Vadose Zone Soils* θws (cm3/cm3) | FG28: Volumetric Air Content Vadose Zone Soils θas (cm3/cm3) | FH28: Volumetric Water Content Foundation/wall Cracks θwcrack (cm3/cm3) | FI28: Volumetric Air Content Foundation/wall Cracks θacrack (cm3/cm3) | FJ28: Dry Bulk Density* h h h ρs (g/cm3) | FK28: Saturated Hydraulic Conductivity by Soil Texture* K (cm3/hr) | FL28: Saturated Hydraulic Conductivity Soil Texture Average K (cm3/day) | FM28: Effective Porosity h h h θeff (cm3/cm3) | GH28: qt | GI28: total soil porosity | GK28: literature value | GL28: cm3/cm3soil | GM28: 0.42 | GN28: 0.4507451404 | GO28: 0.4507451404
E29: (µg/L) | G29: (µg/L) | AB29: Ethylbenzene | AL29: Ethylbenzene | AN29: 80 | BP29: No sub-surface soil VI evaluation can be completed. All soil COC concentrations are compared to direct exposure RBTLs. Soil reevaluation required for new construction. | CD29: Predominant Soil Type | CJ29: CHEMICALS OF CONCERN | CK29: Water | CL29: Henry's Law | CM29: Org. Carbon | CN29: Soil-Water | CO29: Diffusion Coefficient | CQ29: Csatsoil | CS29: CHEMICALS OF CONCERN | CU29: Slope Factor | CW29: Reference Dose | CY29: Oral RA | CZ29: Dermal RA | DB29: Mutagenic Age Adjustment Factor: | GH29: ηeff | GI29: effective porosity | GK29: literature value | GL29: cm3/cm3soil | GM29: 0.2 | GN29: 0.2 | GO29: 0.2
C30: Benzene | E30: ='AOC SSTL Report'!GN736 -> 10966.55828 | G30: 5 | J30: ='AOC SSTL Report'!GN736 -> 10966.55828 | AB30: Xylenes (Total) | AL30: Xylenes (Total) | AN30: 580 | AQ30: ` | BA30: AOC GW RBTL (Res VI) | BC30: AOC GW RBTL (Ingestion) | BF30: AOC GW RBTL (Nres VI) | BH30: AOC GW RBTL (Ingestion) | BZ30: Symbol | CA30: Definitions | CC30: Units | CD30: Clay | CE30: Silt | CF30: Sand | CG30: Bedrock | CH30: Default | CK30: Solubility | CL30: Constant | CM30: Ads. Coef. | CN30: Dist. Coeff. | CO30: in air | CP30: in water | CU30: Oral (SFo) | CV30: Inh. (IUR) | CW30: Oral (RfDo) | CX30: Inh. (RfC) | CY30: Factor | CZ30: Factor | DB30: Resident (0-2 years) | DD30: ED | DE30: year | DF30: 10 | DG30: 10 | DH30: ASTM (2015) | DJ30: Biodegradation (λ ) | ER30: Soil Texture | ES30: # of ▲'s | GH30: qwcap | GI30: vol. h2o content (capillary fringe soil) | GK30: θwcap = θt(0.9) | GL30: cm3h2o/cm3soil | GM30: 0.378 | GN30: 0.4056706263 | GO30: 0.4056706263
C31: Toluene | E31: ='AOC SSTL Report'!GN737 -> 530000 | G31: 1000 | J31: ='AOC SSTL Report'!GN737 -> 530000 | AB31: MTBE | AL31: MTBE | AN31: 470 | BL31: 2Ab | BN31: < 30 | BP31: No sub-surface soil benzene concentrations above 0.1 mg/kg were reported or no soil investigation was necessary within thrity (30) feet of the AOC strucutre. | BZ31: hcap | CA31: thickness of capillary fringe | CC31: cm | CD31: 81.5 | CE31: 163 | CF31: 17 | CG31: 5 | CH31: 5 | CK31: (mg/L) | CL31: (L-water/L-air) | CM31: koc (mL/g) | CN31: ks (mL/g) | CO31: (cm2/s) | CP31: (cm2/s) | CU31: (kg-day/mg) | CV31: (ug/m3)-1 | CW31: (mg/kg-day) | CX31: (mg/m3) | CY31: (RAFo) | CZ31: (RAFd) | DB31: Resident (2-6 years) | DD31: ED | DE31: year | DF31: 3 | DG31: 3 | DH31: ASTM (2015) | DL31: 365 | EF31: Site Summary Report: 1. Groundwater headers | ER31: Clay | ES31: =ES16 -> 29.75 | GH31: qws | GI31: vol. h2o content (vadose zone soil) | GK31: =(θt)*(0.12/0.38) | GL31: cm3h2o/cm3soil | GM31: 0.1326315789 | GN31: 0.1423405706 | GO31: 0.1865421166
C32: Ethylbenzene | E32: ='AOC SSTL Report'!GN738 -> 37035.79718 | G32: 70 | J32: ='AOC SSTL Report'!GN738 -> 37035.79718 | AB32: Naphthalene | AL32: Naphthalene | AN32: 129 | BZ32: hv | CA32: thickness of vadose zone | CC32: cm | CD32: = Lgw - hcap | CE32: = Lgw - hcap | CF32: = Lgw - hcap | CG32: = Lgw - hcap | CH32: = Lgw - hcap | CJ32: ORGANICS | CS32: ORGANICS | DB32: Resident (6-16 years) | DD32: ED | DE32: year | DF32: 3 | DG32: 3 | DH32: ASTM (2015) | DJ32: COC | DK32: per year | DL32: per day | DN32: Site Summary Report, Item 2 - Response, when no VI screening soil benzene is above RBTLS | ER32: Clay Loam | ES32: =ES17 -> 6.1875 | GH32: K | GI32: hydraulic conductivity | GK32: literature value | GL32: cm/day | GM32: 8.64 | GN32: 18.82367171 | GO32: 18.82367171
C33: Xylenes (Total) | E33: ='AOC SSTL Report'!GN739 -> 110000 | G33: 10000 | J33: ='AOC SSTL Report'!GN739 -> 110000 | N33: ≥5 to <15 | BP33: No further evaluation is necessary for sub-surface soil in this zone. Any soil COC concentrations ≥ 30 feet from structure are compared to direct exposure RBTLs. | BZ33: Ricky,will confirm if these COC lists are needed | CK33: Gasoline/Diesel/Kerosene/Jet Fuel | CV33: Gasoline/Diesel/Kerosene/Jet Fuel | DB33: Resident (16-26 years) | DD33: ED | DE33: year | DF33: 1 | DG33: 1 | DH33: ASTM (2015) | EF33: Do not Move this Header | ER33: Loam | ES33: 8.25 | GH33: foc | GI33: fraction of organic carbon | GK33: literature value | GL33: g-C/g-soil | GM33: 0.01 | GN33: 0.01 | GO33: 0.01
C34: MTBE | E34: ='AOC SSTL Report'!GN740 -> 1265191.076 | G34: 140 | J34: ='AOC SSTL Report'!GN740 -> 1265191.076 | Z34: 9. Groundwater Analytical Results Table: | AQ34: reset cell formatting for numbers not sci not | BA34: (µg/L) | BC34: (µg/L) | BF34: (µg/L) | BH34: (µg/L) | BY34: Benzene | CB34: Benzene | CD34: Benzene | DB34: Exposure Frequency: | EJ34: Table 1: GW Alternate Concentration Limit (ACL) Determination | ER34: Loamy Sand | ES34: =$EW$17 -> 3.5 | EU34: Clay | EV34: 81.52 | EW34: 0.459 | EX34: =EW34*0.9 -> 0.4131 | EY34: =EW34*0.1 -> 0.0459 | EZ34: =EW34*(0.12/0.38) -> 0.1449473684 | FA34: =EW34*(0.26/0.38) -> 0.3140526316 | FB34: =EW34*(0.12/0.38) -> 0.1449473684 | FC34: =EW34*(0.26/0.38) -> 0.3140526316 | FD34: 0.412 | FE34: =EW34-FD34 -> 0.047 | FF34: 0.215 | FG34: =EW34-FF34 -> 0.244 | FH34: 0.215 | FI34: =EW34-FH34 -> 0.244 | FJ34: 1.43 | FK34: 0.61 | FL34: 14.6 | FM34: 0.2 | GH34: rs | GI34: soil dry bulk density | GK34: literature value | GL34: gsoil/cm3soil | GM34: 1.7 | GN34: 1.437429806 | GO34: 1.437429806
C35: EDB | E35: ='AOC SSTL Report'!GN741 -> 652.0406468 | G35: 0.05 | J35: ='AOC SSTL Report'!GN741 -> 652.0406468 | BL35: 2Ac | BN35: < 30 | BP35: Sub-surface soil benzene concentrations are below RBTLs. | BY35: Toluene | CB35: Toluene | CD35: Toluene | CJ35: CHEMICALS OF CONCERN | CK35: Water | CL35: Henry's Law | CM35: Org. Carbon | CN35: Soil-Water | CO35: Diffusion Coefficient | CQ35: Csatsoil | CS35: CHEMICALS OF CONCERN | CU35: Slope Factor | CW35: Reference Dose | CY35: Oral RA | CZ35: Dermal RA | DB35: Resident Child | DD35: EF | DE35: day/year | DF35: 350 | DG35: 350 | DH35: ASTM (2015) | DO35: No soil benzene analysis exceeded the RBTLs within thirty (30) feet of the on-site structure or structure evaluated. | EJ35: ACLs are applicable to AOC GW COCs | ER35: Sand | ES35: =$EW$16 -> 1 | EU35: Clay Loam | EV35: 46.88 | EW35: 0.442 | EX35: =EW35*0.9 -> 0.3978 | EY35: =EW35*0.1 -> 0.0442 | EZ35: =EW35*(0.12/0.38) -> 0.1395789474 | FA35: =EW35*(0.26/0.38) -> 0.3024210526 | FB35: 0.1395789474 | FC35: 0.3024210526 | FD35: 0.375 | FE35: =FC35*0.1 -> 0.03024210526 | FF35: 0.168 | FG35: =EW35-FF35 -> 0.274 | FH35: 0.168 | FI35: =EW35-FH35 -> 0.274 | FJ35: 1.48 | FK35: 0.34 | FL35: 8.16 | GH35: ‡Note: q = θ = porosity | GN35: *ASTM ('15): | GO35: **EPA J&E ('17):
C36: EDC | E36: ='AOC SSTL Report'!GN742 -> 20964.33955 | G36: 5 | J36: ='AOC SSTL Report'!GN742 -> 20964.33955 | AB36: Table 9: Maximum Concentration Monitoring Well Analytical Results | AQ36: Resident adult and child GW ingestion tables are labeled identically for RBTL import, because MCLs are the same | BY36: Ethylbenzene | CB36: Ethylbenzene | CD36: Ethylbenzene | CK36: Solubility | CL36: Constant | CM36: Ads. Coef. | CN36: Dist. Coeff. | CO36: in air | CP36: in water | CU36: Oral (SFo) | CV36: Inh. (IUR) | CW36: Oral (RfDo) | CX36: Inh. (RfC) | CY36: Factor | CZ36: Factor | DB36: Resident Adult | DD36: EF | DE36: day/year | DF36: 350 | DG36: 350 | DH36: ASTM (2015) | EJ36: AOC GW SSTL (VI) | EL36: AOC GW SSTL Protective of AOPC Receptor (most at risk) | EN36: ACL (Approval Required) | ER36: Sandy Clay | ES36: =$EW$20 -> 4 | EU36: Loam** | EV36: 37.5 | EW36: 0.399 | EX36: =EW36*0.9 -> 0.3591 | EY36: =EW36*0.1 -> 0.0399 | EZ36: =EW36*(0.12/0.38) -> 0.126 | FA36: =EW36*(0.26/0.38) -> 0.273 | FB36: 0.126 | FC36: 0.273 | FD36: 0.332 | FE36: =FC36*0.1 -> 0.0273 | FF36: 0.148 | FG36: =EW36-FF36 -> 0.251 | FH36: 0.148 | FI36: =EW36-FH36 -> 0.251 | FJ36: 1.59 | FK36: 0.5 | FL36: 12 | GN36: θws, θas, θt, | GO36: θws, θas, θt,
C37: 1-Methylnaphthalene | E37: N/A | G37: 11 | J37: ='AOC SSTL Report'!GN743 -> 26000 | AB37: Well ID # | BP37: No further evaluation is necessary for sub-surface soil in this zone. Any soil COC concentrations ≥ 30 feet from structure are compared to direct exposure RBTLs. | BY37: Total Xylenes | CB37: Total Xylenes | CD37: Total Xylenes | CK37: (mg/L) | CL37: (L-water/L-air) | CM37: koc (mL/g) | CN37: ks (mL / g) | CO37: (cm2/s) | CP37: (cm2/s) | CU37: (kg-day/mg) | CV37: (ug/m3)-1 | CW37: (mg/kg-day) | CX37: (mg/m3) | CY37: (RAFo) | CZ37: (RAFd) | DB37: Non-residential (Commercial) Worker | DD37: EF | DE37: day/year | DF37: 250 | DG37: 250 | DH37: ASTM (2015) | ER37: Sandy Clay Loam | ES37: =$EW$19 -> 7.625 | EU37: Loamy Sand | EV37: 18.75 | EW37: 0.39 | EX37: =EW37*0.9 -> 0.351 | EY37: =EW37*0.1 -> 0.039 | EZ37: =EW37*(0.12/0.38) -> 0.1231578947 | FA37: =EW37*(0.26/0.38) -> 0.2668421053 | FB37: 0.1231578947 | FC37: 0.2668421053 | FD37: 0.303 | FE37: =FC37*0.1 -> 0.02668421053 | FF37: 0.076 | FG37: =EW37-FF37 -> 0.314 | FH37: 0.076 | FI37: =EW37-FH37 -> 0.314 | FJ37: 1.62 | FK37: 4.38 | FL37: 105.12
C38: 1,2,4-TMB | E38: N/A | G38: 56 | J38: ='AOC SSTL Report'!GN744 -> 25000 | N38: ≥15 to <30 | AB38: Sample Date | AL38: Resident | BA38: Non-resident (Commercial) | BF38: Non-resident (Commercial) | BY38: MTBE | CB38: MTBE | CD38: MTBE | CJ38: ORGANICS | CS38: ORGANICS | DB38: Excavation Worker - Soil | DD38: EF | DE38: day/year | DF38: 30 | DG38: NA | DH38: ASTM (2015) | DN38: Site Summary Report, Item 3 - Response, when no direct exposure soil COCs are above RBTLS | ER38: Sandy Loam | ES38: =$EW$18 -> 10.75 | EU38: Sand | EV38: 17.05 | EW38: 0.375 | EX38: 0.3375 | EY38: 0.0375 | EZ38: 0.1184210526 | FA38: 0.2565789474 | FB38: 0.1184210526 | FC38: 0.2565789474 | FD38: 0.253 | FE38: 0.02565789474 | FF38: 0.054 | FG38: 0.321 | FH38: 0.054 | FI38: 0.321 | FJ38: 1.66 | FK38: 26.78 | FL38: 642.72 | FM38: 0.31 | GI38: Definition | GK38: How Value Determined?
C39: Benzo(a)pyrene TEQ | E39: N/A | G39: 0.2 | J39: ='AOC SSTL Report'!GN745 -> 1.6 | AB39: COCS | AD39: µg/L | AE39: µg/L | AF39: µg/L | AG39: µg/L | AH39: µg/L | AI39: µg/L | AW39: Redundant Table | BL39: 2Ad | BN39: < 5 | BP39: Slab-on-grade foundation is present and sub-surface soil benzene concentrations are above RBTLs. | BY39: EDB | CB39: EDB | CD39: EDB | CJ39: Benzene | CK39: 1750 | CL39: 0.23 | CM39: 83 | CN39: =Koc_Benzene*foc -> 0.83 | CO39: 0.093 | CP39: 1.1e-05 | CQ39: 1592.5 | CS39: Benzene | CU39: 0.055 | CV39: 7.8e-06 | CW39: 0.004 | CX39: 0.03 | CY39: 1 | CZ39: 0.5 | DB39: Excavation Worker - Ground Water - Trench | DD39: EF | DE39: day/year | DF39: 125 | DG39: NA | DH39: ASTM (2015) | ER39: Silt | ES39: =EU16 -> 3.4375 | EU39: Sandy Clay | EV39: 30 | EW39: 0.385 | EX39: 0.3465 | EY39: 0.0385 | EZ39: 0.1215789474 | FA39: 0.2634210526 | FB39: 0.1215789474 | FC39: 0.2634210526 | FD39: 0.355 | FE39: 0.02634210526 | FF39: 0.197 | FG39: 0.188 | FH39: 0.197 | FI39: 0.188 | FJ39: 1.63 | FK39: 0.47 | FL39: 11.28 | GH39: Symbol‡ | GL39: Units | GM39: TN - Sand | GN39: GA - SAND* | GO39: GA - SAND**
C40: Naphthalene | E40: ='AOC SSTL Report'!GN746 -> 31000 | G40: 6 | J40: ='AOC SSTL Report'!GN746 -> 31000 | AB40: Benzene | BY40: EDC | CB40: EDC | CD40: EDC | CJ40: Toluene | CK40: 530 | CL40: 0.27 | CM40: 230 | CN40: =Koc_Toluene*foc -> 2.3 | CO40: 0.078 | CP40: 9.2e-06 | CQ40: 767.4277778 | CS40: Toluene | CU40: N/A | CV40: N/A | CW40: 0.08 | CX40: 5 | CY40: 1 | CZ40: 0.5 | DB40: Groundwater Ingestion Rate: | DO40: No soil COC analysis exceeded the direct exposure RBTLs at thirty (30) feet or more away from the on-site structure or structure evaluated. | EF40: (COC) | EJ40: (µg/L) | EL40: (µg/L) | EN40: (µg/L) | ER40: Silt Loam | ES40: =EU17 -> 16.5 | EU40: Sandy Clay Loam | EV40: 25.86 | EW40: 0.384 | EX40: 0.3456 | EY40: 0.0384 | EZ40: 0.1212631579 | FA40: 0.2627368421 | FB40: 0.1212631579 | FC40: 0.2627368421 | FD40: 0.333 | FE40: 0.02627368421 | FF40: 0.146 | FG40: 0.238 | FH40: 0.146 | FI40: 0.238 | FJ40: 1.63 | FK40: 0.55 | FL40: 13.2 | GH40: hcap | GI40: thickness of capillary fringe | GK40: literature value | GL40: cm | GM40: 17 | GN40: 24.88272727 | GO40: 24.88272727
C41: Lead | E41: N/A | G41: 15 | AB41: Toluene | BP41: Five (5) feet of clean soil is not present. A vapor intrusion survey is necessary to confirm a complete pathway. Corrective action is necessary if pathway confirmed. | BY41: 1-Methylnaphthalene | CB41: 1-Methylnaphthalene | CD41: 1-Methylnaphthalene | CJ41: Ethylbenzene | CK41: 170 | CL41: 0.32 | CM41: 450 | CN41: =Koc_Ethylbenzene*foc -> 4.5 | CO41: 0.068 | CP41: 8.5e-06 | CQ41: 1974.648889 | CS41: Ethylbenzene | CU41: 0.011 | CV41: 2.5e-06 | CW41: 0.1 | CX41: 1 | CY41: 1 | CZ41: 0.5 | DB41: Resident Child | DD41: IRw | DE41: L/day | DF41: 0.78 | DG41: 0.78 | DH41: EPA (2015) | EH41: This cell is populated from 1-4 below | ER41: Silty Clay | ES41: =$EU$19 -> 4 | EU41: Sandy Loam | EV41: 25 | EW41: 0.387 | EX41: 0.3483 | EY41: 0.0387 | EZ41: 0.1222105263 | FA41: 0.2647894737 | FB41: 0.1222105263 | FC41: 0.2647894737 | FD41: 0.32 | FE41: 0.02647894737 | FF41: 0.103 | FG41: 0.284 | FH41: 0.103 | FI41: 0.284 | FJ41: 1.62 | FK41: 1.6 | FL41: 38.4 | GH41: hv | GI41: thickness of vadose zone | GK41: = Lgw - hcap | GL41: cm | GM41: site specifc | GN41: site specifc | GO41: site specifc
AB42: Ethylbenzene | AN42: AOC GW RBTL (Res VI) | AS42: AOC GW RBTL (Ingestion) | AX42: AOC GW RBTL (Ingestion) | BC42: AOC GW RBTL (Nres VI) | BH42: AOC GW RBTL (Ingestion) | BY42: Trimethylbenzene Ttl | CB42: Trimethylbenzene Ttl | CD42: Trimethylbenzene Ttl | CJ42: Total Xylenes | CK42: 110 | CL42: 0.27 | CM42: 380 | CN42: =Koc_Xylenes__mixed*foc -> 3.8 | CO42: 0.069 | CP42: 8.5e-06 | CQ42: 492.58 | CS42: Total Xylenes | CU42: N/A | CV42: N/A | CW42: 0.2 | CX42: 0.1 | CY42: 1 | CZ42: 0.5 | DB42: Resident Adult | DD42: IRw | DE42: L/day | DF42: 2.5 | DG42: 2.5 | DH42: EPA (2015) | EF42: 1 | EH42: 2 | EJ42: 3 | EL42: 4 | ER42: Silt Clay Loam | ES42: =$EU$18 -> 5 | EU42: Silt | EV42: 163.04 | EW42: 0.489 | EX42: 0.4401 | EY42: 0.0489 | EZ42: 0.1544210526 | FA42: 0.3345789474 | FB42: 0.1544210526 | FC42: 0.3345789474 | FD42: 0.382 | FE42: 0.03345789474 | FF42: 0.167 | FG42: 0.322 | FH42: 0.167 | FI42: 0.322 | FJ42: 1.35 | FK42: 1.82 | FL42: 43.68 | FM42: 0.06 | GH42: Ugw | GI42: GW Darcy velocity (ASTM) | GK42: = (K x i) | GL42: cm/day | GM42: site specifc | GN42: site specifc | GO42: site specifc
D43: Surface Waters RBTLs | M43: * Use soil analytical data from the investigation and if applicable, UST system closure. This table does not use soil gas analytical data. | AB43: Xylenes (Total) | AL43: Chemical of Concern | AQ43: Chemical of Concern | AV43: Chemical of Concern | BA43: Chemical of Concern | BF43: Chemical of Concern | BL43: 2Ae | BN43: ≥ 5 & <15 | BP43: Slab-on-grade foundation is present and sub-surface soil benzene concentrations are above RBTLs. | BY43: Benzo(a)pyrene | CB43: Benzo(a)pyrene | CD43: Benzo(a)pyrene | CJ43: MTBE | CK43: 51000 | CL43: 0.024 | CM43: 12 | CN43: =koc_MTBE*foc -> 0.12 | CO43: 0.075 | CP43: 8.6e-06 | CQ43: 8648.533333 | CS43: MTBE | CU43: 0.0018 | CV43: 2.6e-07 | CW43: N/A | CX43: 3 | CY43: 1 | CZ43: 0.5 | DB43: Non-residential (Commercial) Worker | DD43: IRw | DE43: L/day | DF43: 2 | DG43: 2 | DH43: ASTM (2015) | EN43: RBTL selections at left originates from Reference Sheet Columns AL to BI | ER43: Soil Text. Sb-ttl: | ES43: =SUM(ES31:ES42) -> 100 | EU43: Silt Loam | EV43: 68.18 | EW43: 0.439 | EX43: 0.3951 | EY43: 0.0439 | EZ43: 0.1386315789 | FA43: 0.3003684211 | FB43: 0.1386315789 | FC43: 0.3003684211 | FD43: 0.349 | FE43: 0.03003684211 | FF43: 0.18 | FG43: 0.259 | FH43: 0.18 | FI43: 0.259 | FJ43: 1.49 | FK43: 0.76 | FL43: 18.24 | GH43: u | GI43: GW seepage velocity (Domenico) | GK43: = (K x i) /ηeff | GL43: cm/day | GM43: site specifc | GN43: site specifc | GO43: site specifc
AB44: MTBE | BY44: Naphthalene | CB44: Naphthalene | CD44: Naphthalene | CJ44: Naphthalene | CK44: 31 | CL44: 0.018 | CM44: 1290 | CN44: =Koc_Naphthalene*foc -> 12.9 | CO44: 0.06 | CP44: 8.4e-06 | CQ44: 401.791 | CS44: Naphthalene | CU44: N/A | CV44: N/A | CW44: N/A | CX44: N/A | CY44: 1 | CZ44: 0.05 | DB44: Excavation Worker - Ground Water - Trench | DD44: IRw | DE44: L/day | DF44: 0.05 | DG44: 0.05 | DH44: VDEQ (2016) | ER44: Soil Text. ▲ Ttl: | ES44: 100 | EU44: Silty Clay | EV44: 192.13 | EW44: 0.481 | EX44: 0.4329 | EY44: 0.0481 | EZ44: 0.1518947368 | FA44: 0.3291052632 | FB44: 0.1518947368 | FC44: 0.3291052632 | FD44: 0.424 | FE44: 0.03291052632 | FF44: 0.216 | FG44: 0.265 | FH44: 0.216 | FI44: 0.265 | FJ44: 1.38 | FK44: 0.4 | FL44: 9.6 | GH44: qacap | GI44: vol. air content (capillary fringe soil) | GK44: θacap = θt(0.1) | GL44: cm3air/cm3soil | GM44: 0.038 | GN44: 0.03858181818 | GO44: 0.03858181818
C45: Chemical of Concern | E45: Surface Water | G45: Surface Water | O45: Table 8B: Direct Exposure Pathways: Max Concentration Vadose Soil Analytical Results | AB45: Naphthalene | BP45: A vapor intrusion survey, corrective action and/or other response action is necessary as determined by the Project Officer. | DB45: Skin Surface Area for Dermal Contact with Water: | EF45: AOC GW RBTL (Res VI) | EH45: AOC GW RBTL (Ingestion) | EJ45: AOC GW RBTL (Nres VI) | EL45: AOC GW RBTL (Ingestion) | EU45: Silt Clay Loam | EV45: 133.93 | EW45: 0.439 | EX45: 0.3951 | EY45: 0.0439 | EZ45: 0.1386315789 | FA45: 0.3003684211 | FB45: 0.1386315789 | FC45: 0.3003684211 | FD45: 0.399 | FE45: 0.03003684211 | FF45: 0.198 | FG45: 0.241 | FH45: 0.198 | FI45: 0.241 | FJ45: 1.37 | FK45: 0.46 | FL45: 11.04 | GH45: qas | GI45: vol. air content (vadose zone soil) | GK45: =(θt)*(0.26/0.38) | GL45: cm3air/cm3soil | GM45: 0.26 | GN45: 0.2639808612 | GO45: 0.2617818182
E46: Public Water Supply Withdrawal Point | G46: Perennial Water Body | O46: Sample Distance | Q46: < 30 feet from AOC structure* | T46: ≥ 30 feet from AOC structure | AL46: (COC) | AN46: (µg/L) | AQ46: (COC) | AS46: (µg/L) | AV46: (COC) | AX46: (µg/L) | BA46: (COC) | BC46: (µg/L) | BF46: (COC) | BH46: (µg/L) | CK46: Used Oil | CV46: Used Oil | DB46: Resident Child | DD46: SAw | DE46: cm2 | DF46: 200 | DG46: 200 | DH46: EPA (2015) | EU46: Equation: | EX46: θwcap = θt(0.9) | EY46: θacap = θt(0.1) | EZ46: =(θt)*(0.12/0.38) | FA46: =(θt)*(0.26/0.38) | FB46: =(θt)*(0.12/0.38) | FC46: =(θt)*(0.26/0.38) | FE46: θacap = θt - θwcap | FG46: θas = θt - θws | FH46: θws = θwcrack( ASTM) | FI46: θas = θacrack( ASTM) | FJ46: NA | FK46: NA | FL46: NA | GH46: qt | GI46: total soil porosity | GK46: literature value | GL46: cm3/cm3soil | GM46: 0.38 | GN46: 0.3858181818 | GO46: 0.3858181818
O47: Sample ID # | Z47: 10. Data source for soil andGW analysis results entered in this workbook: | AL47: Benzene | AN47: 16 | AQ47: Benzene | AS47: 5 | AV47: Benzene | AX47: 5 | BA47: Benzene | BC47: 69 | BF47: Benzene | BH47: 5 | BL47: 2Af | BN47: ≥ 15 & <30 | BP47: Slab-on-grade foundation is present and sub-surface soil benzene concentrations are above RBTLs. | DB47: Resident Adult | DD47: SAw | DE47: cm2 | DF47: 100 | DG47: 100 | DH47: EPA (2015) | EU47: Reference: | EV47: EPA J&E (09-2017) | EW47: EPA J&E (09-2017) | EX47: ASTM E1739-95 ('15) | EY47: ASTM E1739-95 ('15) | EZ47: ASTM E1739-95 ('15) | FA47: ASTM E1739-95 ('15) | FB47: ASTM E1739-95 ('15) | FC47: ASTM E1739-95 ('15) | FD47: EPA J&E (09-2017) | FF47: EPA J&E (09-2017) | FH47: EPA J&E (09-2017) | FJ47: EPA J&E (09-2017) | FK47: EPA J&E (09-2017) | FL47: cm/hr to cm/day | GH47: ηeff | GI47: effective porosity | GK47: literature value | GL47: cm3/cm3soil | GM47: 0.31 | GN47: 0.31 | GO47: 0.31
E48: (µg/L) | G48: (µg/L) | O48: Sample Date | AL48: Toluene | AN48: 26000 | AQ48: Toluene | AS48: 1000 | AV48: Toluene | AX48: 1000 | BA48: Toluene | BC48: 110000 | BF48: Toluene | BH48: 1000 | CJ48: CHEMICALS OF CONCERN | CK48: Water | CL48: Henry's Law | CM48: Org. Carbon | CN48: Soil-Water | CO48: Diffusion Coefficient | CQ48: Csatsoil | CU48: Slope Factor | CW48: Reference Dose | CY48: Oral RA | CZ48: Dermal RA | DB48: Non-residential (Commercial) Worker | DD48: SAw | DE48: cm2 | DF48: 50 | DG48: 50 | DH48: EPA (2015) | EU48: *Documentation for EPA's Implementation of J&E (Sept. 2017) Table 13. θws in EPA J&E (09-2017) publication, uses Genuchten adjustment factors and uses the range avereged value. | GH48: qwcap | GI48: vol. h2o content (capillary fringe soil) | GK48: θwcap = θt(0.9) | GL48: cm3h2o/cm3soil | GM48: 0.342 | GN48: 0.3472363636 | GO48: 0.3472363636
C49: Benzene | E49: 5 | G49: 51 | O49: Depth (feet) | AB49: Table 10: Report Name | AE49: Date | AF49: Table Name | AL49: Ethylbenzene | AN49: 48 | AQ49: Ethylbenzene | AS49: 70 | AV49: Ethylbenzene | AX49: 70 | BA49: Ethylbenzene | BC49: 210 | BF49: Ethylbenzene | BH49: 70 | BP49: A vapor intrusion survey, monitoring or other response action is necessary as determined by the Project Officer. | CK49: Solubility | CL49: Constant | CM49: Ads. Coef. | CN49: Dist. Coeff. | CO49: in air | CP49: in water | CS49: CHEMICALS OF CONCERN | CU49: Oral (SFo) | CV49: Inh. (IUR) | CW49: Oral (RfDo) | CX49: Inh. (RfDi) | CY49: Factor | CZ49: Factor | DB49: Excavation Worker - Ground Water - Trench | DD49: SAw | DE49: cm2 | DF49: 100 | DG49: 100 | DH49: EPA (2015) | EF49: (µg/L) | EH49: (µg/L) | EJ49: (µg/L) | EL49: (µg/L) | EU49: **Loam is not used because all thress soil clases would be sharing the same values,which would influence normalization of the classes rather than keep them distinct. | GH49: qws | GI49: vol. h2o content (vadose zone soil) | GK49: =(θt)*(0.12/0.38) | GL49: cm3h2o/cm3soil | GM49: 0.12 | GN49: 0.1218373206 | GO49: 0.1240363636
C50: Toluene | E50: 1000 | G50: 5980 | O50: COCs | Q50: mg/kg | R50: mg/kg | S50: mg/kg | T50: mg/kg | U50: mg/kg | V50: mg/kg | AB50: =IF(Reference!$H$224="", "",Reference!$H$224) ->  | AE50: =IF(Reference!$G$224="", "",Reference!$G$224) ->  | AF50: Soil Analysis Results | AL50: Xylenes (Total) | AN50: 530 | AQ50: Xylenes (Total) | AS50: 10000 | AV50: Xylenes (Total) | AX50: 10000 | BA50: Xylenes (Total) | BC50: 2200 | BF50: Xylenes (Total) | BH50: 10000 | CK50: (mg/L) | CL50: (L-water/L-air) | CM50: koc (mL/g) | CN50: ks (mL/g) | CO50: (cm2/s) | CP50: (cm2/s) | CU50: (kg-day/mg) | CV50: (ug/m3)-1 | CW50: (mg/kg-day) | CX50: (mg/kg-day) | CY50: (RAFo) | CZ50: (RAFd) | DB50: Exposure Time for Dermal Contact with Water: | FD50: ASTM 2015 | FE50: ASTM 2015 | FF50: ASTM 2015 | FG50: EPA J&E 2017 | FH50: ASTM 2015 | FI50: ASTM 2015 | FJ50: ASTM 2015 | FK50: ASTM 2015 | FL50: EPA J&E 2017 | FM50: EPA J&E 2017 | FN50: EPA J&E 2017 | FO50: EPA J&E 2017 | FP50: EPA J&E 2017 | FQ50: EPA J&E 2017 | FR50: EPA J&E 2017 | FS50: EPA J&E 2017 | GH50: K | GI50: hydraulic conductivity | GK50: literature value | GL50: cm/day | GM50: 864 | GN50: 57.80290909 | GO50: 57.80290909
C51: Ethylbenzene | E51: 700 | G51: 2100 | O51: Benzene | AF51: Groundwater Analysis Results | AL51: MTBE | AN51: 5700 | AQ51: MTBE | AS51: 140 | AV51: MTBE | AX51: 140 | BA51: MTBE | BC51: 25000 | BF51: MTBE | BH51: 140 | BL51: 2Ag | BN51: < 5 laterally and <15 feet vertically | BP51: Basement foundation is present and sub-surface soil benzene concentrations are above RBTLs. | CJ51: ORGANICS | CS51: Organics | DB51: Resident Child | DD51: tevent | DE51: hours/event | DF51: 200 | DG51: 200 | DH51: EPA (2015) | DN51: Proposed Redesigned Table Headers. IncludesRBTL Soil and GW tables, AOC GW Table and Site Summary Report Tables | ES51: Table organized by Soil Class | FF51: need to pick which θws, θas, θwacrack and θacrack to use | FJ51: EPA VALUES SELECTED (10-17-2017) | FP51: need to pick which θws, θas, θwacrack and θacrack to use | GH51: foc | GI51: fraction of organic carbon | GK51: literature value | GL51: g-C/g-soil | GM51: 0.01 | GN51: 0.01 | GO51: 0.01
C52: Xylenes (Total) | E52: 10000 | G52: 193 | O52: Toluene | Z52: STOP: Review tables for completeness. Next, select the "Compare COCs to RBTLs" button in Dashboard. | AL52: Naphthalene | AN52: 172 | AQ52: Naphthalene | AS52: 6 | AV52: Naphthalene | AX52: 6 | BA52: Naphthalene | BC52: 172 | BF52: Naphthalene | BH52: 6 | CJ52: Naphthalene | CK52: 31 | CL52: 0.018 | CM52: 1290 | CN52: =Koc_Naphthalene*foc -> 12.9 | CO52: 0.06 | CP52: 8.4e-06 | CQ52: 401.791 | CS52: Naphthalene | CU52: N/A | CV52: N/A | CW52: 0.02 | CX52: 0.003 | CY52: 1 | CZ52: 0.05 | DB52: Resident Adult | DD52: tevent | DE52: hours/event | DF52: 100 | DG52: 100 | DH52: EPA (2015) | ES52: Soil Texture g g g g | ET52: Soil Texture g g g g | EU52: Soil Texture Class Weight % g g | EV52: Capillary Fringe Thickness (Fetter '94) (hcap) (cm) | EW52: Capillary Fringe Thickness (soil text. wt. %) (hcap) (cm) | EX52: Total Porosity t t θt (cm3/cm3) | EY52: Total Porosity (soil text. wt. %) t θt (cm3/cm3) | EZ52: Volumetric Water Content Caplillary Fringe Soils θwcap (cm3/cm3) | FA52: Volumetric Water Content Cap. Fringe Soils (soil text. wt. %) θwcap (cm3/cm3) | FB52: Volumetric Air Content Capillary Fringe Soils θacap (cm3/cm3) | FC52: Volumetric Air Content Cap. Fringe Soils (soil text. wt. %) θacap (cm3/cm3) | FD52: Volumetric Water Content Vadose Zone Soils θws (cm3/cm3) | FE52: Volumetric Water Content Vadose Soils (soil text. wt. %) θws (cm3/cm3) | FF52: Volumetric Air Content Vadose Zone Soils θas (cm3/cm3) | FG52: Volumetric Air Content Vadose Soils (soil text. wt. %) θas (cm3/cm3) | FH52: Volumetric Water Content Foundation/wall Cracks θwcrack (cm3/cm3) | FI52: Volumetric Water Content Fndn/wall Cracks (soil text. wt. %) θwcrack (cm3/cm3) | FJ52: Volumetric Air Content Foundation/wall Cracks θacrack (cm3/cm3) | FK52: Volumetric Water Content Fndn/wall Cracks (soil text. wt. %) θacrack (cm3/cm3) | FL52: Volumetric Water Content Caplillary Fringe Soils θwcap (cm3/cm3) | FM52: Volumetric Water Content Cap. Fringe Soils (soil text. wt. %) θwcap (cm3/cm3) | FN52: Volumetric Air Content Capillary Fringe Soils θacap (cm3/cm3) | FO52: Volumetric Air Content Cap. Fringe Soils (soil text. wt. %) θacap (cm3/cm3) | FP52: Volumetric Water Content Vadose Zone Soils θws (cm3/cm3) | FQ52: Volumetric Water Content Vadose Soils (soil text. wt. %) θws (cm3/cm3) | FR52: Volumetric Air Content Vadose Soils (soil text. wt. %) θas (cm3/cm3) | FS52: Volumetric Air Content Vadose Soils (soil text. wt. %) θas (cm3/cm3) | FT52: Volumetric Water Content Foundation/wall Cracks θwcrack (cm3/cm3) | FU52: Volumetric Water Content Fndn/wall Cracks (soil text. wt. %) θwcrack (cm3/cm3) | FV52: Volumetric Air Content Foundation/wall Cracks θacrack (cm3/cm3) | FW52: Volumetric Air Content Fndn/wall Cracks (soil text. wt. %) θacrack (cm3/cm3) | FX52: Dry Bulk Density* g g ρs (g/cm3) | FY52: Dry Bulk Density* (soil text. wt. %) g ρs (g/cm3) | FZ52: Saturated Hydraulic Conductivity by Soil Texture* K (cm/hr) | GA52: Saturated Hydraulic Conductivity by Soil Texture* K (cm/hr) | GB52: Saturated Hydraulic Conductivity by Soil Texture* K (cm/day) | GC52: Saturated Hydraulic Conductivity (soil text. wt. %) K (cm/day) | GD52: Effective Porosity t t θeff (cm3/cm3) | GE52: Effective Porosity (soil text. wt. %) g θeff (cm3/cm3) | GH52: rs | GI52: soil dry bulk density | GK52: literature value | GL52: gsoil/cm3soil | GM52: 1.7 | GN52: 1.625727273 | GO52: 1.625727273
C53: MTBE | E53: 140 | G53: 195 | O53: Ethylbenzene | Z53: 11. Applicable RBTLs and COC Comparison Tables: | BP53: Five (5) feet of clean soil is not present. A vapor intrusion survey is necessary to confirm a complete pathway. Corrective action is necessary if pathway confirmed. | CJ53: METALS | CS53: METALS | DB53: Non-residential (Commercial) Worker | DD53: tevent | DE53: hours/event | DF53: 50 | DG53: 50 | DH53: EPA (2015) | GH53: ‡Note: q = θ = porosity | GN53: *ASTM ('15): | GO53: **EPA J&E ('17):
C54: EDB | E54: 0.05 | G54: 0.05 | O54: Xylenes (Total) | CJ54: Lead | CK54: N/A | CL54: 0 | CM54: 122 | CN54: 930 | CO54: N/A | CP54: N/A | CS54: Lead | CU54: N/A | CV54: N/A | CW54: N/A | CX54: N/A | CY54: 1 | CZ54: 0.001 | DB54: Event Frequency for Dermal Contact with Water: | GN54: θws, θas, θt, | GO54: θws, θas, θt,
C55: EDC | E55: 5 | G55: 37 | O55: MTBE | AB55: Table 11B: AOC Sub-surface Soil Direct Exposure Results | BL55: 2Ah | BN55: ≥ 5 & <15 laterally & ≥ 15 & <30 vertically | BP55: Basement foundation is present and sub-surface soil benzene concentrations are above RBTLs. | DB55: Resident Child | DD55: tevent | DE55: hours/event | DF55: 200 | DG55: 200 | DH55: EPA (2015) | EB55: 1-25-2018 STW: Table Header Design for RAR Workbook | EF55: Receptor Evaluated: | EI55: People Outside AOC Structure | EL55: ← Target
C56: 1-Methylnaphthalene | E56: 11 | G56: 17 | O56: Naphthalene | CK56: Aviation Fuel | CV56: Aviation Fuel | DB56: Resident Adult | DD56: tevent | DE56: hours/event | DF56: 100 | DG56: 100 | DH56: EPA (2015) | EF56: Pathway & Source: | EI56: Direct exp. soil screening ≥ 30 ft from structure | EL56: Current→ | GI56: Definition | GK56: How Value Determined?
C57: 1,2,4-TMB | E57: 56 | G57: 56 | O57: * From table 8A above, enter the three (3) highest benzene and related COC concentration analytical results | BP57: A vapor intrusion survey, corrective action and/or other response action is necessary as determined by the Project Officer. | DB57: Soil Ingestion Rate: | EF57: Chemical of Concern | EH57: Soil RBTL (Direct Exposure) | EJ57: Maximum COC Sample Result | EK57: Below RBTL? | EL57: update | EM57: Soil RBTL (Direct Exposure) | EO57: Maximum COC Sample Result | EP57: Below RBTL? | GH57: Symbol‡ | GL57: Units | GM57: BEDROCK | GN57: DEFAULT
C58: Benzo(a)pyrene TEQ | E58: 0.2 | G58: 0.2 | CJ58: CHEMICALS OF CONCERN | CK58: Water | CL58: Henry's Law | CM58: Org. Carbon | CN58: Soil-Water | CO58: Diffusion Coefficient | CQ58: Csatsoil | CS58: CHEMICALS OF CONCERN | CU58: Slope Factor | CW58: Reference Dose | CY58: Oral RA | CZ58: Dermal RA | DB58: Resident Child | DD58: IRsoil | DE58: mg/day | DF58: 200 | DG58: 200 | DH58: EPA (2015) | ET58: Clay | EU58: =EU88 -> 0.5259668508 | EV58: =EV34 -> 81.52 | EW58: =EV58*EU58 -> 42.87681768 | EX58: =EW34 -> 0.459 | EY58: =EX58*EU58 -> 0.2414187845 | EZ58: =EX58*(0.9) -> 0.4131 | FA58: =EZ58*EU58 -> 0.2172769061 | FB58: =EX58*(0.1) -> 0.0459 | FC58: =FB58*EU58 -> 0.02414187845 | FD58: =EX58*(0.12/0.38) -> 0.1449473684 | FE58: =EU58*FD58 -> 0.0762375109 | FF58: =EX58*(0.26/0.38) -> 0.3140526316 | FG58: =EU58*FF58 -> 0.1651812736 | FH58: =EX58*(0.12/0.38) -> 0.1449473684 | FI58: =EU58*FH58 -> 0.0762375109 | FJ58: =EX58*(0.26/0.38) -> 0.3140526316 | FK58: =EU58*FJ58 -> 0.1651812736 | FL58: 0.412 | FM58: =EU58*FL58 -> 0.2166983425 | FN58: =EX58-FL58 -> 0.047 | FO58: =EU58*FN58 -> 0.02472044199 | FP58: 0.215 | FQ58: =EU58*FP58 -> 0.1130828729 | FR58: =EX58-FP58 -> 0.244 | FS58: =EU58*FR58 -> 0.1283359116 | FT58: =FP58 -> 0.215 | FU58: =EU58*FT58 -> 0.1130828729 | FV58: =EX58-FT58 -> 0.244 | FW58: =EU58*FV58 -> 0.1283359116 | FX58: 1.43 | FY58: =EU58*FX58 -> 0.7521325967 | FZ58: 0.61 | GA58: =EU58*FZ58 -> 0.320839779 | GB58: 14.6 | GC58: =EU58*GB58 -> 7.679116022 | GE58: 0.06 | GH58: hcap | GI58: thickness of capillary fringe | GK58: literature value | GL58: cm | GM58: 5 | GN58: 5
C59: Naphthalene | E59: 6 | G59: 6 | M59: 9. Groundwater Analytical Results Table: | BL59: 2Ai | BN59: ≥ 30 | BP59: Sub-surface soil benzene concentrations exceed the VI evaluation distance and are not a VI risk. | CK59: Solubility | CL59: Constant | CM59: Ads. Coef. | CN59: Dist. Coeff. | CO59: in air | CP59: in water | CU59: Oral (SFo) | CV59: Inh. (IUR) | CW59: Oral (RfDo) | CX59: Inh. (RfC) | CY59: Factor | CZ59: Factor | DB59: Resident Adult | DD59: IRsoil | DE59: mg/day | DF59: 100 | DG59: 100 | DH59: EPA (2015) | ET59: Clay Loam | EU59: 0.1093922652 | EV59: =EV35 -> 46.88 | EW59: 5.128309392 | EX59: =EW35 -> 0.442 | EY59: 0.04835138122 | EZ59: 0.3978 | FA59: 0.04351624309 | FB59: 0.0442 | FC59: 0.004835138122 | FD59: 0.1395789474 | FE59: 0.01526885723 | FF59: 0.3024210526 | FG59: 0.03308252399 | FH59: 0.1395789474 | FI59: 0.01526885723 | FJ59: 0.3024210526 | FK59: 0.03308252399 | FL59: 0.375 | FM59: 0.04102209945 | FN59: 0.067 | FO59: 0.007329281768 | FP59: 0.168 | FQ59: 0.01837790055 | FR59: 0.274 | FS59: 0.02997348066 | FT59: 0.168 | FU59: 0.01837790055 | FV59: 0.274 | FW59: 0.02997348066 | FX59: 1.48 | FY59: 0.1619005525 | FZ59: 0.34 | GA59: 0.03719337017 | GB59: 8.16 | GC59: 0.892640884 | GH59: hv | GI59: thickness of vadose zone | GK59: = Lgw - hcap | GL59: cm | GM59: site specifc | GN59: site specifc
C60: Lead | E60: 15 | G60: 1.2 | CK60: (mg/L) | CL60: (L-water/L-air) | CM60: Koc (mL/g) | CN60: Ks (mL / g) | CO60: (cm2/s) | CP60: (cm2/s) | CU60: (kg-day/mg) | CV60: (ug/m3)-1 | CW60: (mg/kg-day) | CX60: (mg/kg-day) | CY60: (RAFo) | CZ60: (RAFd) | DB60: Non-residential (Commercial) Worker | DD60: IRsoil | DE60: mg/day | DF60: 100 | DG60: 100 | DH60: ASTM (2015) | ES60: CLAY | ET60: Silt Clay Loam | EU60: 0.08839779006 | EV60: =EV45 -> 133.93 | EW60: 11.83911602 | EX60: =EW45 -> 0.439 | EY60: 0.03880662983 | EZ60: 0.3951 | FA60: 0.03492596685 | FB60: 0.0439 | FC60: 0.003880662983 | FD60: 0.1386315789 | FE60: 0.01225472521 | FF60: 0.3003684211 | FG60: 0.02655190462 | FH60: 0.1386315789 | FI60: 0.01225472521 | FJ60: 0.3003684211 | FK60: 0.02655190462 | FL60: 0.399 | FM60: 0.03527071823 | FN60: 0.04 | FO60: 0.003535911602 | FP60: 0.198 | FQ60: 0.01750276243 | FR60: 0.241 | FS60: 0.0213038674 | FT60: 0.198 | FU60: 0.01750276243 | FV60: 0.241 | FW60: 0.0213038674 | FX60: 1.37 | FY60: 0.1211049724 | FZ60: 0.46 | GA60: 0.04066298343 | GB60: 11.04 | GC60: 0.9759116022 | GH60: Ugw | GI60: GW Darcy velocity (ASTM) | GK60: = (K x i) | GL60: cm/day | GM60: site specifc | GN60: site specifc
O61: Table 9: Maximum Concentration Monitoring Well Analytical Results | BP61: Any sub-surface soil COC concentrations ≥ 30 feet from structure are compared to direct exposure RBTLs. | CJ61: ORGANICS | CS61: ORGANICS | DB61: Excavation Worker - Soil | DD61: IRsoil | DE61: mg/day | DF61: 330 | DG61: 330 | DH61: VDEQ (2016) | EF61: (COC) | EH61: (mg/kg) | EJ61: (mg/kg) | EK61: (Yes/No) | EM61: (mg/kg) | EO61: (mg/kg) | EP61: (Yes/No) | ET61: Silty Clay | EU61: 0.07071823204 | EV61: =EV44 -> 192.13 | EW61: 13.58709392 | EX61: =EW44 -> 0.481 | EY61: 0.03401546961 | EZ61: 0.4329 | FA61: 0.03061392265 | FB61: 0.0481 | FC61: 0.003401546961 | FD61: 0.1518947368 | FE61: 0.01074172725 | FF61: 0.3291052632 | FG61: 0.02327374237 | FH61: 0.1518947368 | FI61: 0.01074172725 | FJ61: 0.3291052632 | FK61: 0.02327374237 | FL61: 0.424 | FM61: 0.02998453039 | FN61: 0.057 | FO61: 0.004030939227 | FP61: 0.216 | FQ61: 0.01527513812 | FR61: 0.265 | FS61: 0.01874033149 | FT61: 0.216 | FU61: 0.01527513812 | FV61: 0.265 | FW61: 0.01874033149 | FX61: 1.38 | FY61: 0.09759116022 | FZ61: 0.4 | GA61: 0.02828729282 | GB61: 9.6 | GC61: 0.6788950276 | GH61: u | GI61: GW seepage velocity (Domenico) | GK61: = (K x i) /ηeff | GL61: cm/day | GM61: site specifc | GN61: site specifc
D62: UST System Closure RBTLs and Sub-surface Soil to Groundwater Leaching RBTLS | O62: Well ID # | CJ62: Benzene | CK62: 1750 | CL62: 0.23 | CM62: 83 | CN62: =Koc_Benzene*foc -> 0.83 | CO62: 0.093 | CP62: 1.1e-05 | CQ62: 1592.5 | CS62: Benzene | CU62: 0.055 | CV62: 7.8e-06 | CW62: 0.004 | CX62: 0.03 | CY62: 1 | CZ62: 0.5 | DB62: Skin Surface Area for Dermal Contact with Soil: | EF62: Benzene | EH62: 12 | EJ62: 13.2 | EK62: No | ET62: Sandy Clay Loam | EU62: 0.1348066298 | EV62: =EV40 -> 25.86 | EW62: 3.486099448 | EX62: =EW40 -> 0.384 | EY62: 0.05176574586 | EZ62: 0.3456 | FA62: 0.04658917127 | FB62: 0.0384 | FC62: 0.005176574586 | FD62: 0.1212631579 | FE62: 0.01634707764 | FF62: 0.2627368421 | FG62: 0.03541866822 | FH62: 0.1212631579 | FI62: 0.01634707764 | FJ62: 0.2627368421 | FK62: 0.03541866822 | FL62: 0.333 | FM62: 0.04489060773 | FN62: 0.051 | FO62: 0.006875138122 | FP62: 0.146 | FQ62: 0.01968176796 | FR62: 0.238 | FS62: 0.0320839779 | FT62: 0.146 | FU62: 0.01968176796 | FV62: 0.238 | FW62: 0.0320839779 | FX62: 1.63 | FY62: 0.2197348066 | FZ62: 0.55 | GA62: 0.07414364641 | GB62: 13.2 | GC62: 1.779447514 | GH62: qacap | GI62: vol. air content (capillary fringe soil) | GK62: θacap = θt(0.1) | GL62: cm3air/cm3soil | GM62: 0.03 | GN62: 0.03
O63: Sample Date | CJ63: Toluene | CK63: 530 | CL63: 0.27 | CM63: 230 | CN63: =Koc_Toluene*foc -> 2.3 | CO63: 0.078 | CP63: 9.2e-06 | CQ63: 767.4277778 | CS63: Toluene | CU63: N/A | CV63: N/A | CW63: 0.08 | CX63: 5 | CY63: 1 | CZ63: 0.5 | DB63: Resident Child | DD63: Sasoil | DE63: cm2 | DF63: 2373 | DG63: 0.78 | DH63: EPA (2015) | EF63: Toluene | EH63: 4900 | EJ63: 1400 | EK63: Yes | ET63: Sandy Clay | EU63: 0.07071823204 | EV63: =EV39 -> 30 | EW63: 2.121546961 | EX63: =EW39 -> 0.385 | EY63: 0.02722651934 | EZ63: 0.3465 | FA63: 0.0245038674 | FB63: 0.0385 | FC63: 0.002722651934 | FD63: 0.1215789474 | FE63: 0.008597848212 | FF63: 0.2634210526 | FG63: 0.01862867113 | FH63: 0.1215789474 | FI63: 0.008597848212 | FJ63: 0.2634210526 | FK63: 0.01862867113 | FL63: 0.355 | FM63: 0.02510497238 | FN63: 0.03 | FO63: 0.002121546961 | FP63: 0.197 | FQ63: 0.01393149171 | FR63: 0.188 | FS63: 0.01329502762 | FT63: 0.197 | FU63: 0.01393149171 | FV63: 0.188 | FW63: 0.01329502762 | FX63: 1.63 | FY63: 0.1152707182 | FZ63: 0.47 | GA63: 0.03323756906 | GB63: 11.28 | GC63: 0.7977016575 | GH63: qas | GI63: vol. air content (vadose zone soil) | GK63: =(θt)*(0.26/0.38) | GL63: cm3air/cm3soil | GM63: 0.2052631579 | GN63: 0.2052631579
O64: COCs | Q64: µg/L | R64: µg/L | S64: µg/L | T64: µg/L | U64: µg/L | V64: µg/L | AB64: Table 11C: AOC GW Results | BN64: B. AOC Structure: Groundwater Vapor Intrusion (VI) Screening Recommendations: | CJ64: Ethylbenzene | CK64: 170 | CL64: 0.32 | CM64: 450 | CN64: =Koc_Ethylbenzene*foc -> 4.5 | CO64: 0.068 | CP64: 8.5e-06 | CQ64: 1974.648889 | CS64: Ethylbenzene | CU64: 0.011 | CV64: 2.5e-06 | CW64: 0.1 | CX64: 1 | CY64: 1 | CZ64: 0.5 | DB64: Resident Adult | DD64: Sasoil | DE64: cm2 | DF64: 6032 | DG64: 2.5 | DH64: EPA (2015) | EF64: Ethylbenzene | EH64: 80 | EJ64: 345 | EK64: No | EO64: 1-26-2018 STW, add this text to module 16 and 18 + blue & lines | ES64: Value for Class: | ET64: QAQC: | EU64: =SUM(EU58:EU63) -> 1 | EW64: =SUM(EW58:EW63) -> 79.03898343 | EY64: =SUM(EY58:EY63) -> 0.4415845304 | FA64: =SUM(FA58:FA63) -> 0.3974260773 | FC64: =SUM(FC58:FC63) -> 0.04415845304 | FE64: =SUM(FE58:FE63) -> 0.1394477464 | FG64: =SUM(FG58:FG63) -> 0.3021367839 | FI64: =SUM(FI58:FI63) -> 0.1394477464 | FK64: =SUM(FK58:FK63) -> 0.3021367839 | FM64: =SUM(FM58:FM63) -> 0.3929712707 | FO64: =SUM(FO58:FO63) -> 0.04861325967 | FQ64: =SUM(FQ58:FQ63) -> 0.1978519337 | FS64: =SUM(FS58:FS63) -> 0.2437325967 | FU64: =SUM(FU58:FU63) -> 0.1978519337 | FW64: =SUM(FW58:FW63) -> 0.2437325967 | FY64: =SUM(FY58:FY63) -> 1.467734807 | GA64: =SUM(GA58:GA63) -> 0.5343646409 | GC64: =SUM(GC58:GC63) -> 12.80371271 | GE64: =SUM(GE58:GE63) -> 0.06 | GH64: qt | GI64: total soil porosity | GK64: literature value | GL64: cm3/cm3soil | GM64: 0.3 | GN64: 0.3
O65: Benzene | BV65: =IF('RBTL Report'!$H$46<>"",IF('AOC SSTL Report'!$GF$503=0,"2.b.a",IF(AND('AOC SSTL Report'!$GF$503>0,'RBTL Report'!$GA$526,'AOC SSTL Report'!$K$19<5),"2.b.b",IF(AND(OR('RBTL Report'!H46="N/A",'RBTL Report'!H46="n/a",'RBTL Report'!H46="na",'RBTL Report'!H46="NA",'RBTL Report'!H46=""),'AOC SSTL Report'!$GF$503>0,'AOC SSTL Report'!$K$19<5),"2.b.c",IF(AND('RBTL Report'!$GA$526,'AOC SSTL Report'!$GF$503>0,'AOC SSTL Report'!$K$19>=5),"2.b.d",IF(AND('RBTL Report'!$GA$527,'AOC SSTL Report'!$GF$503>0,'AOC SSTL Report'!$K$19<15),"2.b.e",IF(AND('RBTL Report'!$GA$527,'AOC SSTL Report'!$GF$503>0,'AOC SSTL Report'!$K$19>=15),"2.b.f","")))))),"") ->  | BW65: selection | BY65: ←11-18-17, RLC: Change 12,000 to 15,000 | CJ65: Total Xylenes | CK65: 110 | CL65: 0.27 | CM65: 380 | CN65: =Koc_Xylenes__mixed*foc -> 3.8 | CO65: 0.069 | CP65: 8.5e-06 | CQ65: 492.58 | CS65: Total Xylenes | CU65: N/A | CV65: N/A | CW65: 0.2 | CX65: 0.1 | CY65: 1 | CZ65: 0.5 | DB65: Non-residential (Commercial) Worker | DD65: Sasoil | DE65: cm2 | DF65: 3527 | DG65: 1 | DH65: ASTM (2015) | EF65: Xylenes (Total) | EH65: 580 | EJ65: 1300 | EK65: No | ET65: Silt | EU65: =EU106 -> 0.1187904968 | EV65: =EV42 -> 163.04 | EW65: =EV65*EU65 -> 19.36760259 | EX65: =EW42 -> 0.489 | EY65: =EX65*EU65 -> 0.05808855292 | EZ65: =EX65*(0.9) -> 0.4401 | FA65: =EZ65*EU65 -> 0.05227969762 | FB65: =EX65*(0.1) -> 0.0489 | FC65: =FB65*EU65 -> 0.005808855292 | FD65: =EX65*(0.12/0.38) -> 0.1544210526 | FE65: =EU65*FD65 -> 0.01834375355 | FF65: =EX65*(0.26/0.38) -> 0.3345789474 | FG65: =EU65*FF65 -> 0.03974479936 | FH65: =EX65*(0.12/0.38) -> 0.1544210526 | FI65: =EU65*FH65 -> 0.01834375355 | FJ65: =EX65*(0.26/0.38) -> 0.3345789474 | FK65: =EU65*FJ65 -> 0.03974479936 | FL65: 0.382 | FM65: =EU65*FL65 -> 0.04537796976 | FN65: =EX65-FL65 -> 0.107 | FO65: =EU65*FH65 -> 0.01834375355 | FP65: 0.167 | FQ65: =EU65*FP65 -> 0.01983801296 | FR65: =EX65-FP65 -> 0.322 | FS65: =EU65*FR65 -> 0.03825053996 | FT65: =FP65 -> 0.167 | FU65: =EU65*FT65 -> 0.01983801296 | FV65: =EX65-FT65 -> 0.322 | FW65: =EU65*FV65 -> 0.03825053996 | FX65: 1.35 | FY65: =EU65*FX65 -> 0.1603671706 | FZ65: 1.82 | GA65: =EU65*FZ65 -> 0.2161987041 | GB65: 43.68 | GC65: =EU65*GB65 -> 5.188768898 | GE65: 0.2 | GH65: ηeff | GI65: effective porosity | GK65: literature value | GL65: cm3/cm3soil | GM65: 0.175 | GN65: 0.175
D66: Chemical of Concern | F66: Subsurface Soil | O66: Toluene | BN66: Depth to GW (feet) | BP66: AOC Structure: Ground Water VI Evaluation Recommended Action | CJ66: MTBE | CK66: 51000 | CL66: 0.024 | CM66: 12 | CN66: =koc_MTBE*foc -> 0.12 | CO66: 0.075 | CP66: 8.6e-06 | CQ66: 8648.533333 | CS66: MTBE | CU66: 0.0018 | CV66: 2.6e-07 | CW66: N/A | CX66: 3 | CY66: 1 | CZ66: 0.5 | DB66: Excavation Worker - Soil | DD66: Sasoil | DE66: cm2 | DF66: 3527 | DG66: NA | DH66: VDEQ (2016) | ES66: SILT | ET66: Silt Loam | EU66: =EU107 -> 0.5701943844 | EV66: =EV43 -> 68.18 | EW66: =EV66*EU66 -> 38.87585313 | EX66: =EW45 -> 0.439 | EY66: =EX66*EU66 -> 0.2503153348 | EZ66: =EX66*(0.9) -> 0.3951 | FA66: =EZ66*EU66 -> 0.2252838013 | FB66: =EX66*(0.1) -> 0.0439 | FC66: =FB66*EU66 -> 0.02503153348 | FD66: =EX66*(0.12/0.38) -> 0.1386315789 | FE66: =EU66*FD66 -> 0.07904694782 | FF66: =EX66*(0.26/0.38) -> 0.3003684211 | FG66: =EU66*FF66 -> 0.171268387 | FH66: =EX66*(0.12/0.38) -> 0.1386315789 | FI66: =EU66*FH66 -> 0.07904694782 | FJ66: =EX66*(0.26/0.38) -> 0.3003684211 | FK66: =EU66*FJ66 -> 0.171268387 | FL66: 0.349 | FM66: =EU66*FL66 -> 0.1989978402 | FN66: =EX66-FL66 -> 0.09 | FO66: =EU66*FN66 -> 0.0513174946 | FP66: 0.18 | FQ66: =EU66*FP66 -> 0.1026349892 | FR66: =EX66-FP66 -> 0.259 | FS66: =EU66*FR66 -> 0.1476803456 | FT66: =FP66 -> 0.18 | FU66: =EU66*FT66 -> 0.1026349892 | FV66: =EX66-FT66 -> 0.259 | FW66: =EU66*FV66 -> 0.1476803456 | FX66: 1.49 | FY66: =EU66*FX66 -> 0.8495896328 | FZ66: 0.76 | GA66: =EU66*FZ66 -> 0.4333477322 | GB66: 18.24 | GC66: =EU66*GB66 -> 10.40034557 | GH66: qwcap | GI66: vol. h2o content (capillary fringe soil) | GK66: θwcap = θt(0.9) | GL66: cm3h2o/cm3soil | GM66: 0.27 | GN66: 0.27
F67: Soil to Groundwater Leaching (mg/kg) | O67: Ethylbenzene | BL67: 2Ba | BN67: N/A | BP67: GW COC concentrations are below calculated AOC SSTLs. | CJ67: Naphthalene | CK67: 31 | CL67: 0.018 | CM67: 1290 | CN67: =Koc_Naphthalene*foc -> 12.9 | CO67: 0.06 | CP67: 8.4e-06 | CQ67: 401.791 | CS67: Naphthalene | CU67: N/A | CV67: N/A | CW67: 0.02 | CX67: 0.003 | CY67: 1 | CZ67: 0.05 | DB67: Soil to Skin Adherence Factor:: | EF67: Receptor Evaluated: | EK67: People Inside AOC Structure | EL67: ← Target | EP67: People Inside AOC Structure | ET67: Silt Clay Loam | EU67: =EU108 -> 0.1727861771 | EV67: =EV45 -> 133.93 | EW67: =EV67*EU67 -> 23.1412527 | EX67: =EW45 -> 0.439 | EY67: =EX67*EU67 -> 0.07585313175 | EZ67: =EX67*(0.9) -> 0.3951 | FA67: =EZ67*EU67 -> 0.06826781857 | FB67: =EX67*(0.1) -> 0.0439 | FC67: =FB67*EU67 -> 0.007585313175 | FD67: =EX67*(0.12/0.38) -> 0.1386315789 | FE67: =EU67*FD67 -> 0.02395362055 | FF67: =EX67*(0.26/0.38) -> 0.3003684211 | FG67: =EU67*FF67 -> 0.0518995112 | FH67: =EX67*(0.12/0.38) -> 0.1386315789 | FI67: =EU67*FH67 -> 0.02395362055 | FJ67: =EX67*(0.26/0.38) -> 0.3003684211 | FK67: =EU67*FJ67 -> 0.0518995112 | FL67: 0.399 | FM67: =EU67*FL67 -> 0.06894168467 | FN67: =EX67-FL67 -> 0.04 | FO67: =EU67*FN67 -> 0.006911447084 | FP67: 0.198 | FQ67: =EU67*FP67 -> 0.03421166307 | FR67: =EX67-FP67 -> 0.241 | FS67: =EU67*FR67 -> 0.04164146868 | FT67: =FP67 -> 0.198 | FU67: =EU67*FT67 -> 0.03421166307 | FV67: =EX67-FT67 -> 0.241 | FW67: =EU67*FV67 -> 0.04164146868 | FX67: 1.37 | FY67: =EU67*FX67 -> 0.2367170626 | FZ67: 0.46 | GA67: =EU67*FZ67 -> 0.07948164147 | GB67: 11.04 | GC67: =EU67*GB67 -> 1.907559395 | GH67: qws | GI67: vol. h2o content (vadose zone soil) | GK67: =(θt)*(0.12/0.38) | GL67: cm3h2o/cm3soil | GM67: 0.09473684211 | GN67: 0.09473684211
O68: Xylenes (Total) | CJ68: EDB | CK68: 3900 | CL68: 0.0266 | CM68: 40 | CN68: =Koc_EDB*foc -> 0.4 | CO68: 0.043 | CP68: 1e-05 | CQ68: 8186.576444 | CS68: EDB | CU68: 2 | CV68: 0.0006 | CW68: 0.009 | CX68: 0.009 | CY68: 1 | CZ68: 0.5 | DB68: Resident Child | DD68: AF | DE68: mg/cm2 | DF68: 0.2 | DG68: 0.2 | DH68: EPA (2015) | EF68: Pathway & Source: | EK68: Vapor Intrusion (VI) from GW screening | EL68: Current→ | EP68: Vapor Intrusion (VI) from GW screening | ET68: Silty Clay | EU68: =EU109 -> 0.1382289417 | EV68: =EV44 -> 192.13 | EW68: =EV68*EU68 -> 26.55792657 | EX68: 0.481 | EY68: =EX68*EU68 -> 0.06648812095 | EZ68: =EX68*(0.9) -> 0.4329 | FA68: =EZ68*EU68 -> 0.05983930886 | FB68: =EX68*(0.1) -> 0.0481 | FC68: =FB68*EU68 -> 0.006648812095 | FD68: =EX68*(0.12/0.38) -> 0.1518947368 | FE68: =EU68*FD68 -> 0.02099624872 | FF68: =EX68*(0.26/0.38) -> 0.3291052632 | FG68: =EU68*FF68 -> 0.04549187223 | FH68: =EX68*(0.12/0.38) -> 0.1518947368 | FI68: =EU68*FH68 -> 0.02099624872 | FJ68: =EX68*(0.26/0.38) -> 0.3291052632 | FK68: =EU68*FJ68 -> 0.04549187223 | FL68: 0.424 | FM68: =EU68*FL68 -> 0.05860907127 | FN68: =EX68-FL68 -> 0.057 | FO68: =EU68*FN68 -> 0.007879049676 | FP68: 0.216 | FQ68: =EU68*FP68 -> 0.0298574514 | FR68: =EX68-FP68 -> 0.265 | FS68: =EU68*FR68 -> 0.03663066955 | FT68: =FP68 -> 0.216 | FU68: =EU68*FT68 -> 0.0298574514 | FV68: =EX68-FT68 -> 0.265 | FW68: =EU68*FV68 -> 0.03663066955 | FX68: 1.38 | FY68: =EU68*FX68 -> 0.1907559395 | FZ68: 0.4 | GA68: =EU68*FZ68 -> 0.05529157667 | GB68: 9.6 | GC68: =EU68*GB68 -> 1.32699784 | GH68: K | GI68: hydraulic conductivity | GK68: literature value | GL68: cm/day | GM68: 86400 | GN68: 86400
O69: MTBE | BP69: No further evaluation, additional site monitoring or other response action is necessary for GW as determined by the Project Officer. | CJ69: EDC | CK69: 8600 | CL69: 0.048 | CM69: 40 | CN69: =Koc_EDC*foc -> 0.4 | CO69: 0.086 | CP69: 1.1e-06 | CQ69: 1993.68 | CS69: EDC | CU69: 0.091 | CV69: 2.6e-05 | CW69: 0.006 | CX69: 0.007 | CY69: 1 | CZ69: 0.5 | DB69: Non-residential (Commercial) Worker | DD69: AF | DE69: mg/cm2 | DF69: 0.12 | DG69: 0.12 | DH69: ASTM (2015) | EF69: Chemical of Concern | EH69: AOC GW RBTL (VI) | EJ69: Maximum COC Sample Result | EK69: Below RBTL? | EL69: update | EM69: AOC GW RBTL (VI) | EO69: Maximum COC Sample Result | EP69: Below RBTL? | ES69: Value for Class: | ET69: QAQC: | EU69: =SUM(EU65:EU68) -> 1 | EW69: =SUM(EW65:EW68) -> 107.942635 | EY69: =SUM(EY65:EY68) -> 0.4507451404 | FA69: =SUM(FA65:FA68) -> 0.4056706263 | FC69: =SUM(FC65:FC68) -> 0.04507451404 | FE69: =SUM(FE65:FE68) -> 0.1423405706 | FG69: =SUM(FG65:FG68) -> 0.3084045697 | FI69: =SUM(FI65:FI68) -> 0.1423405706 | FK69: =SUM(FK65:FK68) -> 0.3084045697 | FM69: =SUM(FM65:FM68) -> 0.3719265659 | FO69: =SUM(FO65:FO68) -> 0.08445174491 | FQ69: =SUM(FQ65:FQ68) -> 0.1865421166 | FS69: =SUM(FS65:FS68) -> 0.2642030238 | FU69: =SUM(FU65:FU68) -> 0.1865421166 | FW69: =SUM(FW65:FW68) -> 0.2642030238 | FY69: =SUM(FY65:FY68) -> 1.437429806 | GA69: =SUM(GA65:GA68) -> 0.7843196544 | GC69: =SUM(GC65:GC68) -> 18.82367171 | GE69: =SUM(GE65:GE68) -> 0.2 | GH69: foc | GI69: fraction of organic carbon | GK69: literature value | GL69: g-C/g-soil | GM69: 0.01 | GN69: 0.01
D70: Benzene | F70: 0.1 | O70: Naphthalene | CJ70: METALS | CS70: METALS | DB70: Excavation Worker - Soil | DD70: AF | DE70: mg/cm2 | DF70: 0.3 | DG70: 0.3 | DH70: VDEQ (2016) | ET70: Sand | EU70: =EU122 -> 0.03720930233 | EV70: =EV38 -> 17.05 | EW70: =EV70*EU70 -> 0.6344186047 | EX70: =EW38 -> 0.375 | EY70: =EX70*EU70 -> 0.01395348837 | EZ70: =EX70*(0.9) -> 0.3375 | FA70: =EZ70*EU70 -> 0.01255813953 | FB70: =EX70*(0.1) -> 0.0375 | FC70: =FB70*EU70 -> 0.001395348837 | FD70: =EX70*(0.12/0.38) -> 0.1184210526 | FE70: =EU70*FD70 -> 0.004406364749 | FF70: =EX70*(0.26/0.38) -> 0.2565789474 | FG70: =EU70*FF70 -> 0.009547123623 | FH70: =EX70*(0.12/0.38) -> 0.1184210526 | FI70: =EU70*FH70 -> 0.004406364749 | FJ70: =EX70*(0.26/0.38) -> 0.2565789474 | FK70: =EU70*FJ70 -> 0.009547123623 | FL70: 0.253 | FM70: =EU70*FL70 -> 0.009413953488 | FN70: =EX70-FL70 -> 0.122 | FO70: =EU70*FN70 -> 0.004539534884 | FP70: 0.054 | FQ70: =EU70*FP70 -> 0.002009302326 | FR70: =EX70-FP70 -> 0.321 | FS70: =EU70*FR70 -> 0.01194418605 | FT70: =FP70 -> 0.054 | FU70: =EU70*FT70 -> 0.002009302326 | FV70: =EX70-FT70 -> 0.321 | FW70: =EU70*FV70 -> 0.01194418605 | FX70: 1.66 | FY70: =EU70*FX70 -> 0.06176744186 | FZ70: 26.78 | GA70: =EU70*FZ70 -> 0.9964651163 | GB70: 642.72 | GC70: =EU70*GB70 -> 23.91516279 | GE70: 0.31 | GH70: rs | GI70: soil dry bulk density | GK70: literature value | GL70: gsoil/cm3soil | GM70: 1.7 | GN70: 1.7
D71: Toluene | F71: 14 | AC71: picture 35 located within this box | BL71: 2Bb | BN71: < 5 | BP71: Slab-on-grade foundation is present and groundwater COC concentrations are above AOC SSTLs. | CJ71: Lead | CK71: N/A | CL71: 0 | CM71: 122 | CN71: 930 | CO71: N/A | CP71: N/A | CS71: Lead | CU71: N/A | CV71: N/A | CW71: N/A | CX71: N/A | CY71: 1 | CZ71: 0.001 | DB71: Hourly Indoor Inhalation Rate: | ET71: Loamy Sand | EU71: =EU123 -> 0.1302325581 | EV71: =EV37 -> 18.75 | EW71: =EV71*EU71 -> 2.441860465 | EX71: =EW37 -> 0.39 | EY71: =EX71*EU71 -> 0.05079069767 | EZ71: =EX71*(0.9) -> 0.351 | FA71: =EZ71*EU71 -> 0.04571162791 | FB71: =EX71*(0.1) -> 0.039 | FC71: =FB71*EU71 -> 0.005079069767 | FD71: =EX71*(0.12/0.38) -> 0.1231578947 | FE71: =EU71*FD71 -> 0.01603916769 | FF71: =EX71*(0.26/0.38) -> 0.2668421053 | FG71: =EU71*FF71 -> 0.03475152999 | FH71: =EX71*(0.12/0.38) -> 0.1231578947 | FI71: =EU71*FH71 -> 0.01603916769 | FJ71: =EX71*(0.26/0.38) -> 0.2668421053 | FK71: =EU71*FJ71 -> 0.03475152999 | FL71: 0.303 | FM71: =EU71*FL71 -> 0.03946046512 | FN71: =EX71-FL71 -> 0.087 | FO71: =EU71*FN71 -> 0.01133023256 | FP71: 0.076 | FQ71: =EU71*FP71 -> 0.009897674419 | FR71: =EX71-FP71 -> 0.314 | FS71: =EU71*FR71 -> 0.04089302326 | FT71: =FP71 -> 0.076 | FU71: =EU71*FT71 -> 0.009897674419 | FV71: =EX71-FT71 -> 0.314 | FW71: =EU71*FV71 -> 0.04089302326 | FX71: 1.62 | FY71: =EU71*FX71 -> 0.2109767442 | FZ71: 4.38 | GA71: =EU71*FZ71 -> 0.5704186047 | GB71: 105.12 | GC71: =EU71*GB71 -> 13.69004651 | GH71: ‡Note: q = θ = porosity
D72: Ethylbenzene | F72: 16 | M72: 10. Data source for soil and GW analysis results entered in this workbook: | DB72: Resident Child | DD72: IRair-indoor | DE72: m3/day | DF72: 15 | DG72: 15 | DH72: EPA (2015) | ES72: SAND | ET72: Sandy Loam | EU72: =EU124 -> 0.4 | EV72: =EV41 -> 25 | EW72: =EV72*EU72 -> 10 | EX72: =EW41 -> 0.387 | EY72: =EX72*EU72 -> 0.1548 | EZ72: =EX72*(0.9) -> 0.3483 | FA72: =EZ72*EU72 -> 0.13932 | FB72: =EX72*(0.1) -> 0.0387 | FC72: =FB72*EU72 -> 0.01548 | FD72: =EX72*(0.12/0.38) -> 0.1222105263 | FE72: =EU72*FD72 -> 0.04888421053 | FF72: =EX72*(0.26/0.38) -> 0.2647894737 | FG72: =EU72*FF72 -> 0.1059157895 | FH72: =EX72*(0.12/0.38) -> 0.1222105263 | FI72: =EU72*FH72 -> 0.04888421053 | FJ72: =EX72*(0.26/0.38) -> 0.2647894737 | FK72: =EU72*FJ72 -> 0.1059157895 | FL72: 0.32 | FM72: =EU72*FL72 -> 0.128 | FN72: =EX72-FL72 -> 0.067 | FO72: =EU72*FN72 -> 0.0268 | FP72: 0.103 | FQ72: =EU72*FP72 -> 0.0412 | FR72: =EX72-FP72 -> 0.284 | FS72: =EU72*FR72 -> 0.1136 | FT72: =FP72 -> 0.103 | FU72: =EU72*FT72 -> 0.0412 | FV72: =EX72-FT72 -> 0.284 | FW72: =EU72*FV72 -> 0.1136 | FX72: 1.62 | FY72: =EU72*FX72 -> 0.648 | FZ72: 1.6 | GA72: =EU72*FZ72 -> 0.64 | GB72: 38.4 | GC72: =EU72*GB72 -> 15.36
D73: Xylenes (Total) | F73: 200 | BP73: Five (5) feet of clean soil is not present. A vapor intrusion survey is necessary to confirm a complete pathway. Corrective action is necessary if pathway confirmed. | DB73: Resident Adult | DD73: IRair-indoor | DE73: m3/day | DF73: 15 | DG73: 15 | DH73: EPA (2015) | EF73: (COC) | EH73: (µg/L) | EJ73: (µg/L) | EK73: (Yes/No) | EM73: (µg/L) | EO73: (µg/L) | EP73: (Yes/No) | ET73: Sandy Clay Loam | EU73: =EU125 -> 0.2837209302 | EV73: =EV40 -> 25.86 | EW73: =EV73*EU73 -> 7.337023256 | EX73: =EW40 -> 0.384 | EY73: =EX73*EU73 -> 0.1089488372 | EZ73: =EX73*(0.9) -> 0.3456 | FA73: =EZ73*EU73 -> 0.09805395349 | FB73: =EX73*(0.1) -> 0.0384 | FC73: =FB73*EU73 -> 0.01089488372 | FD73: =EX73*(0.12/0.38) -> 0.1212631579 | FE73: =EU73*FD73 -> 0.03440489596 | FF73: =EX73*(0.26/0.38) -> 0.2627368421 | FG73: =EU73*FF73 -> 0.07454394125 | FH73: =EX73*(0.12/0.38) -> 0.1212631579 | FI73: =EU73*FH73 -> 0.03440489596 | FJ73: =EX73*(0.26/0.38) -> 0.2627368421 | FK73: =EU73*FJ73 -> 0.07454394125 | FL73: 0.333 | FM73: =EU73*FL73 -> 0.09447906977 | FN73: =EX73-FL73 -> 0.051 | FO73: =EU73*FN73 -> 0.01446976744 | FP73: 0.146 | FQ73: =EU73*FP73 -> 0.04142325581 | FR73: =EX73-FP73 -> 0.238 | FS73: =EU73*FR73 -> 0.0675255814 | FT73: =FP73 -> 0.146 | FU73: =EU73*FT73 -> 0.04142325581 | FV73: =EX73-FT73 -> 0.238 | FW73: =EU73*FV73 -> 0.0675255814 | FX73: 1.63 | FY73: =EU73*FX73 -> 0.4624651163 | FZ73: 0.55 | GA73: =EU73*FZ73 -> 0.1560465116 | GB73: 13.2 | GC73: =EU73*GB73 -> 3.745116279
D74: MTBE | F74: 1 | O74: Table 10: Report Name | R74: Date | S74: Table Name | DB74: Non-residential (Commercial) Worker | DD74: IRair-indoor | DE74: m3/day | DF74: 20 | DG74: 20 | DH74: EPA (2015) | EF74: Benzene | EH74: 69 | EJ74: 19443 | EK74: NO | ET74: Sandy Clay | EU74: =EU126 -> 0.1488372093 | EV74: =EV39 -> 30 | EW74: =EV74*EU74 -> 4.465116279 | EX74: =EW39 -> 0.385 | EY74: =EX74*EU74 -> 0.05730232558 | EZ74: =EX74*(0.9) -> 0.3465 | FA74: =EZ74*EU74 -> 0.05157209302 | FB74: =EX74*(0.1) -> 0.0385 | FC74: =FB74*EU74 -> 0.005730232558 | FD74: =EX74*(0.12/0.38) -> 0.1215789474 | FE74: =EU74*FD74 -> 0.01809547124 | FF74: =EX74*(0.26/0.38) -> 0.2634210526 | FG74: =EU74*FF74 -> 0.03920685435 | FH74: =EX74*(0.12/0.38) -> 0.1215789474 | FI74: =EU74*FH74 -> 0.01809547124 | FJ74: =EX74*(0.26/0.38) -> 0.2634210526 | FK74: =EU74*FJ74 -> 0.03920685435 | FL74: 0.355 | FM74: =EU74*FL74 -> 0.0528372093 | FN74: =EX74-FL74 -> 0.03 | FO74: =EU74*FN74 -> 0.004465116279 | FP74: 0.197 | FQ74: =EU74*FP74 -> 0.02932093023 | FR74: =EX74-FP74 -> 0.188 | FS74: =EU74*FR74 -> 0.02798139535 | FT74: =FP74 -> 0.197 | FU74: =EU74*FT74 -> 0.02932093023 | FV74: =EX74-FT74 -> 0.188 | FW74: =EU74*FV74 -> 0.02798139535 | FX74: 1.63 | FY74: =EU74*FX74 -> 0.2426046512 | FZ74: 0.47 | GA74: =EU74*FZ74 -> 0.06995348837 | GB74: 11.28 | GC74: =EU74*GB74 -> 1.678883721
D75: EDB | F75: 0.0003 | O75: =IF(Reference!$H$224="", "",Reference!$H$224) ->  | R75: =IF(Reference!$G$224="", "",Reference!$G$224) ->  | S75: Soil Analysis Results | BL75: 2Bc | BN75: < 5 | BP75: No structure is present (vacant property) and GW COC concentrations are above AOC SSTLs. | DB75: Exposure Time for Hourly Indoor Inhalation Rate: | EF75: Toluene | EH75: 110000 | EJ75: 77321 | EK75: Yes | ES75: Value for Class: | ET75: QAQC: | EU75: =SUM(EU70:EU74) -> 1 | EW75: =SUM(EW70:EW74) -> 24.8784186 | EY75: =SUM(EY70:EY74) -> 0.3857953488 | FA75: =SUM(FA70:FA74) -> 0.347215814 | FC75: =SUM(FC70:FC74) -> 0.03857953488 | FE75: =SUM(FE70:FE74) -> 0.1218301102 | FG75: =SUM(FG70:FG74) -> 0.2639652387 | FI75: =SUM(FI70:FI74) -> 0.1218301102 | FK75: =SUM(FK70:FK74) -> 0.2639652387 | FM75: =SUM(FM70:FM74) -> 0.3241906977 | FO75: =SUM(FO70:FO74) -> 0.06160465116 | FQ75: =SUM(FQ70:FQ74) -> 0.1238511628 | FS75: =SUM(FS70:FS74) -> 0.261944186 | FU75: =SUM(FU70:FU74) -> 0.1238511628 | FW75: =SUM(FW70:FW74) -> 0.261944186 | FY75: =SUM(FY70:FY74) -> 1.625813953 | GA75: =SUM(GA70:GA74) -> 2.432883721 | GC75: =SUM(GC70:GC74) -> 58.3892093 | GE75: =SUM(GE70:GE74) -> 0.31
D76: EDC | F76: 0.03 | S76: Groundwater Analysis Results | DB76: Resident | DD76: ETin | DE76: hr/day | DF76: 24 | DG76: 24 | DH76: ASTM (2015) | EF76: Ethylbenzene | EH76: 210 | EJ76: 1342 | EK76: NO | ES76: Applicable Eqtn or Reference: | EU76: NA | EV76: NA | EX76: EPA J&E (09-2017) | EZ76: θwcap = θt(0.9) | FB76: θacap = θt*(0.9) | FC76: =(θt)*0.1 | FD76: =(θt)*(0.12/0.38) | FE76: =(θt)*(0.12/0.38) | FF76: =(θt)*(0.26/0.38) | FG76: =(θt)*(0.26/0.38) | FH76: =(θt)*(0.12/0.38) | FI76: =(θt)*(0.12/0.38) | FJ76: =(θt)*(0.26/0.38) | FK76: =(θt)*(0.26/0.38) | FL76: EPA J&E (09-2017) | FN76: θacap = θt - θwcap | FP76: EPA J&E (09-2017) | FR76: θas = θt - θws | FT76: EPA J&E (09-2017) | FV76: θacrack = θt - θwcrack | FX76: EPA J&E (09-2017) | FY76: EPA J&E (09-2017) | FZ76: EPA J&E (09-2017) | GA76: EPA J&E (09-2017) | GB76: EPA J&E (09-2017)
D77: 1-Methylnaphthalene | F77: 1.2 | M77: STOP: Review tables for completeness. Next, select the "Compare COCs to RBTLs" button in Dashboard. | BP77: A corrective action response action is necessary as determined by the Project Officer. | DB77: Non-residential (Commercial) Worker | DD77: ETin | DE77: hr/day | DF77: 8 | DG77: 8 | DH77: EPA (2015) | EF77: Xylenes (Total) | EH77: 2200 | EJ77: 1200 | EK77: Yes | ES77: *Documentation for EPA's Implementation of J&E (September 2017), Table 13, Page 70
D78: 1,2,4-TMB | F78: 2 | M78: 11. Applicable RBTLs and COC Comparison Tables: | DB78: Excavation Worker - Soil | DD78: ETin | DE78: hr/day | DF78: 10 | DG78: NA | DH78: ASTM (2015) | ES78: Qws in EPA J&E (09-2017) publication, uses Genuchten adjustment factors and uses the range avereged value. | FD78: Srce of θws Vals.: | FE78: ASTM (2015) | FF78: J&E (2017) pg 70
D79: Benzo(a)pyrene TEQ | F79: 4.8 | BL79: 2Bd | BN79: ≥ 5 | BP79: Slab-on-grade foundation is present or vacant property and ground water COC concentrations are above AOC SSTLs. | DB79: Excavation Worker - Ground Water - Trench | DD79: ETin | DE79: hr/day | DF79: 4 | DG79: NA | DH79: VDEQ (2016) | EF79: 1 | EH79: 2 | EJ79: 3 | EL79: 4 | ES79: Loam is not used because it's composition is generlly equal amounts of sand silt and clay. | FD79: θws | FE79: =(θt)*(0.12/0.38) | FF79: Gen. Range Av.
D80: Naphthalene | F80: 400 | DB80: Target Risk Level | DD80: TR | DE80: -- | DF80: 1e-05 | DG80: 1e-05 | DH80: Tier 1 | EN80: RBTL selections at leftt originate from Reference Sheet Columns AL to BI
B81: COC not currently in RAR | D81: TPH (Aliphatic Med.) | F81: 30 | L81: Reference 1, Cell 14, AF/LG/U, AF/LG/U & any combination G/D/UO - GW NDW & no SW receptor | Y81: Reference 1, Cell 14, AF/LG/U, AF/LG/U & any combination G/D/UO - GW NDW & no SW receptor | AL81: Reference 1, Cell 14, AF/LG/U, AF/LG/U & any combination G/D/UO - GW NDW & no SW receptor | BP81: Monitoring Only and/or other response action is necessary as determined by the Project Officer | DB81: Target Hazard Quotient | DD81: THQ | DE81: -- | DF81: 1 | DG81: 1 | DH81: Tier 1
B82: COC not currently in RAR | D82: TPH (Aliphatic High) | F82: 48000 | DB82: *Best Professional Judgement | EF82: AOC GW RBTL (Res VI) | EH82: AOC GW RBTL (Ingestion) | EJ82: AOC GW RBTL (Nres VI) | EL82: AOC GW RBTL (Ingestion) | ER82: GA USTMP Soil Texture Class: CLAY | EV82: Capillary Fringe Thickness (Fetter '94) n (hcap) (cm) | EW82: Capillary Fringe Thickness (soil text. wt. %) n (hcap) (cm) | EX82: Total Porosity t t θt (cm3/cm3) | EY82: Total Porosity (soil text. wt. %) t θt (cm3/cm3) | EZ82: Volumetric Water Content Caplillary Fringe Soils θwcap (cm3/cm3) | FA82: Volumetric Water Content Cap. Fringe Soils (soil text. wt. %) θwcap (cm3/cm3) | FB82: Volumetric Air Content Capillary Fringe Soils θacap (cm3/cm3) | FC82: Volumetric Air Content Cap. Fringe Soils (soil text. wt. %) θacap (cm3/cm3) | FD82: Volumetric Water Content Vadose Zone Soils θws (cm3/cm3) | FE82: Volumetric Water Content Vadose Soils (soil text. wt. %) θws (cm3/cm3) | FF82: Volumetric Air Content Vadose Zone Soils θas (cm3/cm3) | FG82: Volumetric Air Content Vadose Soils (soil text. wt. %) θas (cm3/cm3) | FH82: Volumetric Water Content Foundation/wall Cracks θwcrack (cm3/cm3) | FI82: Volumetric Water Content Fndn/wall Cracks (soil text. wt. %) θwcrack (cm3/cm3) | FJ82: Volumetric Air Content Foundation/wall Cracks θacrack (cm3/cm3) | FK82: Volumetric Air Content Fndn/wall Cracks (soil text. wt. %) θacrack (cm3/cm3) | FL82: Volumetric Water Content Caplillary Fringe Soils θwcap (cm3/cm3) | FM82: Volumetric Water Content Cap. Fringe Soils (soil text. wt. %) θwcap (cm3/cm3) | FN82: Volumetric Air Content Capillary Fringe Soils θacap (cm3/cm3) | FO82: Volumetric Air Content Cap. Fringe Soils (soil text. wt. %) θacap (cm3/cm3) | FP82: Volumetric Water Content Vadose Soils (soil text. wt. %) θws (cm3/cm3) | FQ82: Volumetric Water Content Vadose Soils (soil text. wt. %) θws (cm3/cm3) | FR82: Volumetric Air Content Vadose Soils (soil text. wt. %) θas (cm3/cm3) | FS82: Volumetric Air Content Vadose Soils (soil text. wt. %) θas (cm3/cm3) | FT82: Volumetric Water Content Foundation/wall Cracks θwcrack (cm3/cm3) | FU82: Volumetric Water Content Fndn/wall Cracks (soil text. wt. %) θwcrack (cm3/cm3) | FV82: Volumetric Air Content Foundation/wall Cracks θacrack (cm3/cm3) | FW82: Volumetric Air Content Fndn/wall Cracks (soil text. wt. %) θacrack (cm3/cm3) | FX82: Dry Bulk Density* g g ρs (g/cm3) | FY82: Dry Bulk Density* (soil text. wt. %) g ρs (g/cm3) | FZ82: Saturated Hydraulic Conductivity by Soil Texture* K (cm3/hr) | GA82: Saturated Hydraulic Conductivity (soil text. wt. %) K (cm3/day) | GB82: Saturated Hydraulic Conductivity (soil text. wt. %) K (cm3/day) | GC82: Effective Porosity t t θeff (cm3/cm3) | GD82: Effective Porosity (soil text. wt. %) g θeff (cm3/cm3) | GH82: =ER82 -> GA USTMP Soil Texture Class: CLAY | GL82: =EW82 -> Capillary Fringe Thickness (soil text. wt. %) n (hcap) (cm) | GM82: =EY82 -> Total Porosity (soil text. wt. %) t θt (cm3/cm3) | GN82: =FM82 -> Volumetric Water Content Cap. Fringe Soils (soil text. wt. %) θwcap (cm3/cm3) | GO82: =FO82 -> Volumetric Air Content Cap. Fringe Soils (soil text. wt. %) θacap (cm3/cm3) | GP82: =FQ82 -> Volumetric Water Content Vadose Soils (soil text. wt. %) θws (cm3/cm3) | GQ82: =FS82 -> Volumetric Air Content Vadose Soils (soil text. wt. %) θas (cm3/cm3) | GR82: =FU82 -> Volumetric Water Content Fndn/wall Cracks (soil text. wt. %) θwcrack (cm3/cm3) | GS82: =FW82 -> Volumetric Air Content Fndn/wall Cracks (soil text. wt. %) θacrack (cm3/cm3) | GT82: =FY82 -> Dry Bulk Density* (soil text. wt. %) g ρs (g/cm3) | GU82: =GB82 -> Saturated Hydraulic Conductivity (soil text. wt. %) K (cm3/day) | GV82: =GD82 -> Effective Porosity (soil text. wt. %) g θeff (cm3/cm3)
D83: Lead | F83: 270 | AL83: Resident and Non-Resident | BL83: 2Be | BN83: < 15 | BP83: Basement foundation is present and GW COCs are above AOC SSTLs. | GL83: 0 | GM83: 0 | GN83: 0 | GO83: 0 | GP83: 0 | GQ83: 0 | GR83: 0 | GS83: 0 | GT83: 0 | GU83: 0 | GV83: 0
ER84: CLAY Soil Textures Include: | ES84: CLAY Soil Class Area = Number of ▲'s summed for all Soil Textures included in the soil class. | GH84: =ER84 -> CLAY Soil Textures Include: | GI84: =ES84 -> CLAY Soil Class Area = Number of ▲'s summed for all Soil Textures included in the soil class. | GL84: 0 | GM84: 0 | GN84: 0 | GO84: 0 | GP84: 0 | GQ84: 0 | GR84: 0 | GS84: 0 | GT84: 0 | GU84: 0 | GV84: 0
D85: Direct Exposure Sub-surface Soil RBTLs | M85: 8. Sub-surface Soil Analytical Results Table: | Z85: 8. Sub-surface Soil Analytical Results Table: | BP85: Five (5) feet of clean soil is not present. A vapor intrusion survey is necessary to confirm a complete pathway. Corrective action is necessary if pathway confirmed. | GL85: 0 | GM85: 0 | GN85: 0 | GO85: 0 | GP85: 0 | GQ85: 0 | GR85: 0 | GS85: 0 | GT85: 0 | GU85: 0 | GV85: 0
EF86: (µg/L) | EH86: (µg/L) | EJ86: (µg/L) | EL86: (µg/L) | ES86: Number of ▲'s per Soil Texure* | ET86: Ttl Number of ▲'s in defined Class | EU86: Soil Texture Class Weight % | GI86: =ES86 -> Number of ▲'s per Soil Texure* | GJ86: =ET86 -> Ttl Number of ▲'s in defined Class | GK86: =EU86 -> Soil Texture Class Weight % | GL86: 0 | GM86: 0 | GN86: 0 | GO86: 0 | GP86: 0 | GQ86: 0 | GR86: 0 | GS86: 0 | GT86: 0 | GU86: 0 | GV86: 0
D87: Chemical of Concern | F87: Sub-surface Soil | N87: wall | O87: Table 8A: Sub-surface Soil Benzene Inclusion Screening: VI Exposure Pathway | AB87: Table 8: Maximum Concentration Vadose Soil Analytical Results | AN87: AOC Soil RBTL (Direct Exposure) (≥ 30 ft from structure) | BL87: 2Bf | BN87: ≥ 15 | BP87: Basement foundation is present and GW COCs are above AOC SSTLs. | GL87: 0 | GM87: 0 | GN87: 0 | GO87: 0 | GP87: 0 | GQ87: 0 | GR87: 0 | GS87: 0 | GT87: 0 | GU87: 0 | GV87: 0
F88: Direct Exposure (mg/kg) | M88: On-site Structure | O88: Lateral Distance from AOC Structure Foundation (feet) | AB88: Sample ID # | AL88: Chemical of Concern | EB88: These column headers are pulled from Reference Sheet at AL to BI | EF88: Receptor Evaluated: | EJ88: Nonresidence | ER88: Clay | ES88: =ES16 -> 29.75 | ET88: =ES94 -> 56.5625 | EU88: =ES88/ET88 -> 0.5259668508 | EV88: =EV58 -> 81.52 | EW88: =EV88*EU88 -> 42.87681768 | EX88: =EX58 -> 0.459 | EY88: =EX88*EU88 -> 0.2414187845 | EZ88: =EX88*(0.9) -> 0.4131 | FA88: =EZ88*EU88 -> 0.2172769061 | FB88: =EX88*(0.1) -> 0.0459 | FC88: =FB88*EU88 -> 0.02414187845 | FD88: =EX88*(0.12/0.38) -> 0.1449473684 | FE88: =EU88*FD88 -> 0.0762375109 | FF88: =EX88*(0.26/0.38) -> 0.3140526316 | FG88: =EU88*FF88 -> 0.1651812736 | FH88: =EX88*(0.12/0.38) -> 0.1449473684 | FI88: =EU88*FH88 -> 0.0762375109 | FJ88: =EX88*(0.26/0.38) -> 0.3140526316 | FK88: =EU88*FJ88 -> 0.1651812736 | FL88: 0.412 | FM88: =EU88*FL88 -> 0.2166983425 | FN88: =EX88-FL88 -> 0.047 | FO88: =EU88*FH88 -> 0.0762375109 | FP88: =FP58 -> 0.215 | FQ88: =EU88*FP88 -> 0.1130828729 | FR88: =EX88-FP88 -> 0.244 | FS88: =EU88*FR88 -> 0.1283359116 | FT88: =FP88 -> 0.215 | FU88: =EU88*FT88 -> 0.1130828729 | FV88: =EX88-FT88 -> 0.244 | FW88: =EU88*FV88 -> 0.1283359116 | FX88: 1.43 | FY88: =EU88*FX88 -> 0.7521325967 | FZ88: 0.61 | GA88: 14.6 | GB88: =EU88*GA88 -> 7.679116022 | GD88: 0.06 | GH88: =ER88 -> Clay | GI88: 29.75 | GJ88: 56.5625 | GK88: 0.5259668508 | GL88: 42.87681768 | GM88: 0.2414187845 | GN88: 0.2166983425 | GO88: 0.0762375109 | GP88: 0.1130828729 | GQ88: 0.1283359116 | GR88: 0.1130828729 | GS88: 0.1283359116 | GT88: 0.7521325967 | GU88: 7.679116022 | GV88: 0.06
O89: <5 | R89: ≥5 to <15 | U89: ≥15 to <30 | AB89: Sample Date | BP89: Monitoring Only and/or other response action is necessary as determined by the Project Officer | EF89: Pathway & Source: | EJ89: VI Modeled from AOC GWCmax | ER89: Clay Loam | ES89: 6.1875 | ET89: =ES94 -> 56.5625 | EU89: 0.1093922652 | EV89: 46.88 | EW89: 5.128309392 | EX89: 0.442 | EY89: 0.04835138122 | EZ89: 0.3978 | FA89: 0.04351624309 | FB89: 0.0442 | FC89: 0.004835138122 | FD89: 0.1395789474 | FE89: 0.01526885723 | FF89: 0.3024210526 | FG89: 0.03308252399 | FH89: 0.1395789474 | FI89: 0.01526885723 | FJ89: 0.3024210526 | FK89: 0.03308252399 | FL89: 0.375 | FM89: 0.04102209945 | FN89: 0.067 | FO89: =EU89*FN89 -> 0.007329281768 | FP89: 0.168 | FQ89: 0.01837790055 | FR89: 0.274 | FS89: 0.02997348066 | FT89: 0.168 | FU89: 0.01837790055 | FV89: 0.274 | FW89: 0.02997348066 | FX89: 1.48 | FY89: 0.1619005525 | FZ89: 0.34 | GA89: 8.16 | GB89: 0.892640884 | GH89: Clay Loam | GI89: 6.1875 | GJ89: 56.5625 | GK89: 0.1093922652 | GL89: 5.128309392 | GM89: 0.04835138122 | GN89: 0.04102209945 | GO89: 0.007329281768 | GP89: 0.01837790055 | GQ89: 0.02997348066 | GR89: 0.01837790055 | GS89: 0.02997348066 | GT89: 0.1619005525 | GU89: 0.892640884 | GV89: 0
D90: Benzene | F90: 12 | O90: Sample ID # | P90: Sample Date | Q90: Benzene Conc.* (mg/kg) | R90: Sample ID # | S90: Sample Date | T90: Benzene Conc.* (mg/kg) | U90: Sample ID # | V90: Sample Date | W90: Benzene Conc.* (mg/kg) | AB90: Depth (feet) | EF90: Chemical of Concern | EH90: AOC GW SSTL (VI) | EJ90: Maximum COC GW Sample Result | EL90: Below RBTL? | ER90: Silty Clay Loam | ES90: 5 | ET90: =ES94 -> 56.5625 | EU90: 0.08839779006 | EV90: 133.93 | EW90: 11.83911602 | EX90: 0.439 | EY90: 0.03880662983 | EZ90: 0.3951 | FA90: 0.03492596685 | FB90: 0.0439 | FC90: 0.003880662983 | FD90: 0.1386315789 | FE90: 0.01225472521 | FF90: 0.3003684211 | FG90: 0.02655190462 | FH90: 0.1386315789 | FI90: 0.01225472521 | FJ90: 0.3003684211 | FK90: 0.02655190462 | FL90: 0.399 | FM90: 0.03527071823 | FN90: 0.04 | FO90: =EU90*FN90 -> 0.003535911602 | FP90: 0.198 | FQ90: 0.01750276243 | FR90: 0.241 | FS90: 0.0213038674 | FT90: 0.198 | FU90: 0.01750276243 | FV90: 0.241 | FW90: 0.0213038674 | FX90: 1.37 | FY90: 0.1211049724 | FZ90: 0.46 | GA90: 11.04 | GB90: 0.9759116022 | GH90: Silty Clay Loam | GI90: 5 | GJ90: 56.5625 | GK90: 0.08839779006 | GL90: 11.83911602 | GM90: 0.03880662983 | GN90: 0.03527071823 | GO90: 0.003535911602 | GP90: 0.01750276243 | GQ90: 0.0213038674 | GR90: 0.01750276243 | GS90: 0.0213038674 | GT90: 0.1211049724 | GU90: 0.9759116022 | GV90: 0
D91: Toluene | F91: 4900 | AB91: COCs | AD91: mg/kg | AE91: mg/kg | AF91: mg/kg | AG91: mg/kg | AH91: mg/kg | AI91: mg/kg | AL91: (COC) | AN91: (mg/kg) | ER91: Silty Clay | ES91: 4 | ET91: =ES94 -> 56.5625 | EU91: 0.07071823204 | EV91: 192.13 | EW91: 13.58709392 | EX91: 0.481 | EY91: 0.03401546961 | EZ91: 0.4329 | FA91: 0.03061392265 | FB91: 0.0481 | FC91: 0.003401546961 | FD91: 0.1518947368 | FE91: 0.01074172725 | FF91: 0.3291052632 | FG91: 0.02327374237 | FH91: 0.1518947368 | FI91: 0.01074172725 | FJ91: 0.3291052632 | FK91: 0.02327374237 | FL91: 0.424 | FM91: 0.02998453039 | FN91: 0.057 | FO91: =EU91*FN91 -> 0.004030939227 | FP91: 0.216 | FQ91: 0.01527513812 | FR91: 0.265 | FS91: 0.01874033149 | FT91: 0.216 | FU91: 0.01527513812 | FV91: 0.265 | FW91: 0.01874033149 | FX91: 1.38 | FY91: 0.09759116022 | FZ91: 0.4 | GA91: 9.6 | GB91: 0.6788950276 | GH91: Silty Clay | GI91: 4 | GJ91: 56.5625 | GK91: 0.07071823204 | GL91: 13.58709392 | GM91: 0.03401546961 | GN91: 0.02998453039 | GO91: 0.004030939227 | GP91: 0.01527513812 | GQ91: 0.01874033149 | GR91: 0.01527513812 | GS91: 0.01874033149 | GT91: 0.09759116022 | GU91: 0.6788950276 | GV91: 0
D92: Ethylbenzene | F92: 80 | M92: fndtion | AB92: Benzene | AL92: Benzene | AN92: 12 | BN92: C. AOC Structure: Free Product (FP) and/or FP Condition GW MW Recommendation: | ER92: Sandy Clay Loam | ES92: 7.625 | ET92: =ES94 -> 56.5625 | EU92: 0.1348066298 | EV92: 25.86 | EW92: 3.486099448 | EX92: 0.384 | EY92: 0.05176574586 | EZ92: 0.3456 | FA92: 0.04658917127 | FB92: 0.0384 | FC92: 0.005176574586 | FD92: 0.1212631579 | FE92: 0.01634707764 | FF92: 0.2627368421 | FG92: 0.03541866822 | FH92: 0.1212631579 | FI92: 0.01634707764 | FJ92: 0.2627368421 | FK92: 0.03541866822 | FL92: 0.333 | FM92: 0.04489060773 | FN92: 0.051 | FO92: =EU92*FN92 -> 0.006875138122 | FP92: 0.146 | FQ92: 0.01968176796 | FR92: 0.238 | FS92: 0.0320839779 | FT92: 0.146 | FU92: 0.01968176796 | FV92: 0.238 | FW92: 0.0320839779 | FX92: 1.63 | FY92: 0.2197348066 | FZ92: 0.55 | GA92: 13.2 | GB92: 1.779447514 | GH92: Sandy Clay Loam | GI92: 7.625 | GJ92: 56.5625 | GK92: 0.1348066298 | GL92: 3.486099448 | GM92: 0.05176574586 | GN92: 0.04489060773 | GO92: 0.006875138122 | GP92: 0.01968176796 | GQ92: 0.0320839779 | GR92: 0.01968176796 | GS92: 0.0320839779 | GT92: 0.2197348066 | GU92: 1.779447514 | GV92: 0
